Workbook

Sheet Challenge UR11
C2: Challenge de l'UR11 - Saison 2018/2019
B4: Concurrents | E4: Etape 1 : Octobre 2018 - Thème "La lumière" Juges : 1. Martine Cousson ; 2. Alain Garsia ; 3. Sébastien Perras | M4: Etape 2 : Novembre 2018 - Thème "Fruits et légumes" Juges : 1. Roseline Paillé ; 2. Eulalie Varenne ; 3. Anouk Graux | T4: Nb points après étape 2 | U4: Classement après étape 2 | V4: Etape 3 : Décembre 2018 - Thème "Villes et villages de notre région" Juges : 1. Victor Coucosh ; 2. Dominique Loof ; 3. Sonia Vennitti | AC4: Nb points après étape 3 | AD4: Classement après étape 3 | AE4: Etape 4 : Janvier 2019 - Thème "Pose longue" Juges : 1. Toni Lessa ; 2. Christophe Audebert ; 3. Myriam Rivals | AL4: Nb points après étape 4 | AM4: Classement après étape 4 | AN4: Etape 5 : Février 2019 - Thème "L'hiver" Juges : 1. Karl Hecquefeuille ; 2. Jean-Marc Rohmer ; 3. Lazoura Cortial | AU4: Nb points après étape 5 | AV4: Classement après étape 5 | AW4: Etape 6 : Mars 2017 - Thème "Perspective(s)" Juges : 1. Jean Houriez ; 2. Yvan Laussel ; 3. Christine Mercier | BD4: Nb points après étape 6 | BE4: Classement après étape 6 | BF4: Etape 7 : Avril 2017 - Thème "Chaises et bancs" Juges : 1. Armand Amenta ; 2. Pascal Lecoeur ; 3. Brigitte Monjaux | BM4: Nb points après étape 7 | BN4: Classement après étape 7 | BO4: Etape 8 : Mai 2017 - Thème libre Juges : 1. Isabelle Alt ; 2. Roseline Dupeux ; 3. Jean-Marc Rohmer | BV4: Nb points après étape 8 | BW4: Classement après étape 8
B5: Auteur | C5: Club | D5: adhérent | E5: titre | F5: note1 | G5: note2 | H5: note3 | I5: total | J5: place | K5: nb points | L5: Place | M5: titre | N5: note1 | O5: note2 | P5: note3 | Q5: total | R5: place | S5: nb points | V5: titre | W5: note1 | X5: note2 | Y5: note3 | Z5: total | AA5: place | AB5: nb points | AE5: titre | AF5: note1 | AG5: note2 | AH5: note3 | AI5: total | AJ5: place | AK5: nb points | AN5: titre | AO5: note1 | AP5: note2 | AQ5: note3 | AR5: total | AS5: place | AT5: nb points | AW5: titre | AX5: note1 | AY5: note2 | AZ5: note3 | BA5: total | BB5: place | BC5: nb points | BF5: titre | BG5: note1 | BH5: note2 | BI5: note3 | BJ5: total | BK5: place | BL5: nb points | BO5: titre | BP5: note1 | BQ5: note2 | BR5: note3 | BS5: total | BT5: place | BU5: nb points
B7: Florence Decobecq | C7: Numerica Photo Club Faverges | D7: 1121100002 | E7: plein feu sur le diablotin | F7: 15 | G7: 16 | H7: 15 | I7: =SUM(F7:H7) -> 46 | J7: =IF(E7="","",RANK(I7,I$7:I$230)) -> 15 | K7: =IF(J7="",0,I$231+1-J7) -> 178 | L7: =RANK(K7,K$7:K$226) -> 15 | M7: L'étale | N7: 19 | O7: 14 | P7: 12 | Q7: =SUM(N7:P7) -> 45 | R7: =IF(M7="","",RANK(Q7,Q$7:Q$230)) -> 21 | S7: =IF(R7="",0,Q$231+1-R7) -> 148 | T7: =S7+K7 -> 326 | U7: =IF(T7=0,"",RANK(T7,T$7:T$230)) -> 7 | V7: Toitures lyonnaises | W7: 17 | X7: 13 | Y7: 19 | Z7: =SUM(W7:Y7) -> 49 | AA7: =IF(V7="","",RANK(Z7,Z$7:Z$230)) -> 2 | AB7: =IF(AA7="",0,Z$231+1-AA7) -> 168 | AC7: =AB7+T7 -> 494 | AD7: =RANK(AC7,AC$7:AC$230) -> 1 | AE7: Dream | AF7: 15 | AG7: 20 | AH7: 18 | AI7: =SUM(AF7:AH7) -> 53 | AJ7: =IF(AE7="","",RANK(AI7,AI$7:AI$230)) -> 1 | AK7: =IF(AJ7="",0,AI$231+1-AJ7) -> 156 | AL7: =AK7+AC7 -> 650 | AM7: =RANK(AL7,AL$7:AL$230) -> 1 | AN7: Porte ouverte sur l'Aubrac | AO7: 10 | AP7: 14 | AQ7: 13 | AR7: =SUM(AO7:AQ7) -> 37 | AS7: =IF(AN7="","",RANK(AR7,AR$7:AR$230)) -> 69 | AT7: =IF(AS7="",0,AR$231+1-AS7) -> 95 | AU7: =AT7+AL7 -> 745 | AV7: =RANK(AU7,AU$7:AU$230) -> 1
B8: Benoît Audigé | C8: Merger Photo Club - Meylan | D8: 1102590046 | E8: Retour de pêche | F8: 11 | G8: 13 | H8: 16 | I8: =SUM(F8:H8) -> 40 | J8: =IF(E8="","",RANK(I8,I$7:I$230)) -> 69 | K8: =IF(J8="",0,I$231+1-J8) -> 124 | L8: =RANK(K8,K$7:K$226) -> 69 | M8: Tomate dans un verre d'eau | N8: 17 | O8: 15 | P8: 13 | Q8: =SUM(N8:P8) -> 45 | R8: =IF(M8="","",RANK(Q8,Q$7:Q$230)) -> 21 | S8: =IF(R8="",0,Q$231+1-R8) -> 148 | T8: =S8+K8 -> 272 | U8: =IF(T8=0,"",RANK(T8,T$7:T$230)) -> 23 | V8: Pleine lune à Chamrousse | W8: 20 | X8: 15 | Y8: 14 | Z8: =SUM(W8:Y8) -> 49 | AA8: =IF(V8="","",RANK(Z8,Z$7:Z$230)) -> 2 | AB8: =IF(AA8="",0,Z$231+1-AA8) -> 168 | AC8: =AB8+T8 -> 440 | AD8: =RANK(AC8,AC$7:AC$230) -> 9 | AE8: Aiguilles d'Arve dans la nuit | AF8: 16 | AG8: 19 | AH8: 16 | AI8: =SUM(AF8:AH8) -> 51 | AJ8: =IF(AE8="","",RANK(AI8,AI$7:AI$230)) -> 6 | AK8: =IF(AJ8="",0,AI$231+1-AJ8) -> 151 | AL8: =AK8+AC8 -> 591 | AM8: =RANK(AL8,AL$7:AL$230) -> 3 | AN8: Raid à ski en Vanoise | AO8: 12 | AP8: 13 | AQ8: 18 | AR8: =SUM(AO8:AQ8) -> 43 | AS8: =IF(AN8="","",RANK(AR8,AR$7:AR$230)) -> 21 | AT8: =IF(AS8="",0,AR$231+1-AS8) -> 143 | AU8: =AT8+AL8 -> 734 | AV8: =RANK(AU8,AU$7:AU$230) -> 2 | BA8: =SUM(AX8:AZ8) -> 0 | BB8: =IF(AW8="","",RANK(BA8,BA$8:BA$224)) ->  | BC8: =IF(BB8="",0,BA$225+1-BB8) -> 0 | BD8: =BC8+AU8 -> 734 | BE8: =RANK(BD8,BD$8:BD$224) -> 1 | BJ8: =SUM(BG8:BI8) -> 0 | BK8: =IF(BF8="","",RANK(BJ8,BJ$8:BJ$224)) ->  | BL8: =IF(BK8="",0,BJ$225+1-BK8) -> 0 | BM8: =BL8+BD8 -> 734 | BN8: =RANK(BM8,BM$8:BM$224) -> 1 | BS8: =SUM(BP8:BR8) -> 0 | BT8: =IF(BO8="","",RANK(BS8,BS$8:BS$224)) ->  | BU8: =IF(BT8="",0,BS$225+1-BT8) -> 0 | BV8: =BU8+BM8 -> 734 | BW8: =RANK(BV8,BV$8:BV$224) -> 1
B9: Jean-Charles Demeure | C9: Photo Club de Biviers | D9: 1111310084 | E9: Hout Bay | F9: 14 | G9: 13 | H9: 13 | I9: =SUM(F9:H9) -> 40 | J9: =IF(E9="","",RANK(I9,I$7:I$230)) -> 69 | K9: =IF(J9="",0,I$231+1-J9) -> 124 | L9: =RANK(K9,K$7:K$226) -> 69 | M9: Noix Nature Morte | N9: 18 | O9: 12 | P9: 18 | Q9: =SUM(N9:P9) -> 48 | R9: =IF(M9="","",RANK(Q9,Q$7:Q$230)) -> 8 | S9: =IF(R9="",0,Q$231+1-R9) -> 161 | T9: =S9+K9 -> 285 | U9: =IF(T9=0,"",RANK(T9,T$7:T$230)) -> 18 | V9: Brumes du matin | W9: 15 | X9: 15 | Y9: 14 | Z9: =SUM(W9:Y9) -> 44 | AA9: =IF(V9="","",RANK(Z9,Z$7:Z$230)) -> 22 | AB9: =IF(AA9="",0,Z$231+1-AA9) -> 148 | AC9: =AB9+T9 -> 433 | AD9: =RANK(AC9,AC$7:AC$230) -> 11 | AE9: Port Coton | AF9: 17 | AG9: 15 | AH9: 15 | AI9: =SUM(AF9:AH9) -> 47 | AJ9: =IF(AE9="","",RANK(AI9,AI$7:AI$230)) -> 13 | AK9: =IF(AJ9="",0,AI$231+1-AJ9) -> 144 | AL9: =AK9+AC9 -> 577 | AM9: =RANK(AL9,AL$7:AL$230) -> 4 | AN9: le moins court chemin | AO9: 13 | AP9: 13 | AQ9: 20 | AR9: =SUM(AO9:AQ9) -> 46 | AS9: =IF(AN9="","",RANK(AR9,AR$7:AR$230)) -> 11 | AT9: =IF(AS9="",0,AR$231+1-AS9) -> 153 | AU9: =AT9+AL9 -> 730 | AV9: =RANK(AU9,AU$7:AU$230) -> 3 | BA9: 0 | BC9: 0 | BD9: 730 | BE9: 2 | BJ9: 0 | BL9: 0 | BM9: 730 | BN9: 2 | BS9: 0 | BU9: 0 | BV9: 730 | BW9: 2
B10: Patrick Garcia | C10: Photo Club IBM Grenoble | D10: 1109760006 | E10: Live in the city | F10: 17 | G10: 17 | H10: 16 | I10: =SUM(F10:H10) -> 50 | J10: =IF(E10="","",RANK(I10,I$7:I$230)) -> 2 | K10: =IF(J10="",0,I$231+1-J10) -> 191 | L10: =RANK(K10,K$7:K$226) -> 2 | M10: Poivron | N10: 17 | O10: 15 | P10: 16 | Q10: =SUM(N10:P10) -> 48 | R10: =IF(M10="","",RANK(Q10,Q$7:Q$230)) -> 8 | S10: =IF(R10="",0,Q$231+1-R10) -> 161 | T10: =S10+K10 -> 352 | U10: =IF(T10=0,"",RANK(T10,T$7:T$230)) -> 1 | V10: Valmorel village | W10: 15 | X10: 13 | Y10: 11 | Z10: =SUM(W10:Y10) -> 39 | AA10: =IF(V10="","",RANK(Z10,Z$7:Z$230)) -> 67 | AB10: =IF(AA10="",0,Z$231+1-AA10) -> 103 | AC10: =AB10+T10 -> 455 | AD10: =RANK(AC10,AC$7:AC$230) -> 5 | AE10: Tram de nuit | AF10: 13 | AG10: 14 | AH10: 16 | AI10: =SUM(AF10:AH10) -> 43 | AJ10: =IF(AE10="","",RANK(AI10,AI$7:AI$230)) -> 38 | AK10: =IF(AJ10="",0,AI$231+1-AJ10) -> 119 | AL10: =AK10+AC10 -> 574 | AM10: =RANK(AL10,AL$7:AL$230) -> 6 | AN10: FIS World Cup | AO10: 19 | AP10: 14 | AQ10: 10 | AR10: =SUM(AO10:AQ10) -> 43 | AS10: =IF(AN10="","",RANK(AR10,AR$7:AR$230)) -> 21 | AT10: =IF(AS10="",0,AR$231+1-AS10) -> 143 | AU10: =AT10+AL10 -> 717 | AV10: =RANK(AU10,AU$7:AU$230) -> 4 | BA10: 0 | BC10: 0 | BD10: 717 | BE10: 3 | BJ10: 0 | BL10: 0 | BM10: 717 | BN10: 3 | BS10: 0 | BU10: 0 | BV10: 717 | BW10: 3
B11: Michel Cauvet | C11: Gavot Déclic - PC Larringes | D11: 1116980025 | E11: Matinale | F11: 13 | G11: 17 | H11: 16 | I11: =SUM(F11:H11) -> 46 | J11: =IF(E11="","",RANK(I11,I$7:I$230)) -> 15 | K11: =IF(J11="",0,I$231+1-J11) -> 178 | L11: =RANK(K11,K$7:K$226) -> 15 | M11: Tranche de radis | N11: 15 | O11: 13 | P11: 14 | Q11: =SUM(N11:P11) -> 42 | R11: =IF(M11="","",RANK(Q11,Q$7:Q$230)) -> 39 | S11: =IF(R11="",0,Q$231+1-R11) -> 130 | T11: =S11+K11 -> 308 | U11: =IF(T11=0,"",RANK(T11,T$7:T$230)) -> 11 | V11: Yvoire sous la loupe | W11: 18 | X11: 13 | Y11: 12 | Z11: =SUM(W11:Y11) -> 43 | AA11: =IF(V11="","",RANK(Z11,Z$7:Z$230)) -> 33 | AB11: =IF(AA11="",0,Z$231+1-AA11) -> 137 | AC11: =AB11+T11 -> 445 | AD11: =RANK(AC11,AC$7:AC$230) -> 8 | AE11: Spirale de feu | AF11: 14 | AG11: 15 | AH11: 13 | AI11: =SUM(AF11:AH11) -> 42 | AJ11: =IF(AE11="","",RANK(AI11,AI$7:AI$230)) -> 44 | AK11: =IF(AJ11="",0,AI$231+1-AJ11) -> 113 | AL11: =AK11+AC11 -> 558 | AM11: =RANK(AL11,AL$7:AL$230) -> 8 | AN11: Tempête sur le lac | AO11: 13 | AP11: 12 | AQ11: 17 | AR11: =SUM(AO11:AQ11) -> 42 | AS11: =IF(AN11="","",RANK(AR11,AR$7:AR$230)) -> 30 | AT11: =IF(AS11="",0,AR$231+1-AS11) -> 134 | AU11: =AT11+AL11 -> 692 | AV11: =RANK(AU11,AU$7:AU$230) -> 5 | BA11: 0 | BC11: 0 | BD11: 692 | BE11: 4 | BJ11: 0 | BL11: 0 | BM11: 692 | BN11: 4 | BS11: 0 | BU11: 0 | BV11: 692 | BW11: 4
B12: Hélène Faradji | C12: Objectif Images Lyon | D12: 1106200042 | E12: festival de diapos | F12: 14 | G12: 12 | H12: 11 | I12: =SUM(F12:H12) -> 37 | J12: =IF(E12="","",RANK(I12,I$7:I$230)) -> 106 | K12: =IF(J12="",0,I$231+1-J12) -> 87 | L12: =RANK(K12,K$7:K$226) -> 106 | M12: Dialogue | N12: 15 | O12: 16 | P12: 14 | Q12: =SUM(N12:P12) -> 45 | R12: =IF(M12="","",RANK(Q12,Q$7:Q$230)) -> 21 | S12: =IF(R12="",0,Q$231+1-R12) -> 148 | T12: =S12+K12 -> 235 | U12: =IF(T12=0,"",RANK(T12,T$7:T$230)) -> 52 | V12: lampadaires | W12: 14 | X12: 14 | Y12: 20 | Z12: =SUM(W12:Y12) -> 48 | AA12: =IF(V12="","",RANK(Z12,Z$7:Z$230)) -> 5 | AB12: =IF(AA12="",0,Z$231+1-AA12) -> 165 | AC12: =AB12+T12 -> 400 | AD12: =RANK(AC12,AC$7:AC$230) -> 18 | AE12: Tramway | AF12: 17 | AG12: 11 | AH12: 20 | AI12: =SUM(AF12:AH12) -> 48 | AJ12: =IF(AE12="","",RANK(AI12,AI$7:AI$230)) -> 10 | AK12: =IF(AJ12="",0,AI$231+1-AJ12) -> 147 | AL12: =AK12+AC12 -> 547 | AM12: =RANK(AL12,AL$7:AL$230) -> 9 | AN12: arbres nus | AO12: 16 | AP12: 14 | AQ12: 12 | AR12: =SUM(AO12:AQ12) -> 42 | AS12: =IF(AN12="","",RANK(AR12,AR$7:AR$230)) -> 30 | AT12: =IF(AS12="",0,AR$231+1-AS12) -> 134 | AU12: =AT12+AL12 -> 681 | AV12: =RANK(AU12,AU$7:AU$230) -> 6 | BA12: 0 | BC12: 0 | BD12: 681 | BE12: 5 | BJ12: 0 | BL12: 0 | BM12: 681 | BN12: 5 | BS12: 0 | BU12: 0 | BV12: 681 | BW12: 5
B13: Gerard Sanzey | C13: Objectif Images Lyon | D13: 1106200051 | E13: Monastère de Guéghard | F13: 17 | G13: 12 | H13: 18 | I13: =SUM(F13:H13) -> 47 | J13: =IF(E13="","",RANK(I13,I$7:I$230)) -> 10 | K13: =IF(J13="",0,I$231+1-J13) -> 183 | L13: =RANK(K13,K$7:K$226) -> 10 | M13: A la queue leu leu | N13: 15 | O13: 14 | P13: 13 | Q13: =SUM(N13:P13) -> 42 | R13: =IF(M13="","",RANK(Q13,Q$7:Q$230)) -> 39 | S13: =IF(R13="",0,Q$231+1-R13) -> 130 | T13: =S13+K13 -> 313 | U13: =IF(T13=0,"",RANK(T13,T$7:T$230)) -> 10 | V13: Toits de Lyon | W13: 13 | X13: 12 | Y13: 17 | Z13: =SUM(W13:Y13) -> 42 | AA13: =IF(V13="","",RANK(Z13,Z$7:Z$230)) -> 36 | AB13: =IF(AA13="",0,Z$231+1-AA13) -> 134 | AC13: =AB13+T13 -> 447 | AD13: =RANK(AC13,AC$7:AC$230) -> 7 | AE13: Ballons | AF13: 16 | AG13: 12 | AH13: 16 | AI13: =SUM(AF13:AH13) -> 44 | AJ13: =IF(AE13="","",RANK(AI13,AI$7:AI$230)) -> 29 | AK13: =IF(AJ13="",0,AI$231+1-AJ13) -> 128 | AL13: =AK13+AC13 -> 575 | AM13: =RANK(AL13,AL$7:AL$230) -> 5 | AN13: Rando en raquettes | AO13: 12 | AP13: 13 | AQ13: 13 | AR13: =SUM(AO13:AQ13) -> 38 | AS13: =IF(AN13="","",RANK(AR13,AR$7:AR$230)) -> 61 | AT13: =IF(AS13="",0,AR$231+1-AS13) -> 103 | AU13: =AT13+AL13 -> 678 | AV13: =RANK(AU13,AU$7:AU$230) -> 7 | BA13: 0 | BC13: 0 | BD13: 678 | BE13: 6 | BJ13: 0 | BL13: 0 | BM13: 678 | BN13: 6 | BS13: 0 | BU13: 0 | BV13: 678 | BW13: 6
B14: Claude Brenas | C14: Objectif Images Lyon | D14: 1106200031 | E14: Night light | F14: 18 | G14: 15 | H14: 15 | I14: =SUM(F14:H14) -> 48 | J14: =IF(E14="","",RANK(I14,I$7:I$230)) -> 5 | K14: =IF(J14="",0,I$231+1-J14) -> 188 | L14: =RANK(K14,K$7:K$226) -> 5 | M14: Réunion de famille | N14: 17 | O14: 14 | P14: 14 | Q14: =SUM(N14:P14) -> 45 | R14: =IF(M14="","",RANK(Q14,Q$7:Q$230)) -> 21 | S14: =IF(R14="",0,Q$231+1-R14) -> 148 | T14: =S14+K14 -> 336 | U14: =IF(T14=0,"",RANK(T14,T$7:T$230)) -> 4 | V14: Prends de la hauteur | W14: 15 | X14: 12 | Y14: 14 | Z14: =SUM(W14:Y14) -> 41 | AA14: =IF(V14="","",RANK(Z14,Z$7:Z$230)) -> 48 | AB14: =IF(AA14="",0,Z$231+1-AA14) -> 122 | AC14: =AB14+T14 -> 458 | AD14: =RANK(AC14,AC$7:AC$230) -> 4 | AE14: Yzeron au bois | AF14: 15 | AG14: 13 | AH14: 13 | AI14: =SUM(AF14:AH14) -> 41 | AJ14: =IF(AE14="","",RANK(AI14,AI$7:AI$230)) -> 52 | AK14: =IF(AJ14="",0,AI$231+1-AJ14) -> 105 | AL14: =AK14+AC14 -> 563 | AM14: =RANK(AL14,AL$7:AL$230) -> 7 | AN14: L'ile mystérieuse | AO14: 13 | AP14: 13 | AQ14: 13 | AR14: =SUM(AO14:AQ14) -> 39 | AS14: =IF(AN14="","",RANK(AR14,AR$7:AR$230)) -> 52 | AT14: =IF(AS14="",0,AR$231+1-AS14) -> 112 | AU14: =AT14+AL14 -> 675 | AV14: =RANK(AU14,AU$7:AU$230) -> 8 | BA14: 0 | BC14: 0 | BD14: 675 | BE14: 7 | BJ14: 0 | BL14: 0 | BM14: 675 | BN14: 7 | BS14: 0 | BU14: 0 | BV14: 675 | BW14: 7
B15: Georges Collot | C15: Photo Club de Biviers | D15: 1111310126 | E15: Coquelicots | F15: 17 | G15: 12 | H15: 10 | I15: =SUM(F15:H15) -> 39 | J15: =IF(E15="","",RANK(I15,I$7:I$230)) -> 84 | K15: =IF(J15="",0,I$231+1-J15) -> 109 | L15: =RANK(K15,K$7:K$226) -> 84 | M15: OGM ? | N15: 18 | O15: 12 | P15: 15 | Q15: =SUM(N15:P15) -> 45 | R15: =IF(M15="","",RANK(Q15,Q$7:Q$230)) -> 21 | S15: =IF(R15="",0,Q$231+1-R15) -> 148 | T15: =S15+K15 -> 257 | U15: =IF(T15=0,"",RANK(T15,T$7:T$230)) -> 30 | V15: Trouée du soleil sur Châtillon (Savoie) | W15: 15 | X15: 15 | Y15: 17 | Z15: =SUM(W15:Y15) -> 47 | AA15: =IF(V15="","",RANK(Z15,Z$7:Z$230)) -> 7 | AB15: =IF(AA15="",0,Z$231+1-AA15) -> 163 | AC15: =AB15+T15 -> 420 | AD15: =RANK(AC15,AC$7:AC$230) -> 15 | AE15: Flux et reflux | AF15: 15 | AG15: 12 | AH15: 14 | AI15: =SUM(AF15:AH15) -> 41 | AJ15: =IF(AE15="","",RANK(AI15,AI$7:AI$230)) -> 52 | AK15: =IF(AJ15="",0,AI$231+1-AJ15) -> 105 | AL15: =AK15+AC15 -> 525 | AM15: =RANK(AL15,AL$7:AL$230) -> 15 | AN15: Le blanc manteau | AO15: 14 | AP15: 14 | AQ15: 16 | AR15: =SUM(AO15:AQ15) -> 44 | AS15: =IF(AN15="","",RANK(AR15,AR$7:AR$230)) -> 18 | AT15: =IF(AS15="",0,AR$231+1-AS15) -> 146 | AU15: =AT15+AL15 -> 671 | AV15: =RANK(AU15,AU$7:AU$230) -> 9 | BA15: 0 | BC15: 0 | BD15: 671 | BE15: 8 | BJ15: 0 | BL15: 0 | BM15: 671 | BN15: 8 | BS15: 0 | BU15: 0 | BV15: 671 | BW15: 8
B16: Michel Aveline | C16: Club Photo St André de Corcy | D16: 1118930001 | E16: Les Sucs | F16: 12 | G16: 13 | H16: 14 | I16: =SUM(F16:H16) -> 39 | J16: =IF(E16="","",RANK(I16,I$7:I$230)) -> 84 | K16: =IF(J16="",0,I$231+1-J16) -> 109 | L16: =RANK(K16,K$7:K$226) -> 84 | M16: Composition naïve | N16: 16 | O16: 17 | P16: 11 | Q16: =SUM(N16:P16) -> 44 | R16: =IF(M16="","",RANK(Q16,Q$7:Q$230)) -> 29 | S16: =IF(R16="",0,Q$231+1-R16) -> 140 | T16: =S16+K16 -> 249 | U16: =IF(T16=0,"",RANK(T16,T$7:T$230)) -> 34 | V16: Lyon République | W16: 15 | X16: 15 | Y16: 16 | Z16: =SUM(W16:Y16) -> 46 | AA16: =IF(V16="","",RANK(Z16,Z$7:Z$230)) -> 11 | AB16: =IF(AA16="",0,Z$231+1-AA16) -> 159 | AC16: =AB16+T16 -> 408 | AD16: =RANK(AC16,AC$7:AC$230) -> 16 | AE16: Grande Roue | AF16: 13 | AG16: 13 | AH16: 15 | AI16: =SUM(AF16:AH16) -> 41 | AJ16: =IF(AE16="","",RANK(AI16,AI$7:AI$230)) -> 52 | AK16: =IF(AJ16="",0,AI$231+1-AJ16) -> 105 | AL16: =AK16+AC16 -> 513 | AM16: =RANK(AL16,AL$7:AL$230) -> 16 | AN16: Marais des Echets | AO16: 14 | AP16: 15 | AQ16: 19 | AR16: =SUM(AO16:AQ16) -> 48 | AS16: =IF(AN16="","",RANK(AR16,AR$7:AR$230)) -> 7 | AT16: =IF(AS16="",0,AR$231+1-AS16) -> 157 | AU16: =AT16+AL16 -> 670 | AV16: =RANK(AU16,AU$7:AU$230) -> 10 | BA16: 0 | BC16: 0 | BD16: 670 | BE16: 9 | BJ16: 0 | BL16: 0 | BM16: 670 | BN16: 9 | BS16: 0 | BU16: 0 | BV16: 670 | BW16: 9
B17: Benoit Gradel | C17: Objectif Photo St Maurice l'Exil | D17: 1117540025 | E17: A quelle heure passe le bus ? | F17: 18 | G17: 15 | H17: 15 | I17: =SUM(F17:H17) -> 48 | J17: =IF(E17="","",RANK(I17,I$7:I$230)) -> 5 | K17: =IF(J17="",0,I$231+1-J17) -> 188 | L17: =RANK(K17,K$7:K$226) -> 5 | M17: Régime | N17: 17 | O17: 14 | P17: 13 | Q17: =SUM(N17:P17) -> 44 | R17: =IF(M17="","",RANK(Q17,Q$7:Q$230)) -> 29 | S17: =IF(R17="",0,Q$231+1-R17) -> 140 | T17: =S17+K17 -> 328 | U17: =IF(T17=0,"",RANK(T17,T$7:T$230)) -> 6 | V17: Saint-Jacques d'Atticieux dans les nuages | W17: 15 | X17: 12 | Y17: 19 | Z17: =SUM(W17:Y17) -> 46 | AA17: =IF(V17="","",RANK(Z17,Z$7:Z$230)) -> 11 | AB17: =IF(AA17="",0,Z$231+1-AA17) -> 159 | AC17: =AB17+T17 -> 487 | AD17: =RANK(AC17,AC$7:AC$230) -> 2 | AE17: Contemplation | AF17: 17 | AG17: 14 | AH17: 15 | AI17: =SUM(AF17:AH17) -> 46 | AJ17: =IF(AE17="","",RANK(AI17,AI$7:AI$230)) -> 20 | AK17: =IF(AJ17="",0,AI$231+1-AJ17) -> 137 | AL17: =AK17+AC17 -> 624 | AM17: =RANK(AL17,AL$7:AL$230) -> 2 | AN17: Sous le soleil | AO17: 8 | AP17: 12 | AQ17: 12 | AR17: =SUM(AO17:AQ17) -> 32 | AS17: =IF(AN17="","",RANK(AR17,AR$7:AR$230)) -> 119 | AT17: =IF(AS17="",0,AR$231+1-AS17) -> 45 | AU17: =AT17+AL17 -> 669 | AV17: =RANK(AU17,AU$7:AU$230) -> 11 | BA17: 0 | BC17: 0 | BD17: 669 | BE17: 10 | BJ17: 0 | BL17: 0 | BM17: 669 | BN17: 10 | BS17: 0 | BU17: 0 | BV17: 669 | BW17: 10
B18: Catherine Lanier-Margot | C18: Numerica Photo Club Faverges | D18: 1121100006 | E18: Eté | F18: 20 | G18: 16 | H18: 18 | I18: =SUM(F18:H18) -> 54 | J18: =IF(E18="","",RANK(I18,I$7:I$230)) -> 1 | K18: =IF(J18="",0,I$231+1-J18) -> 192 | L18: =RANK(K18,K$7:K$226) -> 1 | M18: Fruit défendu | N18: 9 | O18: 13 | P18: 11 | Q18: =SUM(N18:P18) -> 33 | R18: =IF(M18="","",RANK(Q18,Q$7:Q$230)) -> 122 | S18: =IF(R18="",0,Q$231+1-R18) -> 47 | T18: =S18+K18 -> 239 | U18: =IF(T18=0,"",RANK(T18,T$7:T$230)) -> 44 | V18: Position dominante | W18: 15 | X18: 15 | Y18: 14 | Z18: =SUM(W18:Y18) -> 44 | AA18: =IF(V18="","",RANK(Z18,Z$7:Z$230)) -> 22 | AB18: =IF(AA18="",0,Z$231+1-AA18) -> 148 | AC18: =AB18+T18 -> 387 | AD18: =RANK(AC18,AC$7:AC$230) -> 23 | AE18: Apprentissage | AF18: 14 | AG18: 13 | AH18: 15 | AI18: =SUM(AF18:AH18) -> 42 | AJ18: =IF(AE18="","",RANK(AI18,AI$7:AI$230)) -> 44 | AK18: =IF(AJ18="",0,AI$231+1-AJ18) -> 113 | AL18: =AK18+AC18 -> 500 | AM18: =RANK(AL18,AL$7:AL$230) -> 17 | AN18: Au bout du bout | AO18: 15 | AP18: 15 | AQ18: 20 | AR18: =SUM(AO18:AQ18) -> 50 | AS18: =IF(AN18="","",RANK(AR18,AR$7:AR$230)) -> 3 | AT18: =IF(AS18="",0,AR$231+1-AS18) -> 161 | AU18: =AT18+AL18 -> 661 | AV18: =RANK(AU18,AU$7:AU$230) -> 12
B19: Agnès Escuyer | C19: Gavot Déclic - PC Larringes | D19: 1116980027 | E19: Lumière inespérée | F19: 17 | G19: 12 | H19: 18 | I19: =SUM(F19:H19) -> 47 | J19: =IF(E19="","",RANK(I19,I$7:I$230)) -> 10 | K19: =IF(J19="",0,I$231+1-J19) -> 183 | L19: =RANK(K19,K$7:K$226) -> 10 | M19: Olives vertes | N19: 10 | O19: 12 | P19: 12 | Q19: =SUM(N19:P19) -> 34 | R19: =IF(M19="","",RANK(Q19,Q$7:Q$230)) -> 115 | S19: =IF(R19="",0,Q$231+1-R19) -> 54 | T19: =S19+K19 -> 237 | U19: =IF(T19=0,"",RANK(T19,T$7:T$230)) -> 48 | V19: Saint Paul en Chablais | W19: 14 | X19: 13 | Y19: 17 | Z19: =SUM(W19:Y19) -> 44 | AA19: =IF(V19="","",RANK(Z19,Z$7:Z$230)) -> 22 | AB19: =IF(AA19="",0,Z$231+1-AA19) -> 148 | AC19: =AB19+T19 -> 385 | AD19: =RANK(AC19,AC$7:AC$230) -> 24 | AE19: Voie lactée sur la Meije | AF19: 16 | AG19: 18 | AH19: 19 | AI19: =SUM(AF19:AH19) -> 53 | AJ19: =IF(AE19="","",RANK(AI19,AI$7:AI$230)) -> 1 | AK19: =IF(AJ19="",0,AI$231+1-AJ19) -> 156 | AL19: =AK19+AC19 -> 541 | AM19: =RANK(AL19,AL$7:AL$230) -> 11 | AN19: A la limite du brouillard. | AO19: 11 | AP19: 16 | AQ19: 11 | AR19: =SUM(AO19:AQ19) -> 38 | AS19: =IF(AN19="","",RANK(AR19,AR$7:AR$230)) -> 61 | AT19: =IF(AS19="",0,AR$231+1-AS19) -> 103 | AU19: =AT19+AL19 -> 644 | AV19: =RANK(AU19,AU$7:AU$230) -> 13 | BA19: 0 | BB19: =IF(AW19="","",RANK(BA19,BA$8:BA$224)) ->  | BC19: =IF(BB19="",0,BA$225+1-BB19) -> 0 | BD19: 644 | BE19: =RANK(BD19,BD$8:BD$224) -> 11 | BJ19: 0 | BK19: =IF(BF19="","",RANK(BJ19,BJ$8:BJ$224)) ->  | BL19: =IF(BK19="",0,BJ$225+1-BK19) -> 0 | BM19: 644 | BN19: =RANK(BM19,BM$8:BM$224) -> 11 | BS19: 0 | BT19: =IF(BO19="","",RANK(BS19,BS$8:BS$224)) ->  | BU19: =IF(BT19="",0,BS$225+1-BT19) -> 0 | BV19: 644 | BW19: =RANK(BV19,BV$8:BV$224) -> 11
B20: Mariette Cividino-Reynaud | C20: Les Belles Images Saint-Marcel-Bel-Accueil | D20: 1117570050 | E20: Champignon | F20: 19 | G20: 13 | H20: 12 | I20: =SUM(F20:H20) -> 44 | J20: =IF(E20="","",RANK(I20,I$7:I$230)) -> 28 | K20: =IF(J20="",0,I$231+1-J20) -> 165 | L20: =RANK(K20,K$7:K$226) -> 28 | M20: Cocktail vitaminé | N20: 18 | O20: 15 | P20: 13 | Q20: =SUM(N20:P20) -> 46 | R20: =IF(M20="","",RANK(Q20,Q$7:Q$230)) -> 17 | S20: =IF(R20="",0,Q$231+1-R20) -> 152 | T20: =S20+K20 -> 317 | U20: =IF(T20=0,"",RANK(T20,T$7:T$230)) -> 8 | V20: Albiez Montrond | W20: 13 | X20: 14 | Y20: 18 | Z20: =SUM(W20:Y20) -> 45 | AA20: =IF(V20="","",RANK(Z20,Z$7:Z$230)) -> 17 | AB20: =IF(AA20="",0,Z$231+1-AA20) -> 153 | AC20: =AB20+T20 -> 470 | AD20: =RANK(AC20,AC$7:AC$230) -> 3 | AE20: Le Puit des Tynes | AF20: 15 | AG20: 12 | AH20: 12 | AI20: =SUM(AF20:AH20) -> 39 | AJ20: =IF(AE20="","",RANK(AI20,AI$7:AI$230)) -> 81 | AK20: =IF(AJ20="",0,AI$231+1-AJ20) -> 76 | AL20: =AK20+AC20 -> 546 | AM20: =RANK(AL20,AL$7:AL$230) -> 10 | AN20: Bourrasques de neige | AO20: 12 | AP20: 13 | AQ20: 12 | AR20: =SUM(AO20:AQ20) -> 37 | AS20: =IF(AN20="","",RANK(AR20,AR$7:AR$230)) -> 69 | AT20: =IF(AS20="",0,AR$231+1-AS20) -> 95 | AU20: =AT20+AL20 -> 641 | AV20: =RANK(AU20,AU$7:AU$230) -> 14 | BA20: 0 | BC20: 0 | BD20: 641 | BE20: 12 | BJ20: 0 | BL20: 0 | BM20: 641 | BN20: 12 | BS20: 0 | BU20: 0 | BV20: 641 | BW20: 12
B21: Stéphanie Cartier-Fourcat | C21: Objectif Images Lyon | D21: 1106200044 | E21: apparition | F21: 16 | G21: 11 | H21: 11 | I21: =SUM(F21:H21) -> 38 | J21: =IF(E21="","",RANK(I21,I$7:I$230)) -> 98 | K21: =IF(J21="",0,I$231+1-J21) -> 95 | L21: =RANK(K21,K$7:K$226) -> 98 | M21: automne | N21: 19 | O21: 16 | P21: 18 | Q21: =SUM(N21:P21) -> 53 | R21: =IF(M21="","",RANK(Q21,Q$7:Q$230)) -> 1 | S21: =IF(R21="",0,Q$231+1-R21) -> 168 | T21: =S21+K21 -> 263 | U21: =IF(T21=0,"",RANK(T21,T$7:T$230)) -> 28 | V21: deambulations nocturnes | W21: 16 | X21: 13 | Y21: 9 | Z21: =SUM(W21:Y21) -> 38 | AA21: =IF(V21="","",RANK(Z21,Z$7:Z$230)) -> 80 | AB21: =IF(AA21="",0,Z$231+1-AA21) -> 90 | AC21: =AB21+T21 -> 353 | AD21: =RANK(AC21,AC$7:AC$230) -> 34 | AE21: confluences | AF21: 14 | AG21: 15 | AH21: 15 | AI21: =SUM(AF21:AH21) -> 44 | AJ21: =IF(AE21="","",RANK(AI21,AI$7:AI$230)) -> 29 | AK21: =IF(AJ21="",0,AI$231+1-AJ21) -> 128 | AL21: =AK21+AC21 -> 481 | AM21: =RANK(AL21,AL$7:AL$230) -> 22 | AN21: retour a la paix | AO21: 15 | AP21: 14 | AQ21: 15 | AR21: =SUM(AO21:AQ21) -> 44 | AS21: =IF(AN21="","",RANK(AR21,AR$7:AR$230)) -> 18 | AT21: =IF(AS21="",0,AR$231+1-AS21) -> 146 | AU21: =AT21+AL21 -> 627 | AV21: =RANK(AU21,AU$7:AU$230) -> 15 | BA21: 0 | BC21: 0 | BD21: 627 | BE21: 13 | BJ21: 0 | BL21: 0 | BM21: 627 | BN21: 13 | BS21: 0 | BU21: 0 | BV21: 627 | BW21: 13
B22: Michel Raou | C22: Photo Club Chasseurs d' Images Valence | D22: 1119490020 | E22: L'aube du monde | F22: 14 | G22: 12 | H22: 14 | I22: =SUM(F22:H22) -> 40 | J22: =IF(E22="","",RANK(I22,I$7:I$230)) -> 69 | K22: =IF(J22="",0,I$231+1-J22) -> 124 | L22: =RANK(K22,K$7:K$226) -> 69 | M22: La sieste | N22: 14 | O22: 13 | P22: 12 | Q22: =SUM(N22:P22) -> 39 | R22: =IF(M22="","",RANK(Q22,Q$7:Q$230)) -> 66 | S22: =IF(R22="",0,Q$231+1-R22) -> 103 | T22: =S22+K22 -> 227 | U22: =IF(T22=0,"",RANK(T22,T$7:T$230)) -> 57 | V22: Labeaume | W22: 10 | X22: 14 | Y22: 17 | Z22: =SUM(W22:Y22) -> 41 | AA22: =IF(V22="","",RANK(Z22,Z$7:Z$230)) -> 48 | AB22: =IF(AA22="",0,Z$231+1-AA22) -> 122 | AC22: =AB22+T22 -> 349 | AD22: =RANK(AC22,AC$7:AC$230) -> 35 | AE22: In memoriam. | AF22: 15 | AG22: 15 | AH22: 16 | AI22: =SUM(AF22:AH22) -> 46 | AJ22: =IF(AE22="","",RANK(AI22,AI$7:AI$230)) -> 20 | AK22: =IF(AJ22="",0,AI$231+1-AJ22) -> 137 | AL22: =AK22+AC22 -> 486 | AM22: =RANK(AL22,AL$7:AL$230) -> 19 | AN22: Première neige | AO22: 9 | AP22: 13 | AQ22: 20 | AR22: =SUM(AO22:AQ22) -> 42 | AS22: =IF(AN22="","",RANK(AR22,AR$7:AR$230)) -> 30 | AT22: =IF(AS22="",0,AR$231+1-AS22) -> 134 | AU22: =AT22+AL22 -> 620 | AV22: =RANK(AU22,AU$7:AU$230) -> 16 | BA22: 0 | BC22: 0 | BD22: 620 | BE22: 14 | BJ22: 0 | BL22: 0 | BM22: 620 | BN22: 14 | BS22: 0 | BU22: 0 | BV22: 620 | BW22: 14
B23: Jean-François Bouillet | C23: Objectif Photo St Maurice l'Exil | D23: 1117540027 | E23: Rai de lumière | F23: 17 | G23: 14 | H23: 16 | I23: =SUM(F23:H23) -> 47 | J23: =IF(E23="","",RANK(I23,I$7:I$230)) -> 10 | K23: =IF(J23="",0,I$231+1-J23) -> 183 | L23: =RANK(K23,K$7:K$226) -> 10 | M23: Vendeuse ambulante | N23: 13 | O23: 13 | P23: 11 | Q23: =SUM(N23:P23) -> 37 | R23: =IF(M23="","",RANK(Q23,Q$7:Q$230)) -> 83 | S23: =IF(R23="",0,Q$231+1-R23) -> 86 | T23: =S23+K23 -> 269 | U23: =IF(T23=0,"",RANK(T23,T$7:T$230)) -> 24 | V23: Fay sur Lignon | W23: 16 | X23: 12 | Y23: 13 | Z23: =SUM(W23:Y23) -> 41 | AA23: =IF(V23="","",RANK(Z23,Z$7:Z$230)) -> 48 | AB23: =IF(AA23="",0,Z$231+1-AA23) -> 122 | AC23: =AB23+T23 -> 391 | AD23: =RANK(AC23,AC$7:AC$230) -> 21 | AE23: Phare du Minou | AF23: 17 | AG23: 14 | AH23: 16 | AI23: =SUM(AF23:AH23) -> 47 | AJ23: =IF(AE23="","",RANK(AI23,AI$7:AI$230)) -> 13 | AK23: =IF(AJ23="",0,AI$231+1-AJ23) -> 144 | AL23: =AK23+AC23 -> 535 | AM23: =RANK(AL23,AL$7:AL$230) -> 12 | AN23: Givré à l'extrême | AO23: 11 | AP23: 13 | AQ23: 11 | AR23: =SUM(AO23:AQ23) -> 35 | AS23: =IF(AN23="","",RANK(AR23,AR$7:AR$230)) -> 91 | AT23: =IF(AS23="",0,AR$231+1-AS23) -> 73 | AU23: =AT23+AL23 -> 608 | AV23: =RANK(AU23,AU$7:AU$230) -> 17 | BA23: 0 | BC23: 0 | BD23: 608 | BE23: 15 | BJ23: 0 | BL23: 0 | BM23: 608 | BN23: 15 | BS23: 0 | BU23: 0 | BV23: 608 | BW23: 15
B24: Catherine Jovelin | C24: Photo Club IBM Grenoble | D24: 1109760013 | E24: Sarenne | F24: 14 | G24: 12 | H24: 17 | I24: =SUM(F24:H24) -> 43 | J24: =IF(E24="","",RANK(I24,I$7:I$230)) -> 34 | K24: =IF(J24="",0,I$231+1-J24) -> 159 | L24: =RANK(K24,K$7:K$226) -> 34 | M24: De Grenoble | N24: 8 | O24: 11 | P24: 12 | Q24: =SUM(N24:P24) -> 31 | R24: =IF(M24="","",RANK(Q24,Q$7:Q$230)) -> 139 | S24: =IF(R24="",0,Q$231+1-R24) -> 30 | T24: =S24+K24 -> 189 | U24: =IF(T24=0,"",RANK(T24,T$7:T$230)) -> 92 | V24: Sunset on Grenoble | W24: 14 | X24: 16 | Y24: 12 | Z24: =SUM(W24:Y24) -> 42 | AA24: =IF(V24="","",RANK(Z24,Z$7:Z$230)) -> 36 | AB24: =IF(AA24="",0,Z$231+1-AA24) -> 134 | AC24: =AB24+T24 -> 323 | AD24: =RANK(AC24,AC$7:AC$230) -> 50 | AE24: Géants d'Aukland | AF24: 16 | AG24: 11 | AH24: 16 | AI24: =SUM(AF24:AH24) -> 43 | AJ24: =IF(AE24="","",RANK(AI24,AI$7:AI$230)) -> 38 | AK24: =IF(AJ24="",0,AI$231+1-AJ24) -> 119 | AL24: =AK24+AC24 -> 442 | AM24: =RANK(AL24,AL$7:AL$230) -> 33 | AN24: Sublime Vercors | AO24: 20 | AP24: 15 | AQ24: 16 | AR24: =SUM(AO24:AQ24) -> 51 | AS24: =IF(AN24="","",RANK(AR24,AR$7:AR$230)) -> 2 | AT24: =IF(AS24="",0,AR$231+1-AS24) -> 162 | AU24: =AT24+AL24 -> 604 | AV24: =RANK(AU24,AU$7:AU$230) -> 18 | BA24: 0 | BC24: 0 | BD24: 604 | BE24: 16 | BJ24: 0 | BL24: 0 | BM24: 604 | BN24: 16 | BS24: 0 | BU24: 0 | BV24: 604 | BW24: 16
B25: Alain Bouvet | C25: Gavot Déclic - PC Larringes | D25: 1116980030 | E25: Ambiance Lémanique | F25: 13 | G25: 14 | H25: 14 | I25: =SUM(F25:H25) -> 41 | J25: =IF(E25="","",RANK(I25,I$7:I$230)) -> 55 | K25: =IF(J25="",0,I$231+1-J25) -> 138 | L25: =RANK(K25,K$7:K$226) -> 55 | M25: Décoration ou utilité ? | N25: 20 | O25: 14 | P25: 10 | Q25: =SUM(N25:P25) -> 44 | R25: =IF(M25="","",RANK(Q25,Q$7:Q$230)) -> 29 | S25: =IF(R25="",0,Q$231+1-R25) -> 140 | T25: =S25+K25 -> 278 | U25: =IF(T25=0,"",RANK(T25,T$7:T$230)) -> 20 | V25: mon village est un petit port | W25: 13 | X25: 18 | Y25: 14 | Z25: =SUM(W25:Y25) -> 45 | AA25: =IF(V25="","",RANK(Z25,Z$7:Z$230)) -> 17 | AB25: =IF(AA25="",0,Z$231+1-AA25) -> 153 | AC25: =AB25+T25 -> 431 | AD25: =RANK(AC25,AC$7:AC$230) -> 13 | AE25: La rivière enchantée | AF25: 15 | AG25: 9 | AH25: 13 | AI25: =SUM(AF25:AH25) -> 37 | AJ25: =IF(AE25="","",RANK(AI25,AI$7:AI$230)) -> 106 | AK25: =IF(AJ25="",0,AI$231+1-AJ25) -> 51 | AL25: =AK25+AC25 -> 482 | AM25: =RANK(AL25,AL$7:AL$230) -> 21 | AN25: Vol hivernal | AO25: 13 | AP25: 13 | AQ25: 14 | AR25: =SUM(AO25:AQ25) -> 40 | AS25: =IF(AN25="","",RANK(AR25,AR$7:AR$230)) -> 47 | AT25: =IF(AS25="",0,AR$231+1-AS25) -> 117 | AU25: =AT25+AL25 -> 599 | AV25: =RANK(AU25,AU$7:AU$230) -> 19 | BA25: 0 | BC25: 0 | BD25: 599 | BE25: 17 | BJ25: 0 | BL25: 0 | BM25: 599 | BN25: 17 | BS25: 0 | BU25: 0 | BV25: 599 | BW25: 17
B26: Kim Thai Quynh | C26: ATSCAF Rhône Photo - Lyon | D26: 1117070022 | E26: La lumière du matin | F26: 18 | G26: 15 | H26: 14 | I26: =SUM(F26:H26) -> 47 | J26: =IF(E26="","",RANK(I26,I$7:I$230)) -> 10 | K26: =IF(J26="",0,I$231+1-J26) -> 183 | L26: =RANK(K26,K$7:K$226) -> 10 | M26: Panier oublié | N26: 20 | O26: 16 | P26: 11 | Q26: =SUM(N26:P26) -> 47 | R26: =IF(M26="","",RANK(Q26,Q$7:Q$230)) -> 15 | S26: =IF(R26="",0,Q$231+1-R26) -> 154 | T26: =S26+K26 -> 337 | U26: =IF(T26=0,"",RANK(T26,T$7:T$230)) -> 3 | V26: Lyon à traverse le pont Raymond Barre | W26: 11 | X26: 14 | Y26: 14 | Z26: =SUM(W26:Y26) -> 39 | AA26: =IF(V26="","",RANK(Z26,Z$7:Z$230)) -> 67 | AB26: =IF(AA26="",0,Z$231+1-AA26) -> 103 | AC26: =AB26+T26 -> 440 | AD26: =RANK(AC26,AC$7:AC$230) -> 9 | AE26: Pont de la Concorde | AF26: 11 | AG26: 11 | AH26: 14 | AI26: =SUM(AF26:AH26) -> 36 | AJ26: =IF(AE26="","",RANK(AI26,AI$7:AI$230)) -> 116 | AK26: =IF(AJ26="",0,AI$231+1-AJ26) -> 41 | AL26: =AK26+AC26 -> 481 | AM26: =RANK(AL26,AL$7:AL$230) -> 22 | AN26: Les premiers flocons | AO26: 11 | AP26: 13 | AQ26: 16 | AR26: =SUM(AO26:AQ26) -> 40 | AS26: =IF(AN26="","",RANK(AR26,AR$7:AR$230)) -> 47 | AT26: =IF(AS26="",0,AR$231+1-AS26) -> 117 | AU26: =AT26+AL26 -> 598 | AV26: =RANK(AU26,AU$7:AU$230) -> 20 | BA26: 0 | BC26: 0 | BD26: 598 | BE26: 18 | BJ26: 0 | BL26: 0 | BM26: 598 | BN26: 18 | BS26: 0 | BU26: 0 | BV26: 598 | BW26: 18
B27: Marie-Claire Lucas | C27: Photo Club de Biviers | D27: 1111310110 | E27: heure matinale | F27: 14 | G27: 13 | H27: 15 | I27: =SUM(F27:H27) -> 42 | J27: =IF(E27="","",RANK(I27,I$7:I$230)) -> 41 | K27: =IF(J27="",0,I$231+1-J27) -> 152 | L27: =RANK(K27,K$7:K$226) -> 41 | M27: Chataignes à point | N27: 8 | O27: 13 | P27: 15 | Q27: =SUM(N27:P27) -> 36 | R27: =IF(M27="","",RANK(Q27,Q$7:Q$230)) -> 97 | S27: =IF(R27="",0,Q$231+1-R27) -> 72 | T27: =S27+K27 -> 224 | U27: =IF(T27=0,"",RANK(T27,T$7:T$230)) -> 59 | V27: les cheminots de Grenoble | W27: 10 | X27: 16 | Y27: 12 | Z27: =SUM(W27:Y27) -> 38 | AA27: =IF(V27="","",RANK(Z27,Z$7:Z$230)) -> 80 | AB27: =IF(AA27="",0,Z$231+1-AA27) -> 90 | AC27: =AB27+T27 -> 314 | AD27: =RANK(AC27,AC$7:AC$230) -> 57 | AE27: Trou mysterieux | AF27: 18 | AG27: 14 | AH27: 14 | AI27: =SUM(AF27:AH27) -> 46 | AJ27: =IF(AE27="","",RANK(AI27,AI$7:AI$230)) -> 20 | AK27: =IF(AJ27="",0,AI$231+1-AJ27) -> 137 | AL27: =AK27+AC27 -> 451 | AM27: =RANK(AL27,AL$7:AL$230) -> 30 | AN27: Ambiance polaire | AO27: 14 | AP27: 13 | AQ27: 16 | AR27: =SUM(AO27:AQ27) -> 43 | AS27: =IF(AN27="","",RANK(AR27,AR$7:AR$230)) -> 21 | AT27: =IF(AS27="",0,AR$231+1-AS27) -> 143 | AU27: =AT27+AL27 -> 594 | AV27: =RANK(AU27,AU$7:AU$230) -> 21 | BA27: 0 | BC27: 0 | BD27: 594 | BE27: 19 | BJ27: 0 | BL27: 0 | BM27: 594 | BN27: 19 | BS27: 0 | BU27: 0 | BV27: 594 | BW27: 19
B28: Pascal Bouteyre | C28: Objectif Images Lyon | D28: 1106200043 | E28: ELLES ME FONT VOIR | F28: 12 | G28: 12 | H28: 11 | I28: =SUM(F28:H28) -> 35 | J28: =IF(E28="","",RANK(I28,I$7:I$230)) -> 124 | K28: =IF(J28="",0,I$231+1-J28) -> 69 | L28: =RANK(K28,K$7:K$226) -> 124 | M28: Fruits et légumes au carré | N28: 17 | O28: 14 | P28: 11 | Q28: =SUM(N28:P28) -> 42 | R28: =IF(M28="","",RANK(Q28,Q$7:Q$230)) -> 39 | S28: =IF(R28="",0,Q$231+1-R28) -> 130 | T28: =S28+K28 -> 199 | U28: =IF(T28=0,"",RANK(T28,T$7:T$230)) -> 76 | V28: Village sur cour | W28: 17 | X28: 11 | Y28: 11 | Z28: =SUM(W28:Y28) -> 39 | AA28: =IF(V28="","",RANK(Z28,Z$7:Z$230)) -> 67 | AB28: =IF(AA28="",0,Z$231+1-AA28) -> 103 | AC28: =AB28+T28 -> 302 | AD28: =RANK(AC28,AC$7:AC$230) -> 68 | AE28: Un soir au pub | AF28: 19 | AG28: 11 | AH28: 16 | AI28: =SUM(AF28:AH28) -> 46 | AJ28: =IF(AE28="","",RANK(AI28,AI$7:AI$230)) -> 20 | AK28: =IF(AJ28="",0,AI$231+1-AJ28) -> 137 | AL28: =AK28+AC28 -> 439 | AM28: =RANK(AL28,AL$7:AL$230) -> 35 | AN28: Coup de froid | AO28: 16 | AP28: 15 | AQ28: 15 | AR28: =SUM(AO28:AQ28) -> 46 | AS28: =IF(AN28="","",RANK(AR28,AR$7:AR$230)) -> 11 | AT28: =IF(AS28="",0,AR$231+1-AS28) -> 153 | AU28: =AT28+AL28 -> 592 | AV28: =RANK(AU28,AU$7:AU$230) -> 22 | BA28: 0 | BC28: 0 | BD28: 592 | BE28: 20 | BJ28: 0 | BL28: 0 | BM28: 592 | BN28: 20 | BS28: 0 | BU28: 0 | BV28: 592 | BW28: 20
B29: Jacques Verholles | C29: Numerica Photo Club Faverges | D29: 1121100001 | E29: lumières sur le lac | F29: 15 | G29: 13 | H29: 13 | I29: =SUM(F29:H29) -> 41 | J29: =IF(E29="","",RANK(I29,I$7:I$230)) -> 55 | K29: =IF(J29="",0,I$231+1-J29) -> 138 | L29: =RANK(K29,K$7:K$226) -> 55 | M29: lignes de legumes et couleurs | N29: 20 | O29: 16 | P29: 12 | Q29: =SUM(N29:P29) -> 48 | R29: =IF(M29="","",RANK(Q29,Q$7:Q$230)) -> 8 | S29: =IF(R29="",0,Q$231+1-R29) -> 161 | T29: =S29+K29 -> 299 | U29: =IF(T29=0,"",RANK(T29,T$7:T$230)) -> 14 | V29: le pont des vieilles prisons | W29: 12 | X29: 14 | Y29: 16 | Z29: =SUM(W29:Y29) -> 42 | AA29: =IF(V29="","",RANK(Z29,Z$7:Z$230)) -> 36 | AB29: =IF(AA29="",0,Z$231+1-AA29) -> 134 | AC29: =AB29+T29 -> 433 | AD29: =RANK(AC29,AC$7:AC$230) -> 11 | AE29: chateau sur le lac | AF29: 10 | AG29: 12 | AH29: 13 | AI29: =SUM(AF29:AH29) -> 35 | AJ29: =IF(AE29="","",RANK(AI29,AI$7:AI$230)) -> 125 | AK29: =IF(AJ29="",0,AI$231+1-AJ29) -> 32 | AL29: =AK29+AC29 -> 465 | AM29: =RANK(AL29,AL$7:AL$230) -> 26 | AN29: vers le charvin | AO29: 15 | AP29: 14 | AQ29: 12 | AR29: =SUM(AO29:AQ29) -> 41 | AS29: =IF(AN29="","",RANK(AR29,AR$7:AR$230)) -> 40 | AT29: =IF(AS29="",0,AR$231+1-AS29) -> 124 | AU29: =AT29+AL29 -> 589 | AV29: =RANK(AU29,AU$7:AU$230) -> 23 | BA29: 0 | BC29: 0 | BD29: 589 | BE29: 21 | BJ29: 0 | BL29: 0 | BM29: 589 | BN29: 21 | BS29: 0 | BU29: 0 | BV29: 589 | BW29: 21
B30: Jacques Italia | C30: Adhérents individuels | D30: 1100000197 | E30: Mémoriel de la Shoa | F30: 16 | G30: 14 | H30: 13 | I30: =SUM(F30:H30) -> 43 | J30: =IF(E30="","",RANK(I30,I$7:I$230)) -> 34 | K30: =IF(J30="",0,I$231+1-J30) -> 159 | L30: =RANK(K30,K$7:K$226) -> 34 | M30: Cucurbitacés | N30: 7 | O30: 16 | P30: 12 | Q30: =SUM(N30:P30) -> 35 | R30: =IF(M30="","",RANK(Q30,Q$7:Q$230)) -> 108 | S30: =IF(R30="",0,Q$231+1-R30) -> 61 | T30: =S30+K30 -> 220 | U30: =IF(T30=0,"",RANK(T30,T$7:T$230)) -> 62 | V30: Grenoble | W30: 12 | X30: 12 | Y30: 16 | Z30: =SUM(W30:Y30) -> 40 | AA30: =IF(V30="","",RANK(Z30,Z$7:Z$230)) -> 58 | AB30: =IF(AA30="",0,Z$231+1-AA30) -> 112 | AC30: =AB30+T30 -> 332 | AD30: =RANK(AC30,AC$7:AC$230) -> 42 | AE30: Torrent d'hivers | AF30: 17 | AG30: 12 | AH30: 12 | AI30: =SUM(AF30:AH30) -> 41 | AJ30: =IF(AE30="","",RANK(AI30,AI$7:AI$230)) -> 52 | AK30: =IF(AJ30="",0,AI$231+1-AJ30) -> 105 | AL30: =AK30+AC30 -> 437 | AM30: =RANK(AL30,AL$7:AL$230) -> 38 | AN30: Givre en Chartreues | AO30: 14 | AP30: 13 | AQ30: 16 | AR30: =SUM(AO30:AQ30) -> 43 | AS30: =IF(AN30="","",RANK(AR30,AR$7:AR$230)) -> 21 | AT30: =IF(AS30="",0,AR$231+1-AS30) -> 143 | AU30: =AT30+AL30 -> 580 | AV30: =RANK(AU30,AU$7:AU$230) -> 24 | BA30: 0 | BC30: 0 | BD30: 580 | BE30: 22 | BJ30: 0 | BL30: 0 | BM30: 580 | BN30: 22 | BS30: 0 | BU30: 0 | BV30: 580 | BW30: 22
B31: Evelyne Giudice | C31: Objectif Images Lyon | D31: 1106200047 | E31: Danse de lumière | F31: 19 | G31: 11 | H31: 19 | I31: =SUM(F31:H31) -> 49 | J31: =IF(E31="","",RANK(I31,I$7:I$230)) -> 4 | K31: =IF(J31="",0,I$231+1-J31) -> 189 | L31: =RANK(K31,K$7:K$226) -> 4 | M31: vous avez dit aphrodisiaque ? | N31: 10 | O31: 6 | P31: 11 | Q31: =SUM(N31:P31) -> 27 | R31: =IF(M31="","",RANK(Q31,Q$7:Q$230)) -> 162 | S31: =IF(R31="",0,Q$231+1-R31) -> 7 | T31: =S31+K31 -> 196 | U31: =IF(T31=0,"",RANK(T31,T$7:T$230)) -> 82 | V31: La Rose de l'espoir | W31: 12 | X31: 15 | Y31: 17 | Z31: =SUM(W31:Y31) -> 44 | AA31: =IF(V31="","",RANK(Z31,Z$7:Z$230)) -> 22 | AB31: =IF(AA31="",0,Z$231+1-AA31) -> 148 | AC31: =AB31+T31 -> 344 | AD31: =RANK(AC31,AC$7:AC$230) -> 38 | AE31: Symphonie musicale sur le Rhône | AF31: 17 | AG31: 11 | AH31: 11 | AI31: =SUM(AF31:AH31) -> 39 | AJ31: =IF(AE31="","",RANK(AI31,AI$7:AI$230)) -> 81 | AK31: =IF(AJ31="",0,AI$231+1-AJ31) -> 76 | AL31: =AK31+AC31 -> 420 | AM31: =RANK(AL31,AL$7:AL$230) -> 44 | AN31: les mégalithes de St Vincent | AO31: 16 | AP31: 14 | AQ31: 18 | AR31: =SUM(AO31:AQ31) -> 48 | AS31: =IF(AN31="","",RANK(AR31,AR$7:AR$230)) -> 7 | AT31: =IF(AS31="",0,AR$231+1-AS31) -> 157 | AU31: =AT31+AL31 -> 577 | AV31: =RANK(AU31,AU$7:AU$230) -> 25 | BA31: 0 | BC31: 0 | BD31: 577 | BE31: 23 | BJ31: 0 | BL31: 0 | BM31: 577 | BN31: 23 | BS31: 0 | BU31: 0 | BV31: 577 | BW31: 23
B32: Bernard Martin | C32: Photo Club IBM Grenoble | D32: 1109760001 | E32: Lumiere 10-18 | F32: 13 | G32: 14 | H32: 14 | I32: =SUM(F32:H32) -> 41 | J32: =IF(E32="","",RANK(I32,I$7:I$230)) -> 55 | K32: =IF(J32="",0,I$231+1-J32) -> 138 | L32: =RANK(K32,K$7:K$226) -> 55 | M32: Le choux | N32: 14 | O32: 20 | P32: 17 | Q32: =SUM(N32:P32) -> 51 | R32: =IF(M32="","",RANK(Q32,Q$7:Q$230)) -> 5 | S32: =IF(R32="",0,Q$231+1-R32) -> 164 | T32: =S32+K32 -> 302 | U32: =IF(T32=0,"",RANK(T32,T$7:T$230)) -> 13 | V32: Saint Antoine l'Abbaye | W32: 16 | X32: 13 | Y32: 15 | Z32: =SUM(W32:Y32) -> 44 | AA32: =IF(V32="","",RANK(Z32,Z$7:Z$230)) -> 22 | AB32: =IF(AA32="",0,Z$231+1-AA32) -> 148 | AC32: =AB32+T32 -> 450 | AD32: =RANK(AC32,AC$7:AC$230) -> 6 | AE32: Monté Carlo Historique | AF32: 9 | AG32: 13 | AH32: 17 | AI32: =SUM(AF32:AH32) -> 39 | AJ32: =IF(AE32="","",RANK(AI32,AI$7:AI$230)) -> 81 | AK32: =IF(AJ32="",0,AI$231+1-AJ32) -> 76 | AL32: =AK32+AC32 -> 526 | AM32: =RANK(AL32,AL$7:AL$230) -> 14 | AN32: Vinay | AO32: 8 | AP32: 11 | AQ32: 13 | AR32: =SUM(AO32:AQ32) -> 32 | AS32: =IF(AN32="","",RANK(AR32,AR$7:AR$230)) -> 119 | AT32: =IF(AS32="",0,AR$231+1-AS32) -> 45 | AU32: =AT32+AL32 -> 571 | AV32: =RANK(AU32,AU$7:AU$230) -> 26 | BA32: 0 | BC32: 0 | BD32: 571 | BE32: 24 | BJ32: 0 | BL32: 0 | BM32: 571 | BN32: 24 | BS32: 0 | BU32: 0 | BV32: 571 | BW32: 24
B33: Bruno Lienard | C33: Club Photo St André de Corcy | D33: 1118930053 | E33: Cache cache avec le soleil | F33: 16 | G33: 13 | H33: 19 | I33: =SUM(F33:H33) -> 48 | J33: =IF(E33="","",RANK(I33,I$7:I$230)) -> 5 | K33: =IF(J33="",0,I$231+1-J33) -> 188 | L33: =RANK(K33,K$7:K$226) -> 5 | M33: Les oubliés des vendanges | N33: 8 | O33: 13 | P33: 11 | Q33: =SUM(N33:P33) -> 32 | R33: =IF(M33="","",RANK(Q33,Q$7:Q$230)) -> 129 | S33: =IF(R33="",0,Q$231+1-R33) -> 40 | T33: =S33+K33 -> 228 | U33: =IF(T33=0,"",RANK(T33,T$7:T$230)) -> 56 | V33: Village de Pissis (Haute-loire) | W33: 10 | X33: 14 | Y33: 14 | Z33: =SUM(W33:Y33) -> 38 | AA33: =IF(V33="","",RANK(Z33,Z$7:Z$230)) -> 80 | AB33: =IF(AA33="",0,Z$231+1-AA33) -> 90 | AC33: =AB33+T33 -> 318 | AD33: =RANK(AC33,AC$7:AC$230) -> 55 | AE33: Phare de Ploumanac'h - Bretagne | AF33: 12 | AG33: 14 | AH33: 15 | AI33: =SUM(AF33:AH33) -> 41 | AJ33: =IF(AE33="","",RANK(AI33,AI$7:AI$230)) -> 52 | AK33: =IF(AJ33="",0,AI$231+1-AJ33) -> 105 | AL33: =AK33+AC33 -> 423 | AM33: =RANK(AL33,AL$7:AL$230) -> 42 | AN33: Bessans sous la neige | AO33: 15 | AP33: 12 | AQ33: 16 | AR33: =SUM(AO33:AQ33) -> 43 | AS33: =IF(AN33="","",RANK(AR33,AR$7:AR$230)) -> 21 | AT33: =IF(AS33="",0,AR$231+1-AS33) -> 143 | AU33: =AT33+AL33 -> 566 | AV33: =RANK(AU33,AU$7:AU$230) -> 27 | BA33: 0 | BC33: 0 | BD33: 566 | BE33: 25 | BJ33: 0 | BL33: 0 | BM33: 566 | BN33: 25 | BS33: 0 | BU33: 0 | BV33: 566 | BW33: 25
B34: Gilles Christ | C34: Numerica Photo Club Faverges | D34: 1121100025 | E34: Lumière en éclats | F34: 17 | G34: 12 | H34: 12 | I34: =SUM(F34:H34) -> 41 | J34: =IF(E34="","",RANK(I34,I$7:I$230)) -> 55 | K34: =IF(J34="",0,I$231+1-J34) -> 138 | L34: =RANK(K34,K$7:K$226) -> 55 | M34: Exotisme | N34: 13 | O34: 15 | P34: 11 | Q34: =SUM(N34:P34) -> 39 | R34: =IF(M34="","",RANK(Q34,Q$7:Q$230)) -> 66 | S34: =IF(R34="",0,Q$231+1-R34) -> 103 | T34: =S34+K34 -> 241 | U34: =IF(T34=0,"",RANK(T34,T$7:T$230)) -> 43 | V34: Un peu d'Eurasie | W34: 12 | X34: 12 | Y34: 13 | Z34: =SUM(W34:Y34) -> 37 | AA34: =IF(V34="","",RANK(Z34,Z$7:Z$230)) -> 96 | AB34: =IF(AA34="",0,Z$231+1-AA34) -> 74 | AC34: =AB34+T34 -> 315 | AD34: =RANK(AC34,AC$7:AC$230) -> 56 | AE34: Cascatelles | AF34: 13 | AG34: 14 | AH34: 13 | AI34: =SUM(AF34:AH34) -> 40 | AJ34: =IF(AE34="","",RANK(AI34,AI$7:AI$230)) -> 69 | AK34: =IF(AJ34="",0,AI$231+1-AJ34) -> 88 | AL34: =AK34+AC34 -> 403 | AM34: =RANK(AL34,AL$7:AL$230) -> 51 | AN34: Ambiance Ouatée | AO34: 17 | AP34: 15 | AQ34: 20 | AR34: =SUM(AO34:AQ34) -> 52 | AS34: =IF(AN34="","",RANK(AR34,AR$7:AR$230)) -> 1 | AT34: =IF(AS34="",0,AR$231+1-AS34) -> 163 | AU34: =AT34+AL34 -> 566 | AV34: =RANK(AU34,AU$7:AU$230) -> 27 | BA34: 0 | BC34: 0 | BD34: 566 | BE34: 25 | BJ34: 0 | BL34: 0 | BM34: 566 | BN34: 25 | BS34: 0 | BU34: 0 | BV34: 566 | BW34: 25
B35: Hubert De Belval | C35: Photo Club de Bourgoin-Jallieu | D35: 1108830160 | E35: Lumière des mots | F35: 11 | G35: 11 | H35: 10 | I35: =SUM(F35:H35) -> 32 | J35: =IF(E35="","",RANK(I35,I$7:I$230)) -> 156 | K35: =IF(J35="",0,I$231+1-J35) -> 37 | L35: =RANK(K35,K$7:K$226) -> 156 | M35: Fraises au sucre | N35: 19 | O35: 16 | P35: 13 | Q35: =SUM(N35:P35) -> 48 | R35: =IF(M35="","",RANK(Q35,Q$7:Q$230)) -> 8 | S35: =IF(R35="",0,Q$231+1-R35) -> 161 | T35: =S35+K35 -> 198 | U35: =IF(T35=0,"",RANK(T35,T$7:T$230)) -> 81 | V35: LES HALLES DE NUIT | W35: 13 | X35: 14 | Y35: 13 | Z35: =SUM(W35:Y35) -> 40 | AA35: =IF(V35="","",RANK(Z35,Z$7:Z$230)) -> 58 | AB35: =IF(AA35="",0,Z$231+1-AA35) -> 112 | AC35: =AB35+T35 -> 310 | AD35: =RANK(AC35,AC$7:AC$230) -> 62 | AE35: PECHEUR | AF35: 16 | AG35: 14 | AH35: 14 | AI35: =SUM(AF35:AH35) -> 44 | AJ35: =IF(AE35="","",RANK(AI35,AI$7:AI$230)) -> 29 | AK35: =IF(AJ35="",0,AI$231+1-AJ35) -> 128 | AL35: =AK35+AC35 -> 438 | AM35: =RANK(AL35,AL$7:AL$230) -> 37 | AN35: PONTON | AO35: 12 | AP35: 14 | AQ35: 15 | AR35: =SUM(AO35:AQ35) -> 41 | AS35: =IF(AN35="","",RANK(AR35,AR$7:AR$230)) -> 40 | AT35: =IF(AS35="",0,AR$231+1-AS35) -> 124 | AU35: =AT35+AL35 -> 562 | AV35: =RANK(AU35,AU$7:AU$230) -> 29 | BA35: 0 | BC35: 0 | BD35: 562 | BE35: 27 | BJ35: 0 | BL35: 0 | BM35: 562 | BN35: 27 | BS35: 0 | BU35: 0 | BV35: 562 | BW35: 27
B36: Félix Larcher | C36: Photo Club Chasseurs d' Images Valence | D36: 1119490013 | E36: Greg | F36: 14 | G36: 14 | H36: 13 | I36: =SUM(F36:H36) -> 41 | J36: =IF(E36="","",RANK(I36,I$7:I$230)) -> 55 | K36: =IF(J36="",0,I$231+1-J36) -> 138 | L36: =RANK(K36,K$7:K$226) -> 55 | M36: Farandole | N36: 15 | O36: 12 | P36: 11 | Q36: =SUM(N36:P36) -> 38 | R36: =IF(M36="","",RANK(Q36,Q$7:Q$230)) -> 76 | S36: =IF(R36="",0,Q$231+1-R36) -> 93 | T36: =S36+K36 -> 231 | U36: =IF(T36=0,"",RANK(T36,T$7:T$230)) -> 53 | V36: Le Village suspendu | W36: 12 | X36: 14 | Y36: 18 | Z36: =SUM(W36:Y36) -> 44 | AA36: =IF(V36="","",RANK(Z36,Z$7:Z$230)) -> 22 | AB36: =IF(AA36="",0,Z$231+1-AA36) -> 148 | AC36: =AB36+T36 -> 379 | AD36: =RANK(AC36,AC$7:AC$230) -> 26 | AE36: Défilé costumé | AF36: 14 | AG36: 11 | AH36: 14 | AI36: =SUM(AF36:AH36) -> 39 | AJ36: =IF(AE36="","",RANK(AI36,AI$7:AI$230)) -> 81 | AK36: =IF(AJ36="",0,AI$231+1-AJ36) -> 76 | AL36: =AK36+AC36 -> 455 | AM36: =RANK(AL36,AL$7:AL$230) -> 29 | AN36: Flocon | AO36: 13 | AP36: 13 | AQ36: 12 | AR36: =SUM(AO36:AQ36) -> 38 | AS36: =IF(AN36="","",RANK(AR36,AR$7:AR$230)) -> 61 | AT36: =IF(AS36="",0,AR$231+1-AS36) -> 103 | AU36: =AT36+AL36 -> 558 | AV36: =RANK(AU36,AU$7:AU$230) -> 30 | BA36: 0 | BC36: 0 | BD36: 558 | BE36: 28 | BJ36: 0 | BL36: 0 | BM36: 558 | BN36: 28 | BS36: 0 | BU36: 0 | BV36: 558 | BW36: 28
B37: Julien Humblot | C37: Objectif Photo St Maurice l'Exil | D37: 1117540036 | E37: Sevilla | F37: 15 | G37: 15 | H37: 11 | I37: =SUM(F37:H37) -> 41 | J37: =IF(E37="","",RANK(I37,I$7:I$230)) -> 55 | K37: =IF(J37="",0,I$231+1-J37) -> 138 | L37: =RANK(K37,K$7:K$226) -> 55 | M37: Monstre aquatique | N37: 13 | O37: 17 | P37: 13 | Q37: =SUM(N37:P37) -> 43 | R37: =IF(M37="","",RANK(Q37,Q$7:Q$230)) -> 34 | S37: =IF(R37="",0,Q$231+1-R37) -> 135 | T37: =S37+K37 -> 273 | U37: =IF(T37=0,"",RANK(T37,T$7:T$230)) -> 22 | V37: Au détour d'une ruelle, Annonay | W37: 14 | X37: 15 | Y37: 12 | Z37: =SUM(W37:Y37) -> 41 | AA37: =IF(V37="","",RANK(Z37,Z$7:Z$230)) -> 48 | AB37: =IF(AA37="",0,Z$231+1-AA37) -> 122 | AC37: =AB37+T37 -> 395 | AD37: =RANK(AC37,AC$7:AC$230) -> 19 | AE37: Janus | AF37: 11 | AG37: 9 | AH37: 20 | AI37: =SUM(AF37:AH37) -> 40 | AJ37: =IF(AE37="","",RANK(AI37,AI$7:AI$230)) -> 69 | AK37: =IF(AJ37="",0,AI$231+1-AJ37) -> 88 | AL37: =AK37+AC37 -> 483 | AM37: =RANK(AL37,AL$7:AL$230) -> 20 | AN37: A l'assaut de la montagne | AO37: 12 | AP37: 12 | AQ37: 11 | AR37: =SUM(AO37:AQ37) -> 35 | AS37: =IF(AN37="","",RANK(AR37,AR$7:AR$230)) -> 91 | AT37: =IF(AS37="",0,AR$231+1-AS37) -> 73 | AU37: =AT37+AL37 -> 556 | AV37: =RANK(AU37,AU$7:AU$230) -> 31 | BA37: 0 | BC37: 0 | BD37: 556 | BE37: 29 | BJ37: 0 | BL37: 0 | BM37: 556 | BN37: 29 | BS37: 0 | BU37: 0 | BV37: 556 | BW37: 29
B38: Dana Berthelot | C38: Club Photo Morestel | D38: 1114030164 | E38: Douceur vénitienne | F38: 12 | G38: 13 | H38: 15 | I38: =SUM(F38:H38) -> 40 | J38: =IF(E38="","",RANK(I38,I$7:I$230)) -> 69 | K38: =IF(J38="",0,I$231+1-J38) -> 124 | L38: =RANK(K38,K$7:K$226) -> 69 | M38: Quelle belle famille | N38: 18 | O38: 12 | P38: 12 | Q38: =SUM(N38:P38) -> 42 | R38: =IF(M38="","",RANK(Q38,Q$7:Q$230)) -> 39 | S38: =IF(R38="",0,Q$231+1-R38) -> 130 | T38: =S38+K38 -> 254 | U38: =IF(T38=0,"",RANK(T38,T$7:T$230)) -> 31 | V38: Milan Royal Rochetoirin | W38: 14 | X38: 12 | Y38: 19 | Z38: =SUM(W38:Y38) -> 45 | AA38: =IF(V38="","",RANK(Z38,Z$7:Z$230)) -> 17 | AB38: =IF(AA38="",0,Z$231+1-AA38) -> 153 | AC38: =AB38+T38 -> 407 | AD38: =RANK(AC38,AC$7:AC$230) -> 17 | AE38: penon d'Ifac | AF38: 12 | AG38: 13 | AH38: 13 | AI38: =SUM(AF38:AH38) -> 38 | AJ38: =IF(AE38="","",RANK(AI38,AI$7:AI$230)) -> 93 | AK38: =IF(AJ38="",0,AI$231+1-AJ38) -> 64 | AL38: =AK38+AC38 -> 471 | AM38: =RANK(AL38,AL$7:AL$230) -> 24 | AN38: Chaud contre le froid | AO38: 12 | AP38: 14 | AQ38: 10 | AR38: =SUM(AO38:AQ38) -> 36 | AS38: =IF(AN38="","",RANK(AR38,AR$7:AR$230)) -> 80 | AT38: =IF(AS38="",0,AR$231+1-AS38) -> 84 | AU38: =AT38+AL38 -> 555 | AV38: =RANK(AU38,AU$7:AU$230) -> 32
B39: Patricia Rignon | C39: Photo Club IBM Grenoble | D39: 1109760003 | E39: Lumière sur le son | F39: 15 | G39: 11 | H39: 12 | I39: =SUM(F39:H39) -> 38 | J39: =IF(E39="","",RANK(I39,I$7:I$230)) -> 98 | K39: =IF(J39="",0,I$231+1-J39) -> 95 | L39: =RANK(K39,K$7:K$226) -> 98 | M39: Champignons | N39: 11 | O39: 15 | P39: 12 | Q39: =SUM(N39:P39) -> 38 | R39: =IF(M39="","",RANK(Q39,Q$7:Q$230)) -> 76 | S39: =IF(R39="",0,Q$231+1-R39) -> 93 | T39: =S39+K39 -> 188 | U39: =IF(T39=0,"",RANK(T39,T$7:T$230)) -> 93 | V39: Saint-Antoine de l'Abbaye | W39: 12 | X39: 12 | Y39: 18 | Z39: =SUM(W39:Y39) -> 42 | AA39: =IF(V39="","",RANK(Z39,Z$7:Z$230)) -> 36 | AB39: =IF(AA39="",0,Z$231+1-AA39) -> 134 | AC39: =AB39+T39 -> 322 | AD39: =RANK(AC39,AC$7:AC$230) -> 52 | AE39: Dordogne | AF39: 12 | AG39: 14 | AH39: 14 | AI39: =SUM(AF39:AH39) -> 40 | AJ39: =IF(AE39="","",RANK(AI39,AI$7:AI$230)) -> 69 | AK39: =IF(AJ39="",0,AI$231+1-AJ39) -> 88 | AL39: =AK39+AC39 -> 410 | AM39: =RANK(AL39,AL$7:AL$230) -> 47 | AN39: Neige en Vercors | AO39: 15 | AP39: 13 | AQ39: 15 | AR39: =SUM(AO39:AQ39) -> 43 | AS39: =IF(AN39="","",RANK(AR39,AR$7:AR$230)) -> 21 | AT39: =IF(AS39="",0,AR$231+1-AS39) -> 143 | AU39: =AT39+AL39 -> 553 | AV39: =RANK(AU39,AU$7:AU$230) -> 33 | BA39: 0 | BB39: =IF(AW39="","",RANK(BA39,BA$8:BA$224)) ->  | BC39: =IF(BB39="",0,BA$225+1-BB39) -> 0 | BD39: 553 | BE39: =RANK(BD39,BD$8:BD$224) -> 30 | BJ39: 0 | BK39: =IF(BF39="","",RANK(BJ39,BJ$8:BJ$224)) ->  | BL39: =IF(BK39="",0,BJ$225+1-BK39) -> 0 | BM39: 553 | BN39: =RANK(BM39,BM$8:BM$224) -> 30 | BS39: 0 | BT39: =IF(BO39="","",RANK(BS39,BS$8:BS$224)) ->  | BU39: =IF(BT39="",0,BS$225+1-BT39) -> 0 | BV39: 553 | BW39: =RANK(BV39,BV$8:BV$224) -> 30
B40: Bernard Gibaja | C40: Les Belles Images Saint-Marcel-Bel-Accueil | D40: 1117570055 | E40: L'enfer du fer | F40: 11 | G40: 13 | H40: 16 | I40: =SUM(F40:H40) -> 40 | J40: =IF(E40="","",RANK(I40,I$7:I$230)) -> 69 | K40: =IF(J40="",0,I$231+1-J40) -> 124 | L40: =RANK(K40,K$7:K$226) -> 69 | M40: Bacchus | N40: 16 | O40: 11 | P40: 12 | Q40: =SUM(N40:P40) -> 39 | R40: =IF(M40="","",RANK(Q40,Q$7:Q$230)) -> 66 | S40: =IF(R40="",0,Q$231+1-R40) -> 103 | T40: =S40+K40 -> 227 | U40: =IF(T40=0,"",RANK(T40,T$7:T$230)) -> 57 | V40: La Part Dieu | W40: 15 | X40: 15 | Y40: 14 | Z40: =SUM(W40:Y40) -> 44 | AA40: =IF(V40="","",RANK(Z40,Z$7:Z$230)) -> 22 | AB40: =IF(AA40="",0,Z$231+1-AA40) -> 148 | AC40: =AB40+T40 -> 375 | AD40: =RANK(AC40,AC$7:AC$230) -> 28 | AE40: Roulage | AF40: 12 | AG40: 13 | AH40: 13 | AI40: =SUM(AF40:AH40) -> 38 | AJ40: =IF(AE40="","",RANK(AI40,AI$7:AI$230)) -> 93 | AK40: =IF(AJ40="",0,AI$231+1-AJ40) -> 64 | AL40: =AK40+AC40 -> 439 | AM40: =RANK(AL40,AL$7:AL$230) -> 35 | AN40: Givré | AO40: 8 | AP40: 13 | AQ40: 18 | AR40: =SUM(AO40:AQ40) -> 39 | AS40: =IF(AN40="","",RANK(AR40,AR$7:AR$230)) -> 52 | AT40: =IF(AS40="",0,AR$231+1-AS40) -> 112 | AU40: =AT40+AL40 -> 551 | AV40: =RANK(AU40,AU$7:AU$230) -> 34 | BA40: 0 | BB40: =IF(AW40="","",RANK(BA40,BA$8:BA$224)) ->  | BC40: =IF(BB40="",0,BA$225+1-BB40) -> 0 | BD40: 551 | BE40: =RANK(BD40,BD$8:BD$224) -> 31 | BJ40: 0 | BK40: =IF(BF40="","",RANK(BJ40,BJ$8:BJ$224)) ->  | BL40: =IF(BK40="",0,BJ$225+1-BK40) -> 0 | BM40: 551 | BN40: =RANK(BM40,BM$8:BM$224) -> 31 | BS40: 0 | BT40: =IF(BO40="","",RANK(BS40,BS$8:BS$224)) ->  | BU40: =IF(BT40="",0,BS$225+1-BT40) -> 0 | BV40: 551 | BW40: =RANK(BV40,BV$8:BV$224) -> 31
B41: Michèle Amoudry-Tiollier | C41: Club Photo de Cognin | D41: 1110550151 | E41: clair-obscur | F41: 18 | G41: 15 | H41: 15 | I41: =SUM(F41:H41) -> 48 | J41: =IF(E41="","",RANK(I41,I$7:I$230)) -> 5 | K41: =IF(J41="",0,I$231+1-J41) -> 188 | L41: =RANK(K41,K$7:K$226) -> 5 | M41: vendanges | N41: 17 | O41: 13 | P41: 11 | Q41: =SUM(N41:P41) -> 41 | R41: =IF(M41="","",RANK(Q41,Q$7:Q$230)) -> 49 | S41: =IF(R41="",0,Q$231+1-R41) -> 120 | T41: =S41+K41 -> 308 | U41: =IF(T41=0,"",RANK(T41,T$7:T$230)) -> 11 | V41: rue de la chaine | W41: 14 | X41: 16 | Y41: 11 | Z41: =SUM(W41:Y41) -> 41 | AA41: =IF(V41="","",RANK(Z41,Z$7:Z$230)) -> 48 | AB41: =IF(AA41="",0,Z$231+1-AA41) -> 122 | AC41: =AB41+T41 -> 430 | AD41: =RANK(AC41,AC$7:AC$230) -> 14 | AE41: Cascade d'Alloix | AF41: 15 | AG41: 12 | AH41: 14 | AI41: =SUM(AF41:AH41) -> 41 | AJ41: =IF(AE41="","",RANK(AI41,AI$7:AI$230)) -> 52 | AK41: =IF(AJ41="",0,AI$231+1-AJ41) -> 105 | AL41: =AK41+AC41 -> 535 | AM41: =RANK(AL41,AL$7:AL$230) -> 12 | AN41: retour | AO41: 9 | AP41: 10 | AQ41: 8 | AR41: =SUM(AO41:AQ41) -> 27 | AS41: =IF(AN41="","",RANK(AR41,AR$7:AR$230)) -> 150 | AT41: =IF(AS41="",0,AR$231+1-AS41) -> 14 | AU41: =AT41+AL41 -> 549 | AV41: =RANK(AU41,AU$7:AU$230) -> 35 | BA41: 0 | BB41: =IF(AW41="","",RANK(BA41,BA$8:BA$224)) ->  | BC41: =IF(BB41="",0,BA$225+1-BB41) -> 0 | BD41: 549 | BE41: =RANK(BD41,BD$8:BD$224) -> 32 | BJ41: 0 | BK41: =IF(BF41="","",RANK(BJ41,BJ$8:BJ$224)) ->  | BL41: =IF(BK41="",0,BJ$225+1-BK41) -> 0 | BM41: 549 | BN41: =RANK(BM41,BM$8:BM$224) -> 32 | BS41: 0 | BT41: =IF(BO41="","",RANK(BS41,BS$8:BS$224)) ->  | BU41: =IF(BT41="",0,BS$225+1-BT41) -> 0 | BV41: 549 | BW41: =RANK(BV41,BV$8:BV$224) -> 32
B42: Luc Torres | C42: JPEG Photo Club St Martin Bellevue | D42: 1121840004 | E42: Lumière du lac au petit matin | F42: 11 | G42: 12 | H42: 10 | I42: =SUM(F42:H42) -> 33 | J42: =IF(E42="","",RANK(I42,I$7:I$230)) -> 143 | K42: =IF(J42="",0,I$231+1-J42) -> 50 | L42: =RANK(K42,K$7:K$226) -> 143 | M42: Coupe de fraises | N42: 16 | O42: 17 | P42: 13 | Q42: =SUM(N42:P42) -> 46 | R42: =IF(M42="","",RANK(Q42,Q$7:Q$230)) -> 17 | S42: =IF(R42="",0,Q$231+1-R42) -> 152 | T42: =S42+K42 -> 202 | U42: =IF(T42=0,"",RANK(T42,T$7:T$230)) -> 72 | V42: Le château d'Annecy | W42: 14 | X42: 15 | Y42: 16 | Z42: =SUM(W42:Y42) -> 45 | AA42: =IF(V42="","",RANK(Z42,Z$7:Z$230)) -> 17 | AB42: =IF(AA42="",0,Z$231+1-AA42) -> 153 | AC42: =AB42+T42 -> 355 | AD42: =RANK(AC42,AC$7:AC$230) -> 32 | AE42: circumpolaire vu du Pic de Nore (aude) | AF42: 17 | AG42: 14 | AH42: 16 | AI42: =SUM(AF42:AH42) -> 47 | AJ42: =IF(AE42="","",RANK(AI42,AI$7:AI$230)) -> 13 | AK42: =IF(AJ42="",0,AI$231+1-AJ42) -> 144 | AL42: =AK42+AC42 -> 499 | AM42: =RANK(AL42,AL$7:AL$230) -> 18 | AN42: Coucher de soleil d'hiver | AO42: 10 | AP42: 12 | AQ42: 10 | AR42: =SUM(AO42:AQ42) -> 32 | AS42: =IF(AN42="","",RANK(AR42,AR$7:AR$230)) -> 119 | AT42: =IF(AS42="",0,AR$231+1-AS42) -> 45 | AU42: =AT42+AL42 -> 544 | AV42: =RANK(AU42,AU$7:AU$230) -> 36 | BA42: 0 | BB42: =IF(AW42="","",RANK(BA42,BA$8:BA$224)) ->  | BC42: =IF(BB42="",0,BA$225+1-BB42) -> 0 | BD42: 544 | BE42: =RANK(BD42,BD$8:BD$224) -> 33 | BJ42: 0 | BK42: =IF(BF42="","",RANK(BJ42,BJ$8:BJ$224)) ->  | BL42: =IF(BK42="",0,BJ$225+1-BK42) -> 0 | BM42: 544 | BN42: =RANK(BM42,BM$8:BM$224) -> 33 | BS42: 0 | BT42: =IF(BO42="","",RANK(BS42,BS$8:BS$224)) ->  | BU42: =IF(BT42="",0,BS$225+1-BT42) -> 0 | BV42: 544 | BW42: =RANK(BV42,BV$8:BV$224) -> 33
B43: Marie-Christine Rolle | C43: Les Belles Images Saint-Marcel-Bel-Accueil | D43: 1117570079 | E43: Lumière tamisée | F43: 14 | G43: 12 | H43: 14 | I43: =SUM(F43:H43) -> 40 | J43: =IF(E43="","",RANK(I43,I$7:I$230)) -> 69 | K43: =IF(J43="",0,I$231+1-J43) -> 124 | L43: =RANK(K43,K$7:K$226) -> 69 | M43: Je joue les stars | N43: 11 | O43: 16 | P43: 11 | Q43: =SUM(N43:P43) -> 38 | R43: =IF(M43="","",RANK(Q43,Q$7:Q$230)) -> 76 | S43: =IF(R43="",0,Q$231+1-R43) -> 93 | T43: =S43+K43 -> 217 | U43: =IF(T43=0,"",RANK(T43,T$7:T$230)) -> 63 | V43: Les Bulles | W43: 13 | X43: 12 | Y43: 13 | Z43: =SUM(W43:Y43) -> 38 | AA43: =IF(V43="","",RANK(Z43,Z$7:Z$230)) -> 80 | AB43: =IF(AA43="",0,Z$231+1-AA43) -> 90 | AC43: =AB43+T43 -> 307 | AD43: =RANK(AC43,AC$7:AC$230) -> 64 | AE43: Feu ! | AF43: 13 | AG43: 19 | AH43: 19 | AI43: =SUM(AF43:AH43) -> 51 | AJ43: =IF(AE43="","",RANK(AI43,AI$7:AI$230)) -> 6 | AK43: =IF(AJ43="",0,AI$231+1-AJ43) -> 151 | AL43: =AK43+AC43 -> 458 | AM43: =RANK(AL43,AL$7:AL$230) -> 27 | AN43: Tombe la neige | AO43: 14 | AP43: 13 | AQ43: 9 | AR43: =SUM(AO43:AQ43) -> 36 | AS43: =IF(AN43="","",RANK(AR43,AR$7:AR$230)) -> 80 | AT43: =IF(AS43="",0,AR$231+1-AS43) -> 84 | AU43: =AT43+AL43 -> 542 | AV43: =RANK(AU43,AU$7:AU$230) -> 37 | BA43: 0 | BB43: =IF(AW43="","",RANK(BA43,BA$8:BA$224)) ->  | BC43: =IF(BB43="",0,BA$225+1-BB43) -> 0 | BD43: 542 | BE43: =RANK(BD43,BD$8:BD$224) -> 34 | BJ43: 0 | BK43: =IF(BF43="","",RANK(BJ43,BJ$8:BJ$224)) ->  | BL43: =IF(BK43="",0,BJ$225+1-BK43) -> 0 | BM43: 542 | BN43: =RANK(BM43,BM$8:BM$224) -> 34 | BS43: 0 | BT43: =IF(BO43="","",RANK(BS43,BS$8:BS$224)) ->  | BU43: =IF(BT43="",0,BS$225+1-BT43) -> 0 | BV43: 542 | BW43: =RANK(BV43,BV$8:BV$224) -> 34
B44: Jean Luc Boucaud | C44: ATSCAF Rhône Photo - Lyon | D44: 1117070016 | E44: faisceau en ciel | F44: 15 | G44: 12 | H44: 11 | I44: =SUM(F44:H44) -> 38 | J44: =IF(E44="","",RANK(I44,I$7:I$230)) -> 98 | K44: =IF(J44="",0,I$231+1-J44) -> 95 | L44: =RANK(K44,K$7:K$226) -> 98 | M44: Piafs | N44: 8 | O44: 13 | P44: 10 | Q44: =SUM(N44:P44) -> 31 | R44: =IF(M44="","",RANK(Q44,Q$7:Q$230)) -> 139 | S44: =IF(R44="",0,Q$231+1-R44) -> 30 | T44: =S44+K44 -> 125 | U44: =IF(T44=0,"",RANK(T44,T$7:T$230)) -> 139 | V44: Lyon nuages | W44: 11 | X44: 11 | Y44: 17 | Z44: =SUM(W44:Y44) -> 39 | AA44: =IF(V44="","",RANK(Z44,Z$7:Z$230)) -> 67 | AB44: =IF(AA44="",0,Z$231+1-AA44) -> 103 | AC44: =AB44+T44 -> 228 | AD44: =RANK(AC44,AC$7:AC$230) -> 109 | AE44: NotreDame | AF44: 15 | AG44: 16 | AH44: 17 | AI44: =SUM(AF44:AH44) -> 48 | AJ44: =IF(AE44="","",RANK(AI44,AI$7:AI$230)) -> 10 | AK44: =IF(AJ44="",0,AI$231+1-AJ44) -> 147 | AL44: =AK44+AC44 -> 375 | AM44: =RANK(AL44,AL$7:AL$230) -> 62 | AN44: neige hiver | AO44: 19 | AP44: 15 | AQ44: 16 | AR44: =SUM(AO44:AQ44) -> 50 | AS44: =IF(AN44="","",RANK(AR44,AR$7:AR$230)) -> 3 | AT44: =IF(AS44="",0,AR$231+1-AS44) -> 161 | AU44: =AT44+AL44 -> 536 | AV44: =RANK(AU44,AU$7:AU$230) -> 38
B45: Michel Baché | C45: Les Belles Images Saint-Marcel-Bel-Accueil | D45: 1117570068 | E45: Recueillement | F45: 14 | G45: 14 | H45: 14 | I45: =SUM(F45:H45) -> 42 | J45: =IF(E45="","",RANK(I45,I$7:I$230)) -> 41 | K45: =IF(J45="",0,I$231+1-J45) -> 152 | L45: =RANK(K45,K$7:K$226) -> 41 | M45: Cucurbitacés | N45: 12 | O45: 9 | P45: 11 | Q45: =SUM(N45:P45) -> 32 | R45: =IF(M45="","",RANK(Q45,Q$7:Q$230)) -> 129 | S45: =IF(R45="",0,Q$231+1-R45) -> 40 | T45: =S45+K45 -> 192 | U45: =IF(T45=0,"",RANK(T45,T$7:T$230)) -> 86 | V45: Dans la brume | W45: 12 | X45: 12 | Y45: 15 | Z45: =SUM(W45:Y45) -> 39 | AA45: =IF(V45="","",RANK(Z45,Z$7:Z$230)) -> 67 | AB45: =IF(AA45="",0,Z$231+1-AA45) -> 103 | AC45: =AB45+T45 -> 295 | AD45: =RANK(AC45,AC$7:AC$230) -> 69 | AE45: Concrétions | AF45: 14 | AG45: 13 | AH45: 15 | AI45: =SUM(AF45:AH45) -> 42 | AJ45: =IF(AE45="","",RANK(AI45,AI$7:AI$230)) -> 44 | AK45: =IF(AJ45="",0,AI$231+1-AJ45) -> 113 | AL45: =AK45+AC45 -> 408 | AM45: =RANK(AL45,AL$7:AL$230) -> 48 | AN45: Hivernale au petit matin | AO45: 11 | AP45: 11 | AQ45: 19 | AR45: =SUM(AO45:AQ45) -> 41 | AS45: =IF(AN45="","",RANK(AR45,AR$7:AR$230)) -> 40 | AT45: =IF(AS45="",0,AR$231+1-AS45) -> 124 | AU45: =AT45+AL45 -> 532 | AV45: =RANK(AU45,AU$7:AU$230) -> 39 | BA45: 0 | BB45: =IF(AW45="","",RANK(BA45,BA$8:BA$224)) ->  | BC45: =IF(BB45="",0,BA$225+1-BB45) -> 0 | BD45: 532 | BE45: =RANK(BD45,BD$8:BD$224) -> 35 | BJ45: 0 | BK45: =IF(BF45="","",RANK(BJ45,BJ$8:BJ$224)) ->  | BL45: =IF(BK45="",0,BJ$225+1-BK45) -> 0 | BM45: 532 | BN45: =RANK(BM45,BM$8:BM$224) -> 35 | BS45: 0 | BT45: =IF(BO45="","",RANK(BS45,BS$8:BS$224)) ->  | BU45: =IF(BT45="",0,BS$225+1-BT45) -> 0 | BV45: 532 | BW45: =RANK(BV45,BV$8:BV$224) -> 35
B46: Jean-Luc Busquet | C46: Club Photo St André de Corcy | D46: 1118930024 | E46: Eau de feu | F46: 15 | G46: 15 | H46: 14 | I46: =SUM(F46:H46) -> 44 | J46: =IF(E46="","",RANK(I46,I$7:I$230)) -> 28 | K46: =IF(J46="",0,I$231+1-J46) -> 165 | L46: =RANK(K46,K$7:K$226) -> 28 | M46: Dans les pommes | N46: 9 | O46: 14 | P46: 10 | Q46: =SUM(N46:P46) -> 33 | R46: =IF(M46="","",RANK(Q46,Q$7:Q$230)) -> 122 | S46: =IF(R46="",0,Q$231+1-R46) -> 47 | T46: =S46+K46 -> 212 | U46: =IF(T46=0,"",RANK(T46,T$7:T$230)) -> 67 | V46: Tarare - fète de la mouseline | W46: 13 | X46: 13 | Y46: 14 | Z46: =SUM(W46:Y46) -> 40 | AA46: =IF(V46="","",RANK(Z46,Z$7:Z$230)) -> 58 | AB46: =IF(AA46="",0,Z$231+1-AA46) -> 112 | AC46: =AB46+T46 -> 324 | AD46: =RANK(AC46,AC$7:AC$230) -> 48 | AE46: L'envol | AF46: 20 | AG46: 14 | AH46: 13 | AI46: =SUM(AF46:AH46) -> 47 | AJ46: =IF(AE46="","",RANK(AI46,AI$7:AI$230)) -> 13 | AK46: =IF(AJ46="",0,AI$231+1-AJ46) -> 144 | AL46: =AK46+AC46 -> 468 | AM46: =RANK(AL46,AL$7:AL$230) -> 25 | AN46: Lumière d'hiver | AO46: 10 | AP46: 11 | AQ46: 13 | AR46: =SUM(AO46:AQ46) -> 34 | AS46: =IF(AN46="","",RANK(AR46,AR$7:AR$230)) -> 102 | AT46: =IF(AS46="",0,AR$231+1-AS46) -> 62 | AU46: =AT46+AL46 -> 530 | AV46: =RANK(AU46,AU$7:AU$230) -> 40 | BA46: 0 | BC46: 0 | BD46: 530 | BE46: 36 | BJ46: 0 | BL46: 0 | BM46: 530 | BN46: 36 | BS46: 0 | BU46: 0 | BV46: 530 | BW46: 36
B47: Jean-Luc Leblanc | C47: Objectif Images Lyon | D47: 1106200023 | E47: fraicheur du matin | F47: 11 | G47: 14 | H47: 12 | I47: =SUM(F47:H47) -> 37 | J47: =IF(E47="","",RANK(I47,I$7:I$230)) -> 106 | K47: =IF(J47="",0,I$231+1-J47) -> 87 | L47: =RANK(K47,K$7:K$226) -> 106 | M47: 1kg,svp | N47: 12 | O47: 9 | P47: 11 | Q47: =SUM(N47:P47) -> 32 | R47: =IF(M47="","",RANK(Q47,Q$7:Q$230)) -> 129 | S47: =IF(R47="",0,Q$231+1-R47) -> 40 | T47: =S47+K47 -> 127 | U47: =IF(T47=0,"",RANK(T47,T$7:T$230)) -> 135 | V47: couvert | W47: 16 | X47: 15 | Y47: 17 | Z47: =SUM(W47:Y47) -> 48 | AA47: =IF(V47="","",RANK(Z47,Z$7:Z$230)) -> 5 | AB47: =IF(AA47="",0,Z$231+1-AA47) -> 165 | AC47: =AB47+T47 -> 292 | AD47: =RANK(AC47,AC$7:AC$230) -> 72 | AE47: Echarpe de nuit | AF47: 11 | AG47: 13 | AH47: 16 | AI47: =SUM(AF47:AH47) -> 40 | AJ47: =IF(AE47="","",RANK(AI47,AI$7:AI$230)) -> 69 | AK47: =IF(AJ47="",0,AI$231+1-AJ47) -> 88 | AL47: =AK47+AC47 -> 380 | AM47: =RANK(AL47,AL$7:AL$230) -> 61 | AN47: neige de lumière | AO47: 17 | AP47: 14 | AQ47: 14 | AR47: =SUM(AO47:AQ47) -> 45 | AS47: =IF(AN47="","",RANK(AR47,AR$7:AR$230)) -> 15 | AT47: =IF(AS47="",0,AR$231+1-AS47) -> 149 | AU47: =AT47+AL47 -> 529 | AV47: =RANK(AU47,AU$7:AU$230) -> 41 | BA47: 0 | BC47: 0 | BD47: 529 | BE47: 37 | BJ47: 0 | BL47: 0 | BM47: 529 | BN47: 37 | BS47: 0 | BU47: 0 | BV47: 529 | BW47: 37
B48: Denis Madaule | C48: Club Photo Morestel | D48: 1114030055 | E48: eglise | F48: 14 | G48: 11 | H48: 8 | I48: =SUM(F48:H48) -> 33 | J48: =IF(E48="","",RANK(I48,I$7:I$230)) -> 143 | K48: =IF(J48="",0,I$231+1-J48) -> 50 | L48: =RANK(K48,K$7:K$226) -> 143 | M48: tomate | N48: 11 | O48: 15 | P48: 10 | Q48: =SUM(N48:P48) -> 36 | R48: =IF(M48="","",RANK(Q48,Q$7:Q$230)) -> 97 | S48: =IF(R48="",0,Q$231+1-R48) -> 72 | T48: =S48+K48 -> 122 | U48: =IF(T48=0,"",RANK(T48,T$7:T$230)) -> 143 | V48: Izieu | W48: 16 | X48: 14 | Y48: 12 | Z48: =SUM(W48:Y48) -> 42 | AA48: =IF(V48="","",RANK(Z48,Z$7:Z$230)) -> 36 | AB48: =IF(AA48="",0,Z$231+1-AA48) -> 134 | AC48: =AB48+T48 -> 256 | AD48: =RANK(AC48,AC$7:AC$230) -> 87 | AE48: studio3 | AF48: 17 | AG48: 13 | AH48: 14 | AI48: =SUM(AF48:AH48) -> 44 | AJ48: =IF(AE48="","",RANK(AI48,AI$7:AI$230)) -> 29 | AK48: =IF(AJ48="",0,AI$231+1-AJ48) -> 128 | AL48: =AK48+AC48 -> 384 | AM48: =RANK(AL48,AL$7:AL$230) -> 59 | AN48: trois rivieres | AO48: 14 | AP48: 13 | AQ48: 16 | AR48: =SUM(AO48:AQ48) -> 43 | AS48: =IF(AN48="","",RANK(AR48,AR$7:AR$230)) -> 21 | AT48: =IF(AS48="",0,AR$231+1-AS48) -> 143 | AU48: =AT48+AL48 -> 527 | AV48: =RANK(AU48,AU$7:AU$230) -> 42 | BA48: 0 | BC48: 0 | BD48: 527 | BE48: 38 | BJ48: 0 | BL48: 0 | BM48: 527 | BN48: 38 | BS48: 0 | BU48: 0 | BV48: 527 | BW48: 38
B49: Jean Michel Leverne | C49: Objectif Images Lyon | D49: 1106200049 | E49: Canicule | F49: 10 | G49: 15 | H49: 15 | I49: =SUM(F49:H49) -> 40 | J49: =IF(E49="","",RANK(I49,I$7:I$230)) -> 69 | K49: =IF(J49="",0,I$231+1-J49) -> 124 | L49: =RANK(K49,K$7:K$226) -> 69 | M49: assortiment | N49: 16 | O49: 18 | P49: 12 | Q49: =SUM(N49:P49) -> 46 | R49: =IF(M49="","",RANK(Q49,Q$7:Q$230)) -> 17 | S49: =IF(R49="",0,Q$231+1-R49) -> 152 | T49: =S49+K49 -> 276 | U49: =IF(T49=0,"",RANK(T49,T$7:T$230)) -> 21 | V49: il a plu | W49: 12 | X49: 19 | Y49: 9 | Z49: =SUM(W49:Y49) -> 40 | AA49: =IF(V49="","",RANK(Z49,Z$7:Z$230)) -> 58 | AB49: =IF(AA49="",0,Z$231+1-AA49) -> 112 | AC49: =AB49+T49 -> 388 | AD49: =RANK(AC49,AC$7:AC$230) -> 22 | AE49: à la plage | AF49: 12 | AG49: 11 | AH49: 10 | AI49: =SUM(AF49:AH49) -> 33 | AJ49: =IF(AE49="","",RANK(AI49,AI$7:AI$230)) -> 143 | AK49: =IF(AJ49="",0,AI$231+1-AJ49) -> 14 | AL49: =AK49+AC49 -> 402 | AM49: =RANK(AL49,AL$7:AL$230) -> 52 | AN49: soleil d'hiver | AO49: 9 | AP49: 14 | AQ49: 18 | AR49: =SUM(AO49:AQ49) -> 41 | AS49: =IF(AN49="","",RANK(AR49,AR$7:AR$230)) -> 40 | AT49: =IF(AS49="",0,AR$231+1-AS49) -> 124 | AU49: =AT49+AL49 -> 526 | AV49: =RANK(AU49,AU$7:AU$230) -> 43 | BA49: 0 | BC49: 0 | BD49: 526 | BE49: 39 | BJ49: 0 | BL49: 0 | BM49: 526 | BN49: 39 | BS49: 0 | BU49: 0 | BV49: 526 | BW49: 39
B50: Claude Chapus | C50: Photo Club de Sillingy | D50: 1121950002 | E50: A la bougie | F50: 15 | G50: 13 | H50: 12 | I50: =SUM(F50:H50) -> 40 | J50: =IF(E50="","",RANK(I50,I$7:I$230)) -> 69 | K50: =IF(J50="",0,I$231+1-J50) -> 124 | L50: =RANK(K50,K$7:K$226) -> 69 | M50: Coeur de citron | N50: 12 | O50: 15 | P50: 13 | Q50: =SUM(N50:P50) -> 40 | R50: =IF(M50="","",RANK(Q50,Q$7:Q$230)) -> 56 | S50: =IF(R50="",0,Q$231+1-R50) -> 113 | T50: =S50+K50 -> 237 | U50: =IF(T50=0,"",RANK(T50,T$7:T$230)) -> 48 | V50: Alby sur Chéran | W50: 11 | X50: 14 | Y50: 14 | Z50: =SUM(W50:Y50) -> 39 | AA50: =IF(V50="","",RANK(Z50,Z$7:Z$230)) -> 67 | AB50: =IF(AA50="",0,Z$231+1-AA50) -> 103 | AC50: =AB50+T50 -> 340 | AD50: =RANK(AC50,AC$7:AC$230) -> 39 | AE50: Lumières sur le Lac | AF50: 13 | AG50: 14 | AH50: 13 | AI50: =SUM(AF50:AH50) -> 40 | AJ50: =IF(AE50="","",RANK(AI50,AI$7:AI$230)) -> 69 | AK50: =IF(AJ50="",0,AI$231+1-AJ50) -> 88 | AL50: =AK50+AC50 -> 428 | AM50: =RANK(AL50,AL$7:AL$230) -> 39 | AN50: Cristaux de neige | AO50: 11 | AP50: 14 | AQ50: 12 | AR50: =SUM(AO50:AQ50) -> 37 | AS50: =IF(AN50="","",RANK(AR50,AR$7:AR$230)) -> 69 | AT50: =IF(AS50="",0,AR$231+1-AS50) -> 95 | AU50: =AT50+AL50 -> 523 | AV50: =RANK(AU50,AU$7:AU$230) -> 44
B51: Pierre Richard | C51: Club Photo de Cognin | D51: 1110550271 | E51: Lit abandonné | F51: 16 | G51: 12 | H51: 14 | I51: =SUM(F51:H51) -> 42 | J51: =IF(E51="","",RANK(I51,I$7:I$230)) -> 41 | K51: =IF(J51="",0,I$231+1-J51) -> 152 | L51: =RANK(K51,K$7:K$226) -> 41 | M51: Fruits de saison | N51: 7 | O51: 15 | P51: 11 | Q51: =SUM(N51:P51) -> 33 | R51: =IF(M51="","",RANK(Q51,Q$7:Q$230)) -> 122 | S51: =IF(R51="",0,Q$231+1-R51) -> 47 | T51: =S51+K51 -> 199 | U51: =IF(T51=0,"",RANK(T51,T$7:T$230)) -> 76 | V51: Village Haut-Savoyard | W51: 13 | X51: 13 | Y51: 17 | Z51: =SUM(W51:Y51) -> 43 | AA51: =IF(V51="","",RANK(Z51,Z$7:Z$230)) -> 33 | AB51: =IF(AA51="",0,Z$231+1-AA51) -> 137 | AC51: =AB51+T51 -> 336 | AD51: =RANK(AC51,AC$7:AC$230) -> 40 | AE51: Cascade lumineuse | AF51: 12 | AG51: 14 | AH51: 14 | AI51: =SUM(AF51:AH51) -> 40 | AJ51: =IF(AE51="","",RANK(AI51,AI$7:AI$230)) -> 69 | AK51: =IF(AJ51="",0,AI$231+1-AJ51) -> 88 | AL51: =AK51+AC51 -> 424 | AM51: =RANK(AL51,AL$7:AL$230) -> 40 | AN51: File indienne | AO51: 12 | AP51: 11 | AQ51: 14 | AR51: =SUM(AO51:AQ51) -> 37 | AS51: =IF(AN51="","",RANK(AR51,AR$7:AR$230)) -> 69 | AT51: =IF(AS51="",0,AR$231+1-AS51) -> 95 | AU51: =AT51+AL51 -> 519 | AV51: =RANK(AU51,AU$7:AU$230) -> 45 | BA51: 0 | BC51: 0 | BD51: 519 | BE51: 40 | BJ51: 0 | BL51: 0 | BM51: 519 | BN51: 40 | BS51: 0 | BU51: 0 | BV51: 519 | BW51: 40
B52: Geneviève Ricard | C52: Numerica Photo Club Faverges | D52: 1121100007 | E52: Lumières sous les nuages | F52: 11 | G52: 13 | H52: 13 | I52: =SUM(F52:H52) -> 37 | J52: =IF(E52="","",RANK(I52,I$7:I$230)) -> 106 | K52: =IF(J52="",0,I$231+1-J52) -> 87 | L52: =RANK(K52,K$7:K$226) -> 106 | M52: Les bananes | N52: 14 | O52: 15 | P52: 11 | Q52: =SUM(N52:P52) -> 40 | R52: =IF(M52="","",RANK(Q52,Q$7:Q$230)) -> 56 | S52: =IF(R52="",0,Q$231+1-R52) -> 113 | T52: =S52+K52 -> 200 | U52: =IF(T52=0,"",RANK(T52,T$7:T$230)) -> 74 | V52: Embarcadère de Talloires | W52: 12 | X52: 12 | Y52: 16 | Z52: =SUM(W52:Y52) -> 40 | AA52: =IF(V52="","",RANK(Z52,Z$7:Z$230)) -> 58 | AB52: =IF(AA52="",0,Z$231+1-AA52) -> 112 | AC52: =AB52+T52 -> 312 | AD52: =RANK(AC52,AC$7:AC$230) -> 58 | AE52: Lever du jour sur Bouzigue | AF52: 16 | AG52: 13 | AH52: 15 | AI52: =SUM(AF52:AH52) -> 44 | AJ52: =IF(AE52="","",RANK(AI52,AI$7:AI$230)) -> 29 | AK52: =IF(AJ52="",0,AI$231+1-AJ52) -> 128 | AL52: =AK52+AC52 -> 440 | AM52: =RANK(AL52,AL$7:AL$230) -> 34 | AN52: Bulle givrée | AO52: 10 | AP52: 14 | AQ52: 11 | AR52: =SUM(AO52:AQ52) -> 35 | AS52: =IF(AN52="","",RANK(AR52,AR$7:AR$230)) -> 91 | AT52: =IF(AS52="",0,AR$231+1-AS52) -> 73 | AU52: =AT52+AL52 -> 513 | AV52: =RANK(AU52,AU$7:AU$230) -> 46 | BA52: 0 | BC52: 0 | BD52: 513 | BE52: 41 | BJ52: 0 | BL52: 0 | BM52: 513 | BN52: 41 | BS52: 0 | BU52: 0 | BV52: 513 | BW52: 41
B53: Sandra Dalmoro | C53: Numerica Photo Club Faverges | D53: 1121100027 | E53: En forêt | F53: 9 | G53: 11 | H53: 10 | I53: =SUM(F53:H53) -> 30 | J53: =IF(E53="","",RANK(I53,I$7:I$230)) -> 177 | K53: =IF(J53="",0,I$231+1-J53) -> 16 | L53: =RANK(K53,K$7:K$226) -> 177 | M53: Mon kiwi | N53: 15 | O53: 15 | P53: 11 | Q53: =SUM(N53:P53) -> 41 | R53: =IF(M53="","",RANK(Q53,Q$7:Q$230)) -> 49 | S53: =IF(R53="",0,Q$231+1-R53) -> 120 | T53: =S53+K53 -> 136 | U53: =IF(T53=0,"",RANK(T53,T$7:T$230)) -> 131 | V53: En Automne | W53: 12 | X53: 13 | Y53: 13 | Z53: =SUM(W53:Y53) -> 38 | AA53: =IF(V53="","",RANK(Z53,Z$7:Z$230)) -> 80 | AB53: =IF(AA53="",0,Z$231+1-AA53) -> 90 | AC53: =AB53+T53 -> 226 | AD53: =RANK(AC53,AC$7:AC$230) -> 111 | AE53: Contemplation | AF53: 16 | AG53: 15 | AH53: 16 | AI53: =SUM(AF53:AH53) -> 47 | AJ53: =IF(AE53="","",RANK(AI53,AI$7:AI$230)) -> 13 | AK53: =IF(AJ53="",0,AI$231+1-AJ53) -> 144 | AL53: =AK53+AC53 -> 370 | AM53: =RANK(AL53,AL$7:AL$230) -> 67 | AN53: Cascade | AO53: 17 | AP53: 14 | AQ53: 12 | AR53: =SUM(AO53:AQ53) -> 43 | AS53: =IF(AN53="","",RANK(AR53,AR$7:AR$230)) -> 21 | AT53: =IF(AS53="",0,AR$231+1-AS53) -> 143 | AU53: =AT53+AL53 -> 513 | AV53: =RANK(AU53,AU$7:AU$230) -> 46 | BA53: 0 | BC53: 0 | BD53: 513 | BE53: 41 | BJ53: 0 | BL53: 0 | BM53: 513 | BN53: 41 | BS53: 0 | BU53: 0 | BV53: 513 | BW53: 41
B54: Dominique Baptiste | C54: Club Photo Morestel | D54: 1114030151 | E54: Derniers rayons | F54: 16 | G54: 14 | H54: 12 | I54: =SUM(F54:H54) -> 42 | J54: =IF(E54="","",RANK(I54,I$7:I$230)) -> 41 | K54: =IF(J54="",0,I$231+1-J54) -> 152 | L54: =RANK(K54,K$7:K$226) -> 41 | M54: le Roi Végétal | N54: 14 | O54: 13 | P54: 13 | Q54: =SUM(N54:P54) -> 40 | R54: =IF(M54="","",RANK(Q54,Q$7:Q$230)) -> 56 | S54: =IF(R54="",0,Q$231+1-R54) -> 113 | T54: =S54+K54 -> 265 | U54: =IF(T54=0,"",RANK(T54,T$7:T$230)) -> 26 | V54: Crémieu et ses tours | W54: 14 | X54: 9 | Y54: 13 | Z54: =SUM(W54:Y54) -> 36 | AA54: =IF(V54="","",RANK(Z54,Z$7:Z$230)) -> 110 | AB54: =IF(AA54="",0,Z$231+1-AA54) -> 60 | AC54: =AB54+T54 -> 325 | AD54: =RANK(AC54,AC$7:AC$230) -> 47 | AE54: Combe de Chéran | AF54: 13 | AG54: 11 | AH54: 12 | AI54: =SUM(AF54:AH54) -> 36 | AJ54: =IF(AE54="","",RANK(AI54,AI$7:AI$230)) -> 116 | AK54: =IF(AJ54="",0,AI$231+1-AJ54) -> 41 | AL54: =AK54+AC54 -> 366 | AM54: =RANK(AL54,AL$7:AL$230) -> 71 | AN54: Retord givré | AO54: 14 | AP54: 14 | AQ54: 15 | AR54: =SUM(AO54:AQ54) -> 43 | AS54: =IF(AN54="","",RANK(AR54,AR$7:AR$230)) -> 21 | AT54: =IF(AS54="",0,AR$231+1-AS54) -> 143 | AU54: =AT54+AL54 -> 509 | AV54: =RANK(AU54,AU$7:AU$230) -> 48 | BA54: 0 | BC54: 0 | BD54: 509 | BE54: 43 | BJ54: 0 | BL54: 0 | BM54: 509 | BN54: 43 | BS54: 0 | BU54: 0 | BV54: 509 | BW54: 43
B55: Claude Prédal | C55: Photo Club de Biviers | D55: 1111310062 | E55: Coup de projecteur sur la forêt | F55: 13 | G55: 16 | H55: 16 | I55: =SUM(F55:H55) -> 45 | J55: =IF(E55="","",RANK(I55,I$7:I$230)) -> 19 | K55: =IF(J55="",0,I$231+1-J55) -> 174 | L55: =RANK(K55,K$7:K$226) -> 19 | M55: Pas beau mais bon ! | N55: 11 | O55: 11 | P55: 15 | Q55: =SUM(N55:P55) -> 37 | R55: =IF(M55="","",RANK(Q55,Q$7:Q$230)) -> 83 | S55: =IF(R55="",0,Q$231+1-R55) -> 86 | T55: =S55+K55 -> 260 | U55: =IF(T55=0,"",RANK(T55,T$7:T$230)) -> 29 | V55: Saint Hilaire du Touvet | W55: 15 | X55: 13 | Y55: 13 | Z55: =SUM(W55:Y55) -> 41 | AA55: =IF(V55="","",RANK(Z55,Z$7:Z$230)) -> 48 | AB55: =IF(AA55="",0,Z$231+1-AA55) -> 122 | AC55: =AB55+T55 -> 382 | AD55: =RANK(AC55,AC$7:AC$230) -> 25 | AE55: Imperturbables | AF55: 14 | AG55: 10 | AH55: 14 | AI55: =SUM(AF55:AH55) -> 38 | AJ55: =IF(AE55="","",RANK(AI55,AI$7:AI$230)) -> 93 | AK55: =IF(AJ55="",0,AI$231+1-AJ55) -> 64 | AL55: =AK55+AC55 -> 446 | AM55: =RANK(AL55,AL$7:AL$230) -> 32 | AN55: Douceur blanche | AO55: 9 | AP55: 12 | AQ55: 13 | AR55: =SUM(AO55:AQ55) -> 34 | AS55: =IF(AN55="","",RANK(AR55,AR$7:AR$230)) -> 102 | AT55: =IF(AS55="",0,AR$231+1-AS55) -> 62 | AU55: =AT55+AL55 -> 508 | AV55: =RANK(AU55,AU$7:AU$230) -> 49 | BA55: 0 | BC55: 0 | BD55: 508 | BE55: 44 | BJ55: 0 | BL55: 0 | BM55: 508 | BN55: 44 | BS55: 0 | BU55: 0 | BV55: 508 | BW55: 44
B56: Jean-Pierre Baud | C56: Gavot Déclic - PC Larringes | D56: 1116980029 | E56: Pollution lumineuse | F56: 18 | G56: 13 | H56: 14 | I56: =SUM(F56:H56) -> 45 | J56: =IF(E56="","",RANK(I56,I$7:I$230)) -> 19 | K56: =IF(J56="",0,I$231+1-J56) -> 174 | L56: =RANK(K56,K$7:K$226) -> 19 | M56: Pot-pourri | N56: 13 | O56: 12 | P56: 13 | Q56: =SUM(N56:P56) -> 38 | R56: =IF(M56="","",RANK(Q56,Q$7:Q$230)) -> 76 | S56: =IF(R56="",0,Q$231+1-R56) -> 93 | T56: =S56+K56 -> 267 | U56: =IF(T56=0,"",RANK(T56,T$7:T$230)) -> 25 | V56: Messery | W56: 16 | X56: 12 | Y56: 12 | Z56: =SUM(W56:Y56) -> 40 | AA56: =IF(V56="","",RANK(Z56,Z$7:Z$230)) -> 58 | AB56: =IF(AA56="",0,Z$231+1-AA56) -> 112 | AC56: =AB56+T56 -> 379 | AD56: =RANK(AC56,AC$7:AC$230) -> 26 | AE56: Autopista | AF56: 13 | AG56: 12 | AH56: 11 | AI56: =SUM(AF56:AH56) -> 36 | AJ56: =IF(AE56="","",RANK(AI56,AI$7:AI$230)) -> 116 | AK56: =IF(AJ56="",0,AI$231+1-AJ56) -> 41 | AL56: =AK56+AC56 -> 420 | AM56: =RANK(AL56,AL$7:AL$230) -> 44 | AN56: Mont Blanc et sa mer de nuages | AO56: 13 | AP56: 10 | AQ56: 13 | AR56: =SUM(AO56:AQ56) -> 36 | AS56: =IF(AN56="","",RANK(AR56,AR$7:AR$230)) -> 80 | AT56: =IF(AS56="",0,AR$231+1-AS56) -> 84 | AU56: =AT56+AL56 -> 504 | AV56: =RANK(AU56,AU$7:AU$230) -> 50
B57: Gervasoni Joseph | C57: Objectif Photo St Maurice l'Exil | D57: 1117540029 | E57: cat | F57: 16 | G57: 13 | H57: 15 | I57: =SUM(F57:H57) -> 44 | J57: =IF(E57="","",RANK(I57,I$7:I$230)) -> 28 | K57: =IF(J57="",0,I$231+1-J57) -> 165 | L57: =RANK(K57,K$7:K$226) -> 28 | M57: transaction | N57: 11 | O57: 14 | P57: 12 | Q57: =SUM(N57:P57) -> 37 | R57: =IF(M57="","",RANK(Q57,Q$7:Q$230)) -> 83 | S57: =IF(R57="",0,Q$231+1-R57) -> 86 | T57: =S57+K57 -> 251 | U57: =IF(T57=0,"",RANK(T57,T$7:T$230)) -> 33 | V57: dissipation du brouillard | W57: 10 | X57: 9 | Y57: 13 | Z57: =SUM(W57:Y57) -> 32 | AA57: =IF(V57="","",RANK(Z57,Z$7:Z$230)) -> 141 | AB57: =IF(AA57="",0,Z$231+1-AA57) -> 29 | AC57: =AB57+T57 -> 280 | AD57: =RANK(AC57,AC$7:AC$230) -> 77 | AE57: au fil de l'eau | AF57: 14 | AG57: 13 | AH57: 13 | AI57: =SUM(AF57:AH57) -> 40 | AJ57: =IF(AE57="","",RANK(AI57,AI$7:AI$230)) -> 69 | AK57: =IF(AJ57="",0,AI$231+1-AJ57) -> 88 | AL57: =AK57+AC57 -> 368 | AM57: =RANK(AL57,AL$7:AL$230) -> 69 | AN57: hiver plaisir | AO57: 17 | AP57: 14 | AQ57: 11 | AR57: =SUM(AO57:AQ57) -> 42 | AS57: =IF(AN57="","",RANK(AR57,AR$7:AR$230)) -> 30 | AT57: =IF(AS57="",0,AR$231+1-AS57) -> 134 | AU57: =AT57+AL57 -> 502 | AV57: =RANK(AU57,AU$7:AU$230) -> 51 | BA57: 0 | BB57: =IF(AW57="","",RANK(BA57,BA$8:BA$224)) ->  | BC57: =IF(BB57="",0,BA$225+1-BB57) -> 0 | BD57: 502 | BE57: =RANK(BD57,BD$8:BD$224) -> 45 | BJ57: 0 | BK57: =IF(BF57="","",RANK(BJ57,BJ$8:BJ$224)) ->  | BL57: =IF(BK57="",0,BJ$225+1-BK57) -> 0 | BM57: 502 | BN57: =RANK(BM57,BM$8:BM$224) -> 45 | BS57: 0 | BT57: =IF(BO57="","",RANK(BS57,BS$8:BS$224)) ->  | BU57: =IF(BT57="",0,BS$225+1-BT57) -> 0 | BV57: 502 | BW57: =RANK(BV57,BV$8:BV$224) -> 45
B58: Didier Tiercelet | C58: JPEG Photo Club St Martin Bellevue | D58: 1121840008 | E58: Canal du Vassé | F58: 12 | G58: 12 | H58: 13 | I58: =SUM(F58:H58) -> 37 | J58: =IF(E58="","",RANK(I58,I$7:I$230)) -> 106 | K58: =IF(J58="",0,I$231+1-J58) -> 87 | L58: =RANK(K58,K$7:K$226) -> 106 | M58: Début de régime | N58: 12 | O58: 13 | P58: 11 | Q58: =SUM(N58:P58) -> 36 | R58: =IF(M58="","",RANK(Q58,Q$7:Q$230)) -> 97 | S58: =IF(R58="",0,Q$231+1-R58) -> 72 | T58: =S58+K58 -> 159 | U58: =IF(T58=0,"",RANK(T58,T$7:T$230)) -> 114 | V58: Palais de l'Isle Annecy | W58: 15 | X58: 16 | Y58: 13 | Z58: =SUM(W58:Y58) -> 44 | AA58: =IF(V58="","",RANK(Z58,Z$7:Z$230)) -> 22 | AB58: =IF(AA58="",0,Z$231+1-AA58) -> 148 | AC58: =AB58+T58 -> 307 | AD58: =RANK(AC58,AC$7:AC$230) -> 64 | AE58: Passage du bus 35 | AF58: 15 | AG58: 13 | AH58: 11 | AI58: =SUM(AF58:AH58) -> 39 | AJ58: =IF(AE58="","",RANK(AI58,AI$7:AI$230)) -> 81 | AK58: =IF(AJ58="",0,AI$231+1-AJ58) -> 76 | AL58: =AK58+AC58 -> 383 | AM58: =RANK(AL58,AL$7:AL$230) -> 60 | AN58: Hiver en Ayères | AO58: 12 | AP58: 12 | AQ58: 16 | AR58: =SUM(AO58:AQ58) -> 40 | AS58: =IF(AN58="","",RANK(AR58,AR$7:AR$230)) -> 47 | AT58: =IF(AS58="",0,AR$231+1-AS58) -> 117 | AU58: =AT58+AL58 -> 500 | AV58: =RANK(AU58,AU$7:AU$230) -> 52 | BA58: 0 | BC58: 0 | BD58: 500 | BE58: 46 | BJ58: 0 | BL58: 0 | BM58: 500 | BN58: 46 | BS58: 0 | BU58: 0 | BV58: 500 | BW58: 46
B59: François Rossat | C59: Objectif Photo St Maurice l'Exil | D59: 1117540021 | E59: Le musicien | F59: 13 | G59: 12 | H59: 14 | I59: =SUM(F59:H59) -> 39 | J59: =IF(E59="","",RANK(I59,I$7:I$230)) -> 84 | K59: =IF(J59="",0,I$231+1-J59) -> 109 | L59: =RANK(K59,K$7:K$226) -> 84 | M59: Le Masque | N59: 9 | O59: 13 | P59: 14 | Q59: =SUM(N59:P59) -> 36 | R59: =IF(M59="","",RANK(Q59,Q$7:Q$230)) -> 97 | S59: =IF(R59="",0,Q$231+1-R59) -> 72 | T59: =S59+K59 -> 181 | U59: =IF(T59=0,"",RANK(T59,T$7:T$230)) -> 97 | V59: Village fantôme | W59: 16 | X59: 18 | Y59: 15 | Z59: =SUM(W59:Y59) -> 49 | AA59: =IF(V59="","",RANK(Z59,Z$7:Z$230)) -> 2 | AB59: =IF(AA59="",0,Z$231+1-AA59) -> 168 | AC59: =AB59+T59 -> 349 | AD59: =RANK(AC59,AC$7:AC$230) -> 35 | AE59: Le voile | AF59: 13 | AG59: 10 | AH59: 11 | AI59: =SUM(AF59:AH59) -> 34 | AJ59: =IF(AE59="","",RANK(AI59,AI$7:AI$230)) -> 134 | AK59: =IF(AJ59="",0,AI$231+1-AJ59) -> 23 | AL59: =AK59+AC59 -> 372 | AM59: =RANK(AL59,AL$7:AL$230) -> 64 | AN59: Fin de journée hivernale | AO59: 13 | AP59: 14 | AQ59: 14 | AR59: =SUM(AO59:AQ59) -> 41 | AS59: =IF(AN59="","",RANK(AR59,AR$7:AR$230)) -> 40 | AT59: =IF(AS59="",0,AR$231+1-AS59) -> 124 | AU59: =AT59+AL59 -> 496 | AV59: =RANK(AU59,AU$7:AU$230) -> 53 | BA59: 0 | BC59: 0 | BD59: 496 | BE59: 47 | BJ59: 0 | BL59: 0 | BM59: 496 | BN59: 47 | BS59: 0 | BU59: 0 | BV59: 496 | BW59: 47
B60: Pierre Margot | C60: Numerica Photo Club Faverges | D60: 1121100022 | E60: méditation | F60: 12 | G60: 13 | H60: 14 | I60: =SUM(F60:H60) -> 39 | J60: =IF(E60="","",RANK(I60,I$7:I$230)) -> 84 | K60: =IF(J60="",0,I$231+1-J60) -> 109 | L60: =RANK(K60,K$7:K$226) -> 84 | M60: livraison | N60: 10 | O60: 6 | P60: 11 | Q60: =SUM(N60:P60) -> 27 | R60: =IF(M60="","",RANK(Q60,Q$7:Q$230)) -> 162 | S60: =IF(R60="",0,Q$231+1-R60) -> 7 | T60: =S60+K60 -> 116 | U60: =IF(T60=0,"",RANK(T60,T$7:T$230)) -> 145 | V60: Talloires | W60: 13 | X60: 16 | Y60: 12 | Z60: =SUM(W60:Y60) -> 41 | AA60: =IF(V60="","",RANK(Z60,Z$7:Z$230)) -> 48 | AB60: =IF(AA60="",0,Z$231+1-AA60) -> 122 | AC60: =AB60+T60 -> 238 | AD60: =RANK(AC60,AC$7:AC$230) -> 95 | AE60: Le ferry | AF60: 15 | AG60: 13 | AH60: 13 | AI60: =SUM(AF60:AH60) -> 41 | AJ60: =IF(AE60="","",RANK(AI60,AI$7:AI$230)) -> 52 | AK60: =IF(AJ60="",0,AI$231+1-AJ60) -> 105 | AL60: =AK60+AC60 -> 343 | AM60: =RANK(AL60,AL$7:AL$230) -> 85 | AN60: Uniquement l'hiver | AO60: 14 | AP60: 14 | AQ60: 17 | AR60: =SUM(AO60:AQ60) -> 45 | AS60: =IF(AN60="","",RANK(AR60,AR$7:AR$230)) -> 15 | AT60: =IF(AS60="",0,AR$231+1-AS60) -> 149 | AU60: =AT60+AL60 -> 492 | AV60: =RANK(AU60,AU$7:AU$230) -> 54 | BA60: 0 | BC60: 0 | BD60: 492 | BE60: 48 | BJ60: 0 | BL60: 0 | BM60: 492 | BN60: 48 | BS60: 0 | BU60: 0 | BV60: 492 | BW60: 48
B61: Laurent Bignaud | C61: Club Photo Morestel | D61: 1114030162 | E61: Escalier de lumière | F61: 15 | G61: 17 | H61: 14 | I61: =SUM(F61:H61) -> 46 | J61: =IF(E61="","",RANK(I61,I$7:I$230)) -> 15 | K61: =IF(J61="",0,I$231+1-J61) -> 178 | L61: =RANK(K61,K$7:K$226) -> 15 | M61: Durian style | N61: 8 | O61: 14 | P61: 9 | Q61: =SUM(N61:P61) -> 31 | R61: =IF(M61="","",RANK(Q61,Q$7:Q$230)) -> 139 | S61: =IF(R61="",0,Q$231+1-R61) -> 30 | T61: =S61+K61 -> 208 | U61: =IF(T61=0,"",RANK(T61,T$7:T$230)) -> 70 | V61: Le clocher de Brangues | W61: 12 | X61: 12 | Y61: 15 | Z61: =SUM(W61:Y61) -> 39 | AA61: =IF(V61="","",RANK(Z61,Z$7:Z$230)) -> 67 | AB61: =IF(AA61="",0,Z$231+1-AA61) -> 103 | AC61: =AB61+T61 -> 311 | AD61: =RANK(AC61,AC$7:AC$230) -> 60 | AE61: Apparitions | AF61: 17 | AG61: 11 | AH61: 20 | AI61: =SUM(AF61:AH61) -> 48 | AJ61: =IF(AE61="","",RANK(AI61,AI$7:AI$230)) -> 10 | AK61: =IF(AJ61="",0,AI$231+1-AJ61) -> 147 | AL61: =AK61+AC61 -> 458 | AM61: =RANK(AL61,AL$7:AL$230) -> 27 | AN61: sur les toits | AO61: 12 | AP61: 10 | AQ61: 9 | AR61: =SUM(AO61:AQ61) -> 31 | AS61: =IF(AN61="","",RANK(AR61,AR$7:AR$230)) -> 131 | AT61: =IF(AS61="",0,AR$231+1-AS61) -> 33 | AU61: =AT61+AL61 -> 491 | AV61: =RANK(AU61,AU$7:AU$230) -> 55 | BA61: 0 | BC61: 0 | BD61: 491 | BE61: 49 | BJ61: 0 | BL61: 0 | BM61: 491 | BN61: 49 | BS61: 0 | BU61: 0 | BV61: 491 | BW61: 49
B62: Béatrice Fel | C62: Numerica Photo Club Faverges | D62: 1121100011 | E62: Monument Valley | F62: 12 | G62: 13 | H62: 15 | I62: =SUM(F62:H62) -> 40 | J62: =IF(E62="","",RANK(I62,I$7:I$230)) -> 69 | K62: =IF(J62="",0,I$231+1-J62) -> 124 | L62: =RANK(K62,K$7:K$226) -> 69 | Q62: =SUM(N62:P62) -> 0 | R62: =IF(M62="","",RANK(Q62,Q$7:Q$230)) ->  | S62: =IF(R62="",0,Q$231+1-R62) -> 0 | T62: =S62+K62 -> 124 | U62: =IF(T62=0,"",RANK(T62,T$7:T$230)) -> 140 | V62: Annecy | W62: 13 | X62: 8 | Y62: 17 | Z62: =SUM(W62:Y62) -> 38 | AA62: =IF(V62="","",RANK(Z62,Z$7:Z$230)) -> 80 | AB62: =IF(AA62="",0,Z$231+1-AA62) -> 90 | AC62: =AB62+T62 -> 214 | AD62: =RANK(AC62,AC$7:AC$230) -> 118 | AE62: Genève | AF62: 15 | AG62: 14 | AH62: 14 | AI62: =SUM(AF62:AH62) -> 43 | AJ62: =IF(AE62="","",RANK(AI62,AI$7:AI$230)) -> 38 | AK62: =IF(AJ62="",0,AI$231+1-AJ62) -> 119 | AL62: =AK62+AC62 -> 333 | AM62: =RANK(AL62,AL$7:AL$230) -> 91 | AN62: Avoriaz | AO62: 17 | AP62: 17 | AQ62: 12 | AR62: =SUM(AO62:AQ62) -> 46 | AS62: =IF(AN62="","",RANK(AR62,AR$7:AR$230)) -> 11 | AT62: =IF(AS62="",0,AR$231+1-AS62) -> 153 | AU62: =AT62+AL62 -> 486 | AV62: =RANK(AU62,AU$7:AU$230) -> 56 | BA62: 0 | BC62: 0 | BD62: 486 | BE62: 50 | BJ62: 0 | BL62: 0 | BM62: 486 | BN62: 50 | BS62: 0 | BU62: 0 | BV62: 486 | BW62: 50
B63: Jacques Vanneuville | C63: Club Photo Morestel | D63: 1114030001 | E63: Lumineux | F63: 15 | G63: 11 | H63: 13 | I63: =SUM(F63:H63) -> 39 | J63: =IF(E63="","",RANK(I63,I$7:I$230)) -> 84 | K63: =IF(J63="",0,I$231+1-J63) -> 109 | L63: =RANK(K63,K$7:K$226) -> 84 | M63: Primeur 1470 | N63: 12 | O63: 7 | P63: 10 | Q63: =SUM(N63:P63) -> 29 | R63: =IF(M63="","",RANK(Q63,Q$7:Q$230)) -> 151 | S63: =IF(R63="",0,Q$231+1-R63) -> 18 | T63: =S63+K63 -> 127 | U63: =IF(T63=0,"",RANK(T63,T$7:T$230)) -> 135 | V63: Cité des peintres | W63: 12 | X63: 11 | Y63: 17 | Z63: =SUM(W63:Y63) -> 40 | AA63: =IF(V63="","",RANK(Z63,Z$7:Z$230)) -> 58 | AB63: =IF(AA63="",0,Z$231+1-AA63) -> 112 | AC63: =AB63+T63 -> 239 | AD63: =RANK(AC63,AC$7:AC$230) -> 94 | AE63: le cheran | AF63: 13 | AG63: 13 | AH63: 14 | AI63: =SUM(AF63:AH63) -> 40 | AJ63: =IF(AE63="","",RANK(AI63,AI$7:AI$230)) -> 69 | AK63: =IF(AJ63="",0,AI$231+1-AJ63) -> 88 | AL63: =AK63+AC63 -> 327 | AM63: =RANK(AL63,AL$7:AL$230) -> 93 | AN63: Bosquet Hivernal | AO63: 18 | AP63: 18 | AQ63: 12 | AR63: =SUM(AO63:AQ63) -> 48 | AS63: =IF(AN63="","",RANK(AR63,AR$7:AR$230)) -> 7 | AT63: =IF(AS63="",0,AR$231+1-AS63) -> 157 | AU63: =AT63+AL63 -> 484 | AV63: =RANK(AU63,AU$7:AU$230) -> 57 | BA63: 0 | BC63: 0 | BD63: 484 | BE63: 51 | BJ63: 0 | BL63: 0 | BM63: 484 | BN63: 51 | BS63: 0 | BU63: 0 | BV63: 484 | BW63: 51
B64: Pascale Cordier | C64: Club Photo St André de Corcy | D64: 1118930049 | E64: passage de relais | F64: 9 | G64: 12 | H64: 10 | I64: =SUM(F64:H64) -> 31 | J64: =IF(E64="","",RANK(I64,I$7:I$230)) -> 169 | K64: =IF(J64="",0,I$231+1-J64) -> 24 | L64: =RANK(K64,K$7:K$226) -> 169 | M64: portrait vitaminé | N64: 20 | O64: 16 | P64: 16 | Q64: =SUM(N64:P64) -> 52 | R64: =IF(M64="","",RANK(Q64,Q$7:Q$230)) -> 3 | S64: =IF(R64="",0,Q$231+1-R64) -> 166 | T64: =S64+K64 -> 190 | U64: =IF(T64=0,"",RANK(T64,T$7:T$230)) -> 89 | V64: Lyon 2018 | W64: 14 | X64: 14 | Y64: 18 | Z64: =SUM(W64:Y64) -> 46 | AA64: =IF(V64="","",RANK(Z64,Z$7:Z$230)) -> 11 | AB64: =IF(AA64="",0,Z$231+1-AA64) -> 159 | AC64: =AB64+T64 -> 349 | AD64: =RANK(AC64,AC$7:AC$230) -> 35 | AE64: Pont Wilson | AF64: 9 | AG64: 13 | AH64: 12 | AI64: =SUM(AF64:AH64) -> 34 | AJ64: =IF(AE64="","",RANK(AI64,AI$7:AI$230)) -> 134 | AK64: =IF(AJ64="",0,AI$231+1-AJ64) -> 23 | AL64: =AK64+AC64 -> 372 | AM64: =RANK(AL64,AL$7:AL$230) -> 64 | AN64: l'hiver est installé | AO64: 13 | AP64: 13 | AQ64: 13 | AR64: =SUM(AO64:AQ64) -> 39 | AS64: =IF(AN64="","",RANK(AR64,AR$7:AR$230)) -> 52 | AT64: =IF(AS64="",0,AR$231+1-AS64) -> 112 | AU64: =AT64+AL64 -> 484 | AV64: =RANK(AU64,AU$7:AU$230) -> 57 | BA64: 0 | BC64: 0 | BD64: 484 | BE64: 51 | BJ64: 0 | BL64: 0 | BM64: 484 | BN64: 51 | BS64: 0 | BU64: 0 | BV64: 484 | BW64: 51
B65: Jean-Louis Pierre | C65: Photo Club de Biviers | D65: 1111310057 | E65: Et la lumière crût | F65: 16 | G65: 11 | H65: 8 | I65: =SUM(F65:H65) -> 35 | J65: =IF(E65="","",RANK(I65,I$7:I$230)) -> 124 | K65: =IF(J65="",0,I$231+1-J65) -> 69 | L65: =RANK(K65,K$7:K$226) -> 124 | M65: Dans la cuisine de Sarah Bernhardt | N65: 20 | O65: 14 | P65: 19 | Q65: =SUM(N65:P65) -> 53 | R65: =IF(M65="","",RANK(Q65,Q$7:Q$230)) -> 1 | S65: =IF(R65="",0,Q$231+1-R65) -> 168 | T65: =S65+K65 -> 237 | U65: =IF(T65=0,"",RANK(T65,T$7:T$230)) -> 48 | V65: Pérouges | W65: 14 | X65: 14 | Y65: 14 | Z65: =SUM(W65:Y65) -> 42 | AA65: =IF(V65="","",RANK(Z65,Z$7:Z$230)) -> 36 | AB65: =IF(AA65="",0,Z$231+1-AA65) -> 134 | AC65: =AB65+T65 -> 371 | AD65: =RANK(AC65,AC$7:AC$230) -> 29 | AE65: Impressionnisme | AF65: 9 | AG65: 10 | AH65: 18 | AI65: =SUM(AF65:AH65) -> 37 | AJ65: =IF(AE65="","",RANK(AI65,AI$7:AI$230)) -> 106 | AK65: =IF(AJ65="",0,AI$231+1-AJ65) -> 51 | AL65: =AK65+AC65 -> 422 | AM65: =RANK(AL65,AL$7:AL$230) -> 43 | AN65: Un bien pâle hiver | AO65: 11 | AP65: 14 | AQ65: 8 | AR65: =SUM(AO65:AQ65) -> 33 | AS65: =IF(AN65="","",RANK(AR65,AR$7:AR$230)) -> 111 | AT65: =IF(AS65="",0,AR$231+1-AS65) -> 53 | AU65: =AT65+AL65 -> 475 | AV65: =RANK(AU65,AU$7:AU$230) -> 59 | BA65: 0 | BC65: 0 | BD65: 475 | BE65: 53 | BJ65: 0 | BL65: 0 | BM65: 475 | BN65: 53 | BS65: 0 | BU65: 0 | BV65: 475 | BW65: 53
B66: Bernard Allegre | C66: Objectif Images Lyon | D66: 1106200035 | E66: Vitrine restaurant Chinois | F66: 14 | G66: 14 | H66: 13 | I66: =SUM(F66:H66) -> 41 | J66: =IF(E66="","",RANK(I66,I$7:I$230)) -> 55 | K66: =IF(J66="",0,I$231+1-J66) -> 138 | L66: =RANK(K66,K$7:K$226) -> 55 | M66: Marché CUETZALAN | N66: 12 | O66: 13 | P66: 11 | Q66: =SUM(N66:P66) -> 36 | R66: =IF(M66="","",RANK(Q66,Q$7:Q$230)) -> 97 | S66: =IF(R66="",0,Q$231+1-R66) -> 72 | T66: =S66+K66 -> 210 | U66: =IF(T66=0,"",RANK(T66,T$7:T$230)) -> 68 | V66: LYON République la nuit | W66: 12 | X66: 14 | Y66: 15 | Z66: =SUM(W66:Y66) -> 41 | AA66: =IF(V66="","",RANK(Z66,Z$7:Z$230)) -> 48 | AB66: =IF(AA66="",0,Z$231+1-AA66) -> 122 | AC66: =AB66+T66 -> 332 | AD66: =RANK(AC66,AC$7:AC$230) -> 42 | AE66: Mystère après 20 secondes | AF66: 12 | AG66: 14 | AH66: 14 | AI66: =SUM(AF66:AH66) -> 40 | AJ66: =IF(AE66="","",RANK(AI66,AI$7:AI$230)) -> 69 | AK66: =IF(AJ66="",0,AI$231+1-AJ66) -> 88 | AL66: =AK66+AC66 -> 420 | AM66: =RANK(AL66,AL$7:AL$230) -> 44 | AN66: Et puis ce fut l'hiver (Poème) | AO66: 10 | AP66: 10 | AQ66: 13 | AR66: =SUM(AO66:AQ66) -> 33 | AS66: =IF(AN66="","",RANK(AR66,AR$7:AR$230)) -> 111 | AT66: =IF(AS66="",0,AR$231+1-AS66) -> 53 | AU66: =AT66+AL66 -> 473 | AV66: =RANK(AU66,AU$7:AU$230) -> 60 | BA66: 0 | BC66: 0 | BD66: 473 | BE66: 54 | BJ66: 0 | BL66: 0 | BM66: 473 | BN66: 54 | BS66: 0 | BU66: 0 | BV66: 473 | BW66: 54
B67: Marc Dufournet | C67: Numerica Photo Club Faverges | D67: 1121100019 | E67: Averse d'été | F67: 7 | G67: 13 | H67: 15 | I67: =SUM(F67:H67) -> 35 | J67: =IF(E67="","",RANK(I67,I$7:I$230)) -> 124 | K67: =IF(J67="",0,I$231+1-J67) -> 69 | L67: =RANK(K67,K$7:K$226) -> 124 | M67: Goûtez cette clémentine | N67: 10 | O67: 10 | P67: 11 | Q67: =SUM(N67:P67) -> 31 | R67: =IF(M67="","",RANK(Q67,Q$7:Q$230)) -> 139 | S67: =IF(R67="",0,Q$231+1-R67) -> 30 | T67: =S67+K67 -> 99 | U67: =IF(T67=0,"",RANK(T67,T$7:T$230)) -> 154 | V67: Annecy, la touristique | W67: 15 | X67: 14 | Y67: 13 | Z67: =SUM(W67:Y67) -> 42 | AA67: =IF(V67="","",RANK(Z67,Z$7:Z$230)) -> 36 | AB67: =IF(AA67="",0,Z$231+1-AA67) -> 134 | AC67: =AB67+T67 -> 233 | AD67: =RANK(AC67,AC$7:AC$230) -> 105 | AE67: Seul | AF67: 15 | AG67: 13 | AH67: 16 | AI67: =SUM(AF67:AH67) -> 44 | AJ67: =IF(AE67="","",RANK(AI67,AI$7:AI$230)) -> 29 | AK67: =IF(AJ67="",0,AI$231+1-AJ67) -> 128 | AL67: =AK67+AC67 -> 361 | AM67: =RANK(AL67,AL$7:AL$230) -> 73 | AN67: Par dessus les nuages | AO67: 10 | AP67: 15 | AQ67: 14 | AR67: =SUM(AO67:AQ67) -> 39 | AS67: =IF(AN67="","",RANK(AR67,AR$7:AR$230)) -> 52 | AT67: =IF(AS67="",0,AR$231+1-AS67) -> 112 | AU67: =AT67+AL67 -> 473 | AV67: =RANK(AU67,AU$7:AU$230) -> 60 | BA67: 0 | BC67: 0 | BD67: 473 | BE67: 54 | BJ67: 0 | BL67: 0 | BM67: 473 | BN67: 54 | BS67: 0 | BU67: 0 | BV67: 473 | BW67: 54
B68: Arlette Cantillon | C68: Gavot Déclic - PC Larringes | D68: 1116980035 | E68: Serrières en lumière du soir | F68: 16 | G68: 10 | H68: 12 | I68: =SUM(F68:H68) -> 38 | J68: =IF(E68="","",RANK(I68,I$7:I$230)) -> 98 | K68: =IF(J68="",0,I$231+1-J68) -> 95 | L68: =RANK(K68,K$7:K$226) -> 98 | M68: Sculpure sur courge | N68: 20 | O68: 15 | P68: 12 | Q68: =SUM(N68:P68) -> 47 | R68: =IF(M68="","",RANK(Q68,Q$7:Q$230)) -> 15 | S68: =IF(R68="",0,Q$231+1-R68) -> 154 | T68: =S68+K68 -> 249 | U68: =IF(T68=0,"",RANK(T68,T$7:T$230)) -> 34 | V68: Les toits d'Annecy | W68: 13 | X68: 12 | Y68: 12 | Z68: =SUM(W68:Y68) -> 37 | AA68: =IF(V68="","",RANK(Z68,Z$7:Z$230)) -> 96 | AB68: =IF(AA68="",0,Z$231+1-AA68) -> 74 | AC68: =AB68+T68 -> 323 | AD68: =RANK(AC68,AC$7:AC$230) -> 50 | AE68: Cascade des Tufs | AF68: 15 | AG68: 12 | AH68: 12 | AI68: =SUM(AF68:AH68) -> 39 | AJ68: =IF(AE68="","",RANK(AI68,AI$7:AI$230)) -> 81 | AK68: =IF(AJ68="",0,AI$231+1-AJ68) -> 76 | AL68: =AK68+AC68 -> 399 | AM68: =RANK(AL68,AL$7:AL$230) -> 55 | AN68: Pelage d'hiver | AO68: 11 | AP68: 12 | AQ68: 12 | AR68: =SUM(AO68:AQ68) -> 35 | AS68: =IF(AN68="","",RANK(AR68,AR$7:AR$230)) -> 91 | AT68: =IF(AS68="",0,AR$231+1-AS68) -> 73 | AU68: =AT68+AL68 -> 472 | AV68: =RANK(AU68,AU$7:AU$230) -> 62 | BA68: 0 | BC68: 0 | BD68: 472 | BE68: 56 | BJ68: 0 | BL68: 0 | BM68: 472 | BN68: 56 | BS68: 0 | BU68: 0 | BV68: 472 | BW68: 56
B69: Lucille Lecomte | C69: Objectif Photo St Maurice l'Exil | D69: 1117540031 | E69: Lecture du soir | F69: 12 | G69: 14 | H69: 13 | I69: =SUM(F69:H69) -> 39 | J69: =IF(E69="","",RANK(I69,I$7:I$230)) -> 84 | K69: =IF(J69="",0,I$231+1-J69) -> 109 | L69: =RANK(K69,K$7:K$226) -> 84 | M69: A la conquête de la montagne de fruits et légumes | N69: 9 | O69: 11 | P69: 13 | Q69: =SUM(N69:P69) -> 33 | R69: =IF(M69="","",RANK(Q69,Q$7:Q$230)) -> 122 | S69: =IF(R69="",0,Q$231+1-R69) -> 47 | T69: =S69+K69 -> 156 | U69: =IF(T69=0,"",RANK(T69,T$7:T$230)) -> 119 | V69: Couché de soleil sur les lavandes et la tour de Chamaret | W69: 12 | X69: 12 | Y69: 15 | Z69: =SUM(W69:Y69) -> 39 | AA69: =IF(V69="","",RANK(Z69,Z$7:Z$230)) -> 67 | AB69: =IF(AA69="",0,Z$231+1-AA69) -> 103 | AC69: =AB69+T69 -> 259 | AD69: =RANK(AC69,AC$7:AC$230) -> 85 | AE69: Le temps passe, les pages se tournent... | AF69: 18 | AG69: 12 | AH69: 20 | AI69: =SUM(AF69:AH69) -> 50 | AJ69: =IF(AE69="","",RANK(AI69,AI$7:AI$230)) -> 8 | AK69: =IF(AJ69="",0,AI$231+1-AJ69) -> 149 | AL69: =AK69+AC69 -> 408 | AM69: =RANK(AL69,AL$7:AL$230) -> 48 | AN69: Pile de bois et son liseré de neige! | AO69: 12 | AP69: 10 | AQ69: 12 | AR69: =SUM(AO69:AQ69) -> 34 | AS69: =IF(AN69="","",RANK(AR69,AR$7:AR$230)) -> 102 | AT69: =IF(AS69="",0,AR$231+1-AS69) -> 62 | AU69: =AT69+AL69 -> 470 | AV69: =RANK(AU69,AU$7:AU$230) -> 63
B70: Claudine Laforgue Durand | C70: Club Photo de Cognin | D70: 1110550166 | E70: Lever de soleil | F70: 16 | G70: 11 | H70: 15 | I70: =SUM(F70:H70) -> 42 | J70: =IF(E70="","",RANK(I70,I$7:I$230)) -> 41 | K70: =IF(J70="",0,I$231+1-J70) -> 152 | L70: =RANK(K70,K$7:K$226) -> 41 | M70: Marché flottant | N70: 14 | O70: 13 | P70: 11 | Q70: =SUM(N70:P70) -> 38 | R70: =IF(M70="","",RANK(Q70,Q$7:Q$230)) -> 76 | S70: =IF(R70="",0,Q$231+1-R70) -> 93 | T70: =S70+K70 -> 245 | U70: =IF(T70=0,"",RANK(T70,T$7:T$230)) -> 38 | V70: Bonneval | W70: 14 | X70: 12 | Y70: 12 | Z70: =SUM(W70:Y70) -> 38 | AA70: =IF(V70="","",RANK(Z70,Z$7:Z$230)) -> 80 | AB70: =IF(AA70="",0,Z$231+1-AA70) -> 90 | AC70: =AB70+T70 -> 335 | AD70: =RANK(AC70,AC$7:AC$230) -> 41 | AE70: Vert Cassis | AF70: 17 | AG70: 12 | AH70: 13 | AI70: =SUM(AF70:AH70) -> 42 | AJ70: =IF(AE70="","",RANK(AI70,AI$7:AI$230)) -> 44 | AK70: =IF(AJ70="",0,AI$231+1-AJ70) -> 113 | AL70: =AK70+AC70 -> 448 | AM70: =RANK(AL70,AL$7:AL$230) -> 31 | AN70: Lac gelé | AO70: 7 | AP70: 12 | AQ70: 9 | AR70: =SUM(AO70:AQ70) -> 28 | AS70: =IF(AN70="","",RANK(AR70,AR$7:AR$230)) -> 147 | AT70: =IF(AS70="",0,AR$231+1-AS70) -> 17 | AU70: =AT70+AL70 -> 465 | AV70: =RANK(AU70,AU$7:AU$230) -> 64 | BA70: 0 | BB70: =IF(AW70="","",RANK(BA70,BA$8:BA$224)) ->  | BC70: =IF(BB70="",0,BA$225+1-BB70) -> 0 | BD70: 465 | BE70: =RANK(BD70,BD$8:BD$224) -> 57 | BJ70: 0 | BK70: =IF(BF70="","",RANK(BJ70,BJ$8:BJ$224)) ->  | BL70: =IF(BK70="",0,BJ$225+1-BK70) -> 0 | BM70: 465 | BN70: =RANK(BM70,BM$8:BM$224) -> 57 | BS70: 0 | BT70: =IF(BO70="","",RANK(BS70,BS$8:BS$224)) ->  | BU70: =IF(BT70="",0,BS$225+1-BT70) -> 0 | BV70: 465 | BW70: =RANK(BV70,BV$8:BV$224) -> 57
B71: Michel Dafour | C71: Gavot Déclic - PC Larringes | D71: 1116980036 | E71: lumières nocturnes | F71: 7 | G71: 11 | H71: 10 | I71: =SUM(F71:H71) -> 28 | J71: =IF(E71="","",RANK(I71,I$7:I$230)) -> 181 | K71: =IF(J71="",0,I$231+1-J71) -> 12 | L71: =RANK(K71,K$7:K$226) -> 181 | M71: trio de poivrons | N71: 16 | O71: 12 | P71: 15 | Q71: =SUM(N71:P71) -> 43 | R71: =IF(M71="","",RANK(Q71,Q$7:Q$230)) -> 34 | S71: =IF(R71="",0,Q$231+1-R71) -> 135 | T71: =S71+K71 -> 147 | U71: =IF(T71=0,"",RANK(T71,T$7:T$230)) -> 126 | V71: Thonon | W71: 9 | X71: 13 | Y71: 11 | Z71: =SUM(W71:Y71) -> 33 | AA71: =IF(V71="","",RANK(Z71,Z$7:Z$230)) -> 133 | AB71: =IF(AA71="",0,Z$231+1-AA71) -> 37 | AC71: =AB71+T71 -> 184 | AD71: =RANK(AC71,AC$7:AC$230) -> 142 | AE71: petite valse | AF71: 19 | AG71: 14 | AH71: 20 | AI71: =SUM(AF71:AH71) -> 53 | AJ71: =IF(AE71="","",RANK(AI71,AI$7:AI$230)) -> 1 | AK71: =IF(AJ71="",0,AI$231+1-AJ71) -> 156 | AL71: =AK71+AC71 -> 340 | AM71: =RANK(AL71,AL$7:AL$230) -> 88 | AN71: Belle souche | AO71: 15 | AP71: 14 | AQ71: 12 | AR71: =SUM(AO71:AQ71) -> 41 | AS71: =IF(AN71="","",RANK(AR71,AR$7:AR$230)) -> 40 | AT71: =IF(AS71="",0,AR$231+1-AS71) -> 124 | AU71: =AT71+AL71 -> 464 | AV71: =RANK(AU71,AU$7:AU$230) -> 65
B72: Jean-Luc Bourreau | C72: Photo Ciné Club Roannais | D72: 1120750017 | E72: les seize marches | F72: 11 | G72: 11 | H72: 18 | I72: =SUM(F72:H72) -> 40 | J72: =IF(E72="","",RANK(I72,I$7:I$230)) -> 69 | K72: =IF(J72="",0,I$231+1-J72) -> 124 | L72: =RANK(K72,K$7:K$226) -> 69 | M72: la belle de fontenay | N72: 12 | O72: 13 | P72: 10 | Q72: =SUM(N72:P72) -> 35 | R72: =IF(M72="","",RANK(Q72,Q$7:Q$230)) -> 108 | S72: =IF(R72="",0,Q$231+1-R72) -> 61 | T72: =S72+K72 -> 185 | U72: =IF(T72=0,"",RANK(T72,T$7:T$230)) -> 95 | V72: Roanne | W72: 10 | X72: 9 | Y72: 13 | Z72: =SUM(W72:Y72) -> 32 | AA72: =IF(V72="","",RANK(Z72,Z$7:Z$230)) -> 141 | AB72: =IF(AA72="",0,Z$231+1-AA72) -> 29 | AC72: =AB72+T72 -> 214 | AD72: =RANK(AC72,AC$7:AC$230) -> 118 | AE72: grande roue | AF72: 14 | AG72: 14 | AH72: 14 | AI72: =SUM(AF72:AH72) -> 42 | AJ72: =IF(AE72="","",RANK(AI72,AI$7:AI$230)) -> 44 | AK72: =IF(AJ72="",0,AI$231+1-AJ72) -> 113 | AL72: =AK72+AC72 -> 327 | AM72: =RANK(AL72,AL$7:AL$230) -> 93 | AN72: neige fondante | AO72: 11 | AP72: 14 | AQ72: 17 | AR72: =SUM(AO72:AQ72) -> 42 | AS72: =IF(AN72="","",RANK(AR72,AR$7:AR$230)) -> 30 | AT72: =IF(AS72="",0,AR$231+1-AS72) -> 134 | AU72: =AT72+AL72 -> 461 | AV72: =RANK(AU72,AU$7:AU$230) -> 66 | BA72: 0 | BB72: =IF(AW72="","",RANK(BA72,BA$8:BA$224)) ->  | BC72: =IF(BB72="",0,BA$225+1-BB72) -> 0 | BD72: 461 | BE72: =RANK(BD72,BD$8:BD$224) -> 58 | BJ72: 0 | BK72: =IF(BF72="","",RANK(BJ72,BJ$8:BJ$224)) ->  | BL72: =IF(BK72="",0,BJ$225+1-BK72) -> 0 | BM72: 461 | BN72: =RANK(BM72,BM$8:BM$224) -> 58 | BS72: 0 | BT72: =IF(BO72="","",RANK(BS72,BS$8:BS$224)) ->  | BU72: =IF(BT72="",0,BS$225+1-BT72) -> 0 | BV72: 461 | BW72: =RANK(BV72,BV$8:BV$224) -> 58
B73: Catherine Berger | C73: Gavot Déclic - PC Larringes | D73: 1116980031 | E73: Cliché | F73: 14 | G73: 14 | H73: 10 | I73: =SUM(F73:H73) -> 38 | J73: =IF(E73="","",RANK(I73,I$7:I$230)) -> 98 | K73: =IF(J73="",0,I$231+1-J73) -> 95 | L73: =RANK(K73,K$7:K$226) -> 98 | M73: Vert deviendra rouge | N73: 9 | O73: 15 | P73: 11 | Q73: =SUM(N73:P73) -> 35 | R73: =IF(M73="","",RANK(Q73,Q$7:Q$230)) -> 108 | S73: =IF(R73="",0,Q$231+1-R73) -> 61 | T73: =S73+K73 -> 156 | U73: =IF(T73=0,"",RANK(T73,T$7:T$230)) -> 119 | V73: Je pense "Thonon-les-Bains" | W73: 11 | X73: 9 | Y73: 13 | Z73: =SUM(W73:Y73) -> 33 | AA73: =IF(V73="","",RANK(Z73,Z$7:Z$230)) -> 133 | AB73: =IF(AA73="",0,Z$231+1-AA73) -> 37 | AC73: =AB73+T73 -> 193 | AD73: =RANK(AC73,AC$7:AC$230) -> 135 | AE73: Ligne du tram no 16 | AF73: 15 | AG73: 13 | AH73: 15 | AI73: =SUM(AF73:AH73) -> 43 | AJ73: =IF(AE73="","",RANK(AI73,AI$7:AI$230)) -> 38 | AK73: =IF(AJ73="",0,AI$231+1-AJ73) -> 119 | AL73: =AK73+AC73 -> 312 | AM73: =RANK(AL73,AL$7:AL$230) -> 101 | AN73: Promenade solitaire | AO73: 15 | AP73: 14 | AQ73: 15 | AR73: =SUM(AO73:AQ73) -> 44 | AS73: =IF(AN73="","",RANK(AR73,AR$7:AR$230)) -> 18 | AT73: =IF(AS73="",0,AR$231+1-AS73) -> 146 | AU73: =AT73+AL73 -> 458 | AV73: =RANK(AU73,AU$7:AU$230) -> 67 | BA73: 0 | BC73: 0 | BD73: 458 | BE73: 59 | BJ73: 0 | BL73: 0 | BM73: 458 | BN73: 59 | BS73: 0 | BU73: 0 | BV73: 458 | BW73: 59
B74: Eric Lefebvre | C74: Merger Photo Club - Meylan | D74: 1102590091 | E74: Double soleil | F74: 10 | G74: 11 | H74: 11 | I74: =SUM(F74:H74) -> 32 | J74: =IF(E74="","",RANK(I74,I$7:I$230)) -> 156 | K74: =IF(J74="",0,I$231+1-J74) -> 37 | L74: =RANK(K74,K$7:K$226) -> 156 | M74: Des légumes au Tsukiji ! | N74: 15 | O74: 8 | P74: 11 | Q74: =SUM(N74:P74) -> 34 | R74: =IF(M74="","",RANK(Q74,Q$7:Q$230)) -> 115 | S74: =IF(R74="",0,Q$231+1-R74) -> 54 | T74: =S74+K74 -> 91 | U74: =IF(T74=0,"",RANK(T74,T$7:T$230)) -> 156 | V74: Les Marches | W74: 11 | X74: 13 | Y74: 15 | Z74: =SUM(W74:Y74) -> 39 | AA74: =IF(V74="","",RANK(Z74,Z$7:Z$230)) -> 67 | AB74: =IF(AA74="",0,Z$231+1-AA74) -> 103 | AC74: =AB74+T74 -> 194 | AD74: =RANK(AC74,AC$7:AC$230) -> 134 | AE74: Port Coton | AF74: 16 | AG74: 13 | AH74: 15 | AI74: =SUM(AF74:AH74) -> 44 | AJ74: =IF(AE74="","",RANK(AI74,AI$7:AI$230)) -> 29 | AK74: =IF(AJ74="",0,AI$231+1-AJ74) -> 128 | AL74: =AK74+AC74 -> 322 | AM74: =RANK(AL74,AL$7:AL$230) -> 97 | AN74: Cirque de St Même | AO74: 12 | AP74: 13 | AQ74: 17 | AR74: =SUM(AO74:AQ74) -> 42 | AS74: =IF(AN74="","",RANK(AR74,AR$7:AR$230)) -> 30 | AT74: =IF(AS74="",0,AR$231+1-AS74) -> 134 | AU74: =AT74+AL74 -> 456 | AV74: =RANK(AU74,AU$7:AU$230) -> 68 | BA74: 0 | BC74: 0 | BD74: 456 | BE74: 60 | BJ74: 0 | BL74: 0 | BM74: 456 | BN74: 60 | BS74: 0 | BU74: 0 | BV74: 456 | BW74: 60
B75: Alain Capello | C75: Gavot Déclic - PC Larringes | D75: 1116980034 | E75: Lumiere en Fête | F75: 13 | G75: 14 | H75: 13 | I75: =SUM(F75:H75) -> 40 | J75: =IF(E75="","",RANK(I75,I$7:I$230)) -> 69 | K75: =IF(J75="",0,I$231+1-J75) -> 124 | L75: =RANK(K75,K$7:K$226) -> 69 | M75: Corbeille Fruits et Légumes | N75: 16 | O75: 14 | P75: 12 | Q75: =SUM(N75:P75) -> 42 | R75: =IF(M75="","",RANK(Q75,Q$7:Q$230)) -> 39 | S75: =IF(R75="",0,Q$231+1-R75) -> 130 | T75: =S75+K75 -> 254 | U75: =IF(T75=0,"",RANK(T75,T$7:T$230)) -> 31 | V75: Port de Thonon les Bains | W75: 11 | X75: 15 | Y75: 11 | Z75: =SUM(W75:Y75) -> 37 | AA75: =IF(V75="","",RANK(Z75,Z$7:Z$230)) -> 96 | AB75: =IF(AA75="",0,Z$231+1-AA75) -> 74 | AC75: =AB75+T75 -> 328 | AD75: =RANK(AC75,AC$7:AC$230) -> 44 | AE75: Cascade de Tufs | AF75: 13 | AG75: 12 | AH75: 10 | AI75: =SUM(AF75:AH75) -> 35 | AJ75: =IF(AE75="","",RANK(AI75,AI$7:AI$230)) -> 125 | AK75: =IF(AJ75="",0,AI$231+1-AJ75) -> 32 | AL75: =AK75+AC75 -> 360 | AM75: =RANK(AL75,AL$7:AL$230) -> 74 | AN75: Glace sur le Lac Léman | AO75: 11 | AP75: 15 | AQ75: 11 | AR75: =SUM(AO75:AQ75) -> 37 | AS75: =IF(AN75="","",RANK(AR75,AR$7:AR$230)) -> 69 | AT75: =IF(AS75="",0,AR$231+1-AS75) -> 95 | AU75: =AT75+AL75 -> 455 | AV75: =RANK(AU75,AU$7:AU$230) -> 69 | BA75: 0 | BC75: 0 | BD75: 455 | BE75: 61 | BJ75: 0 | BL75: 0 | BM75: 455 | BN75: 61 | BS75: 0 | BU75: 0 | BV75: 455 | BW75: 61
B76: Christian De Laere | C76: Gavot Déclic - PC Larringes | D76: 1116980028 | E76: ça tourne... | F76: 12 | G76: 12 | H76: 18 | I76: =SUM(F76:H76) -> 42 | J76: =IF(E76="","",RANK(I76,I$7:I$230)) -> 41 | K76: =IF(J76="",0,I$231+1-J76) -> 152 | L76: =RANK(K76,K$7:K$226) -> 41 | M76: Déses...poire | N76: 19 | O76: 15 | P76: 16 | Q76: =SUM(N76:P76) -> 50 | R76: =IF(M76="","",RANK(Q76,Q$7:Q$230)) -> 6 | S76: =IF(R76="",0,Q$231+1-R76) -> 163 | T76: =S76+K76 -> 315 | U76: =IF(T76=0,"",RANK(T76,T$7:T$230)) -> 9 | V76: Allinges | W76: 11 | X76: 11 | Y76: 8 | Z76: =SUM(W76:Y76) -> 30 | AA76: =IF(V76="","",RANK(Z76,Z$7:Z$230)) -> 157 | AB76: =IF(AA76="",0,Z$231+1-AA76) -> 13 | AC76: =AB76+T76 -> 328 | AD76: =RANK(AC76,AC$7:AC$230) -> 44 | AE76: ça coule de source | AF76: 13 | AG76: 12 | AH76: 13 | AI76: =SUM(AF76:AH76) -> 38 | AJ76: =IF(AE76="","",RANK(AI76,AI$7:AI$230)) -> 93 | AK76: =IF(AJ76="",0,AI$231+1-AJ76) -> 64 | AL76: =AK76+AC76 -> 392 | AM76: =RANK(AL76,AL$7:AL$230) -> 57 | AN76: Il est passé par là | AO76: 12 | AP76: 12 | AQ76: 10 | AR76: =SUM(AO76:AQ76) -> 34 | AS76: =IF(AN76="","",RANK(AR76,AR$7:AR$230)) -> 102 | AT76: =IF(AS76="",0,AR$231+1-AS76) -> 62 | AU76: =AT76+AL76 -> 454 | AV76: =RANK(AU76,AU$7:AU$230) -> 70 | BA76: 0 | BC76: 0 | BD76: 454 | BE76: 62 | BJ76: 0 | BL76: 0 | BM76: 454 | BN76: 62 | BS76: 0 | BU76: 0 | BV76: 454 | BW76: 62
B77: Sylvie Amaro | C77: Photo Ciné Club Roannais | D77: 1120750014 | E77: filet de lumière | F77: 13 | G77: 13 | H77: 16 | I77: =SUM(F77:H77) -> 42 | J77: =IF(E77="","",RANK(I77,I$7:I$230)) -> 41 | K77: =IF(J77="",0,I$231+1-J77) -> 152 | L77: =RANK(K77,K$7:K$226) -> 41 | M77: suivez-moi ... les enfants | N77: 14 | O77: 13 | P77: 10 | Q77: =SUM(N77:P77) -> 37 | R77: =IF(M77="","",RANK(Q77,Q$7:Q$230)) -> 83 | S77: =IF(R77="",0,Q$231+1-R77) -> 86 | T77: =S77+K77 -> 238 | U77: =IF(T77=0,"",RANK(T77,T$7:T$230)) -> 46 | V77: le village dans la ville | W77: 13 | X77: 11 | Y77: 14 | Z77: =SUM(W77:Y77) -> 38 | AA77: =IF(V77="","",RANK(Z77,Z$7:Z$230)) -> 80 | AB77: =IF(AA77="",0,Z$231+1-AA77) -> 90 | AC77: =AB77+T77 -> 328 | AD77: =RANK(AC77,AC$7:AC$230) -> 44 | AE77: un petit air d'éventail ! | AF77: 15 | AG77: 9 | AH77: 12 | AI77: =SUM(AF77:AH77) -> 36 | AJ77: =IF(AE77="","",RANK(AI77,AI$7:AI$230)) -> 116 | AK77: =IF(AJ77="",0,AI$231+1-AJ77) -> 41 | AL77: =AK77+AC77 -> 369 | AM77: =RANK(AL77,AL$7:AL$230) -> 68 | AN77: givre matinal en bord de Loire | AO77: 14 | AP77: 9 | AQ77: 13 | AR77: =SUM(AO77:AQ77) -> 36 | AS77: =IF(AN77="","",RANK(AR77,AR$7:AR$230)) -> 80 | AT77: =IF(AS77="",0,AR$231+1-AS77) -> 84 | AU77: =AT77+AL77 -> 453 | AV77: =RANK(AU77,AU$7:AU$230) -> 71 | BA77: 0 | BC77: 0 | BD77: 453 | BE77: 63 | BJ77: 0 | BL77: 0 | BM77: 453 | BN77: 63 | BS77: 0 | BU77: 0 | BV77: 453 | BW77: 63
B78: Alain Simonin | C78: Les Belles Images Saint-Marcel-Bel-Accueil | D78: 1117570085 | E78: Lumière | F78: 14 | G78: 14 | H78: 14 | I78: =SUM(F78:H78) -> 42 | J78: =IF(E78="","",RANK(I78,I$7:I$230)) -> 41 | K78: =IF(J78="",0,I$231+1-J78) -> 152 | L78: =RANK(K78,K$7:K$226) -> 41 | M78: Le rouge et le noir | N78: 11 | O78: 14 | P78: 12 | Q78: =SUM(N78:P78) -> 37 | R78: =IF(M78="","",RANK(Q78,Q$7:Q$230)) -> 83 | S78: =IF(R78="",0,Q$231+1-R78) -> 86 | T78: =S78+K78 -> 238 | U78: =IF(T78=0,"",RANK(T78,T$7:T$230)) -> 46 | Z78: =SUM(W78:Y78) -> 0 | AA78: =IF(V78="","",RANK(Z78,Z$7:Z$230)) ->  | AB78: =IF(AA78="",0,Z$231+1-AA78) -> 0 | AC78: =AB78+T78 -> 238 | AD78: =RANK(AC78,AC$7:AC$230) -> 95 | AE78: Ensoleillé | AF78: 11 | AG78: 13 | AH78: 13 | AI78: =SUM(AF78:AH78) -> 37 | AJ78: =IF(AE78="","",RANK(AI78,AI$7:AI$230)) -> 106 | AK78: =IF(AJ78="",0,AI$231+1-AJ78) -> 51 | AL78: =AK78+AC78 -> 289 | AM78: =RANK(AL78,AL$7:AL$230) -> 114 | AN78: Matinale | AO78: 16 | AP78: 15 | AQ78: 19 | AR78: =SUM(AO78:AQ78) -> 50 | AS78: =IF(AN78="","",RANK(AR78,AR$7:AR$230)) -> 3 | AT78: =IF(AS78="",0,AR$231+1-AS78) -> 161 | AU78: =AT78+AL78 -> 450 | AV78: =RANK(AU78,AU$7:AU$230) -> 72 | BA78: 0 | BC78: 0 | BD78: 450 | BE78: 64 | BJ78: 0 | BL78: 0 | BM78: 450 | BN78: 64 | BS78: 0 | BU78: 0 | BV78: 450 | BW78: 64
B79: Michel Bonneau | C79: Gavot Déclic - PC Larringes | D79: 1116980021 | E79: A la poursuite..dame nature | F79: 13 | G79: 12 | H79: 18 | I79: =SUM(F79:H79) -> 43 | J79: =IF(E79="","",RANK(I79,I$7:I$230)) -> 34 | K79: =IF(J79="",0,I$231+1-J79) -> 159 | L79: =RANK(K79,K$7:K$226) -> 34 | M79: Marché en Equateur | N79: 12 | O79: 13 | P79: 12 | Q79: =SUM(N79:P79) -> 37 | R79: =IF(M79="","",RANK(Q79,Q$7:Q$230)) -> 83 | S79: =IF(R79="",0,Q$231+1-R79) -> 86 | T79: =S79+K79 -> 245 | U79: =IF(T79=0,"",RANK(T79,T$7:T$230)) -> 38 | V79: l'aube se lève sur Vinzier | W79: 12 | X79: 13 | Y79: 12 | Z79: =SUM(W79:Y79) -> 37 | AA79: =IF(V79="","",RANK(Z79,Z$7:Z$230)) -> 96 | AB79: =IF(AA79="",0,Z$231+1-AA79) -> 74 | AC79: =AB79+T79 -> 319 | AD79: =RANK(AC79,AC$7:AC$230) -> 54 | AE79: Tine de Conflens | AF79: 12 | AG79: 15 | AH79: 14 | AI79: =SUM(AF79:AH79) -> 41 | AJ79: =IF(AE79="","",RANK(AI79,AI$7:AI$230)) -> 52 | AK79: =IF(AJ79="",0,AI$231+1-AJ79) -> 105 | AL79: =AK79+AC79 -> 424 | AM79: =RANK(AL79,AL$7:AL$230) -> 40 | AN79: bordure du lac par -9° | AO79: 7 | AP79: 11 | AQ79: 11 | AR79: =SUM(AO79:AQ79) -> 29 | AS79: =IF(AN79="","",RANK(AR79,AR$7:AR$230)) -> 141 | AT79: =IF(AS79="",0,AR$231+1-AS79) -> 23 | AU79: =AT79+AL79 -> 447 | AV79: =RANK(AU79,AU$7:AU$230) -> 73 | BA79: =SUM(AX79:AZ79) -> 0 | BC79: 0 | BD79: =BC79+AU79 -> 447 | BE79: 65 | BJ79: =SUM(BG79:BI79) -> 0 | BL79: 0 | BM79: =BL79+BD79 -> 447 | BN79: 65 | BS79: =SUM(BP79:BR79) -> 0 | BU79: 0 | BV79: =BU79+BM79 -> 447 | BW79: 65
B80: Anne-Marie Thibert | C80: ATSCAF Rhône Photo - Lyon | D80: 1117070021 | E80: Rayons bleus | F80: 15 | G80: 13 | H80: 14 | I80: =SUM(F80:H80) -> 42 | J80: =IF(E80="","",RANK(I80,I$7:I$230)) -> 41 | K80: =IF(J80="",0,I$231+1-J80) -> 152 | L80: =RANK(K80,K$7:K$226) -> 41 | M80: Corne d'abondance rustique | N80: 18 | O80: 11 | P80: 13 | Q80: =SUM(N80:P80) -> 42 | R80: =IF(M80="","",RANK(Q80,Q$7:Q$230)) -> 39 | S80: =IF(R80="",0,Q$231+1-R80) -> 130 | T80: =S80+K80 -> 282 | U80: =IF(T80=0,"",RANK(T80,T$7:T$230)) -> 19 | V80: Lyon couleur du matin | W80: 10 | X80: 12 | Y80: 10 | Z80: =SUM(W80:Y80) -> 32 | AA80: =IF(V80="","",RANK(Z80,Z$7:Z$230)) -> 141 | AB80: =IF(AA80="",0,Z$231+1-AA80) -> 29 | AC80: =AB80+T80 -> 311 | AD80: =RANK(AC80,AC$7:AC$230) -> 60 | AE80: Vallée de la Creuse | AF80: 11 | AG80: 13 | AH80: 11 | AI80: =SUM(AF80:AH80) -> 35 | AJ80: =IF(AE80="","",RANK(AI80,AI$7:AI$230)) -> 125 | AK80: =IF(AJ80="",0,AI$231+1-AJ80) -> 32 | AL80: =AK80+AC80 -> 343 | AM80: =RANK(AL80,AL$7:AL$230) -> 85 | AN80: Tête d'Or sous la neige | AO80: 14 | AP80: 12 | AQ80: 12 | AR80: =SUM(AO80:AQ80) -> 38 | AS80: =IF(AN80="","",RANK(AR80,AR$7:AR$230)) -> 61 | AT80: =IF(AS80="",0,AR$231+1-AS80) -> 103 | AU80: =AT80+AL80 -> 446 | AV80: =RANK(AU80,AU$7:AU$230) -> 74 | BA80: 0 | BC80: 0 | BD80: 446 | BE80: 66 | BJ80: 0 | BL80: 0 | BM80: 446 | BN80: 66 | BS80: 0 | BU80: 0 | BV80: 446 | BW80: 66
B81: Marie Cattagni | C81: Photo Ciné Club Roannais | D81: 1120750021 | E81: dentelle | F81: 14 | G81: 10 | H81: 10 | I81: =SUM(F81:H81) -> 34 | J81: =IF(E81="","",RANK(I81,I$7:I$230)) -> 136 | K81: =IF(J81="",0,I$231+1-J81) -> 57 | L81: =RANK(K81,K$7:K$226) -> 136 | M81: Noir ou blanc ? | N81: 8 | O81: 11 | P81: 9 | Q81: =SUM(N81:P81) -> 28 | R81: =IF(M81="","",RANK(Q81,Q$7:Q$230)) -> 155 | S81: =IF(R81="",0,Q$231+1-R81) -> 14 | T81: =S81+K81 -> 71 | U81: =IF(T81=0,"",RANK(T81,T$7:T$230)) -> 167 | V81: Point de vue | W81: 10 | X81: 13 | Y81: 16 | Z81: =SUM(W81:Y81) -> 39 | AA81: =IF(V81="","",RANK(Z81,Z$7:Z$230)) -> 67 | AB81: =IF(AA81="",0,Z$231+1-AA81) -> 103 | AC81: =AB81+T81 -> 174 | AD81: =RANK(AC81,AC$7:AC$230) -> 150 | AE81: Toulousaine | AF81: 16 | AG81: 15 | AH81: 15 | AI81: =SUM(AF81:AH81) -> 46 | AJ81: =IF(AE81="","",RANK(AI81,AI$7:AI$230)) -> 20 | AK81: =IF(AJ81="",0,AI$231+1-AJ81) -> 137 | AL81: =AK81+AC81 -> 311 | AM81: =RANK(AL81,AL$7:AL$230) -> 103 | AN81: un hiver en ville | AO81: 18 | AP81: 12 | AQ81: 12 | AR81: =SUM(AO81:AQ81) -> 42 | AS81: =IF(AN81="","",RANK(AR81,AR$7:AR$230)) -> 30 | AT81: =IF(AS81="",0,AR$231+1-AS81) -> 134 | AU81: =AT81+AL81 -> 445 | AV81: =RANK(AU81,AU$7:AU$230) -> 75 | BA81: 0 | BC81: 0 | BD81: 445 | BE81: 67 | BJ81: 0 | BL81: 0 | BM81: 445 | BN81: 67 | BS81: 0 | BU81: 0 | BV81: 445 | BW81: 67
B82: Marie-Antoinette Delorme | C82: Photo Club de Biviers | D82: 1111310078 | E82: le Lac | F82: 16 | G82: 9 | H82: 7 | I82: =SUM(F82:H82) -> 32 | J82: =IF(E82="","",RANK(I82,I$7:I$230)) -> 156 | K82: =IF(J82="",0,I$231+1-J82) -> 37 | L82: =RANK(K82,K$7:K$226) -> 156 | M82: Nature pas morte | N82: 15 | O82: 12 | P82: 15 | Q82: =SUM(N82:P82) -> 42 | R82: =IF(M82="","",RANK(Q82,Q$7:Q$230)) -> 39 | S82: =IF(R82="",0,Q$231+1-R82) -> 130 | T82: =S82+K82 -> 167 | U82: =IF(T82=0,"",RANK(T82,T$7:T$230)) -> 110 | V82: Grenoble s illumine | W82: 13 | X82: 11 | Y82: 13 | Z82: =SUM(W82:Y82) -> 37 | AA82: =IF(V82="","",RANK(Z82,Z$7:Z$230)) -> 96 | AB82: =IF(AA82="",0,Z$231+1-AA82) -> 74 | AC82: =AB82+T82 -> 241 | AD82: =RANK(AC82,AC$7:AC$230) -> 93 | AE82: déambulation | AF82: 15 | AG82: 15 | AH82: 17 | AI82: =SUM(AF82:AH82) -> 47 | AJ82: =IF(AE82="","",RANK(AI82,AI$7:AI$230)) -> 13 | AK82: =IF(AJ82="",0,AI$231+1-AJ82) -> 144 | AL82: =AK82+AC82 -> 385 | AM82: =RANK(AL82,AL$7:AL$230) -> 58 | AN82: Feminité glacée | AO82: 13 | AP82: 12 | AQ82: 8 | AR82: =SUM(AO82:AQ82) -> 33 | AS82: =IF(AN82="","",RANK(AR82,AR$7:AR$230)) -> 111 | AT82: =IF(AS82="",0,AR$231+1-AS82) -> 53 | AU82: =AT82+AL82 -> 438 | AV82: =RANK(AU82,AU$7:AU$230) -> 76 | BA82: 0 | BC82: 0 | BD82: 438 | BE82: 68 | BJ82: 0 | BL82: 0 | BM82: 438 | BN82: 68 | BS82: 0 | BU82: 0 | BV82: 438 | BW82: 68
B83: Laurent Mathieu | C83: Club Photo Morestel | D83: 1114030174 | E83: A contre-jour | F83: 13 | G83: 13 | H83: 17 | I83: =SUM(F83:H83) -> 43 | J83: =IF(E83="","",RANK(I83,I$7:I$230)) -> 34 | K83: =IF(J83="",0,I$231+1-J83) -> 159 | L83: =RANK(K83,K$7:K$226) -> 34 | M83: Trop Chou | N83: 9 | O83: 13 | P83: 10 | Q83: =SUM(N83:P83) -> 32 | R83: =IF(M83="","",RANK(Q83,Q$7:Q$230)) -> 129 | S83: =IF(R83="",0,Q$231+1-R83) -> 40 | T83: =S83+K83 -> 199 | U83: =IF(T83=0,"",RANK(T83,T$7:T$230)) -> 76 | V83: Crémieu | W83: 12 | X83: 10 | Y83: 14 | Z83: =SUM(W83:Y83) -> 36 | AA83: =IF(V83="","",RANK(Z83,Z$7:Z$230)) -> 110 | AB83: =IF(AA83="",0,Z$231+1-AA83) -> 60 | AC83: =AB83+T83 -> 259 | AD83: =RANK(AC83,AC$7:AC$230) -> 85 | AE83: Au fil de la nuit | AF83: 13 | AG83: 13 | AH83: 15 | AI83: =SUM(AF83:AH83) -> 41 | AJ83: =IF(AE83="","",RANK(AI83,AI$7:AI$230)) -> 52 | AK83: =IF(AJ83="",0,AI$231+1-AJ83) -> 105 | AL83: =AK83+AC83 -> 364 | AM83: =RANK(AL83,AL$7:AL$230) -> 72 | AN83: Routier en déroute | AO83: 13 | AP83: 12 | AQ83: 10 | AR83: =SUM(AO83:AQ83) -> 35 | AS83: =IF(AN83="","",RANK(AR83,AR$7:AR$230)) -> 91 | AT83: =IF(AS83="",0,AR$231+1-AS83) -> 73 | AU83: =AT83+AL83 -> 437 | AV83: =RANK(AU83,AU$7:AU$230) -> 77 | BA83: 0 | BC83: 0 | BD83: 437 | BE83: 69 | BJ83: 0 | BL83: 0 | BM83: 437 | BN83: 69 | BS83: 0 | BU83: 0 | BV83: 437 | BW83: 69
B84: Christian Decroix | C84: Objectif Photo St Maurice l'Exil | D84: 1117540022 | E84: Trough the window | F84: 8 | G84: 12 | H84: 14 | I84: =SUM(F84:H84) -> 34 | J84: =IF(E84="","",RANK(I84,I$7:I$230)) -> 136 | K84: =IF(J84="",0,I$231+1-J84) -> 57 | L84: =RANK(K84,K$7:K$226) -> 136 | M84: Pomme tourbentée | N84: 14 | O84: 14 | P84: 11 | Q84: =SUM(N84:P84) -> 39 | R84: =IF(M84="","",RANK(Q84,Q$7:Q$230)) -> 66 | S84: =IF(R84="",0,Q$231+1-R84) -> 103 | T84: =S84+K84 -> 160 | U84: =IF(T84=0,"",RANK(T84,T$7:T$230)) -> 113 | V84: Au pays des mallaviots | W84: 10 | X84: 12 | Y84: 15 | Z84: =SUM(W84:Y84) -> 37 | AA84: =IF(V84="","",RANK(Z84,Z$7:Z$230)) -> 96 | AB84: =IF(AA84="",0,Z$231+1-AA84) -> 74 | AC84: =AB84+T84 -> 234 | AD84: =RANK(AC84,AC$7:AC$230) -> 104 | AE84: Entre Isère et Ardèche | AF84: 18 | AG84: 10 | AH84: 15 | AI84: =SUM(AF84:AH84) -> 43 | AJ84: =IF(AE84="","",RANK(AI84,AI$7:AI$230)) -> 38 | AK84: =IF(AJ84="",0,AI$231+1-AJ84) -> 119 | AL84: =AK84+AC84 -> 353 | AM84: =RANK(AL84,AL$7:AL$230) -> 77 | AN84: En raquettes à Burdignes | AO84: 11 | AP84: 8 | AQ84: 17 | AR84: =SUM(AO84:AQ84) -> 36 | AS84: =IF(AN84="","",RANK(AR84,AR$7:AR$230)) -> 80 | AT84: =IF(AS84="",0,AR$231+1-AS84) -> 84 | AU84: =AT84+AL84 -> 437 | AV84: =RANK(AU84,AU$7:AU$230) -> 77 | BA84: 0 | BC84: 0 | BD84: 437 | BE84: 69 | BJ84: 0 | BL84: 0 | BM84: 437 | BN84: 69 | BS84: 0 | BU84: 0 | BV84: 437 | BW84: 69
B85: Jean-Pierre Leroy | C85: Photo Ciné Club Viennois | D85: 1100690287 | E85: le bus arrive ! | F85: 14 | G85: 14 | H85: 9 | I85: =SUM(F85:H85) -> 37 | J85: =IF(E85="","",RANK(I85,I$7:I$230)) -> 106 | K85: =IF(J85="",0,I$231+1-J85) -> 87 | L85: =RANK(K85,K$7:K$226) -> 106 | M85: il est mûr | N85: 11 | O85: 13 | P85: 10 | Q85: =SUM(N85:P85) -> 34 | R85: =IF(M85="","",RANK(Q85,Q$7:Q$230)) -> 115 | S85: =IF(R85="",0,Q$231+1-R85) -> 54 | T85: =S85+K85 -> 141 | U85: =IF(T85=0,"",RANK(T85,T$7:T$230)) -> 128 | V85: malleval | W85: 16 | X85: 15 | Y85: 16 | Z85: =SUM(W85:Y85) -> 47 | AA85: =IF(V85="","",RANK(Z85,Z$7:Z$230)) -> 7 | AB85: =IF(AA85="",0,Z$231+1-AA85) -> 163 | AC85: =AB85+T85 -> 304 | AD85: =RANK(AC85,AC$7:AC$230) -> 67 | AE85: le passage | AF85: 13 | AG85: 13 | AH85: 12 | AI85: =SUM(AF85:AH85) -> 38 | AJ85: =IF(AE85="","",RANK(AI85,AI$7:AI$230)) -> 93 | AK85: =IF(AJ85="",0,AI$231+1-AJ85) -> 64 | AL85: =AK85+AC85 -> 368 | AM85: =RANK(AL85,AL$7:AL$230) -> 69 | AN85: la fontaine | AO85: 14 | AP85: 14 | AQ85: 6 | AR85: =SUM(AO85:AQ85) -> 34 | AS85: =IF(AN85="","",RANK(AR85,AR$7:AR$230)) -> 102 | AT85: =IF(AS85="",0,AR$231+1-AS85) -> 62 | AU85: =AT85+AL85 -> 430 | AV85: =RANK(AU85,AU$7:AU$230) -> 79 | BA85: 0 | BC85: 0 | BD85: 430 | BE85: 71 | BJ85: 0 | BL85: 0 | BM85: 430 | BN85: 71 | BS85: 0 | BU85: 0 | BV85: 430 | BW85: 71
B86: Bernard Lecuyer | C86: Objectif Photo St Maurice l'Exil | D86: 1117540030 | E86: Soleil matinal en Luberon | F86: 16 | G86: 13 | H86: 16 | I86: =SUM(F86:H86) -> 45 | J86: =IF(E86="","",RANK(I86,I$7:I$230)) -> 19 | K86: =IF(J86="",0,I$231+1-J86) -> 174 | L86: =RANK(K86,K$7:K$226) -> 19 | M86: Récolte d'Automne | N86: 20 | O86: 11 | P86: 17 | Q86: =SUM(N86:P86) -> 48 | R86: =IF(M86="","",RANK(Q86,Q$7:Q$230)) -> 8 | S86: =IF(R86="",0,Q$231+1-R86) -> 161 | T86: =S86+K86 -> 335 | U86: =IF(T86=0,"",RANK(T86,T$7:T$230)) -> 5 | V86: Condrieu 69 | W86: 9 | X86: 12 | Y86: 11 | Z86: =SUM(W86:Y86) -> 32 | AA86: =IF(V86="","",RANK(Z86,Z$7:Z$230)) -> 141 | AB86: =IF(AA86="",0,Z$231+1-AA86) -> 29 | AC86: =AB86+T86 -> 364 | AD86: =RANK(AC86,AC$7:AC$230) -> 30 | AE86: Manège en Camargue | AF86: 10 | AG86: 11 | AH86: 14 | AI86: =SUM(AF86:AH86) -> 35 | AJ86: =IF(AE86="","",RANK(AI86,AI$7:AI$230)) -> 125 | AK86: =IF(AJ86="",0,AI$231+1-AJ86) -> 32 | AL86: =AK86+AC86 -> 396 | AM86: =RANK(AL86,AL$7:AL$230) -> 56 | AN86: Fleur d'hiver | AO86: 11 | AP86: 10 | AQ86: 10 | AR86: =SUM(AO86:AQ86) -> 31 | AS86: =IF(AN86="","",RANK(AR86,AR$7:AR$230)) -> 131 | AT86: =IF(AS86="",0,AR$231+1-AS86) -> 33 | AU86: =AT86+AL86 -> 429 | AV86: =RANK(AU86,AU$7:AU$230) -> 80 | BA86: 0 | BC86: 0 | BD86: 429 | BE86: 72 | BJ86: 0 | BL86: 0 | BM86: 429 | BN86: 72 | BS86: 0 | BU86: 0 | BV86: 429 | BW86: 72
B87: Marie-Claude Giovine | C87: Club Photo de Cognin | D87: 1110550042 | E87: lueur du soir | F87: 16 | G87: 12 | H87: 17 | I87: =SUM(F87:H87) -> 45 | J87: =IF(E87="","",RANK(I87,I$7:I$230)) -> 19 | K87: =IF(J87="",0,I$231+1-J87) -> 174 | L87: =RANK(K87,K$7:K$226) -> 19 | M87: A croquer. | N87: 6 | O87: 11 | P87: 12 | Q87: =SUM(N87:P87) -> 29 | R87: =IF(M87="","",RANK(Q87,Q$7:Q$230)) -> 151 | S87: =IF(R87="",0,Q$231+1-R87) -> 18 | T87: =S87+K87 -> 192 | U87: =IF(T87=0,"",RANK(T87,T$7:T$230)) -> 86 | V87: Chambéry et son château | W87: 11 | X87: 13 | Y87: 13 | Z87: =SUM(W87:Y87) -> 37 | AA87: =IF(V87="","",RANK(Z87,Z$7:Z$230)) -> 96 | AB87: =IF(AA87="",0,Z$231+1-AA87) -> 74 | AC87: =AB87+T87 -> 266 | AD87: =RANK(AC87,AC$7:AC$230) -> 81 | AE87: Eaux vives. | AF87: 9 | AG87: 10 | AH87: 13 | AI87: =SUM(AF87:AH87) -> 32 | AJ87: =IF(AE87="","",RANK(AI87,AI$7:AI$230)) -> 148 | AK87: =IF(AJ87="",0,AI$231+1-AJ87) -> 9 | AL87: =AK87+AC87 -> 275 | AM87: =RANK(AL87,AL$7:AL$230) -> 116 | AN87: Douceur et lumière de l'hiver. | AO87: 13 | AP87: 14 | AQ87: 19 | AR87: =SUM(AO87:AQ87) -> 46 | AS87: =IF(AN87="","",RANK(AR87,AR$7:AR$230)) -> 11 | AT87: =IF(AS87="",0,AR$231+1-AS87) -> 153 | AU87: =AT87+AL87 -> 428 | AV87: =RANK(AU87,AU$7:AU$230) -> 81 | BA87: 0 | BC87: 0 | BD87: 428 | BE87: 73 | BJ87: 0 | BL87: 0 | BM87: 428 | BN87: 73 | BS87: 0 | BU87: 0 | BV87: 428 | BW87: 73
B88: Christian Peter | C88: Objectif Images Lyon | D88: 1106200025 | E88: Hiroshima mon amour | F88: 12 | G88: 13 | H88: 14 | I88: =SUM(F88:H88) -> 39 | J88: =IF(E88="","",RANK(I88,I$7:I$230)) -> 84 | K88: =IF(J88="",0,I$231+1-J88) -> 109 | L88: =RANK(K88,K$7:K$226) -> 84 | M88: Rouge tendance | N88: 9 | O88: 14 | P88: 18 | Q88: =SUM(N88:P88) -> 41 | R88: =IF(M88="","",RANK(Q88,Q$7:Q$230)) -> 49 | S88: =IF(R88="",0,Q$231+1-R88) -> 120 | T88: =S88+K88 -> 229 | U88: =IF(T88=0,"",RANK(T88,T$7:T$230)) -> 55 | V88: Vogüé l'âme | W88: 8 | X88: 13 | Y88: 7 | Z88: =SUM(W88:Y88) -> 28 | AA88: =IF(V88="","",RANK(Z88,Z$7:Z$230)) -> 162 | AB88: =IF(AA88="",0,Z$231+1-AA88) -> 8 | AC88: =AB88+T88 -> 237 | AD88: =RANK(AC88,AC$7:AC$230) -> 98 | AE88: concorde light | AF88: 14 | AG88: 14 | AH88: 13 | AI88: =SUM(AF88:AH88) -> 41 | AJ88: =IF(AE88="","",RANK(AI88,AI$7:AI$230)) -> 52 | AK88: =IF(AJ88="",0,AI$231+1-AJ88) -> 105 | AL88: =AK88+AC88 -> 342 | AM88: =RANK(AL88,AL$7:AL$230) -> 87 | AN88: Le Passage | AO88: 10 | AP88: 13 | AQ88: 13 | AR88: =SUM(AO88:AQ88) -> 36 | AS88: =IF(AN88="","",RANK(AR88,AR$7:AR$230)) -> 80 | AT88: =IF(AS88="",0,AR$231+1-AS88) -> 84 | AU88: =AT88+AL88 -> 426 | AV88: =RANK(AU88,AU$7:AU$230) -> 82 | BA88: 0 | BC88: 0 | BD88: 426 | BE88: 74 | BJ88: 0 | BL88: 0 | BM88: 426 | BN88: 74 | BS88: 0 | BU88: 0 | BV88: 426 | BW88: 74
B89: Raphaël Bossut | C89: Club Photo St André de Corcy | D89: 1118930056 | J89: =IF(E89="","",RANK(I89,I$7:I$230)) ->  | K89: =IF(J89="",0,I$231+1-J89) -> 0 | L89: =RANK(K89,K$7:K$226) -> 192 | M89: Lever de pomme | N89: 18 | O89: 16 | P89: 12 | Q89: =SUM(N89:P89) -> 46 | R89: =IF(M89="","",RANK(Q89,Q$7:Q$230)) -> 17 | S89: =IF(R89="",0,Q$231+1-R89) -> 152 | T89: =S89+K89 -> 152 | U89: =IF(T89=0,"",RANK(T89,T$7:T$230)) -> 123 | V89: Saint Laurent d'Oingt | W89: 14 | X89: 11 | Y89: 18 | Z89: =SUM(W89:Y89) -> 43 | AA89: =IF(V89="","",RANK(Z89,Z$7:Z$230)) -> 33 | AB89: =IF(AA89="",0,Z$231+1-AA89) -> 137 | AC89: =AB89+T89 -> 289 | AD89: =RANK(AC89,AC$7:AC$230) -> 73 | AE89: Les rougeurs du soir | AF89: 10 | AG89: 11 | AH89: 13 | AI89: =SUM(AF89:AH89) -> 34 | AJ89: =IF(AE89="","",RANK(AI89,AI$7:AI$230)) -> 134 | AK89: =IF(AJ89="",0,AI$231+1-AJ89) -> 23 | AL89: =AK89+AC89 -> 312 | AM89: =RANK(AL89,AL$7:AL$230) -> 101 | AN89: Le bout du Maroly | AO89: 14 | AP89: 11 | AQ89: 14 | AR89: =SUM(AO89:AQ89) -> 39 | AS89: =IF(AN89="","",RANK(AR89,AR$7:AR$230)) -> 52 | AT89: =IF(AS89="",0,AR$231+1-AS89) -> 112 | AU89: =AT89+AL89 -> 424 | AV89: =RANK(AU89,AU$7:AU$230) -> 83 | BA89: 0 | BC89: 0 | BD89: 424 | BE89: 75 | BJ89: 0 | BL89: 0 | BM89: 424 | BN89: 75 | BS89: 0 | BU89: 0 | BV89: 424 | BW89: 75
B90: Gérard Varenne | C90: Photo Ciné Club Roannais | D90: 1120750007 | J90: =IF(E90="","",RANK(I90,I$7:I$230)) ->  | K90: =IF(J90="",0,I$231+1-J90) -> 0 | L90: =RANK(K90,K$7:K$226) -> 192 | M90: Au régime | N90: 15 | O90: 14 | P90: 11 | Q90: =SUM(N90:P90) -> 40 | R90: =IF(M90="","",RANK(Q90,Q$7:Q$230)) -> 56 | S90: =IF(R90="",0,Q$231+1-R90) -> 113 | T90: =S90+K90 -> 113 | U90: =IF(T90=0,"",RANK(T90,T$7:T$230)) -> 147 | V90: Espallion | W90: 12 | X90: 14 | Y90: 12 | Z90: =SUM(W90:Y90) -> 38 | AA90: =IF(V90="","",RANK(Z90,Z$7:Z$230)) -> 80 | AB90: =IF(AA90="",0,Z$231+1-AA90) -> 90 | AC90: =AB90+T90 -> 203 | AD90: =RANK(AC90,AC$7:AC$230) -> 128 | AE90: Lyon | AF90: 12 | AG90: 13 | AH90: 13 | AI90: =SUM(AF90:AH90) -> 38 | AJ90: =IF(AE90="","",RANK(AI90,AI$7:AI$230)) -> 93 | AK90: =IF(AJ90="",0,AI$231+1-AJ90) -> 64 | AL90: =AK90+AC90 -> 267 | AM90: =RANK(AL90,AL$7:AL$230) -> 118 | AN90: Campagne | AO90: 18 | AP90: 14 | AQ90: 16 | AR90: =SUM(AO90:AQ90) -> 48 | AS90: =IF(AN90="","",RANK(AR90,AR$7:AR$230)) -> 7 | AT90: =IF(AS90="",0,AR$231+1-AS90) -> 157 | AU90: =AT90+AL90 -> 424 | AV90: =RANK(AU90,AU$7:AU$230) -> 83 | BA90: 0 | BC90: 0 | BD90: 424 | BE90: 75 | BJ90: 0 | BL90: 0 | BM90: 424 | BN90: 75 | BS90: 0 | BU90: 0 | BV90: 424 | BW90: 75
B91: Vincent Martin | C91: Photo Club de Biviers | D91: 1111310087 | E91: La lumière des elfes | F91: 11 | G91: 11 | H91: 16 | I91: =SUM(F91:H91) -> 38 | J91: =IF(E91="","",RANK(I91,I$7:I$230)) -> 98 | K91: =IF(J91="",0,I$231+1-J91) -> 95 | L91: =RANK(K91,K$7:K$226) -> 98 | M91: Saveur cucurbitacée | N91: 17 | O91: 14 | P91: 14 | Q91: =SUM(N91:P91) -> 45 | R91: =IF(M91="","",RANK(Q91,Q$7:Q$230)) -> 21 | S91: =IF(R91="",0,Q$231+1-R91) -> 148 | T91: =S91+K91 -> 243 | U91: =IF(T91=0,"",RANK(T91,T$7:T$230)) -> 42 | Z91: =SUM(W91:Y91) -> 0 | AA91: =IF(V91="","",RANK(Z91,Z$7:Z$230)) ->  | AB91: =IF(AA91="",0,Z$231+1-AA91) -> 0 | AC91: =AB91+T91 -> 243 | AD91: =RANK(AC91,AC$7:AC$230) -> 90 | AE91: Enfantement... | AF91: 16 | AG91: 14 | AH91: 15 | AI91: =SUM(AF91:AH91) -> 45 | AJ91: =IF(AE91="","",RANK(AI91,AI$7:AI$230)) -> 25 | AK91: =IF(AJ91="",0,AI$231+1-AJ91) -> 132 | AL91: =AK91+AC91 -> 375 | AM91: =RANK(AL91,AL$7:AL$230) -> 62 | AN91: Sur le chemin de l'hiver | AO91: 9 | AP91: 13 | AQ91: 10 | AR91: =SUM(AO91:AQ91) -> 32 | AS91: =IF(AN91="","",RANK(AR91,AR$7:AR$230)) -> 119 | AT91: =IF(AS91="",0,AR$231+1-AS91) -> 45 | AU91: =AT91+AL91 -> 420 | AV91: =RANK(AU91,AU$7:AU$230) -> 85 | BA91: 0 | BC91: 0 | BD91: 420 | BE91: 77 | BJ91: 0 | BL91: 0 | BM91: 420 | BN91: 77 | BS91: 0 | BU91: 0 | BV91: 420 | BW91: 77
B92: Marie-Thérèse Delnieppe | C92: Numerica Photo Club Faverges | D92: 1121100020 | E92: lumière automnale | F92: 12 | G92: 10 | H92: 13 | I92: =SUM(F92:H92) -> 35 | J92: =IF(E92="","",RANK(I92,I$7:I$230)) -> 124 | K92: =IF(J92="",0,I$231+1-J92) -> 69 | L92: =RANK(K92,K$7:K$226) -> 124 | M92: Au Marché | N92: 16 | O92: 10 | P92: 11 | Q92: =SUM(N92:P92) -> 37 | R92: =IF(M92="","",RANK(Q92,Q$7:Q$230)) -> 83 | S92: =IF(R92="",0,Q$231+1-R92) -> 86 | T92: =S92+K92 -> 155 | U92: =IF(T92=0,"",RANK(T92,T$7:T$230)) -> 121 | V92: reflets sur Lyon | W92: 11 | X92: 12 | Y92: 14 | Z92: =SUM(W92:Y92) -> 37 | AA92: =IF(V92="","",RANK(Z92,Z$7:Z$230)) -> 96 | AB92: =IF(AA92="",0,Z$231+1-AA92) -> 74 | AC92: =AB92+T92 -> 229 | AD92: =RANK(AC92,AC$7:AC$230) -> 108 | AE92: Le coin du Diable | AF92: 12 | AG92: 14 | AH92: 15 | AI92: =SUM(AF92:AH92) -> 41 | AJ92: =IF(AE92="","",RANK(AI92,AI$7:AI$230)) -> 52 | AK92: =IF(AJ92="",0,AI$231+1-AJ92) -> 105 | AL92: =AK92+AC92 -> 334 | AM92: =RANK(AL92,AL$7:AL$230) -> 90 | AN92: eau morte en hiver | AO92: 13 | AP92: 10 | AQ92: 13 | AR92: =SUM(AO92:AQ92) -> 36 | AS92: =IF(AN92="","",RANK(AR92,AR$7:AR$230)) -> 80 | AT92: =IF(AS92="",0,AR$231+1-AS92) -> 84 | AU92: =AT92+AL92 -> 418 | AV92: =RANK(AU92,AU$7:AU$230) -> 86 | BA92: 0 | BC92: 0 | BD92: 418 | BE92: 78 | BJ92: 0 | BL92: 0 | BM92: 418 | BN92: 78 | BS92: 0 | BU92: 0 | BV92: 418 | BW92: 78
B93: Guy Brechon | C93: Objectif Images Lyon | D93: 1106200008 | E93: Tache de couleurs | F93: 6 | G93: 12 | H93: 9 | I93: =SUM(F93:H93) -> 27 | J93: =IF(E93="","",RANK(I93,I$7:I$230)) -> 184 | K93: =IF(J93="",0,I$231+1-J93) -> 9 | L93: =RANK(K93,K$7:K$226) -> 184 | M93: Vert pomme | N93: 16 | O93: 14 | P93: 15 | Q93: =SUM(N93:P93) -> 45 | R93: =IF(M93="","",RANK(Q93,Q$7:Q$230)) -> 21 | S93: =IF(R93="",0,Q$231+1-R93) -> 148 | T93: =S93+K93 -> 157 | U93: =IF(T93=0,"",RANK(T93,T$7:T$230)) -> 117 | V93: Pont en Royans | W93: 15 | X93: 14 | Y93: 18 | Z93: =SUM(W93:Y93) -> 47 | AA93: =IF(V93="","",RANK(Z93,Z$7:Z$230)) -> 7 | AB93: =IF(AA93="",0,Z$231+1-AA93) -> 163 | AC93: =AB93+T93 -> 320 | AD93: =RANK(AC93,AC$7:AC$230) -> 53 | AE93: phares | AF93: 13 | AG93: 12 | AH93: 12 | AI93: =SUM(AF93:AH93) -> 37 | AJ93: =IF(AE93="","",RANK(AI93,AI$7:AI$230)) -> 106 | AK93: =IF(AJ93="",0,AI$231+1-AJ93) -> 51 | AL93: =AK93+AC93 -> 371 | AM93: =RANK(AL93,AL$7:AL$230) -> 66 | AN93: hiver en ville | AO93: 12 | AP93: 9 | AQ93: 11 | AR93: =SUM(AO93:AQ93) -> 32 | AS93: =IF(AN93="","",RANK(AR93,AR$7:AR$230)) -> 119 | AT93: =IF(AS93="",0,AR$231+1-AS93) -> 45 | AU93: =AT93+AL93 -> 416 | AV93: =RANK(AU93,AU$7:AU$230) -> 87 | BA93: 0 | BC93: 0 | BD93: 416 | BE93: 79 | BJ93: 0 | BL93: 0 | BM93: 416 | BN93: 79 | BS93: 0 | BU93: 0 | BV93: 416 | BW93: 79
B94: Dominique Charbin | C94: Objectif Photo St Maurice l'Exil | D94: 1117540003 | E94: chute du jour à Cuba | F94: 13 | G94: 13 | H94: 19 | I94: =SUM(F94:H94) -> 45 | J94: =IF(E94="","",RANK(I94,I$7:I$230)) -> 19 | K94: =IF(J94="",0,I$231+1-J94) -> 174 | L94: =RANK(K94,K$7:K$226) -> 19 | M94: Orange ou citron ? | N94: 19 | O94: 19 | P94: 14 | Q94: =SUM(N94:P94) -> 52 | R94: =IF(M94="","",RANK(Q94,Q$7:Q$230)) -> 3 | S94: =IF(R94="",0,Q$231+1-R94) -> 166 | T94: =S94+K94 -> 340 | U94: =IF(T94=0,"",RANK(T94,T$7:T$230)) -> 2 | V94: By night | W94: 13 | X94: 11 | Y94: 11 | Z94: =SUM(W94:Y94) -> 35 | AA94: =IF(V94="","",RANK(Z94,Z$7:Z$230)) -> 118 | AB94: =IF(AA94="",0,Z$231+1-AA94) -> 52 | AC94: =AB94+T94 -> 392 | AD94: =RANK(AC94,AC$7:AC$230) -> 20 | AE94: Cascade Néozélandaise | AF94: 12 | AG94: 9 | AH94: 11 | AI94: =SUM(AF94:AH94) -> 32 | AJ94: =IF(AE94="","",RANK(AI94,AI$7:AI$230)) -> 148 | AK94: =IF(AJ94="",0,AI$231+1-AJ94) -> 9 | AL94: =AK94+AC94 -> 401 | AM94: =RANK(AL94,AL$7:AL$230) -> 53 | AN94: L'énergie sous la neige | AO94: 8 | AP94: 10 | AQ94: 9 | AR94: =SUM(AO94:AQ94) -> 27 | AS94: =IF(AN94="","",RANK(AR94,AR$7:AR$230)) -> 150 | AT94: =IF(AS94="",0,AR$231+1-AS94) -> 14 | AU94: =AT94+AL94 -> 415 | AV94: =RANK(AU94,AU$7:AU$230) -> 88 | BA94: 0 | BC94: 0 | BD94: 415 | BE94: 80 | BJ94: 0 | BL94: 0 | BM94: 415 | BN94: 80 | BS94: 0 | BU94: 0 | BV94: 415 | BW94: 80
B95: Claude Reynaud | C95: Photo Club d'Aix-les-Bains | D95: 1104860137 | E95: Un lever de soleil à Venise | F95: 18 | G95: 11 | H95: 17 | I95: =SUM(F95:H95) -> 46 | J95: =IF(E95="","",RANK(I95,I$7:I$230)) -> 15 | K95: =IF(J95="",0,I$231+1-J95) -> 178 | L95: =RANK(K95,K$7:K$226) -> 15 | M95: Marché de bolhao à Porto | N95: 13 | O95: 11 | P95: 11 | Q95: =SUM(N95:P95) -> 35 | R95: =IF(M95="","",RANK(Q95,Q$7:Q$230)) -> 108 | S95: =IF(R95="",0,Q$231+1-R95) -> 61 | T95: =S95+K95 -> 239 | U95: =IF(T95=0,"",RANK(T95,T$7:T$230)) -> 44 | V95: Annecy Vielle ville | W95: 12 | X95: 13 | Y95: 8 | Z95: =SUM(W95:Y95) -> 33 | AA95: =IF(V95="","",RANK(Z95,Z$7:Z$230)) -> 133 | AB95: =IF(AA95="",0,Z$231+1-AA95) -> 37 | AC95: =AB95+T95 -> 276 | AD95: =RANK(AC95,AC$7:AC$230) -> 78 | AE95: Manège Aix les Bains | AF95: 12 | AG95: 12 | AH95: 15 | AI95: =SUM(AF95:AH95) -> 39 | AJ95: =IF(AE95="","",RANK(AI95,AI$7:AI$230)) -> 81 | AK95: =IF(AJ95="",0,AI$231+1-AJ95) -> 76 | AL95: =AK95+AC95 -> 352 | AM95: =RANK(AL95,AL$7:AL$230) -> 79 | AN95: La Grande Odyssée au Revard | AO95: 11 | AP95: 13 | AQ95: 10 | AR95: =SUM(AO95:AQ95) -> 34 | AS95: =IF(AN95="","",RANK(AR95,AR$7:AR$230)) -> 102 | AT95: =IF(AS95="",0,AR$231+1-AS95) -> 62 | AU95: =AT95+AL95 -> 414 | AV95: =RANK(AU95,AU$7:AU$230) -> 89 | BA95: 0 | BC95: 0 | BD95: 414 | BE95: 81 | BJ95: 0 | BL95: 0 | BM95: 414 | BN95: 81 | BS95: 0 | BU95: 0 | BV95: 414 | BW95: 81
B96: Xavier Gicquel | C96: Objectif Images Lyon | D96: 1106200046 | E96: Escalumineux | F96: 15 | G96: 12 | H96: 14 | I96: =SUM(F96:H96) -> 41 | J96: =IF(E96="","",RANK(I96,I$7:I$230)) -> 55 | K96: =IF(J96="",0,I$231+1-J96) -> 138 | L96: =RANK(K96,K$7:K$226) -> 55 | M96: Géométries végan | N96: 6 | O96: 16 | P96: 10 | Q96: =SUM(N96:P96) -> 32 | R96: =IF(M96="","",RANK(Q96,Q$7:Q$230)) -> 129 | S96: =IF(R96="",0,Q$231+1-R96) -> 40 | T96: =S96+K96 -> 178 | U96: =IF(T96=0,"",RANK(T96,T$7:T$230)) -> 100 | V96: Lugdunum | W96: 9 | X96: 11 | Y96: 12 | Z96: =SUM(W96:Y96) -> 32 | AA96: =IF(V96="","",RANK(Z96,Z$7:Z$230)) -> 141 | AB96: =IF(AA96="",0,Z$231+1-AA96) -> 29 | AC96: =AB96+T96 -> 207 | AD96: =RANK(AC96,AC$7:AC$230) -> 125 | AE96: course nocturne | AF96: 17 | AG96: 14 | AH96: 13 | AI96: =SUM(AF96:AH96) -> 44 | AJ96: =IF(AE96="","",RANK(AI96,AI$7:AI$230)) -> 29 | AK96: =IF(AJ96="",0,AI$231+1-AJ96) -> 128 | AL96: =AK96+AC96 -> 335 | AM96: =RANK(AL96,AL$7:AL$230) -> 89 | AN96: Un froid mordant | AO96: 9 | AP96: 11 | AQ96: 15 | AR96: =SUM(AO96:AQ96) -> 35 | AS96: =IF(AN96="","",RANK(AR96,AR$7:AR$230)) -> 91 | AT96: =IF(AS96="",0,AR$231+1-AS96) -> 73 | AU96: =AT96+AL96 -> 408 | AV96: =RANK(AU96,AU$7:AU$230) -> 90
B97: Arnaud Déchavanne | C97: Photo Ciné Club Roannais | D97: 1120750015 | E97: Nuit colorée | F97: 13 | G97: 12 | H97: 8 | I97: =SUM(F97:H97) -> 33 | J97: =IF(E97="","",RANK(I97,I$7:I$230)) -> 143 | K97: =IF(J97="",0,I$231+1-J97) -> 50 | L97: =RANK(K97,K$7:K$226) -> 143 | M97: Intrus? | N97: 18 | O97: 14 | P97: 12 | Q97: =SUM(N97:P97) -> 44 | R97: =IF(M97="","",RANK(Q97,Q$7:Q$230)) -> 29 | S97: =IF(R97="",0,Q$231+1-R97) -> 140 | T97: =S97+K97 -> 190 | U97: =IF(T97=0,"",RANK(T97,T$7:T$230)) -> 89 | V97: Contraste temporel | W97: 11 | X97: 17 | Y97: 13 | Z97: =SUM(W97:Y97) -> 41 | AA97: =IF(V97="","",RANK(Z97,Z$7:Z$230)) -> 48 | AB97: =IF(AA97="",0,Z$231+1-AA97) -> 122 | AC97: =AB97+T97 -> 312 | AD97: =RANK(AC97,AC$7:AC$230) -> 58 | AE97: Opposition | AF97: 14 | AG97: 13 | AH97: 13 | AI97: =SUM(AF97:AH97) -> 40 | AJ97: =IF(AE97="","",RANK(AI97,AI$7:AI$230)) -> 69 | AK97: =IF(AJ97="",0,AI$231+1-AJ97) -> 88 | AL97: =AK97+AC97 -> 400 | AM97: =RANK(AL97,AL$7:AL$230) -> 54 | AN97: Survie | AO97: 8 | AP97: 11 | AQ97: 7 | AR97: =SUM(AO97:AQ97) -> 26 | AS97: =IF(AN97="","",RANK(AR97,AR$7:AR$230)) -> 156 | AT97: =IF(AS97="",0,AR$231+1-AS97) -> 8 | AU97: =AT97+AL97 -> 408 | AV97: =RANK(AU97,AU$7:AU$230) -> 90 | BA97: 0 | BB97: =IF(AW97="","",RANK(BA97,BA$8:BA$224)) ->  | BC97: =IF(BB97="",0,BA$225+1-BB97) -> 0 | BD97: 408 | BE97: =RANK(BD97,BD$8:BD$224) -> 82 | BJ97: 0 | BK97: =IF(BF97="","",RANK(BJ97,BJ$8:BJ$224)) ->  | BL97: =IF(BK97="",0,BJ$225+1-BK97) -> 0 | BM97: 408 | BN97: =RANK(BM97,BM$8:BM$224) -> 82 | BS97: 0 | BT97: =IF(BO97="","",RANK(BS97,BS$8:BS$224)) ->  | BU97: =IF(BT97="",0,BS$225+1-BT97) -> 0 | BV97: 408 | BW97: =RANK(BV97,BV$8:BV$224) -> 82
B98: Jacques Decoeur | C98: ATSCAF Rhône Photo - Lyon | D98: 1117070011 | E98: Fête des lumières | F98: 14 | G98: 13 | H98: 10 | I98: =SUM(F98:H98) -> 37 | J98: =IF(E98="","",RANK(I98,I$7:I$230)) -> 106 | K98: =IF(J98="",0,I$231+1-J98) -> 87 | L98: =RANK(K98,K$7:K$226) -> 106 | M98: fruits d'automne | N98: 18 | O98: 10 | P98: 12 | Q98: =SUM(N98:P98) -> 40 | R98: =IF(M98="","",RANK(Q98,Q$7:Q$230)) -> 56 | S98: =IF(R98="",0,Q$231+1-R98) -> 113 | T98: =S98+K98 -> 200 | U98: =IF(T98=0,"",RANK(T98,T$7:T$230)) -> 74 | V98: Métropole | W98: 14 | X98: 15 | Y98: 18 | Z98: =SUM(W98:Y98) -> 47 | AA98: =IF(V98="","",RANK(Z98,Z$7:Z$230)) -> 7 | AB98: =IF(AA98="",0,Z$231+1-AA98) -> 163 | AC98: =AB98+T98 -> 363 | AD98: =RANK(AC98,AC$7:AC$230) -> 31 | AE98: retour à la maison | AF98: 11 | AG98: 14 | AH98: 11 | AI98: =SUM(AF98:AH98) -> 36 | AJ98: =IF(AE98="","",RANK(AI98,AI$7:AI$230)) -> 116 | AK98: =IF(AJ98="",0,AI$231+1-AJ98) -> 41 | AL98: =AK98+AC98 -> 404 | AM98: =RANK(AL98,AL$7:AL$230) -> 50 | AR98: =SUM(AO98:AQ98) -> 0 | AS98: =IF(AN98="","",RANK(AR98,AR$7:AR$230)) ->  | AT98: =IF(AS98="",0,AR$231+1-AS98) -> 0 | AU98: =AT98+AL98 -> 404 | AV98: =RANK(AU98,AU$7:AU$230) -> 92 | BA98: 0 | BB98: =IF(AW98="","",RANK(BA98,BA$8:BA$224)) ->  | BC98: =IF(BB98="",0,BA$225+1-BB98) -> 0 | BD98: 404 | BE98: =RANK(BD98,BD$8:BD$224) -> 83 | BJ98: 0 | BK98: =IF(BF98="","",RANK(BJ98,BJ$8:BJ$224)) ->  | BL98: =IF(BK98="",0,BJ$225+1-BK98) -> 0 | BM98: 404 | BN98: =RANK(BM98,BM$8:BM$224) -> 83 | BS98: 0 | BT98: =IF(BO98="","",RANK(BS98,BS$8:BS$224)) ->  | BU98: =IF(BT98="",0,BS$225+1-BT98) -> 0 | BV98: 404 | BW98: =RANK(BV98,BV$8:BV$224) -> 83
B99: Anne Cécile Lehuen | C99: Numerica Photo Club Faverges | D99: 1121100031 | E99: Cosy | F99: 11 | G99: 9 | H99: 15 | I99: =SUM(F99:H99) -> 35 | J99: =IF(E99="","",RANK(I99,I$7:I$230)) -> 124 | K99: =IF(J99="",0,I$231+1-J99) -> 69 | L99: =RANK(K99,K$7:K$226) -> 124 | M99: Hercule Poireau derrière les barreaux | N99: 6 | O99: 15 | P99: 12 | Q99: =SUM(N99:P99) -> 33 | R99: =IF(M99="","",RANK(Q99,Q$7:Q$230)) -> 122 | S99: =IF(R99="",0,Q$231+1-R99) -> 47 | T99: =S99+K99 -> 116 | U99: =IF(T99=0,"",RANK(T99,T$7:T$230)) -> 145 | V99: Crest Voland | W99: 11 | X99: 15 | Y99: 13 | Z99: =SUM(W99:Y99) -> 39 | AA99: =IF(V99="","",RANK(Z99,Z$7:Z$230)) -> 67 | AB99: =IF(AA99="",0,Z$231+1-AA99) -> 103 | AC99: =AB99+T99 -> 219 | AD99: =RANK(AC99,AC$7:AC$230) -> 115 | AE99: Fin de journée | AF99: 16 | AG99: 14 | AH99: 15 | AI99: =SUM(AF99:AH99) -> 45 | AJ99: =IF(AE99="","",RANK(AI99,AI$7:AI$230)) -> 25 | AK99: =IF(AJ99="",0,AI$231+1-AJ99) -> 132 | AL99: =AK99+AC99 -> 351 | AM99: =RANK(AL99,AL$7:AL$230) -> 80 | AN99: Douce fin d'hiver | AO99: 10 | AP99: 12 | AQ99: 11 | AR99: =SUM(AO99:AQ99) -> 33 | AS99: =IF(AN99="","",RANK(AR99,AR$7:AR$230)) -> 111 | AT99: =IF(AS99="",0,AR$231+1-AS99) -> 53 | AU99: =AT99+AL99 -> 404 | AV99: =RANK(AU99,AU$7:AU$230) -> 92
B100: Patrice Laïné | C100: Club Photo Morestel | D100: 1114030166 | E100: Running Tree | F100: 16 | G100: 13 | H100: 12 | I100: =SUM(F100:H100) -> 41 | J100: =IF(E100="","",RANK(I100,I$7:I$230)) -> 55 | K100: =IF(J100="",0,I$231+1-J100) -> 138 | L100: =RANK(K100,K$7:K$226) -> 55 | M100: L'arbre des garçons | N100: 6 | O100: 10 | P100: 11 | Q100: =SUM(N100:P100) -> 27 | R100: =IF(M100="","",RANK(Q100,Q$7:Q$230)) -> 162 | S100: =IF(R100="",0,Q$231+1-R100) -> 7 | T100: =S100+K100 -> 145 | U100: =IF(T100=0,"",RANK(T100,T$7:T$230)) -> 127 | V100: Enfilade | W100: 15 | X100: 8 | Y100: 15 | Z100: =SUM(W100:Y100) -> 38 | AA100: =IF(V100="","",RANK(Z100,Z$7:Z$230)) -> 80 | AB100: =IF(AA100="",0,Z$231+1-AA100) -> 90 | AC100: =AB100+T100 -> 235 | AD100: =RANK(AC100,AC$7:AC$230) -> 102 | AE100: La souche ... | AF100: 12 | AG100: 15 | AH100: 15 | AI100: =SUM(AF100:AH100) -> 42 | AJ100: =IF(AE100="","",RANK(AI100,AI$7:AI$230)) -> 44 | AK100: =IF(AJ100="",0,AI$231+1-AJ100) -> 113 | AL100: =AK100+AC100 -> 348 | AM100: =RANK(AL100,AL$7:AL$230) -> 82 | AN100: Peiltz | AO100: 8 | AP100: 14 | AQ100: 10 | AR100: =SUM(AO100:AQ100) -> 32 | AS100: =IF(AN100="","",RANK(AR100,AR$7:AR$230)) -> 119 | AT100: =IF(AS100="",0,AR$231+1-AS100) -> 45 | AU100: =AT100+AL100 -> 393 | AV100: =RANK(AU100,AU$7:AU$230) -> 94 | BA100: 0 | BB100: =IF(AW100="","",RANK(BA100,BA$8:BA$224)) ->  | BC100: =IF(BB100="",0,BA$225+1-BB100) -> 0 | BD100: 393 | BE100: =RANK(BD100,BD$8:BD$224) -> 84 | BJ100: 0 | BK100: =IF(BF100="","",RANK(BJ100,BJ$8:BJ$224)) ->  | BL100: =IF(BK100="",0,BJ$225+1-BK100) -> 0 | BM100: 393 | BN100: =RANK(BM100,BM$8:BM$224) -> 84 | BS100: 0 | BT100: =IF(BO100="","",RANK(BS100,BS$8:BS$224)) ->  | BU100: =IF(BT100="",0,BS$225+1-BT100) -> 0 | BV100: 393 | BW100: =RANK(BV100,BV$8:BV$224) -> 84
B101: Paul Petit | C101: Club Photo Morestel | D101: 1114030004 | E101: Chapelle | F101: 19 | G101: 9 | H101: 10 | I101: =SUM(F101:H101) -> 38 | J101: =IF(E101="","",RANK(I101,I$7:I$230)) -> 98 | K101: =IF(J101="",0,I$231+1-J101) -> 95 | L101: =RANK(K101,K$7:K$226) -> 98 | M101: Liquidambar | N101: 8 | O101: 14 | P101: 14 | Q101: =SUM(N101:P101) -> 36 | R101: =IF(M101="","",RANK(Q101,Q$7:Q$230)) -> 97 | S101: =IF(R101="",0,Q$231+1-R101) -> 72 | T101: =S101+K101 -> 167 | U101: =IF(T101=0,"",RANK(T101,T$7:T$230)) -> 110 | V101: Morestel | W101: 10 | X101: 14 | Y101: 9 | Z101: =SUM(W101:Y101) -> 33 | AA101: =IF(V101="","",RANK(Z101,Z$7:Z$230)) -> 133 | AB101: =IF(AA101="",0,Z$231+1-AA101) -> 37 | AC101: =AB101+T101 -> 204 | AD101: =RANK(AC101,AC$7:AC$230) -> 127 | AE101: La nuit au musée | AF101: 17 | AG101: 15 | AH101: 18 | AI101: =SUM(AF101:AH101) -> 50 | AJ101: =IF(AE101="","",RANK(AI101,AI$7:AI$230)) -> 8 | AK101: =IF(AJ101="",0,AI$231+1-AJ101) -> 149 | AL101: =AK101+AC101 -> 353 | AM101: =RANK(AL101,AL$7:AL$230) -> 77 | AN101: Le vieux lavoir | AO101: 9 | AP101: 10 | AQ101: 12 | AR101: =SUM(AO101:AQ101) -> 31 | AS101: =IF(AN101="","",RANK(AR101,AR$7:AR$230)) -> 131 | AT101: =IF(AS101="",0,AR$231+1-AS101) -> 33 | AU101: =AT101+AL101 -> 386 | AV101: =RANK(AU101,AU$7:AU$230) -> 95
B102: Tristan Vandenberghe | C102: Photo Club de Biviers | D102: 1111310119 | E102: Fiat Lux | F102: 10 | G102: 11 | H102: 12 | I102: =SUM(F102:H102) -> 33 | J102: =IF(E102="","",RANK(I102,I$7:I$230)) -> 143 | K102: =IF(J102="",0,I$231+1-J102) -> 50 | L102: =RANK(K102,K$7:K$226) -> 143 | M102: A la soupe ! | N102: 7 | O102: 13 | P102: 10 | Q102: =SUM(N102:P102) -> 30 | R102: =IF(M102="","",RANK(Q102,Q$7:Q$230)) -> 148 | S102: =IF(R102="",0,Q$231+1-R102) -> 21 | T102: =S102+K102 -> 71 | U102: =IF(T102=0,"",RANK(T102,T$7:T$230)) -> 167 | V102: Grenoble | W102: 13 | X102: 14 | Y102: 10 | Z102: =SUM(W102:Y102) -> 37 | AA102: =IF(V102="","",RANK(Z102,Z$7:Z$230)) -> 96 | AB102: =IF(AA102="",0,Z$231+1-AA102) -> 74 | AC102: =AB102+T102 -> 145 | AD102: =RANK(AC102,AC$7:AC$230) -> 165 | AE102: Vagues Italiennes | AF102: 12 | AG102: 13 | AH102: 16 | AI102: =SUM(AF102:AH102) -> 41 | AJ102: =IF(AE102="","",RANK(AI102,AI$7:AI$230)) -> 52 | AK102: =IF(AJ102="",0,AI$231+1-AJ102) -> 105 | AL102: =AK102+AC102 -> 250 | AM102: =RANK(AL102,AL$7:AL$230) -> 127 | AN102: Le Chêne | AO102: 16 | AP102: 11 | AQ102: 15 | AR102: =SUM(AO102:AQ102) -> 42 | AS102: =IF(AN102="","",RANK(AR102,AR$7:AR$230)) -> 30 | AT102: =IF(AS102="",0,AR$231+1-AS102) -> 134 | AU102: =AT102+AL102 -> 384 | AV102: =RANK(AU102,AU$7:AU$230) -> 96 | BA102: 0 | BB102: =IF(AW102="","",RANK(BA102,BA$8:BA$224)) ->  | BC102: =IF(BB102="",0,BA$225+1-BB102) -> 0 | BD102: 384 | BE102: =RANK(BD102,BD$8:BD$224) -> 85 | BJ102: 0 | BK102: =IF(BF102="","",RANK(BJ102,BJ$8:BJ$224)) ->  | BL102: =IF(BK102="",0,BJ$225+1-BK102) -> 0 | BM102: 384 | BN102: =RANK(BM102,BM$8:BM$224) -> 85 | BS102: 0 | BT102: =IF(BO102="","",RANK(BS102,BS$8:BS$224)) ->  | BU102: =IF(BT102="",0,BS$225+1-BT102) -> 0 | BV102: 384 | BW102: =RANK(BV102,BV$8:BV$224) -> 85
B103: Eliane Bernard | C103: Numericus Focus Club Photo de la Vallée de l'Arve | D103: 1122150007 | E103: Blue Christmas In Memoriam | F103: 13 | G103: 11 | H103: 13 | I103: =SUM(F103:H103) -> 37 | J103: =IF(E103="","",RANK(I103,I$7:I$230)) -> 106 | K103: =IF(J103="",0,I$231+1-J103) -> 87 | L103: =RANK(K103,K$7:K$226) -> 106 | Q103: =SUM(N103:P103) -> 0 | R103: =IF(M103="","",RANK(Q103,Q$7:Q$230)) ->  | S103: =IF(R103="",0,Q$231+1-R103) -> 0 | T103: =S103+K103 -> 87 | U103: =IF(T103=0,"",RANK(T103,T$7:T$230)) -> 157 | V103: Les Ayères d'en Haut Passy | W103: 19 | X103: 16 | Y103: 18 | Z103: =SUM(W103:Y103) -> 53 | AA103: =IF(V103="","",RANK(Z103,Z$7:Z$230)) -> 1 | AB103: =IF(AA103="",0,Z$231+1-AA103) -> 169 | AC103: =AB103+T103 -> 256 | AD103: =RANK(AC103,AC$7:AC$230) -> 87 | AI103: =SUM(AF103:AH103) -> 0 | AJ103: =IF(AE103="","",RANK(AI103,AI$7:AI$230)) ->  | AK103: =IF(AJ103="",0,AI$231+1-AJ103) -> 0 | AL103: =AK103+AC103 -> 256 | AM103: =RANK(AL103,AL$7:AL$230) -> 125 | AN103: Repas hivernal | AO103: 14 | AP103: 13 | AQ103: 14 | AR103: =SUM(AO103:AQ103) -> 41 | AS103: =IF(AN103="","",RANK(AR103,AR$7:AR$230)) -> 40 | AT103: =IF(AS103="",0,AR$231+1-AS103) -> 124 | AU103: =AT103+AL103 -> 380 | AV103: =RANK(AU103,AU$7:AU$230) -> 97
B104: Michèle Ogier | C104: Objectif Images Lyon | D104: 1106200027 | E104: Incandescence | F104: 11 | G104: 9 | H104: 13 | I104: =SUM(F104:H104) -> 33 | J104: =IF(E104="","",RANK(I104,I$7:I$230)) -> 143 | K104: =IF(J104="",0,I$231+1-J104) -> 50 | L104: =RANK(K104,K$7:K$226) -> 143 | M104: Sourires | N104: 13 | O104: 15 | P104: 11 | Q104: =SUM(N104:P104) -> 39 | R104: =IF(M104="","",RANK(Q104,Q$7:Q$230)) -> 66 | S104: =IF(R104="",0,Q$231+1-R104) -> 103 | T104: =S104+K104 -> 153 | U104: =IF(T104=0,"",RANK(T104,T$7:T$230)) -> 122 | V104: Future | W104: 12 | X104: 14 | Y104: 7 | Z104: =SUM(W104:Y104) -> 33 | AA104: =IF(V104="","",RANK(Z104,Z$7:Z$230)) -> 133 | AB104: =IF(AA104="",0,Z$231+1-AA104) -> 37 | AC104: =AB104+T104 -> 190 | AD104: =RANK(AC104,AC$7:AC$230) -> 138 | AE104: Metro | AF104: 19 | AG104: 15 | AH104: 19 | AI104: =SUM(AF104:AH104) -> 53 | AJ104: =IF(AE104="","",RANK(AI104,AI$7:AI$230)) -> 1 | AK104: =IF(AJ104="",0,AI$231+1-AJ104) -> 156 | AL104: =AK104+AC104 -> 346 | AM104: =RANK(AL104,AL$7:AL$230) -> 83 | AN104: Petite Banquise | AO104: 9 | AP104: 12 | AQ104: 10 | AR104: =SUM(AO104:AQ104) -> 31 | AS104: =IF(AN104="","",RANK(AR104,AR$7:AR$230)) -> 131 | AT104: =IF(AS104="",0,AR$231+1-AS104) -> 33 | AU104: =AT104+AL104 -> 379 | AV104: =RANK(AU104,AU$7:AU$230) -> 98 | BA104: 0 | BB104: =IF(AW104="","",RANK(BA104,BA$8:BA$224)) ->  | BC104: =IF(BB104="",0,BA$225+1-BB104) -> 0 | BD104: 379 | BE104: =RANK(BD104,BD$8:BD$224) -> 86 | BJ104: 0 | BK104: =IF(BF104="","",RANK(BJ104,BJ$8:BJ$224)) ->  | BL104: =IF(BK104="",0,BJ$225+1-BK104) -> 0 | BM104: 379 | BN104: =RANK(BM104,BM$8:BM$224) -> 86 | BS104: 0 | BT104: =IF(BO104="","",RANK(BS104,BS$8:BS$224)) ->  | BU104: =IF(BT104="",0,BS$225+1-BT104) -> 0 | BV104: 379 | BW104: =RANK(BV104,BV$8:BV$224) -> 86
B105: Jean-Charles Galindo | C105: Club Photo St André de Corcy | D105: 1118930009 | E105: l'auto | F105: 8 | G105: 11 | H105: 8 | I105: =SUM(F105:H105) -> 27 | J105: =IF(E105="","",RANK(I105,I$7:I$230)) -> 184 | K105: =IF(J105="",0,I$231+1-J105) -> 9 | L105: =RANK(K105,K$7:K$226) -> 184 | M105: 3 légumes et 1 fruit | N105: 19 | O105: 20 | P105: 11 | Q105: =SUM(N105:P105) -> 50 | R105: =IF(M105="","",RANK(Q105,Q$7:Q$230)) -> 6 | S105: =IF(R105="",0,Q$231+1-R105) -> 163 | T105: =S105+K105 -> 172 | U105: =IF(T105=0,"",RANK(T105,T$7:T$230)) -> 104 | V105: St Jean de Thurigneux - Le Bourg en avril | W105: 11 | X105: 8 | Y105: 11 | Z105: =SUM(W105:Y105) -> 30 | AA105: =IF(V105="","",RANK(Z105,Z$7:Z$230)) -> 157 | AB105: =IF(AA105="",0,Z$231+1-AA105) -> 13 | AC105: =AB105+T105 -> 185 | AD105: =RANK(AC105,AC$7:AC$230) -> 141 | AE105: Eaux Vives | AF105: 13 | AG105: 12 | AH105: 14 | AI105: =SUM(AF105:AH105) -> 39 | AJ105: =IF(AE105="","",RANK(AI105,AI$7:AI$230)) -> 81 | AK105: =IF(AJ105="",0,AI$231+1-AJ105) -> 76 | AL105: =AK105+AC105 -> 261 | AM105: =RANK(AL105,AL$7:AL$230) -> 124 | AN105: découverte de la neige | AO105: 13 | AP105: 15 | AQ105: 12 | AR105: =SUM(AO105:AQ105) -> 40 | AS105: =IF(AN105="","",RANK(AR105,AR$7:AR$230)) -> 47 | AT105: =IF(AS105="",0,AR$231+1-AS105) -> 117 | AU105: =AT105+AL105 -> 378 | AV105: =RANK(AU105,AU$7:AU$230) -> 99 | BA105: 0 | BC105: 0 | BD105: 378 | BE105: 87 | BJ105: 0 | BL105: 0 | BM105: 378 | BN105: 87 | BS105: 0 | BU105: 0 | BV105: 378 | BW105: 87
B106: Zando Nicole | C106: ATSCAF Rhône Photo - Lyon | D106: 1117070025 | E106: SKY | F106: 9 | G106: 11 | H106: 12 | I106: =SUM(F106:H106) -> 32 | J106: =IF(E106="","",RANK(I106,I$7:I$230)) -> 156 | K106: =IF(J106="",0,I$231+1-J106) -> 37 | L106: =RANK(K106,K$7:K$226) -> 156 | M106: Couleurs d'automne | N106: 17 | O106: 12 | P106: 15 | Q106: =SUM(N106:P106) -> 44 | R106: =IF(M106="","",RANK(Q106,Q$7:Q$230)) -> 29 | S106: =IF(R106="",0,Q$231+1-R106) -> 140 | T106: =S106+K106 -> 177 | U106: =IF(T106=0,"",RANK(T106,T$7:T$230)) -> 102 | V106: Vieux LYON | W106: 13 | X106: 13 | Y106: 12 | Z106: =SUM(W106:Y106) -> 38 | AA106: =IF(V106="","",RANK(Z106,Z$7:Z$230)) -> 80 | AB106: =IF(AA106="",0,Z$231+1-AA106) -> 90 | AC106: =AB106+T106 -> 267 | AD106: =RANK(AC106,AC$7:AC$230) -> 80 | AE106: Quais de Saône - LYON | AF106: 12 | AG106: 14 | AH106: 12 | AI106: =SUM(AF106:AH106) -> 38 | AJ106: =IF(AE106="","",RANK(AI106,AI$7:AI$230)) -> 93 | AK106: =IF(AJ106="",0,AI$231+1-AJ106) -> 64 | AL106: =AK106+AC106 -> 331 | AM106: =RANK(AL106,AL$7:AL$230) -> 92 | AN106: Solitude Hivernale | AO106: 11 | AP106: 13 | AQ106: 8 | AR106: =SUM(AO106:AQ106) -> 32 | AS106: =IF(AN106="","",RANK(AR106,AR$7:AR$230)) -> 119 | AT106: =IF(AS106="",0,AR$231+1-AS106) -> 45 | AU106: =AT106+AL106 -> 376 | AV106: =RANK(AU106,AU$7:AU$230) -> 100
B107: Philippe Menanteau | C107: Photo Club de Biviers | D107: 1111310125 | E107: Stop the light ! | F107: 14 | G107: 10 | H107: 7 | I107: =SUM(F107:H107) -> 31 | J107: =IF(E107="","",RANK(I107,I$7:I$230)) -> 169 | K107: =IF(J107="",0,I$231+1-J107) -> 24 | L107: =RANK(K107,K$7:K$226) -> 169 | M107: Tomates vertes | N107: 13 | O107: 14 | P107: 12 | Q107: =SUM(N107:P107) -> 39 | R107: =IF(M107="","",RANK(Q107,Q$7:Q$230)) -> 66 | S107: =IF(R107="",0,Q$231+1-R107) -> 103 | T107: =S107+K107 -> 127 | U107: =IF(T107=0,"",RANK(T107,T$7:T$230)) -> 135 | V107: Le chien | W107: 12 | X107: 11 | Y107: 9 | Z107: =SUM(W107:Y107) -> 32 | AA107: =IF(V107="","",RANK(Z107,Z$7:Z$230)) -> 141 | AB107: =IF(AA107="",0,Z$231+1-AA107) -> 29 | AC107: =AB107+T107 -> 156 | AD107: =RANK(AC107,AC$7:AC$230) -> 162 | AE107: Dissymétrie | AF107: 16 | AG107: 14 | AH107: 17 | AI107: =SUM(AF107:AH107) -> 47 | AJ107: =IF(AE107="","",RANK(AI107,AI$7:AI$230)) -> 13 | AK107: =IF(AJ107="",0,AI$231+1-AJ107) -> 144 | AL107: =AK107+AC107 -> 300 | AM107: =RANK(AL107,AL$7:AL$230) -> 105 | AN107: Le Serpaton | AO107: 9 | AP107: 9 | AQ107: 17 | AR107: =SUM(AO107:AQ107) -> 35 | AS107: =IF(AN107="","",RANK(AR107,AR$7:AR$230)) -> 91 | AT107: =IF(AS107="",0,AR$231+1-AS107) -> 73 | AU107: =AT107+AL107 -> 373 | AV107: =RANK(AU107,AU$7:AU$230) -> 101 | BA107: 0 | BC107: 0 | BD107: 373 | BE107: 88 | BJ107: 0 | BL107: 0 | BM107: 373 | BN107: 88 | BS107: 0 | BU107: 0 | BV107: 373 | BW107: 88
B108: Frédérique Gerboud | C108: ATSCAF Rhône Photo - Lyon | D108: 1117070024 | E108: à l'ancre | F108: 13 | G108: 12 | H108: 7 | I108: =SUM(F108:H108) -> 32 | J108: =IF(E108="","",RANK(I108,I$7:I$230)) -> 156 | K108: =IF(J108="",0,I$231+1-J108) -> 37 | L108: =RANK(K108,K$7:K$226) -> 156 | M108: acide | N108: 13 | O108: 15 | P108: 13 | Q108: =SUM(N108:P108) -> 41 | R108: =IF(M108="","",RANK(Q108,Q$7:Q$230)) -> 49 | S108: =IF(R108="",0,Q$231+1-R108) -> 120 | T108: =S108+K108 -> 157 | U108: =IF(T108=0,"",RANK(T108,T$7:T$230)) -> 117 | V108: les tours | W108: 14 | X108: 15 | Y108: 15 | Z108: =SUM(W108:Y108) -> 44 | AA108: =IF(V108="","",RANK(Z108,Z$7:Z$230)) -> 22 | AB108: =IF(AA108="",0,Z$231+1-AA108) -> 148 | AC108: =AB108+T108 -> 305 | AD108: =RANK(AC108,AC$7:AC$230) -> 66 | AE108: feux rouges | AF108: 14 | AG108: 11 | AH108: 12 | AI108: =SUM(AF108:AH108) -> 37 | AJ108: =IF(AE108="","",RANK(AI108,AI$7:AI$230)) -> 106 | AK108: =IF(AJ108="",0,AI$231+1-AJ108) -> 51 | AL108: =AK108+AC108 -> 356 | AM108: =RANK(AL108,AL$7:AL$230) -> 75 | AN108: les terrasses | AO108: 8 | AP108: 10 | AQ108: 10 | AR108: =SUM(AO108:AQ108) -> 28 | AS108: =IF(AN108="","",RANK(AR108,AR$7:AR$230)) -> 147 | AT108: =IF(AS108="",0,AR$231+1-AS108) -> 17 | AU108: =AT108+AL108 -> 373 | AV108: =RANK(AU108,AU$7:AU$230) -> 101 | BA108: 0 | BC108: 0 | BD108: 373 | BE108: 88 | BJ108: 0 | BL108: 0 | BM108: 373 | BN108: 88 | BS108: 0 | BU108: 0 | BV108: 373 | BW108: 88
B109: Gilbert Lemoine | C109: Les Belles Images Saint-Marcel-Bel-Accueil | D109: 1117570108 | E109: Un soir ... | F109: 13 | G109: 13 | H109: 16 | I109: =SUM(F109:H109) -> 42 | J109: =IF(E109="","",RANK(I109,I$7:I$230)) -> 41 | K109: =IF(J109="",0,I$231+1-J109) -> 152 | L109: =RANK(K109,K$7:K$226) -> 41 | M109: Marché russe | N109: 13 | O109: 12 | P109: 11 | Q109: =SUM(N109:P109) -> 36 | R109: =IF(M109="","",RANK(Q109,Q$7:Q$230)) -> 97 | S109: =IF(R109="",0,Q$231+1-R109) -> 72 | T109: =S109+K109 -> 224 | U109: =IF(T109=0,"",RANK(T109,T$7:T$230)) -> 59 | V109: Balazuc 07 | W109: 11 | X109: 12 | Y109: 12 | Z109: =SUM(W109:Y109) -> 35 | AA109: =IF(V109="","",RANK(Z109,Z$7:Z$230)) -> 118 | AB109: =IF(AA109="",0,Z$231+1-AA109) -> 52 | AC109: =AB109+T109 -> 276 | AD109: =RANK(AC109,AC$7:AC$230) -> 78 | AE109: Torrent | AF109: 11 | AG109: 9 | AH109: 14 | AI109: =SUM(AF109:AH109) -> 34 | AJ109: =IF(AE109="","",RANK(AI109,AI$7:AI$230)) -> 134 | AK109: =IF(AJ109="",0,AI$231+1-AJ109) -> 23 | AL109: =AK109+AC109 -> 299 | AM109: =RANK(AL109,AL$7:AL$230) -> 108 | AN109: Val des prés | AO109: 12 | AP109: 11 | AQ109: 12 | AR109: =SUM(AO109:AQ109) -> 35 | AS109: =IF(AN109="","",RANK(AR109,AR$7:AR$230)) -> 91 | AT109: =IF(AS109="",0,AR$231+1-AS109) -> 73 | AU109: =AT109+AL109 -> 372 | AV109: =RANK(AU109,AU$7:AU$230) -> 103 | BA109: 0 | BC109: 0 | BD109: 372 | BE109: 90 | BJ109: 0 | BL109: 0 | BM109: 372 | BN109: 90 | BS109: 0 | BU109: 0 | BV109: 372 | BW109: 90
B110: Sylvain Nardi | C110: ATSCAF Rhône Photo - Lyon | D110: 1117070026 | E110: Raies du soir | F110: 11 | G110: 15 | H110: 13 | I110: =SUM(F110:H110) -> 39 | J110: =IF(E110="","",RANK(I110,I$7:I$230)) -> 84 | K110: =IF(J110="",0,I$231+1-J110) -> 109 | L110: =RANK(K110,K$7:K$226) -> 84 | M110: Fruits d'Automne | N110: 15 | O110: 13 | P110: 12 | Q110: =SUM(N110:P110) -> 40 | R110: =IF(M110="","",RANK(Q110,Q$7:Q$230)) -> 56 | S110: =IF(R110="",0,Q$231+1-R110) -> 113 | T110: =S110+K110 -> 222 | U110: =IF(T110=0,"",RANK(T110,T$7:T$230)) -> 61 | V110: Pérouges | W110: 11 | X110: 10 | Y110: 9 | Z110: =SUM(W110:Y110) -> 30 | AA110: =IF(V110="","",RANK(Z110,Z$7:Z$230)) -> 157 | AB110: =IF(AA110="",0,Z$231+1-AA110) -> 13 | AC110: =AB110+T110 -> 235 | AD110: =RANK(AC110,AC$7:AC$230) -> 102 | AE110: Et ça roule | AF110: 11 | AG110: 12 | AH110: 12 | AI110: =SUM(AF110:AH110) -> 35 | AJ110: =IF(AE110="","",RANK(AI110,AI$7:AI$230)) -> 125 | AK110: =IF(AJ110="",0,AI$231+1-AJ110) -> 32 | AL110: =AK110+AC110 -> 267 | AM110: =RANK(AL110,AL$7:AL$230) -> 118 | AN110: Le banc des amoureux | AO110: 13 | AP110: 11 | AQ110: 14 | AR110: =SUM(AO110:AQ110) -> 38 | AS110: =IF(AN110="","",RANK(AR110,AR$7:AR$230)) -> 61 | AT110: =IF(AS110="",0,AR$231+1-AS110) -> 103 | AU110: =AT110+AL110 -> 370 | AV110: =RANK(AU110,AU$7:AU$230) -> 104 | BA110: 0 | BC110: 0 | BD110: 370 | BE110: 91 | BJ110: 0 | BL110: 0 | BM110: 370 | BN110: 91 | BS110: 0 | BU110: 0 | BV110: 370 | BW110: 91
B111: Gérard Liégeois | C111: JPEG Photo Club St Martin Bellevue | D111: 1121840006 | E111: Filament | F111: 14 | G111: 10 | H111: 12 | I111: =SUM(F111:H111) -> 36 | J111: =IF(E111="","",RANK(I111,I$7:I$230)) -> 121 | K111: =IF(J111="",0,I$231+1-J111) -> 72 | L111: =RANK(K111,K$7:K$226) -> 121 | M111: Poivron rouge | N111: 14 | O111: 12 | P111: 11 | Q111: =SUM(N111:P111) -> 37 | R111: =IF(M111="","",RANK(Q111,Q$7:Q$230)) -> 83 | S111: =IF(R111="",0,Q$231+1-R111) -> 86 | T111: =S111+K111 -> 158 | U111: =IF(T111=0,"",RANK(T111,T$7:T$230)) -> 116 | V111: Bonneval sur Arc - Hte Maurienne | W111: 14 | X111: 8 | Y111: 13 | Z111: =SUM(W111:Y111) -> 35 | AA111: =IF(V111="","",RANK(Z111,Z$7:Z$230)) -> 118 | AB111: =IF(AA111="",0,Z$231+1-AA111) -> 52 | AC111: =AB111+T111 -> 210 | AD111: =RANK(AC111,AC$7:AC$230) -> 123 | AE111: L'Héphémère | AF111: 15 | AG111: 11 | AH111: 12 | AI111: =SUM(AF111:AH111) -> 38 | AJ111: =IF(AE111="","",RANK(AI111,AI$7:AI$230)) -> 93 | AK111: =IF(AJ111="",0,AI$231+1-AJ111) -> 64 | AL111: =AK111+AC111 -> 274 | AM111: =RANK(AL111,AL$7:AL$230) -> 117 | AN111: Froideur matinale | AO111: 14 | AP111: 14 | AQ111: 9 | AR111: =SUM(AO111:AQ111) -> 37 | AS111: =IF(AN111="","",RANK(AR111,AR$7:AR$230)) -> 69 | AT111: =IF(AS111="",0,AR$231+1-AS111) -> 95 | AU111: =AT111+AL111 -> 369 | AV111: =RANK(AU111,AU$7:AU$230) -> 105 | BA111: 0 | BC111: 0 | BD111: 369 | BE111: 92 | BJ111: 0 | BL111: 0 | BM111: 369 | BN111: 92 | BS111: 0 | BU111: 0 | BV111: 369 | BW111: 92
B112: Fleury Chevallier | C112: Objectif Images Lyon | D112: 1106200038 | E112: Le réverbère | F112: 11 | G112: 11 | H112: 13 | I112: =SUM(F112:H112) -> 35 | J112: =IF(E112="","",RANK(I112,I$7:I$230)) -> 124 | K112: =IF(J112="",0,I$231+1-J112) -> 69 | L112: =RANK(K112,K$7:K$226) -> 124 | M112: Mont Romamesco | N112: 16 | O112: 12 | P112: 14 | Q112: =SUM(N112:P112) -> 42 | R112: =IF(M112="","",RANK(Q112,Q$7:Q$230)) -> 39 | S112: =IF(R112="",0,Q$231+1-R112) -> 130 | T112: =S112+K112 -> 199 | U112: =IF(T112=0,"",RANK(T112,T$7:T$230)) -> 76 | V112: Commerce ambulant au village | W112: 11 | X112: 10 | Y112: 7 | Z112: =SUM(W112:Y112) -> 28 | AA112: =IF(V112="","",RANK(Z112,Z$7:Z$230)) -> 162 | AB112: =IF(AA112="",0,Z$231+1-AA112) -> 8 | AC112: =AB112+T112 -> 207 | AD112: =RANK(AC112,AC$7:AC$230) -> 125 | AE112: Traces dans la nuit | AF112: 14 | AG112: 13 | AH112: 13 | AI112: =SUM(AF112:AH112) -> 40 | AJ112: =IF(AE112="","",RANK(AI112,AI$7:AI$230)) -> 69 | AK112: =IF(AJ112="",0,AI$231+1-AJ112) -> 88 | AL112: =AK112+AC112 -> 295 | AM112: =RANK(AL112,AL$7:AL$230) -> 110 | AN112: Bouquet sous la neige | AO112: 12 | AP112: 11 | AQ112: 11 | AR112: =SUM(AO112:AQ112) -> 34 | AS112: =IF(AN112="","",RANK(AR112,AR$7:AR$230)) -> 102 | AT112: =IF(AS112="",0,AR$231+1-AS112) -> 62 | AU112: =AT112+AL112 -> 357 | AV112: =RANK(AU112,AU$7:AU$230) -> 106 | BA112: 0 | BC112: 0 | BD112: 357 | BE112: 93 | BJ112: 0 | BL112: 0 | BM112: 357 | BN112: 93 | BS112: 0 | BU112: 0 | BV112: 357 | BW112: 93
B113: Claude Souchal | C113: Objectif Images Lyon | D113: 1106200026 | E113: Ecrans de Lumiere | F113: 11 | G113: 12 | H113: 14 | I113: =SUM(F113:H113) -> 37 | J113: =IF(E113="","",RANK(I113,I$7:I$230)) -> 106 | K113: =IF(J113="",0,I$231+1-J113) -> 87 | L113: =RANK(K113,K$7:K$226) -> 106 | M113: Cinq légumes | N113: 12 | O113: 12 | P113: 10 | Q113: =SUM(N113:P113) -> 34 | R113: =IF(M113="","",RANK(Q113,Q$7:Q$230)) -> 115 | S113: =IF(R113="",0,Q$231+1-R113) -> 54 | T113: =S113+K113 -> 141 | U113: =IF(T113=0,"",RANK(T113,T$7:T$230)) -> 128 | V113: Saint-Antoine | W113: 10 | X113: 12 | Y113: 9 | Z113: =SUM(W113:Y113) -> 31 | AA113: =IF(V113="","",RANK(Z113,Z$7:Z$230)) -> 151 | AB113: =IF(AA113="",0,Z$231+1-AA113) -> 19 | AC113: =AB113+T113 -> 160 | AD113: =RANK(AC113,AC$7:AC$230) -> 159 | AE113: Grande-roue | AF113: 16 | AG113: 13 | AH113: 16 | AI113: =SUM(AF113:AH113) -> 45 | AJ113: =IF(AE113="","",RANK(AI113,AI$7:AI$230)) -> 25 | AK113: =IF(AJ113="",0,AI$231+1-AJ113) -> 132 | AL113: =AK113+AC113 -> 292 | AM113: =RANK(AL113,AL$7:AL$230) -> 113 | AN113: quai des brumes | AO113: 11 | AP113: 15 | AQ113: 8 | AR113: =SUM(AO113:AQ113) -> 34 | AS113: =IF(AN113="","",RANK(AR113,AR$7:AR$230)) -> 102 | AT113: =IF(AS113="",0,AR$231+1-AS113) -> 62 | AU113: =AT113+AL113 -> 354 | AV113: =RANK(AU113,AU$7:AU$230) -> 107 | BA113: 0 | BC113: 0 | BD113: 354 | BE113: 94 | BJ113: 0 | BL113: 0 | BM113: 354 | BN113: 94 | BS113: 0 | BU113: 0 | BV113: 354 | BW113: 94
B114: Pierre-Marie Gaury | C114: Club Photo de Cognin | D114: 1110550016 | E114: Ballons | F114: 14 | G114: 12 | H114: 13 | I114: =SUM(F114:H114) -> 39 | J114: =IF(E114="","",RANK(I114,I$7:I$230)) -> 84 | K114: =IF(J114="",0,I$231+1-J114) -> 109 | L114: =RANK(K114,K$7:K$226) -> 84 | M114: Marché rajasthani | N114: 15 | O114: 11 | P114: 11 | Q114: =SUM(N114:P114) -> 37 | R114: =IF(M114="","",RANK(Q114,Q$7:Q$230)) -> 83 | S114: =IF(R114="",0,Q$231+1-R114) -> 86 | T114: =S114+K114 -> 195 | U114: =IF(T114=0,"",RANK(T114,T$7:T$230)) -> 83 | V114: Bourdeau nocturne | W114: 14 | X114: 12 | Y114: 20 | Z114: =SUM(W114:Y114) -> 46 | AA114: =IF(V114="","",RANK(Z114,Z$7:Z$230)) -> 11 | AB114: =IF(AA114="",0,Z$231+1-AA114) -> 159 | AC114: =AB114+T114 -> 354 | AD114: =RANK(AC114,AC$7:AC$230) -> 33 | AI114: =SUM(AF114:AH114) -> 0 | AJ114: =IF(AE114="","",RANK(AI114,AI$7:AI$230)) ->  | AK114: =IF(AJ114="",0,AI$231+1-AJ114) -> 0 | AL114: =AK114+AC114 -> 354 | AM114: =RANK(AL114,AL$7:AL$230) -> 76 | AR114: =SUM(AO114:AQ114) -> 0 | AS114: =IF(AN114="","",RANK(AR114,AR$7:AR$230)) ->  | AT114: =IF(AS114="",0,AR$231+1-AS114) -> 0 | AU114: =AT114+AL114 -> 354 | AV114: =RANK(AU114,AU$7:AU$230) -> 107 | BA114: 0 | BC114: 0 | BD114: 354 | BE114: 94 | BJ114: 0 | BL114: 0 | BM114: 354 | BN114: 94 | BS114: 0 | BU114: 0 | BV114: 354 | BW114: 94
B115: Didier Bouvet | C115: Gavot Déclic - PC Larringes | D115: 1116980008 | E115: Le phare | F115: 17 | G115: 10 | H115: 17 | I115: =SUM(F115:H115) -> 44 | J115: =IF(E115="","",RANK(I115,I$7:I$230)) -> 28 | K115: =IF(J115="",0,I$231+1-J115) -> 165 | L115: =RANK(K115,K$7:K$226) -> 28 | M115: Châtaigne | N115: 10 | O115: 14 | P115: 12 | Q115: =SUM(N115:P115) -> 36 | R115: =IF(M115="","",RANK(Q115,Q$7:Q$230)) -> 97 | S115: =IF(R115="",0,Q$231+1-R115) -> 72 | T115: =S115+K115 -> 237 | U115: =IF(T115=0,"",RANK(T115,T$7:T$230)) -> 48 | Z115: =SUM(W115:Y115) -> 0 | AA115: =IF(V115="","",RANK(Z115,Z$7:Z$230)) ->  | AB115: =IF(AA115="",0,Z$231+1-AA115) -> 0 | AC115: =AB115+T115 -> 237 | AD115: =RANK(AC115,AC$7:AC$230) -> 98 | AE115: Eclair ramifié | AF115: 14 | AG115: 14 | AH115: 14 | AI115: =SUM(AF115:AH115) -> 42 | AJ115: =IF(AE115="","",RANK(AI115,AI$7:AI$230)) -> 44 | AK115: =IF(AJ115="",0,AI$231+1-AJ115) -> 113 | AL115: =AK115+AC115 -> 350 | AM115: =RANK(AL115,AL$7:AL$230) -> 81 | AN115: Neige, glace et vaguelettes | AO115: 7 | AP115: 9 | AQ115: 6 | AR115: =SUM(AO115:AQ115) -> 22 | AS115: =IF(AN115="","",RANK(AR115,AR$7:AR$230)) -> 162 | AT115: =IF(AS115="",0,AR$231+1-AS115) -> 2 | AU115: =AT115+AL115 -> 352 | AV115: =RANK(AU115,AU$7:AU$230) -> 109 | BA115: 0 | BC115: 0 | BD115: 352 | BE115: 96 | BJ115: 0 | BL115: 0 | BM115: 352 | BN115: 96 | BS115: 0 | BU115: 0 | BV115: 352 | BW115: 96
B116: Béatrice Boutet De Monvel | C116: Club Photo de Cognin | D116: 1110550111 | E116: Ombres et Lumière | F116: 11 | G116: 11 | H116: 11 | I116: =SUM(F116:H116) -> 33 | J116: =IF(E116="","",RANK(I116,I$7:I$230)) -> 143 | K116: =IF(J116="",0,I$231+1-J116) -> 50 | L116: =RANK(K116,K$7:K$226) -> 143 | M116: Cage d'amour | N116: 10 | O116: 16 | P116: 15 | Q116: =SUM(N116:P116) -> 41 | R116: =IF(M116="","",RANK(Q116,Q$7:Q$230)) -> 49 | S116: =IF(R116="",0,Q$231+1-R116) -> 120 | T116: =S116+K116 -> 170 | U116: =IF(T116=0,"",RANK(T116,T$7:T$230)) -> 107 | V116: Là-haut sur la montagne... | W116: 10 | X116: 12 | Y116: 14 | Z116: =SUM(W116:Y116) -> 36 | AA116: =IF(V116="","",RANK(Z116,Z$7:Z$230)) -> 110 | AB116: =IF(AA116="",0,Z$231+1-AA116) -> 60 | AC116: =AB116+T116 -> 230 | AD116: =RANK(AC116,AC$7:AC$230) -> 106 | AE116: cascades | AF116: 10 | AG116: 10 | AH116: 13 | AI116: =SUM(AF116:AH116) -> 33 | AJ116: =IF(AE116="","",RANK(AI116,AI$7:AI$230)) -> 143 | AK116: =IF(AJ116="",0,AI$231+1-AJ116) -> 14 | AL116: =AK116+AC116 -> 244 | AM116: =RANK(AL116,AL$7:AL$230) -> 130 | AN116: féérie hivernale | AO116: 15 | AP116: 12 | AQ116: 11 | AR116: =SUM(AO116:AQ116) -> 38 | AS116: =IF(AN116="","",RANK(AR116,AR$7:AR$230)) -> 61 | AT116: =IF(AS116="",0,AR$231+1-AS116) -> 103 | AU116: =AT116+AL116 -> 347 | AV116: =RANK(AU116,AU$7:AU$230) -> 110 | BA116: 0 | BC116: 0 | BD116: 347 | BE116: 97 | BJ116: 0 | BL116: 0 | BM116: 347 | BN116: 97 | BS116: 0 | BU116: 0 | BV116: 347 | BW116: 97
B117: Georges Gelbard | C117: Club Audio-visuel Villeurbanne | D117: 1111160054 | E117: Dans un Musée | F117: 13 | G117: 12 | H117: 11 | I117: =SUM(F117:H117) -> 36 | J117: =IF(E117="","",RANK(I117,I$7:I$230)) -> 121 | K117: =IF(J117="",0,I$231+1-J117) -> 72 | L117: =RANK(K117,K$7:K$226) -> 121 | M117: Archimboldo | N117: 16 | O117: 13 | P117: 13 | Q117: =SUM(N117:P117) -> 42 | R117: =IF(M117="","",RANK(Q117,Q$7:Q$230)) -> 39 | S117: =IF(R117="",0,Q$231+1-R117) -> 130 | T117: =S117+K117 -> 202 | U117: =IF(T117=0,"",RANK(T117,T$7:T$230)) -> 72 | V117: St Julien Molin-Molette | W117: 10 | X117: 11 | Y117: 8 | Z117: =SUM(W117:Y117) -> 29 | AA117: =IF(V117="","",RANK(Z117,Z$7:Z$230)) -> 160 | AB117: =IF(AA117="",0,Z$231+1-AA117) -> 10 | AC117: =AB117+T117 -> 212 | AD117: =RANK(AC117,AC$7:AC$230) -> 121 | AE117: Métro - Boulot | AF117: 17 | AG117: 12 | AH117: 16 | AI117: =SUM(AF117:AH117) -> 45 | AJ117: =IF(AE117="","",RANK(AI117,AI$7:AI$230)) -> 25 | AK117: =IF(AJ117="",0,AI$231+1-AJ117) -> 132 | AL117: =AK117+AC117 -> 344 | AM117: =RANK(AL117,AL$7:AL$230) -> 84 | AR117: =SUM(AO117:AQ117) -> 0 | AS117: =IF(AN117="","",RANK(AR117,AR$7:AR$230)) ->  | AT117: =IF(AS117="",0,AR$231+1-AS117) -> 0 | AU117: =AT117+AL117 -> 344 | AV117: =RANK(AU117,AU$7:AU$230) -> 111 | BA117: 0 | BC117: 0 | BD117: 344 | BE117: 98 | BJ117: 0 | BL117: 0 | BM117: 344 | BN117: 98 | BS117: 0 | BU117: 0 | BV117: 344 | BW117: 98
B118: Condorcet Frappier | C118: Objectif Images Lyon | D118: 1106200045 | E118: Washington | F118: 13 | G118: 13 | H118: 13 | I118: =SUM(F118:H118) -> 39 | J118: =IF(E118="","",RANK(I118,I$7:I$230)) -> 84 | K118: =IF(J118="",0,I$231+1-J118) -> 109 | L118: =RANK(K118,K$7:K$226) -> 84 | Q118: =SUM(N118:P118) -> 0 | R118: =IF(M118="","",RANK(Q118,Q$7:Q$230)) ->  | S118: =IF(R118="",0,Q$231+1-R118) -> 0 | T118: =S118+K118 -> 109 | U118: =IF(T118=0,"",RANK(T118,T$7:T$230)) -> 151 | V118: Lyon | W118: 12 | X118: 16 | Y118: 17 | Z118: =SUM(W118:Y118) -> 45 | AA118: =IF(V118="","",RANK(Z118,Z$7:Z$230)) -> 17 | AB118: =IF(AA118="",0,Z$231+1-AA118) -> 153 | AC118: =AB118+T118 -> 262 | AD118: =RANK(AC118,AC$7:AC$230) -> 84 | AI118: =SUM(AF118:AH118) -> 0 | AJ118: =IF(AE118="","",RANK(AI118,AI$7:AI$230)) ->  | AK118: =IF(AJ118="",0,AI$231+1-AJ118) -> 0 | AL118: =AK118+AC118 -> 262 | AM118: =RANK(AL118,AL$7:AL$230) -> 123 | AN118: UP & DOWN | AO118: 11 | AP118: 13 | AQ118: 11 | AR118: =SUM(AO118:AQ118) -> 35 | AS118: =IF(AN118="","",RANK(AR118,AR$7:AR$230)) -> 91 | AT118: =IF(AS118="",0,AR$231+1-AS118) -> 73 | AU118: =AT118+AL118 -> 335 | AV118: =RANK(AU118,AU$7:AU$230) -> 112 | BA118: 0 | BC118: 0 | BD118: 335 | BE118: 99 | BJ118: 0 | BL118: 0 | BM118: 335 | BN118: 99 | BS118: 0 | BU118: 0 | BV118: 335 | BW118: 99
B119: Michel Dussolliet-Berthod | C119: Numerica Photo Club Faverges | D119: 1121100012 | E119: le livre et la bougie | F119: 14 | G119: 13 | H119: 14 | I119: =SUM(F119:H119) -> 41 | J119: =IF(E119="","",RANK(I119,I$7:I$230)) -> 55 | K119: =IF(J119="",0,I$231+1-J119) -> 138 | L119: =RANK(K119,K$7:K$226) -> 55 | M119: Potiron SA | N119: 10 | O119: 11 | P119: 12 | Q119: =SUM(N119:P119) -> 33 | R119: =IF(M119="","",RANK(Q119,Q$7:Q$230)) -> 122 | S119: =IF(R119="",0,Q$231+1-R119) -> 47 | T119: =S119+K119 -> 185 | U119: =IF(T119=0,"",RANK(T119,T$7:T$230)) -> 95 | V119: Bonneval-sur-Arc | W119: 11 | X119: 12 | Y119: 12 | Z119: =SUM(W119:Y119) -> 35 | AA119: =IF(V119="","",RANK(Z119,Z$7:Z$230)) -> 118 | AB119: =IF(AA119="",0,Z$231+1-AA119) -> 52 | AC119: =AB119+T119 -> 237 | AD119: =RANK(AC119,AC$7:AC$230) -> 98 | AI119: =SUM(AF119:AH119) -> 0 | AJ119: =IF(AE119="","",RANK(AI119,AI$7:AI$230)) ->  | AK119: =IF(AJ119="",0,AI$231+1-AJ119) -> 0 | AL119: =AK119+AC119 -> 237 | AM119: =RANK(AL119,AL$7:AL$230) -> 137 | AN119: Sumac enneigé | AO119: 12 | AP119: 12 | AQ119: 13 | AR119: =SUM(AO119:AQ119) -> 37 | AS119: =IF(AN119="","",RANK(AR119,AR$7:AR$230)) -> 69 | AT119: =IF(AS119="",0,AR$231+1-AS119) -> 95 | AU119: =AT119+AL119 -> 332 | AV119: =RANK(AU119,AU$7:AU$230) -> 113 | BA119: 0 | BC119: 0 | BD119: 332 | BE119: 100 | BJ119: 0 | BL119: 0 | BM119: 332 | BN119: 100 | BS119: 0 | BU119: 0 | BV119: 332 | BW119: 100
B120: Corinne Gallien | C120: Gavot Déclic - PC Larringes | D120: 1116980032 | E120: Luminescence médiévale | F120: 8 | G120: 10 | H120: 9 | I120: =SUM(F120:H120) -> 27 | J120: =IF(E120="","",RANK(I120,I$7:I$230)) -> 184 | K120: =IF(J120="",0,I$231+1-J120) -> 9 | L120: =RANK(K120,K$7:K$226) -> 184 | M120: Choux glaçé | N120: 18 | O120: 17 | P120: 13 | Q120: =SUM(N120:P120) -> 48 | R120: =IF(M120="","",RANK(Q120,Q$7:Q$230)) -> 8 | S120: =IF(R120="",0,Q$231+1-R120) -> 161 | T120: =S120+K120 -> 170 | U120: =IF(T120=0,"",RANK(T120,T$7:T$230)) -> 107 | V120: Ruines | W120: 10 | X120: 15 | Y120: 9 | Z120: =SUM(W120:Y120) -> 34 | AA120: =IF(V120="","",RANK(Z120,Z$7:Z$230)) -> 127 | AB120: =IF(AA120="",0,Z$231+1-AA120) -> 43 | AC120: =AB120+T120 -> 213 | AD120: =RANK(AC120,AC$7:AC$230) -> 120 | AE120: Droit dans le mur | AF120: 15 | AG120: 9 | AH120: 10 | AI120: =SUM(AF120:AH120) -> 34 | AJ120: =IF(AE120="","",RANK(AI120,AI$7:AI$230)) -> 134 | AK120: =IF(AJ120="",0,AI$231+1-AJ120) -> 23 | AL120: =AK120+AC120 -> 236 | AM120: =RANK(AL120,AL$7:AL$230) -> 139 | AN120: Hâvre de paix | AO120: 12 | AP120: 10 | AQ120: 15 | AR120: =SUM(AO120:AQ120) -> 37 | AS120: =IF(AN120="","",RANK(AR120,AR$7:AR$230)) -> 69 | AT120: =IF(AS120="",0,AR$231+1-AS120) -> 95 | AU120: =AT120+AL120 -> 331 | AV120: =RANK(AU120,AU$7:AU$230) -> 114 | BA120: 0 | BC120: 0 | BD120: 331 | BE120: 101 | BJ120: 0 | BL120: 0 | BM120: 331 | BN120: 101 | BS120: 0 | BU120: 0 | BV120: 331 | BW120: 101
B121: Vincent Thomas | C121: Club Photo Morestel | D121: 1114030179 | E121: Pyrotechnie | F121: 18 | G121: 12 | H121: 13 | I121: =SUM(F121:H121) -> 43 | J121: =IF(E121="","",RANK(I121,I$7:I$230)) -> 34 | K121: =IF(J121="",0,I$231+1-J121) -> 159 | L121: =RANK(K121,K$7:K$226) -> 34 | M121: Trognon | N121: 7 | O121: 12 | P121: 11 | Q121: =SUM(N121:P121) -> 30 | R121: =IF(M121="","",RANK(Q121,Q$7:Q$230)) -> 148 | S121: =IF(R121="",0,Q$231+1-R121) -> 21 | T121: =S121+K121 -> 180 | U121: =IF(T121=0,"",RANK(T121,T$7:T$230)) -> 99 | V121: Maquette en Chartreuse | W121: 8 | X121: 7 | Y121: 6 | Z121: =SUM(W121:Y121) -> 21 | AA121: =IF(V121="","",RANK(Z121,Z$7:Z$230)) -> 170 | AB121: =IF(AA121="",0,Z$231+1-AA121) -> 0 | AC121: =AB121+T121 -> 180 | AD121: =RANK(AC121,AC$7:AC$230) -> 146 | AE121: Cascade de lumière | AF121: 12 | AG121: 11 | AH121: 15 | AI121: =SUM(AF121:AH121) -> 38 | AJ121: =IF(AE121="","",RANK(AI121,AI$7:AI$230)) -> 93 | AK121: =IF(AJ121="",0,AI$231+1-AJ121) -> 64 | AL121: =AK121+AC121 -> 244 | AM121: =RANK(AL121,AL$7:AL$230) -> 130 | AN121: Matin hivernal dans la Bièvre | AO121: 9 | AP121: 13 | AQ121: 14 | AR121: =SUM(AO121:AQ121) -> 36 | AS121: =IF(AN121="","",RANK(AR121,AR$7:AR$230)) -> 80 | AT121: =IF(AS121="",0,AR$231+1-AS121) -> 84 | AU121: =AT121+AL121 -> 328 | AV121: =RANK(AU121,AU$7:AU$230) -> 115
B122: Jean-Marie Recht | C122: Gavot Déclic - PC Larringes | D122: 1116980033 | E122: ma vallée | F122: 11 | G122: 12 | H122: 9 | I122: =SUM(F122:H122) -> 32 | J122: =IF(E122="","",RANK(I122,I$7:I$230)) -> 156 | K122: =IF(J122="",0,I$231+1-J122) -> 37 | L122: =RANK(K122,K$7:K$226) -> 156 | Q122: =SUM(N122:P122) -> 0 | R122: =IF(M122="","",RANK(Q122,Q$7:Q$230)) ->  | S122: =IF(R122="",0,Q$231+1-R122) -> 0 | T122: =S122+K122 -> 37 | U122: =IF(T122=0,"",RANK(T122,T$7:T$230)) -> 188 | V122: Tréchauffé | W122: 15 | X122: 12 | Y122: 11 | Z122: =SUM(W122:Y122) -> 38 | AA122: =IF(V122="","",RANK(Z122,Z$7:Z$230)) -> 80 | AB122: =IF(AA122="",0,Z$231+1-AA122) -> 90 | AC122: =AB122+T122 -> 127 | AD122: =RANK(AC122,AC$7:AC$230) -> 170 | AE122: Sous l'orage | AF122: 13 | AG122: 13 | AH122: 15 | AI122: =SUM(AF122:AH122) -> 41 | AJ122: =IF(AE122="","",RANK(AI122,AI$7:AI$230)) -> 52 | AK122: =IF(AJ122="",0,AI$231+1-AJ122) -> 105 | AL122: =AK122+AC122 -> 232 | AM122: =RANK(AL122,AL$7:AL$230) -> 140 | AN122: ambiance givrée | AO122: 11 | AP122: 12 | AQ122: 14 | AR122: =SUM(AO122:AQ122) -> 37 | AS122: =IF(AN122="","",RANK(AR122,AR$7:AR$230)) -> 69 | AT122: =IF(AS122="",0,AR$231+1-AS122) -> 95 | AU122: =AT122+AL122 -> 327 | AV122: =RANK(AU122,AU$7:AU$230) -> 116 | BA122: 0 | BB122: =IF(AW122="","",RANK(BA122,BA$8:BA$224)) ->  | BC122: =IF(BB122="",0,BA$225+1-BB122) -> 0 | BD122: 327 | BE122: =RANK(BD122,BD$8:BD$224) -> 102 | BJ122: 0 | BK122: =IF(BF122="","",RANK(BJ122,BJ$8:BJ$224)) ->  | BL122: =IF(BK122="",0,BJ$225+1-BK122) -> 0 | BM122: 327 | BN122: =RANK(BM122,BM$8:BM$224) -> 102 | BS122: 0 | BT122: =IF(BO122="","",RANK(BS122,BS$8:BS$224)) ->  | BU122: =IF(BT122="",0,BS$225+1-BT122) -> 0 | BV122: 327 | BW122: =RANK(BV122,BV$8:BV$224) -> 102
B123: Isabelle Herbepin | C123: Photo Club de Bourgoin-Jallieu | D123: 1108830144 | E123: il est 5h, bj s'eveille | F123: 14 | G123: 14 | H123: 16 | I123: =SUM(F123:H123) -> 44 | J123: =IF(E123="","",RANK(I123,I$7:I$230)) -> 28 | K123: =IF(J123="",0,I$231+1-J123) -> 165 | L123: =RANK(K123,K$7:K$226) -> 28 | M123: Oh purée !!!! | N123: 6 | O123: 16 | P123: 9 | Q123: =SUM(N123:P123) -> 31 | R123: =IF(M123="","",RANK(Q123,Q$7:Q$230)) -> 139 | S123: =IF(R123="",0,Q$231+1-R123) -> 30 | T123: =S123+K123 -> 195 | U123: =IF(T123=0,"",RANK(T123,T$7:T$230)) -> 83 | V123: si près des villes... | W123: 7 | X123: 16 | Y123: 11 | Z123: =SUM(W123:Y123) -> 34 | AA123: =IF(V123="","",RANK(Z123,Z$7:Z$230)) -> 127 | AB123: =IF(AA123="",0,Z$231+1-AA123) -> 43 | AC123: =AB123+T123 -> 238 | AD123: =RANK(AC123,AC$7:AC$230) -> 95 | AE123: 25 degrés | AF123: 14 | AG123: 13 | AH123: 13 | AI123: =SUM(AF123:AH123) -> 40 | AJ123: =IF(AE123="","",RANK(AI123,AI$7:AI$230)) -> 69 | AK123: =IF(AJ123="",0,AI$231+1-AJ123) -> 88 | AL123: =AK123+AC123 -> 326 | AM123: =RANK(AL123,AL$7:AL$230) -> 95 | AR123: =SUM(AO123:AQ123) -> 0 | AS123: =IF(AN123="","",RANK(AR123,AR$7:AR$230)) ->  | AT123: =IF(AS123="",0,AR$231+1-AS123) -> 0 | AU123: =AT123+AL123 -> 326 | AV123: =RANK(AU123,AU$7:AU$230) -> 117 | BA123: 0 | BC123: 0 | BD123: 326 | BE123: 103 | BJ123: 0 | BL123: 0 | BM123: 326 | BN123: 103 | BS123: 0 | BU123: 0 | BV123: 326 | BW123: 103
B124: Fernand Morand | C124: Gavot Déclic - PC Larringes | D124: 1116980037 | E124: éclatante lumière | F124: 11 | G124: 12 | H124: 11 | I124: =SUM(F124:H124) -> 34 | J124: =IF(E124="","",RANK(I124,I$7:I$230)) -> 136 | K124: =IF(J124="",0,I$231+1-J124) -> 57 | L124: =RANK(K124,K$7:K$226) -> 136 | M124: Solitaire | N124: 12 | O124: 8 | P124: 10 | Q124: =SUM(N124:P124) -> 30 | R124: =IF(M124="","",RANK(Q124,Q$7:Q$230)) -> 148 | S124: =IF(R124="",0,Q$231+1-R124) -> 21 | T124: =S124+K124 -> 78 | U124: =IF(T124=0,"",RANK(T124,T$7:T$230)) -> 163 | V124: Novel dans la brume | W124: 11 | X124: 14 | Y124: 15 | Z124: =SUM(W124:Y124) -> 40 | AA124: =IF(V124="","",RANK(Z124,Z$7:Z$230)) -> 58 | AB124: =IF(AA124="",0,Z$231+1-AA124) -> 112 | AC124: =AB124+T124 -> 190 | AD124: =RANK(AC124,AC$7:AC$230) -> 138 | AE124: L'eau vive | AF124: 7 | AG124: 7 | AH124: 9 | AI124: =SUM(AF124:AH124) -> 23 | AJ124: =IF(AE124="","",RANK(AI124,AI$7:AI$230)) -> 157 | AK124: =IF(AJ124="",0,AI$231+1-AJ124) -> 0 | AL124: =AK124+AC124 -> 190 | AM124: =RANK(AL124,AL$7:AL$230) -> 158 | AN124: Coton...coton | AO124: 14 | AP124: 14 | AQ124: 14 | AR124: =SUM(AO124:AQ124) -> 42 | AS124: =IF(AN124="","",RANK(AR124,AR$7:AR$230)) -> 30 | AT124: =IF(AS124="",0,AR$231+1-AS124) -> 134 | AU124: =AT124+AL124 -> 324 | AV124: =RANK(AU124,AU$7:AU$230) -> 118 | BA124: 0 | BC124: 0 | BD124: 324 | BE124: 104 | BJ124: 0 | BL124: 0 | BM124: 324 | BN124: 104 | BS124: 0 | BU124: 0 | BV124: 324 | BW124: 104
B125: Alain Lemay | C125: Club Photo St André de Corcy | D125: 1118930051 | E125: Lumières étoilées au Moyen Orient | F125: 16 | G125: 13 | H125: 15 | I125: =SUM(F125:H125) -> 44 | J125: =IF(E125="","",RANK(I125,I$7:I$230)) -> 28 | K125: =IF(J125="",0,I$231+1-J125) -> 165 | L125: =RANK(K125,K$7:K$226) -> 28 | Q125: =SUM(N125:P125) -> 0 | R125: =IF(M125="","",RANK(Q125,Q$7:Q$230)) ->  | S125: =IF(R125="",0,Q$231+1-R125) -> 0 | T125: =S125+K125 -> 165 | U125: =IF(T125=0,"",RANK(T125,T$7:T$230)) -> 112 | V125: Louis XIV et la Basilique | W125: 12 | X125: 16 | Y125: 18 | Z125: =SUM(W125:Y125) -> 46 | AA125: =IF(V125="","",RANK(Z125,Z$7:Z$230)) -> 11 | AB125: =IF(AA125="",0,Z$231+1-AA125) -> 159 | AC125: =AB125+T125 -> 324 | AD125: =RANK(AC125,AC$7:AC$230) -> 48 | AI125: =SUM(AF125:AH125) -> 0 | AJ125: =IF(AE125="","",RANK(AI125,AI$7:AI$230)) ->  | AK125: =IF(AJ125="",0,AI$231+1-AJ125) -> 0 | AL125: =AK125+AC125 -> 324 | AM125: =RANK(AL125,AL$7:AL$230) -> 96 | AR125: =SUM(AO125:AQ125) -> 0 | AS125: =IF(AN125="","",RANK(AR125,AR$7:AR$230)) ->  | AT125: =IF(AS125="",0,AR$231+1-AS125) -> 0 | AU125: =AT125+AL125 -> 324 | AV125: =RANK(AU125,AU$7:AU$230) -> 118 | BA125: 0 | BC125: 0 | BD125: 324 | BE125: 104 | BJ125: 0 | BL125: 0 | BM125: 324 | BN125: 104 | BS125: 0 | BU125: 0 | BV125: 324 | BW125: 104
B126: Isabelle Bernard | C126: Les Belles Images Saint-Marcel-Bel-Accueil | D126: 1117570117 | E126: Ombres et lumières | F126: 12 | G126: 14 | H126: 16 | I126: =SUM(F126:H126) -> 42 | J126: =IF(E126="","",RANK(I126,I$7:I$230)) -> 41 | K126: =IF(J126="",0,I$231+1-J126) -> 152 | L126: =RANK(K126,K$7:K$226) -> 41 | M126: Sicile : Fruits et légumes et sommeil... | N126: 11 | O126: 11 | P126: 11 | Q126: =SUM(N126:P126) -> 33 | R126: =IF(M126="","",RANK(Q126,Q$7:Q$230)) -> 122 | S126: =IF(R126="",0,Q$231+1-R126) -> 47 | T126: =S126+K126 -> 199 | U126: =IF(T126=0,"",RANK(T126,T$7:T$230)) -> 76 | V126: Crémieu | W126: 12 | X126: 9 | Y126: 12 | Z126: =SUM(W126:Y126) -> 33 | AA126: =IF(V126="","",RANK(Z126,Z$7:Z$230)) -> 133 | AB126: =IF(AA126="",0,Z$231+1-AA126) -> 37 | AC126: =AB126+T126 -> 236 | AD126: =RANK(AC126,AC$7:AC$230) -> 101 | AE126: Heures bleues à Lyon | AF126: 13 | AG126: 13 | AH126: 12 | AI126: =SUM(AF126:AH126) -> 38 | AJ126: =IF(AE126="","",RANK(AI126,AI$7:AI$230)) -> 93 | AK126: =IF(AJ126="",0,AI$231+1-AJ126) -> 64 | AL126: =AK126+AC126 -> 300 | AM126: =RANK(AL126,AL$7:AL$230) -> 105 | AN126: Nuages et neige | AO126: 9 | AP126: 9 | AQ126: 11 | AR126: =SUM(AO126:AQ126) -> 29 | AS126: =IF(AN126="","",RANK(AR126,AR$7:AR$230)) -> 141 | AT126: =IF(AS126="",0,AR$231+1-AS126) -> 23 | AU126: =AT126+AL126 -> 323 | AV126: =RANK(AU126,AU$7:AU$230) -> 120 | BA126: 0 | BC126: 0 | BD126: 323 | BE126: 106 | BJ126: 0 | BL126: 0 | BM126: 323 | BN126: 106 | BS126: 0 | BU126: 0 | BV126: 323 | BW126: 106
B127: Valérie Tchobanian | C127: Photo Club de Sillingy | D127: 1121950009 | E127: Aube sur le phare de Faraman, Camargue | F127: 16 | G127: 13 | H127: 18 | I127: =SUM(F127:H127) -> 47 | J127: =IF(E127="","",RANK(I127,I$7:I$230)) -> 10 | K127: =IF(J127="",0,I$231+1-J127) -> 183 | L127: =RANK(K127,K$7:K$226) -> 10 | M127: Pomme Grenade | N127: 7 | O127: 19 | P127: 13 | Q127: =SUM(N127:P127) -> 39 | R127: =IF(M127="","",RANK(Q127,Q$7:Q$230)) -> 66 | S127: =IF(R127="",0,Q$231+1-R127) -> 103 | T127: =S127+K127 -> 286 | U127: =IF(T127=0,"",RANK(T127,T$7:T$230)) -> 16 | Z127: =SUM(W127:Y127) -> 0 | AA127: =IF(V127="","",RANK(Z127,Z$7:Z$230)) ->  | AB127: =IF(AA127="",0,Z$231+1-AA127) -> 0 | AC127: =AB127+T127 -> 286 | AD127: =RANK(AC127,AC$7:AC$230) -> 74 | AE127: Un Automne sur le Lac D'Annecy | AF127: 13 | AG127: 10 | AH127: 12 | AI127: =SUM(AF127:AH127) -> 35 | AJ127: =IF(AE127="","",RANK(AI127,AI$7:AI$230)) -> 125 | AK127: =IF(AJ127="",0,AI$231+1-AJ127) -> 32 | AL127: =AK127+AC127 -> 318 | AM127: =RANK(AL127,AL$7:AL$230) -> 98 | AS127: =IF(AN127="","",RANK(AR127,AR$7:AR$230)) ->  | AT127: =IF(AS127="",0,AR$231+1-AS127) -> 0 | AU127: =AT127+AL127 -> 318 | AV127: =RANK(AU127,AU$7:AU$230) -> 121 | BA127: 0 | BC127: 0 | BD127: 318 | BE127: 107 | BJ127: 0 | BL127: 0 | BM127: 318 | BN127: 107 | BS127: 0 | BU127: 0 | BV127: 318 | BW127: 107
B128: Sylvie Crepel | C128: Numerica Photo Club Faverges | D128: 1121100023 | E128: lumiere de flamme | F128: 12 | G128: 9 | H128: 13 | I128: =SUM(F128:H128) -> 34 | J128: =IF(E128="","",RANK(I128,I$7:I$230)) -> 136 | K128: =IF(J128="",0,I$231+1-J128) -> 57 | L128: =RANK(K128,K$7:K$226) -> 136 | M128: retour du marché | N128: 11 | O128: 9 | P128: 9 | Q128: =SUM(N128:P128) -> 29 | R128: =IF(M128="","",RANK(Q128,Q$7:Q$230)) -> 151 | S128: =IF(R128="",0,Q$231+1-R128) -> 18 | T128: =S128+K128 -> 75 | U128: =IF(T128=0,"",RANK(T128,T$7:T$230)) -> 164 | V128: le monal | W128: 12 | X128: 12 | Y128: 14 | Z128: =SUM(W128:Y128) -> 38 | AA128: =IF(V128="","",RANK(Z128,Z$7:Z$230)) -> 80 | AB128: =IF(AA128="",0,Z$231+1-AA128) -> 90 | AC128: =AB128+T128 -> 165 | AD128: =RANK(AC128,AC$7:AC$230) -> 155 | AE128: le ponton | AF128: 18 | AG128: 15 | AH128: 19 | AI128: =SUM(AF128:AH128) -> 52 | AJ128: =IF(AE128="","",RANK(AI128,AI$7:AI$230)) -> 5 | AK128: =IF(AJ128="",0,AI$231+1-AJ128) -> 152 | AL128: =AK128+AC128 -> 317 | AM128: =RANK(AL128,AL$7:AL$230) -> 99 | AR128: =SUM(AO128:AQ128) -> 0 | AS128: =IF(AN128="","",RANK(AR128,AR$7:AR$230)) ->  | AT128: =IF(AS128="",0,AR$231+1-AS128) -> 0 | AU128: =AT128+AL128 -> 317 | AV128: =RANK(AU128,AU$7:AU$230) -> 122 | BA128: 0 | BC128: 0 | BD128: 317 | BE128: 108 | BJ128: 0 | BL128: 0 | BM128: 317 | BN128: 108 | BS128: 0 | BU128: 0 | BV128: 317 | BW128: 108
B129: Rome Geneviève | C129: Objectif Images Lyon | D129: 1106200039 | E129: Voile de lumiére | F129: 13 | G129: 12 | H129: 14 | I129: =SUM(F129:H129) -> 39 | J129: =IF(E129="","",RANK(I129,I$7:I$230)) -> 84 | K129: =IF(J129="",0,I$231+1-J129) -> 109 | L129: =RANK(K129,K$7:K$226) -> 84 | M129: couleurs d'automne | N129: 15 | O129: 13 | P129: 15 | Q129: =SUM(N129:P129) -> 43 | R129: =IF(M129="","",RANK(Q129,Q$7:Q$230)) -> 34 | S129: =IF(R129="",0,Q$231+1-R129) -> 135 | T129: =S129+K129 -> 244 | U129: =IF(T129=0,"",RANK(T129,T$7:T$230)) -> 41 | V129: nos chemins de traverse | W129: 13 | X129: 12 | Y129: 8 | Z129: =SUM(W129:Y129) -> 33 | AA129: =IF(V129="","",RANK(Z129,Z$7:Z$230)) -> 133 | AB129: =IF(AA129="",0,Z$231+1-AA129) -> 37 | AC129: =AB129+T129 -> 281 | AD129: =RANK(AC129,AC$7:AC$230) -> 76 | AE129: Le pont Raymond Barre | AF129: 13 | AG129: 10 | AH129: 12 | AI129: =SUM(AF129:AH129) -> 35 | AJ129: =IF(AE129="","",RANK(AI129,AI$7:AI$230)) -> 125 | AK129: =IF(AJ129="",0,AI$231+1-AJ129) -> 32 | AL129: =AK129+AC129 -> 313 | AM129: =RANK(AL129,AL$7:AL$230) -> 100 | AN129: Promenade hivernale | AO129: 8 | AP129: 7 | AQ129: 7 | AR129: =SUM(AO129:AQ129) -> 22 | AS129: =IF(AN129="","",RANK(AR129,AR$7:AR$230)) -> 162 | AT129: =IF(AS129="",0,AR$231+1-AS129) -> 2 | AU129: =AT129+AL129 -> 315 | AV129: =RANK(AU129,AU$7:AU$230) -> 123 | BA129: 0 | BC129: 0 | BD129: 315 | BE129: 109 | BJ129: 0 | BL129: 0 | BM129: 315 | BN129: 109 | BS129: 0 | BU129: 0 | BV129: 315 | BW129: 109
B130: René Chassaing | C130: Club Photo St André de Corcy | D130: 1118930002 | E130: Danseurs | F130: 11 | G130: 12 | H130: 14 | I130: =SUM(F130:H130) -> 37 | J130: =IF(E130="","",RANK(I130,I$7:I$230)) -> 106 | K130: =IF(J130="",0,I$231+1-J130) -> 87 | L130: =RANK(K130,K$7:K$226) -> 106 | M130: Olives Bio. | N130: 6 | O130: 7 | P130: 10 | Q130: =SUM(N130:P130) -> 23 | R130: =IF(M130="","",RANK(Q130,Q$7:Q$230)) -> 169 | S130: =IF(R130="",0,Q$231+1-R130) -> 0 | T130: =S130+K130 -> 87 | U130: =IF(T130=0,"",RANK(T130,T$7:T$230)) -> 157 | V130: St Montan | W130: 14 | X130: 11 | Y130: 10 | Z130: =SUM(W130:Y130) -> 35 | AA130: =IF(V130="","",RANK(Z130,Z$7:Z$230)) -> 118 | AB130: =IF(AA130="",0,Z$231+1-AA130) -> 52 | AC130: =AB130+T130 -> 139 | AD130: =RANK(AC130,AC$7:AC$230) -> 167 | AE130: Lumidanse | AF130: 18 | AG130: 11 | AH130: 13 | AI130: =SUM(AF130:AH130) -> 42 | AJ130: =IF(AE130="","",RANK(AI130,AI$7:AI$230)) -> 44 | AK130: =IF(AJ130="",0,AI$231+1-AJ130) -> 113 | AL130: =AK130+AC130 -> 252 | AM130: =RANK(AL130,AL$7:AL$230) -> 126 | AN130: Baies rouges | AO130: 7 | AP130: 13 | AQ130: 14 | AR130: =SUM(AO130:AQ130) -> 34 | AS130: =IF(AN130="","",RANK(AR130,AR$7:AR$230)) -> 102 | AT130: =IF(AS130="",0,AR$231+1-AS130) -> 62 | AU130: =AT130+AL130 -> 314 | AV130: =RANK(AU130,AU$7:AU$230) -> 124 | BA130: 0 | BC130: 0 | BD130: 314 | BE130: 110 | BJ130: 0 | BL130: 0 | BM130: 314 | BN130: 110 | BS130: 0 | BU130: 0 | BV130: 314 | BW130: 110
B131: Daniel Durand | C131: Photo Ciné Club Viennois | D131: 1100690273 | E131: comménoration | F131: 8 | G131: 12 | H131: 13 | I131: =SUM(F131:H131) -> 33 | J131: =IF(E131="","",RANK(I131,I$7:I$230)) -> 143 | K131: =IF(J131="",0,I$231+1-J131) -> 50 | L131: =RANK(K131,K$7:K$226) -> 143 | M131: grenade | N131: 11 | O131: 13 | P131: 13 | Q131: =SUM(N131:P131) -> 37 | R131: =IF(M131="","",RANK(Q131,Q$7:Q$230)) -> 83 | S131: =IF(R131="",0,Q$231+1-R131) -> 86 | T131: =S131+K131 -> 136 | U131: =IF(T131=0,"",RANK(T131,T$7:T$230)) -> 131 | V131: Jazz à Vienne | W131: 12 | X131: 10 | Y131: 14 | Z131: =SUM(W131:Y131) -> 36 | AA131: =IF(V131="","",RANK(Z131,Z$7:Z$230)) -> 110 | AB131: =IF(AA131="",0,Z$231+1-AA131) -> 60 | AC131: =AB131+T131 -> 196 | AD131: =RANK(AC131,AC$7:AC$230) -> 132 | AE131: dans la forêt des Elfes | AF131: 14 | AG131: 11 | AH131: 11 | AI131: =SUM(AF131:AH131) -> 36 | AJ131: =IF(AE131="","",RANK(AI131,AI$7:AI$230)) -> 116 | AK131: =IF(AJ131="",0,AI$231+1-AJ131) -> 41 | AL131: =AK131+AC131 -> 237 | AM131: =RANK(AL131,AL$7:AL$230) -> 137 | AN131: Jardin publique | AO131: 12 | AP131: 12 | AQ131: 11 | AR131: =SUM(AO131:AQ131) -> 35 | AS131: =IF(AN131="","",RANK(AR131,AR$7:AR$230)) -> 91 | AT131: =IF(AS131="",0,AR$231+1-AS131) -> 73 | AU131: =AT131+AL131 -> 310 | AV131: =RANK(AU131,AU$7:AU$230) -> 125 | BA131: 0 | BC131: 0 | BD131: 310 | BE131: 111 | BJ131: 0 | BL131: 0 | BM131: 310 | BN131: 111 | BS131: 0 | BU131: 0 | BV131: 310 | BW131: 111
B132: Chantal Bérenger | C132: Club Photo de Cognin | D132: 1110550040 | E132: ROUGE | F132: 12 | G132: 11 | H132: 14 | I132: =SUM(F132:H132) -> 37 | J132: =IF(E132="","",RANK(I132,I$7:I$230)) -> 106 | K132: =IF(J132="",0,I$231+1-J132) -> 87 | L132: =RANK(K132,K$7:K$226) -> 106 | M132: Artichauds | N132: 14 | O132: 14 | P132: 20 | Q132: =SUM(N132:P132) -> 48 | R132: =IF(M132="","",RANK(Q132,Q$7:Q$230)) -> 8 | S132: =IF(R132="",0,Q$231+1-R132) -> 161 | T132: =S132+K132 -> 248 | U132: =IF(T132=0,"",RANK(T132,T$7:T$230)) -> 36 | V132: Jongieux | W132: 11 | X132: 12 | Y132: 13 | Z132: =SUM(W132:Y132) -> 36 | AA132: =IF(V132="","",RANK(Z132,Z$7:Z$230)) -> 110 | AB132: =IF(AA132="",0,Z$231+1-AA132) -> 60 | AC132: =AB132+T132 -> 308 | AD132: =RANK(AC132,AC$7:AC$230) -> 63 | AI132: =SUM(AF132:AH132) -> 0 | AJ132: =IF(AE132="","",RANK(AI132,AI$7:AI$230)) ->  | AK132: =IF(AJ132="",0,AI$231+1-AJ132) -> 0 | AL132: =AK132+AC132 -> 308 | AM132: =RANK(AL132,AL$7:AL$230) -> 104 | AR132: =SUM(AO132:AQ132) -> 0 | AS132: =IF(AN132="","",RANK(AR132,AR$7:AR$230)) ->  | AT132: =IF(AS132="",0,AR$231+1-AS132) -> 0 | AU132: =AT132+AL132 -> 308 | AV132: =RANK(AU132,AU$7:AU$230) -> 126 | BA132: 0 | BC132: 0 | BD132: 308 | BE132: 112 | BJ132: 0 | BL132: 0 | BM132: 308 | BN132: 112 | BS132: 0 | BU132: 0 | BV132: 308 | BW132: 112
B133: Roger Foucault | C133: Club Photo de Cognin | D133: 1110550237 | E133: Toits de lauzes | F133: 12 | G133: 9 | H133: 12 | I133: =SUM(F133:H133) -> 33 | J133: =IF(E133="","",RANK(I133,I$7:I$230)) -> 143 | K133: =IF(J133="",0,I$231+1-J133) -> 50 | L133: =RANK(K133,K$7:K$226) -> 143 | Q133: =SUM(N133:P133) -> 0 | R133: =IF(M133="","",RANK(Q133,Q$7:Q$230)) ->  | S133: =IF(R133="",0,Q$231+1-R133) -> 0 | T133: =S133+K133 -> 50 | U133: =IF(T133=0,"",RANK(T133,T$7:T$230)) -> 179 | V133: Les Marches | W133: 14 | X133: 13 | Y133: 17 | Z133: =SUM(W133:Y133) -> 44 | AA133: =IF(V133="","",RANK(Z133,Z$7:Z$230)) -> 22 | AB133: =IF(AA133="",0,Z$231+1-AA133) -> 148 | AC133: =AB133+T133 -> 198 | AD133: =RANK(AC133,AC$7:AC$230) -> 130 | AE133: La fontaine | AF133: 12 | AG133: 12 | AH133: 11 | AI133: =SUM(AF133:AH133) -> 35 | AJ133: =IF(AE133="","",RANK(AI133,AI$7:AI$230)) -> 125 | AK133: =IF(AJ133="",0,AI$231+1-AJ133) -> 32 | AL133: =AK133+AC133 -> 230 | AM133: =RANK(AL133,AL$7:AL$230) -> 145 | AN133: Les lutins | AO133: 12 | AP133: 10 | AQ133: 13 | AR133: =SUM(AO133:AQ133) -> 35 | AS133: =IF(AN133="","",RANK(AR133,AR$7:AR$230)) -> 91 | AT133: =IF(AS133="",0,AR$231+1-AS133) -> 73 | AU133: =AT133+AL133 -> 303 | AV133: =RANK(AU133,AU$7:AU$230) -> 127
B134: Michel Sanchez | C134: Objectif Images Lyon | D134: 1106200050 | E134: spectre | F134: 15 | G134: 13 | H134: 11 | I134: =SUM(F134:H134) -> 39 | J134: =IF(E134="","",RANK(I134,I$7:I$230)) -> 84 | K134: =IF(J134="",0,I$231+1-J134) -> 109 | L134: =RANK(K134,K$7:K$226) -> 84 | M134: blue belles | N134: 14 | O134: 11 | P134: 12 | Q134: =SUM(N134:P134) -> 37 | R134: =IF(M134="","",RANK(Q134,Q$7:Q$230)) -> 83 | S134: =IF(R134="",0,Q$231+1-R134) -> 86 | T134: =S134+K134 -> 195 | U134: =IF(T134=0,"",RANK(T134,T$7:T$230)) -> 83 | Z134: =SUM(W134:Y134) -> 0 | AA134: =IF(V134="","",RANK(Z134,Z$7:Z$230)) ->  | AB134: =IF(AA134="",0,Z$231+1-AA134) -> 0 | AC134: =AB134+T134 -> 195 | AD134: =RANK(AC134,AC$7:AC$230) -> 133 | AE134: eau blanche | AF134: 17 | AG134: 11 | AH134: 13 | AI134: =SUM(AF134:AH134) -> 41 | AJ134: =IF(AE134="","",RANK(AI134,AI$7:AI$230)) -> 52 | AK134: =IF(AJ134="",0,AI$231+1-AJ134) -> 105 | AL134: =AK134+AC134 -> 300 | AM134: =RANK(AL134,AL$7:AL$230) -> 105 | AS134: =IF(AN134="","",RANK(AR134,AR$7:AR$230)) ->  | AT134: =IF(AS134="",0,AR$231+1-AS134) -> 0 | AU134: =AT134+AL134 -> 300 | AV134: =RANK(AU134,AU$7:AU$230) -> 128 | BA134: 0 | BB134: =IF(AW134="","",RANK(BA134,BA$8:BA$224)) ->  | BC134: =IF(BB134="",0,BA$225+1-BB134) -> 0 | BD134: 300 | BE134: =RANK(BD134,BD$8:BD$224) -> 113 | BJ134: 0 | BK134: =IF(BF134="","",RANK(BJ134,BJ$8:BJ$224)) ->  | BL134: =IF(BK134="",0,BJ$225+1-BK134) -> 0 | BM134: 300 | BN134: =RANK(BM134,BM$8:BM$224) -> 113 | BS134: 0 | BT134: =IF(BO134="","",RANK(BS134,BS$8:BS$224)) ->  | BU134: =IF(BT134="",0,BS$225+1-BT134) -> 0 | BV134: 300 | BW134: =RANK(BV134,BV$8:BV$224) -> 113
B135: Jacques Laurent | C135: Photo Club de Biviers | D135: 1111310114 | E135: Brume au lac Luitel | F135: 7 | G135: 13 | H135: 12 | I135: =SUM(F135:H135) -> 32 | J135: =IF(E135="","",RANK(I135,I$7:I$230)) -> 156 | K135: =IF(J135="",0,I$231+1-J135) -> 37 | L135: =RANK(K135,K$7:K$226) -> 156 | M135: Triptyque violet et blanc | N135: 19 | O135: 13 | P135: 11 | Q135: =SUM(N135:P135) -> 43 | R135: =IF(M135="","",RANK(Q135,Q$7:Q$230)) -> 34 | S135: =IF(R135="",0,Q$231+1-R135) -> 135 | T135: =S135+K135 -> 172 | U135: =IF(T135=0,"",RANK(T135,T$7:T$230)) -> 104 | V135: Rêve et quotidien | W135: 11 | X135: 13 | Y135: 7 | Z135: =SUM(W135:Y135) -> 31 | AA135: =IF(V135="","",RANK(Z135,Z$7:Z$230)) -> 151 | AB135: =IF(AA135="",0,Z$231+1-AA135) -> 19 | AC135: =AB135+T135 -> 191 | AD135: =RANK(AC135,AC$7:AC$230) -> 137 | AE135: Dans le train | AF135: 9 | AG135: 14 | AH135: 18 | AI135: =SUM(AF135:AH135) -> 41 | AJ135: =IF(AE135="","",RANK(AI135,AI$7:AI$230)) -> 52 | AK135: =IF(AJ135="",0,AI$231+1-AJ135) -> 105 | AL135: =AK135+AC135 -> 296 | AM135: =RANK(AL135,AL$7:AL$230) -> 109 | AR135: =SUM(AO135:AQ135) -> 0 | AS135: =IF(AN135="","",RANK(AR135,AR$7:AR$230)) ->  | AT135: =IF(AS135="",0,AR$231+1-AS135) -> 0 | AU135: =AT135+AL135 -> 296 | AV135: =RANK(AU135,AU$7:AU$230) -> 129 | BA135: 0 | BC135: 0 | BD135: 296 | BE135: 114 | BJ135: 0 | BL135: 0 | BM135: 296 | BN135: 114 | BS135: 0 | BU135: 0 | BV135: 296 | BW135: 114
B136: Eric Fabre | C136: Club Photo Morestel | D136: 1114030156 | E136: pensée à Léonard C | F136: 15 | G136: 10 | H136: 14 | I136: =SUM(F136:H136) -> 39 | J136: =IF(E136="","",RANK(I136,I$7:I$230)) -> 84 | K136: =IF(J136="",0,I$231+1-J136) -> 109 | L136: =RANK(K136,K$7:K$226) -> 84 | M136: fruits vs légumes | N136: 9 | O136: 10 | P136: 13 | Q136: =SUM(N136:P136) -> 32 | R136: =IF(M136="","",RANK(Q136,Q$7:Q$230)) -> 129 | S136: =IF(R136="",0,Q$231+1-R136) -> 40 | T136: =S136+K136 -> 149 | U136: =IF(T136=0,"",RANK(T136,T$7:T$230)) -> 125 | V136: Mépieu au printemps | W136: 11 | X136: 10 | Y136: 13 | Z136: =SUM(W136:Y136) -> 34 | AA136: =IF(V136="","",RANK(Z136,Z$7:Z$230)) -> 127 | AB136: =IF(AA136="",0,Z$231+1-AA136) -> 43 | AC136: =AB136+T136 -> 192 | AD136: =RANK(AC136,AC$7:AC$230) -> 136 | AE136: pervenche au vent | AF136: 10 | AG136: 9 | AH136: 18 | AI136: =SUM(AF136:AH136) -> 37 | AJ136: =IF(AE136="","",RANK(AI136,AI$7:AI$230)) -> 106 | AK136: =IF(AJ136="",0,AI$231+1-AJ136) -> 51 | AL136: =AK136+AC136 -> 243 | AM136: =RANK(AL136,AL$7:AL$230) -> 133 | AN136: un froid de canard | AO136: 10 | AP136: 12 | AQ136: 11 | AR136: =SUM(AO136:AQ136) -> 33 | AS136: =IF(AN136="","",RANK(AR136,AR$7:AR$230)) -> 111 | AT136: =IF(AS136="",0,AR$231+1-AS136) -> 53 | AU136: =AT136+AL136 -> 296 | AV136: =RANK(AU136,AU$7:AU$230) -> 129 | BA136: 0 | BC136: 0 | BD136: 296 | BE136: 114 | BJ136: 0 | BL136: 0 | BM136: 296 | BN136: 114 | BS136: 0 | BU136: 0 | BV136: 296 | BW136: 114
B137: Michel Amigues | C137: Merger Photo Club - Meylan | D137: 1102590066 | E137: Embrasement | F137: 17 | G137: 12 | H137: 16 | I137: =SUM(F137:H137) -> 45 | J137: =IF(E137="","",RANK(I137,I$7:I$230)) -> 19 | K137: =IF(J137="",0,I$231+1-J137) -> 174 | L137: =RANK(K137,K$7:K$226) -> 19 | M137: Cohabitation | N137: 16 | O137: 14 | P137: 11 | Q137: =SUM(N137:P137) -> 41 | R137: =IF(M137="","",RANK(Q137,Q$7:Q$230)) -> 49 | S137: =IF(R137="",0,Q$231+1-R137) -> 120 | T137: =S137+K137 -> 294 | U137: =IF(T137=0,"",RANK(T137,T$7:T$230)) -> 15 | Z137: =SUM(W137:Y137) -> 0 | AA137: =IF(V137="","",RANK(Z137,Z$7:Z$230)) ->  | AB137: =IF(AA137="",0,Z$231+1-AA137) -> 0 | AC137: =AB137+T137 -> 294 | AD137: =RANK(AC137,AC$7:AC$230) -> 70 | AI137: =SUM(AF137:AH137) -> 0 | AJ137: =IF(AE137="","",RANK(AI137,AI$7:AI$230)) ->  | AK137: =IF(AJ137="",0,AI$231+1-AJ137) -> 0 | AL137: =AK137+AC137 -> 294 | AM137: =RANK(AL137,AL$7:AL$230) -> 111 | AR137: =SUM(AO137:AQ137) -> 0 | AS137: =IF(AN137="","",RANK(AR137,AR$7:AR$230)) ->  | AT137: =IF(AS137="",0,AR$231+1-AS137) -> 0 | AU137: =AT137+AL137 -> 294 | AV137: =RANK(AU137,AU$7:AU$230) -> 131 | BA137: 0 | BC137: 0 | BD137: 294 | BE137: 116 | BJ137: 0 | BL137: 0 | BM137: 294 | BN137: 116 | BS137: 0 | BU137: 0 | BV137: 294 | BW137: 116
B138: Daniel Bertrand | C138: Club Photo Morestel | D138: 1114030103 | E138: lumifleur | F138: 16 | G138: 12 | H138: 15 | I138: =SUM(F138:H138) -> 43 | J138: =IF(E138="","",RANK(I138,I$7:I$230)) -> 34 | K138: =IF(J138="",0,I$231+1-J138) -> 159 | L138: =RANK(K138,K$7:K$226) -> 34 | Q138: =SUM(N138:P138) -> 0 | R138: =IF(M138="","",RANK(Q138,Q$7:Q$230)) ->  | S138: =IF(R138="",0,Q$231+1-R138) -> 0 | T138: =S138+K138 -> 159 | U138: =IF(T138=0,"",RANK(T138,T$7:T$230)) -> 114 | V138: Morestel vue d'en haut | W138: 18 | X138: 9 | Y138: 15 | Z138: =SUM(W138:Y138) -> 42 | AA138: =IF(V138="","",RANK(Z138,Z$7:Z$230)) -> 36 | AB138: =IF(AA138="",0,Z$231+1-AA138) -> 134 | AC138: =AB138+T138 -> 293 | AD138: =RANK(AC138,AC$7:AC$230) -> 71 | AI138: =SUM(AF138:AH138) -> 0 | AJ138: =IF(AE138="","",RANK(AI138,AI$7:AI$230)) ->  | AK138: =IF(AJ138="",0,AI$231+1-AJ138) -> 0 | AL138: =AK138+AC138 -> 293 | AM138: =RANK(AL138,AL$7:AL$230) -> 112 | AR138: =SUM(AO138:AQ138) -> 0 | AS138: =IF(AN138="","",RANK(AR138,AR$7:AR$230)) ->  | AT138: =IF(AS138="",0,AR$231+1-AS138) -> 0 | AU138: =AT138+AL138 -> 293 | AV138: =RANK(AU138,AU$7:AU$230) -> 132 | BA138: 0 | BC138: 0 | BD138: 293 | BE138: 117 | BJ138: 0 | BL138: 0 | BM138: 293 | BN138: 117 | BS138: 0 | BU138: 0 | BV138: 293 | BW138: 117
B139: Jean-Claude Lesage | C139: Club Photo St André de Corcy | D139: 1118930003 | E139: Gala lumineux | F139: 11 | G139: 14 | H139: 12 | I139: =SUM(F139:H139) -> 37 | J139: =IF(E139="","",RANK(I139,I$7:I$230)) -> 106 | K139: =IF(J139="",0,I$231+1-J139) -> 87 | L139: =RANK(K139,K$7:K$226) -> 106 | Q139: =SUM(N139:P139) -> 0 | R139: =IF(M139="","",RANK(Q139,Q$7:Q$230)) ->  | S139: =IF(R139="",0,Q$231+1-R139) -> 0 | T139: =S139+K139 -> 87 | U139: =IF(T139=0,"",RANK(T139,T$7:T$230)) -> 157 | V139: Pérouges | W139: 15 | X139: 15 | Y139: 12 | Z139: =SUM(W139:Y139) -> 42 | AA139: =IF(V139="","",RANK(Z139,Z$7:Z$230)) -> 36 | AB139: =IF(AA139="",0,Z$231+1-AA139) -> 134 | AC139: =AB139+T139 -> 221 | AD139: =RANK(AC139,AC$7:AC$230) -> 113 | AE139: La grotte | AF139: 13 | AG139: 11 | AH139: 10 | AI139: =SUM(AF139:AH139) -> 34 | AJ139: =IF(AE139="","",RANK(AI139,AI$7:AI$230)) -> 134 | AK139: =IF(AJ139="",0,AI$231+1-AJ139) -> 23 | AL139: =AK139+AC139 -> 244 | AM139: =RANK(AL139,AL$7:AL$230) -> 130 | AN139: Toile givrée | AO139: 13 | AP139: 13 | AQ139: 6 | AR139: =SUM(AO139:AQ139) -> 32 | AS139: =IF(AN139="","",RANK(AR139,AR$7:AR$230)) -> 119 | AT139: =IF(AS139="",0,AR$231+1-AS139) -> 45 | AU139: =AT139+AL139 -> 289 | AV139: =RANK(AU139,AU$7:AU$230) -> 133 | BA139: 0 | BC139: 0 | BD139: 289 | BE139: 118 | BJ139: 0 | BL139: 0 | BM139: 289 | BN139: 118 | BS139: 0 | BU139: 0 | BV139: 289 | BW139: 118
B140: Patrice Foin | C140: Gavot Déclic - PC Larringes | D140: 1116980026 | E140: la chapelle au couchant | F140: 10 | G140: 11 | H140: 12 | I140: =SUM(F140:H140) -> 33 | J140: =IF(E140="","",RANK(I140,I$7:I$230)) -> 143 | K140: =IF(J140="",0,I$231+1-J140) -> 50 | L140: =RANK(K140,K$7:K$226) -> 143 | M140: Mexique après l'orage | N140: 10 | O140: 11 | P140: 10 | Q140: =SUM(N140:P140) -> 31 | R140: =IF(M140="","",RANK(Q140,Q$7:Q$230)) -> 139 | S140: =IF(R140="",0,Q$231+1-R140) -> 30 | T140: =S140+K140 -> 80 | U140: =IF(T140=0,"",RANK(T140,T$7:T$230)) -> 162 | V140: Crépuscule à Evian | W140: 14 | X140: 14 | Y140: 16 | Z140: =SUM(W140:Y140) -> 44 | AA140: =IF(V140="","",RANK(Z140,Z$7:Z$230)) -> 22 | AB140: =IF(AA140="",0,Z$231+1-AA140) -> 148 | AC140: =AB140+T140 -> 228 | AD140: =RANK(AC140,AC$7:AC$230) -> 109 | AE140: Avant le concert | AF140: 11 | AG140: 12 | AH140: 10 | AI140: =SUM(AF140:AH140) -> 33 | AJ140: =IF(AE140="","",RANK(AI140,AI$7:AI$230)) -> 143 | AK140: =IF(AJ140="",0,AI$231+1-AJ140) -> 14 | AL140: =AK140+AC140 -> 242 | AM140: =RANK(AL140,AL$7:AL$230) -> 134 | AN140: Mésange dans la neige | AO140: 9 | AP140: 12 | AQ140: 11 | AR140: =SUM(AO140:AQ140) -> 32 | AS140: =IF(AN140="","",RANK(AR140,AR$7:AR$230)) -> 119 | AT140: =IF(AS140="",0,AR$231+1-AS140) -> 45 | AU140: =AT140+AL140 -> 287 | AV140: =RANK(AU140,AU$7:AU$230) -> 134 | BA140: 0 | BC140: 0 | BD140: 287 | BE140: 119 | BJ140: 0 | BL140: 0 | BM140: 287 | BN140: 119 | BS140: 0 | BU140: 0 | BV140: 287 | BW140: 119
B141: Yann Rignon | C141: Photo Club IBM Grenoble | D141: 1109760002 | E141: Orage | F141: 16 | G141: 14 | H141: 11 | I141: =SUM(F141:H141) -> 41 | J141: =IF(E141="","",RANK(I141,I$7:I$230)) -> 55 | K141: =IF(J141="",0,I$231+1-J141) -> 138 | L141: =RANK(K141,K$7:K$226) -> 55 | M141: Petit Pois | N141: 13 | O141: 18 | P141: 14 | Q141: =SUM(N141:P141) -> 45 | R141: =IF(M141="","",RANK(Q141,Q$7:Q$230)) -> 21 | S141: =IF(R141="",0,Q$231+1-R141) -> 148 | T141: =S141+K141 -> 286 | U141: =IF(T141=0,"",RANK(T141,T$7:T$230)) -> 16 | Z141: =SUM(W141:Y141) -> 0 | AA141: =IF(V141="","",RANK(Z141,Z$7:Z$230)) ->  | AB141: =IF(AA141="",0,Z$231+1-AA141) -> 0 | AC141: =AB141+T141 -> 286 | AD141: =RANK(AC141,AC$7:AC$230) -> 74 | AI141: =SUM(AF141:AH141) -> 0 | AJ141: =IF(AE141="","",RANK(AI141,AI$7:AI$230)) ->  | AK141: =IF(AJ141="",0,AI$231+1-AJ141) -> 0 | AL141: =AK141+AC141 -> 286 | AM141: =RANK(AL141,AL$7:AL$230) -> 115 | AR141: =SUM(AO141:AQ141) -> 0 | AS141: =IF(AN141="","",RANK(AR141,AR$7:AR$230)) ->  | AT141: =IF(AS141="",0,AR$231+1-AS141) -> 0 | AU141: =AT141+AL141 -> 286 | AV141: =RANK(AU141,AU$7:AU$230) -> 135 | BA141: 0 | BC141: 0 | BD141: 286 | BE141: 120 | BJ141: 0 | BL141: 0 | BM141: 286 | BN141: 120 | BS141: 0 | BU141: 0 | BV141: 286 | BW141: 120
B142: Fabrice Joly | C142: Objectif Images Lyon | D142: 1106200048 | E142: Lumière Divine (Noces de Sang) | F142: 9 | G142: 11 | H142: 14 | I142: =SUM(F142:H142) -> 34 | J142: =IF(E142="","",RANK(I142,I$7:I$230)) -> 136 | K142: =IF(J142="",0,I$231+1-J142) -> 57 | L142: =RANK(K142,K$7:K$226) -> 136 | Q142: =SUM(N142:P142) -> 0 | R142: =IF(M142="","",RANK(Q142,Q$7:Q$230)) ->  | S142: =IF(R142="",0,Q$231+1-R142) -> 0 | T142: =S142+K142 -> 57 | U142: =IF(T142=0,"",RANK(T142,T$7:T$230)) -> 174 | V142: Nyons (Drôme) portes de Provence | W142: 12 | X142: 12 | Y142: 15 | Z142: =SUM(W142:Y142) -> 39 | AA142: =IF(V142="","",RANK(Z142,Z$7:Z$230)) -> 67 | AB142: =IF(AA142="",0,Z$231+1-AA142) -> 103 | AC142: =AB142+T142 -> 160 | AD142: =RANK(AC142,AC$7:AC$230) -> 159 | AE142: Le jardin de ma mère | AF142: 9 | AG142: 10 | AH142: 12 | AI142: =SUM(AF142:AH142) -> 31 | AJ142: =IF(AE142="","",RANK(AI142,AI$7:AI$230)) -> 150 | AK142: =IF(AJ142="",0,AI$231+1-AJ142) -> 7 | AL142: =AK142+AC142 -> 167 | AM142: =RANK(AL142,AL$7:AL$230) -> 167 | AN142: Mer de Glace en hiver | AO142: 15 | AP142: 11 | AQ142: 14 | AR142: =SUM(AO142:AQ142) -> 40 | AS142: =IF(AN142="","",RANK(AR142,AR$7:AR$230)) -> 47 | AT142: =IF(AS142="",0,AR$231+1-AS142) -> 117 | AU142: =AT142+AL142 -> 284 | AV142: =RANK(AU142,AU$7:AU$230) -> 136 | BA142: 0 | BC142: 0 | BD142: 284 | BE142: 121 | BJ142: 0 | BL142: 0 | BM142: 284 | BN142: 121 | BS142: 0 | BU142: 0 | BV142: 284 | BW142: 121
B143: Zancanaro Flavienne | C143: Numerica Photo Club Faverges | D143: 1121100017 | E143: Eclat | F143: 12 | G143: 10 | H143: 10 | I143: =SUM(F143:H143) -> 32 | J143: =IF(E143="","",RANK(I143,I$7:I$230)) -> 156 | K143: =IF(J143="",0,I$231+1-J143) -> 37 | L143: =RANK(K143,K$7:K$226) -> 156 | M143: NAISSANCE | N143: 7 | O143: 8 | P143: 12 | Q143: =SUM(N143:P143) -> 27 | R143: =IF(M143="","",RANK(Q143,Q$7:Q$230)) -> 162 | S143: =IF(R143="",0,Q$231+1-R143) -> 7 | T143: =S143+K143 -> 44 | U143: =IF(T143=0,"",RANK(T143,T$7:T$230)) -> 183 | V143: Vue à 360° | W143: 13 | X143: 14 | Y143: 15 | Z143: =SUM(W143:Y143) -> 42 | AA143: =IF(V143="","",RANK(Z143,Z$7:Z$230)) -> 36 | AB143: =IF(AA143="",0,Z$231+1-AA143) -> 134 | AC143: =AB143+T143 -> 178 | AD143: =RANK(AC143,AC$7:AC$230) -> 148 | AI143: =SUM(AF143:AH143) -> 0 | AJ143: =IF(AE143="","",RANK(AI143,AI$7:AI$230)) ->  | AK143: =IF(AJ143="",0,AI$231+1-AJ143) -> 0 | AL143: =AK143+AC143 -> 178 | AM143: =RANK(AL143,AL$7:AL$230) -> 164 | AN143: les grands espaces | AO143: 13 | AP143: 12 | AQ143: 13 | AR143: =SUM(AO143:AQ143) -> 38 | AS143: =IF(AN143="","",RANK(AR143,AR$7:AR$230)) -> 61 | AT143: =IF(AS143="",0,AR$231+1-AS143) -> 103 | AU143: =AT143+AL143 -> 281 | AV143: =RANK(AU143,AU$7:AU$230) -> 137 | BA143: 0 | BC143: 0 | BD143: 281 | BE143: 122 | BJ143: 0 | BL143: 0 | BM143: 281 | BN143: 122 | BS143: 0 | BU143: 0 | BV143: 281 | BW143: 122
B144: Monique Ginet | C144: Club Photo Morestel | D144: 1114030178 | J144: =IF(E144="","",RANK(I144,I$7:I$230)) ->  | K144: =IF(J144="",0,I$231+1-J144) -> 0 | L144: =RANK(K144,K$7:K$226) -> 192 | M144: Tentation | N144: 10 | O144: 13 | P144: 15 | Q144: =SUM(N144:P144) -> 38 | R144: =IF(M144="","",RANK(Q144,Q$7:Q$230)) -> 76 | S144: =IF(R144="",0,Q$231+1-R144) -> 93 | T144: =S144+K144 -> 93 | U144: =IF(T144=0,"",RANK(T144,T$7:T$230)) -> 155 | V144: Port de Quirieu 570 | W144: 12 | X144: 11 | Y144: 14 | Z144: =SUM(W144:Y144) -> 37 | AA144: =IF(V144="","",RANK(Z144,Z$7:Z$230)) -> 96 | AB144: =IF(AA144="",0,Z$231+1-AA144) -> 74 | AC144: =AB144+T144 -> 167 | AD144: =RANK(AC144,AC$7:AC$230) -> 154 | AJ144: =IF(AE144="","",RANK(AI144,AI$7:AI$230)) ->  | AK144: =IF(AJ144="",0,AI$231+1-AJ144) -> 0 | AL144: =AK144+AC144 -> 167 | AM144: =RANK(AL144,AL$7:AL$230) -> 167 | AN144: Les cabanes | AO144: 13 | AP144: 12 | AQ144: 14 | AR144: =SUM(AO144:AQ144) -> 39 | AS144: =IF(AN144="","",RANK(AR144,AR$7:AR$230)) -> 52 | AT144: =IF(AS144="",0,AR$231+1-AS144) -> 112 | AU144: =AT144+AL144 -> 279 | AV144: =RANK(AU144,AU$7:AU$230) -> 138 | BA144: 0 | BC144: 0 | BD144: 279 | BE144: 123 | BJ144: 0 | BL144: 0 | BM144: 279 | BN144: 123 | BS144: 0 | BU144: 0 | BV144: 279 | BW144: 123
B145: Roger Dumax-Baudron | C145: Photo Club de Sillingy | D145: 1121950003 | E145: Ruines | F145: 13 | G145: 12 | H145: 12 | I145: =SUM(F145:H145) -> 37 | J145: =IF(E145="","",RANK(I145,I$7:I$230)) -> 106 | K145: =IF(J145="",0,I$231+1-J145) -> 87 | L145: =RANK(K145,K$7:K$226) -> 106 | M145: La fête des citrons | N145: 14 | O145: 14 | P145: 11 | Q145: =SUM(N145:P145) -> 39 | R145: =IF(M145="","",RANK(Q145,Q$7:Q$230)) -> 66 | S145: =IF(R145="",0,Q$231+1-R145) -> 103 | T145: =S145+K145 -> 190 | U145: =IF(T145=0,"",RANK(T145,T$7:T$230)) -> 89 | V145: Grandcroix | W145: 12 | X145: 7 | Y145: 16 | Z145: =SUM(W145:Y145) -> 35 | AA145: =IF(V145="","",RANK(Z145,Z$7:Z$230)) -> 118 | AB145: =IF(AA145="",0,Z$231+1-AA145) -> 52 | AC145: =AB145+T145 -> 242 | AD145: =RANK(AC145,AC$7:AC$230) -> 91 | AI145: =SUM(AF145:AH145) -> 0 | AJ145: =IF(AE145="","",RANK(AI145,AI$7:AI$230)) ->  | AK145: =IF(AJ145="",0,AI$231+1-AJ145) -> 0 | AL145: =AK145+AC145 -> 242 | AM145: =RANK(AL145,AL$7:AL$230) -> 134 | AN145: Dans le bois | AO145: 9 | AP145: 9 | AQ145: 13 | AR145: =SUM(AO145:AQ145) -> 31 | AS145: =IF(AN145="","",RANK(AR145,AR$7:AR$230)) -> 131 | AT145: =IF(AS145="",0,AR$231+1-AS145) -> 33 | AU145: =AT145+AL145 -> 275 | AV145: =RANK(AU145,AU$7:AU$230) -> 139
B146: Dominique Marignier | C146: Club Photo St André de Corcy | D146: 1118930046 | E146: Arcs en ciel | F146: 12 | G146: 10 | H146: 11 | I146: =SUM(F146:H146) -> 33 | J146: =IF(E146="","",RANK(I146,I$7:I$230)) -> 143 | K146: =IF(J146="",0,I$231+1-J146) -> 50 | L146: =RANK(K146,K$7:K$226) -> 143 | Q146: =SUM(N146:P146) -> 0 | R146: =IF(M146="","",RANK(Q146,Q$7:Q$230)) ->  | S146: =IF(R146="",0,Q$231+1-R146) -> 0 | T146: =S146+K146 -> 50 | U146: =IF(T146=0,"",RANK(T146,T$7:T$230)) -> 179 | Z146: =SUM(W146:Y146) -> 0 | AA146: =IF(V146="","",RANK(Z146,Z$7:Z$230)) ->  | AB146: =IF(AA146="",0,Z$231+1-AA146) -> 0 | AC146: =AB146+T146 -> 50 | AD146: =RANK(AC146,AC$7:AC$230) -> 193 | AE146: Cascade des Tuffes | AF146: 12 | AG146: 15 | AH146: 12 | AI146: =SUM(AF146:AH146) -> 39 | AJ146: =IF(AE146="","",RANK(AI146,AI$7:AI$230)) -> 81 | AK146: =IF(AJ146="",0,AI$231+1-AJ146) -> 76 | AL146: =AK146+AC146 -> 126 | AM146: =RANK(AL146,AL$7:AL$230) -> 176 | AN146: Givre | AO146: 16 | AP146: 14 | AQ146: 15 | AR146: =SUM(AO146:AQ146) -> 45 | AS146: =IF(AN146="","",RANK(AR146,AR$7:AR$230)) -> 15 | AT146: =IF(AS146="",0,AR$231+1-AS146) -> 149 | AU146: =AT146+AL146 -> 275 | AV146: =RANK(AU146,AU$7:AU$230) -> 139 | BA146: 0 | BB146: =IF(AW146="","",RANK(BA146,BA$8:BA$224)) ->  | BC146: =IF(BB146="",0,BA$225+1-BB146) -> 0 | BD146: 275 | BE146: =RANK(BD146,BD$8:BD$224) -> 124 | BJ146: 0 | BK146: =IF(BF146="","",RANK(BJ146,BJ$8:BJ$224)) ->  | BL146: =IF(BK146="",0,BJ$225+1-BK146) -> 0 | BM146: 275 | BN146: =RANK(BM146,BM$8:BM$224) -> 124 | BS146: 0 | BT146: =IF(BO146="","",RANK(BS146,BS$8:BS$224)) ->  | BU146: =IF(BT146="",0,BS$225+1-BT146) -> 0 | BV146: 275 | BW146: =RANK(BV146,BV$8:BV$224) -> 124
B147: Didier Segura | C147: Club Photo Morestel | D147: 1114030153 | E147: Lumière sur toile | F147: 15 | G147: 12 | H147: 13 | I147: =SUM(F147:H147) -> 40 | J147: =IF(E147="","",RANK(I147,I$7:I$230)) -> 69 | K147: =IF(J147="",0,I$231+1-J147) -> 124 | L147: =RANK(K147,K$7:K$226) -> 69 | Q147: =SUM(N147:P147) -> 0 | R147: =IF(M147="","",RANK(Q147,Q$7:Q$230)) ->  | S147: =IF(R147="",0,Q$231+1-R147) -> 0 | T147: =S147+K147 -> 124 | U147: =IF(T147=0,"",RANK(T147,T$7:T$230)) -> 140 | V147: Morestel façon village | W147: 12 | X147: 12 | Y147: 13 | Z147: =SUM(W147:Y147) -> 37 | AA147: =IF(V147="","",RANK(Z147,Z$7:Z$230)) -> 96 | AB147: =IF(AA147="",0,Z$231+1-AA147) -> 74 | AC147: =AB147+T147 -> 198 | AD147: =RANK(AC147,AC$7:AC$230) -> 130 | AE147: Glandieu en hiver | AF147: 13 | AG147: 13 | AH147: 11 | AI147: =SUM(AF147:AH147) -> 37 | AJ147: =IF(AE147="","",RANK(AI147,AI$7:AI$230)) -> 106 | AK147: =IF(AJ147="",0,AI$231+1-AJ147) -> 51 | AL147: =AK147+AC147 -> 249 | AM147: =RANK(AL147,AL$7:AL$230) -> 128 | AN147: Bonhomme de neige | AO147: 8 | AP147: 10 | AQ147: 11 | AR147: =SUM(AO147:AQ147) -> 29 | AS147: =IF(AN147="","",RANK(AR147,AR$7:AR$230)) -> 141 | AT147: =IF(AS147="",0,AR$231+1-AS147) -> 23 | AU147: =AT147+AL147 -> 272 | AV147: =RANK(AU147,AU$7:AU$230) -> 141 | BA147: 0 | BB147: =IF(AW147="","",RANK(BA147,BA$8:BA$224)) ->  | BC147: =IF(BB147="",0,BA$225+1-BB147) -> 0 | BD147: 272 | BE147: =RANK(BD147,BD$8:BD$224) -> 125 | BJ147: 0 | BK147: =IF(BF147="","",RANK(BJ147,BJ$8:BJ$224)) ->  | BL147: =IF(BK147="",0,BJ$225+1-BK147) -> 0 | BM147: 272 | BN147: =RANK(BM147,BM$8:BM$224) -> 125 | BS147: 0 | BT147: =IF(BO147="","",RANK(BS147,BS$8:BS$224)) ->  | BU147: =IF(BT147="",0,BS$225+1-BT147) -> 0 | BV147: 272 | BW147: =RANK(BV147,BV$8:BV$224) -> 125
B148: Alain Beurrier | C148: Club Photo St André de Corcy | D148: 1118930048 | E148: aube sur l'aiguille verte | F148: 13 | G148: 11 | H148: 12 | I148: =SUM(F148:H148) -> 36 | J148: =IF(E148="","",RANK(I148,I$7:I$230)) -> 121 | K148: =IF(J148="",0,I$231+1-J148) -> 72 | L148: =RANK(K148,K$7:K$226) -> 121 | Q148: =SUM(N148:P148) -> 0 | R148: =IF(M148="","",RANK(Q148,Q$7:Q$230)) ->  | S148: =IF(R148="",0,Q$231+1-R148) -> 0 | T148: =S148+K148 -> 72 | U148: =IF(T148=0,"",RANK(T148,T$7:T$230)) -> 166 | V148: Lalaupie | W148: 13 | X148: 13 | Y148: 11 | Z148: =SUM(W148:Y148) -> 37 | AA148: =IF(V148="","",RANK(Z148,Z$7:Z$230)) -> 96 | AB148: =IF(AA148="",0,Z$231+1-AA148) -> 74 | AC148: =AB148+T148 -> 146 | AD148: =RANK(AC148,AC$7:AC$230) -> 164 | AE148: traffic nocturne | AF148: 13 | AG148: 17 | AH148: 13 | AI148: =SUM(AF148:AH148) -> 43 | AJ148: =IF(AE148="","",RANK(AI148,AI$7:AI$230)) -> 38 | AK148: =IF(AJ148="",0,AI$231+1-AJ148) -> 119 | AL148: =AK148+AC148 -> 265 | AM148: =RANK(AL148,AL$7:AL$230) -> 120 | AR148: =SUM(AO148:AQ148) -> 0 | AS148: =IF(AN148="","",RANK(AR148,AR$7:AR$230)) ->  | AT148: =IF(AS148="",0,AR$231+1-AS148) -> 0 | AU148: =AT148+AL148 -> 265 | AV148: =RANK(AU148,AU$7:AU$230) -> 142
B149: Claude Dubois | C149: Club Photo St André de Corcy | D149: 1118939002 | E149: Sans fil | F149: 15 | G149: 12 | H149: 15 | I149: =SUM(F149:H149) -> 42 | J149: =IF(E149="","",RANK(I149,I$7:I$230)) -> 41 | K149: =IF(J149="",0,I$231+1-J149) -> 152 | L149: =RANK(K149,K$7:K$226) -> 41 | M149: Impérissable | N149: 17 | O149: 11 | P149: 12 | Q149: =SUM(N149:P149) -> 40 | R149: =IF(M149="","",RANK(Q149,Q$7:Q$230)) -> 56 | S149: =IF(R149="",0,Q$231+1-R149) -> 113 | T149: =S149+K149 -> 265 | U149: =IF(T149=0,"",RANK(T149,T$7:T$230)) -> 26 | Z149: =SUM(W149:Y149) -> 0 | AA149: =IF(V149="","",RANK(Z149,Z$7:Z$230)) ->  | AB149: =IF(AA149="",0,Z$231+1-AA149) -> 0 | AC149: =AB149+T149 -> 265 | AD149: =RANK(AC149,AC$7:AC$230) -> 82 | AI149: =SUM(AF149:AH149) -> 0 | AJ149: =IF(AE149="","",RANK(AI149,AI$7:AI$230)) ->  | AK149: =IF(AJ149="",0,AI$231+1-AJ149) -> 0 | AL149: =AK149+AC149 -> 265 | AM149: =RANK(AL149,AL$7:AL$230) -> 120 | AS149: =IF(AN149="","",RANK(AR149,AR$7:AR$230)) ->  | AT149: =IF(AS149="",0,AR$231+1-AS149) -> 0 | AU149: =AT149+AL149 -> 265 | AV149: =RANK(AU149,AU$7:AU$230) -> 142 | BA149: 0 | BB149: =IF(AW149="","",RANK(BA149,BA$8:BA$224)) ->  | BC149: =IF(BB149="",0,BA$225+1-BB149) -> 0 | BD149: 265 | BE149: =RANK(BD149,BD$8:BD$224) -> 126 | BJ149: 0 | BK149: =IF(BF149="","",RANK(BJ149,BJ$8:BJ$224)) ->  | BL149: =IF(BK149="",0,BJ$225+1-BK149) -> 0 | BM149: 265 | BN149: =RANK(BM149,BM$8:BM$224) -> 126 | BS149: 0 | BT149: =IF(BO149="","",RANK(BS149,BS$8:BS$224)) ->  | BU149: =IF(BT149="",0,BS$225+1-BT149) -> 0 | BV149: 265 | BW149: =RANK(BV149,BV$8:BV$224) -> 126
B150: Bernard Ravier | C150: JPEG Photo Club St Martin Bellevue | D150: 1121840001 | E150: massacre à la pelleteuse | F150: 17 | G150: 12 | H150: 14 | I150: =SUM(F150:H150) -> 43 | J150: =IF(E150="","",RANK(I150,I$7:I$230)) -> 34 | K150: =IF(J150="",0,I$231+1-J150) -> 159 | L150: =RANK(K150,K$7:K$226) -> 34 | M150: photosynthèse | N150: 10 | O150: 13 | P150: 14 | Q150: =SUM(N150:P150) -> 37 | R150: =IF(M150="","",RANK(Q150,Q$7:Q$230)) -> 83 | S150: =IF(R150="",0,Q$231+1-R150) -> 86 | T150: =S150+K150 -> 245 | U150: =IF(T150=0,"",RANK(T150,T$7:T$230)) -> 38 | V150: Annecy - présence | W150: 11 | X150: 8 | Y150: 12 | Z150: =SUM(W150:Y150) -> 31 | AA150: =IF(V150="","",RANK(Z150,Z$7:Z$230)) -> 151 | AB150: =IF(AA150="",0,Z$231+1-AA150) -> 19 | AC150: =AB150+T150 -> 264 | AD150: =RANK(AC150,AC$7:AC$230) -> 83 | AI150: =SUM(AF150:AH150) -> 0 | AJ150: =IF(AE150="","",RANK(AI150,AI$7:AI$230)) ->  | AK150: =IF(AJ150="",0,AI$231+1-AJ150) -> 0 | AL150: =AK150+AC150 -> 264 | AM150: =RANK(AL150,AL$7:AL$230) -> 122 | AR150: =SUM(AO150:AQ150) -> 0 | AS150: =IF(AN150="","",RANK(AR150,AR$7:AR$230)) ->  | AT150: =IF(AS150="",0,AR$231+1-AS150) -> 0 | AU150: =AT150+AL150 -> 264 | AV150: =RANK(AU150,AU$7:AU$230) -> 144 | BA150: 0 | BC150: 0 | BD150: 264 | BE150: 127 | BJ150: 0 | BL150: 0 | BM150: 264 | BN150: 127 | BS150: 0 | BU150: 0 | BV150: 264 | BW150: 127
B151: Michel Accary | C151: Club Georges Mélies-Chambéry | D151: 1105530195 | J151: =IF(E151="","",RANK(I151,I$7:I$230)) ->  | K151: =IF(J151="",0,I$231+1-J151) -> 0 | L151: =RANK(K151,K$7:K$226) -> 192 | R151: =IF(M151="","",RANK(Q151,Q$7:Q$230)) ->  | S151: =IF(R151="",0,Q$231+1-R151) -> 0 | T151: =S151+K151 -> 0 | U151: =IF(T151=0,"",RANK(T151,T$7:T$230)) ->  | AA151: =IF(V151="","",RANK(Z151,Z$7:Z$230)) ->  | AB151: =IF(AA151="",0,Z$231+1-AA151) -> 0 | AC151: =AB151+T151 -> 0 | AD151: =RANK(AC151,AC$7:AC$230) -> 215 | AE151: Flots | AF151: 13 | AG151: 14 | AH151: 14 | AI151: =SUM(AF151:AH151) -> 41 | AJ151: =IF(AE151="","",RANK(AI151,AI$7:AI$230)) -> 52 | AK151: =IF(AJ151="",0,AI$231+1-AJ151) -> 105 | AL151: =AK151+AC151 -> 105 | AM151: =RANK(AL151,AL$7:AL$230) -> 180 | AN151: Frimas | AO151: 17 | AP151: 14 | AQ151: 18 | AR151: =SUM(AO151:AQ151) -> 49 | AS151: =IF(AN151="","",RANK(AR151,AR$7:AR$230)) -> 6 | AT151: =IF(AS151="",0,AR$231+1-AS151) -> 158 | AU151: =AT151+AL151 -> 263 | AV151: =RANK(AU151,AU$7:AU$230) -> 145 | BA151: 0 | BC151: 0 | BD151: 263 | BE151: 128 | BJ151: 0 | BL151: 0 | BM151: 263 | BN151: 128 | BS151: 0 | BU151: 0 | BV151: 263 | BW151: 128
B152: Myriam Frobert | C152: Photo Ciné Club Roannais | D152: 1120750022 | E152: Physalumière | F152: 13 | G152: 11 | H152: 16 | I152: =SUM(F152:H152) -> 40 | J152: =IF(E152="","",RANK(I152,I$7:I$230)) -> 69 | K152: =IF(J152="",0,I$231+1-J152) -> 124 | L152: =RANK(K152,K$7:K$226) -> 69 | M152: Tendres carottes | N152: 13 | O152: 11 | P152: 14 | Q152: =SUM(N152:P152) -> 38 | R152: =IF(M152="","",RANK(Q152,Q$7:Q$230)) -> 76 | S152: =IF(R152="",0,Q$231+1-R152) -> 93 | T152: =S152+K152 -> 217 | U152: =IF(T152=0,"",RANK(T152,T$7:T$230)) -> 63 | V152: Matin voilé sur Saint Haon le Châtel | W152: 9 | X152: 10 | Y152: 8 | Z152: =SUM(W152:Y152) -> 27 | AA152: =IF(V152="","",RANK(Z152,Z$7:Z$230)) -> 166 | AB152: =IF(AA152="",0,Z$231+1-AA152) -> 4 | AC152: =AB152+T152 -> 221 | AD152: =RANK(AC152,AC$7:AC$230) -> 113 | AE152: Arbre abstrait | AF152: 11 | AG152: 9 | AH152: 11 | AI152: =SUM(AF152:AH152) -> 31 | AJ152: =IF(AE152="","",RANK(AI152,AI$7:AI$230)) -> 150 | AK152: =IF(AJ152="",0,AI$231+1-AJ152) -> 7 | AL152: =AK152+AC152 -> 228 | AM152: =RANK(AL152,AL$7:AL$230) -> 147 | AN152: un matin à la Verrerie | AO152: 11 | AP152: 8 | AQ152: 12 | AR152: =SUM(AO152:AQ152) -> 31 | AS152: =IF(AN152="","",RANK(AR152,AR$7:AR$230)) -> 131 | AT152: =IF(AS152="",0,AR$231+1-AS152) -> 33 | AU152: =AT152+AL152 -> 261 | AV152: =RANK(AU152,AU$7:AU$230) -> 146 | BA152: =SUM(AX152:AZ152) -> 0 | BC152: 0 | BD152: =BC152+AU152 -> 261 | BE152: 129 | BJ152: =SUM(BG152:BI152) -> 0 | BL152: 0 | BM152: =BL152+BD152 -> 261 | BN152: 129 | BS152: =SUM(BP152:BR152) -> 0 | BU152: 0 | BV152: =BU152+BM152 -> 261 | BW152: 129
B153: François Masse | C153: Objectif Photo St Maurice l'Exil | D153: 1117540032 | E153: Papillon lumière christal | F153: 10 | G153: 12 | H153: 13 | I153: =SUM(F153:H153) -> 35 | J153: =IF(E153="","",RANK(I153,I$7:I$230)) -> 124 | K153: =IF(J153="",0,I$231+1-J153) -> 69 | L153: =RANK(K153,K$7:K$226) -> 124 | M153: Douceurs exotiques | N153: 16 | O153: 12 | P153: 11 | Q153: =SUM(N153:P153) -> 39 | R153: =IF(M153="","",RANK(Q153,Q$7:Q$230)) -> 66 | S153: =IF(R153="",0,Q$231+1-R153) -> 103 | T153: =S153+K153 -> 172 | U153: =IF(T153=0,"",RANK(T153,T$7:T$230)) -> 104 | V153: Perouges | W153: 11 | X153: 10 | Y153: 7 | Z153: =SUM(W153:Y153) -> 28 | AA153: =IF(V153="","",RANK(Z153,Z$7:Z$230)) -> 162 | AB153: =IF(AA153="",0,Z$231+1-AA153) -> 8 | AC153: =AB153+T153 -> 180 | AD153: =RANK(AC153,AC$7:AC$230) -> 146 | AE153: Place d'armes - Cuzco | AF153: 13 | AG153: 12 | AH153: 12 | AI153: =SUM(AF153:AH153) -> 37 | AJ153: =IF(AE153="","",RANK(AI153,AI$7:AI$230)) -> 106 | AK153: =IF(AJ153="",0,AI$231+1-AJ153) -> 51 | AL153: =AK153+AC153 -> 231 | AM153: =RANK(AL153,AL$7:AL$230) -> 144 | AN153: brin de neige | AO153: 8 | AP153: 11 | AQ153: 10 | AR153: =SUM(AO153:AQ153) -> 29 | AS153: =IF(AN153="","",RANK(AR153,AR$7:AR$230)) -> 141 | AT153: =IF(AS153="",0,AR$231+1-AS153) -> 23 | AU153: =AT153+AL153 -> 254 | AV153: =RANK(AU153,AU$7:AU$230) -> 147 | BA153: 0 | BC153: 0 | BD153: 254 | BE153: 130 | BJ153: 0 | BL153: 0 | BM153: 254 | BN153: 130 | BS153: 0 | BU153: 0 | BV153: 254 | BW153: 130
B154: Guy Debesson | C154: ATSCAF Rhône Photo - Lyon | D154: 1117070015 | E154: Confluence | F154: 15 | G154: 13 | H154: 14 | I154: =SUM(F154:H154) -> 42 | J154: =IF(E154="","",RANK(I154,I$7:I$230)) -> 41 | K154: =IF(J154="",0,I$231+1-J154) -> 152 | L154: =RANK(K154,K$7:K$226) -> 41 | M154: C'est fermé | N154: 11 | O154: 7 | P154: 11 | Q154: =SUM(N154:P154) -> 29 | R154: =IF(M154="","",RANK(Q154,Q$7:Q$230)) -> 151 | S154: =IF(R154="",0,Q$231+1-R154) -> 18 | T154: =S154+K154 -> 170 | U154: =IF(T154=0,"",RANK(T154,T$7:T$230)) -> 107 | V154: Vue de là haut | W154: 12 | X154: 11 | Y154: 9 | Z154: =SUM(W154:Y154) -> 32 | AA154: =IF(V154="","",RANK(Z154,Z$7:Z$230)) -> 141 | AB154: =IF(AA154="",0,Z$231+1-AA154) -> 29 | AC154: =AB154+T154 -> 199 | AD154: =RANK(AC154,AC$7:AC$230) -> 129 | AI154: =SUM(AF154:AH154) -> 0 | AJ154: =IF(AE154="","",RANK(AI154,AI$7:AI$230)) ->  | AK154: =IF(AJ154="",0,AI$231+1-AJ154) -> 0 | AL154: =AK154+AC154 -> 199 | AM154: =RANK(AL154,AL$7:AL$230) -> 155 | AN154: Ensevelissement | AO154: 10 | AP154: 11 | AQ154: 12 | AR154: =SUM(AO154:AQ154) -> 33 | AS154: =IF(AN154="","",RANK(AR154,AR$7:AR$230)) -> 111 | AT154: =IF(AS154="",0,AR$231+1-AS154) -> 53 | AU154: =AT154+AL154 -> 252 | AV154: =RANK(AU154,AU$7:AU$230) -> 148 | BA154: 0 | BC154: 0 | BD154: 252 | BE154: 131 | BJ154: 0 | BL154: 0 | BM154: 252 | BN154: 131 | BS154: 0 | BU154: 0 | BV154: 252 | BW154: 131
B155: Jean-Claude Guerry | C155: Club Photo Morestel | D155: 1114030176 | E155: Lyon 2011 | F155: 17 | G155: 13 | H155: 15 | I155: =SUM(F155:H155) -> 45 | J155: =IF(E155="","",RANK(I155,I$7:I$230)) -> 19 | K155: =IF(J155="",0,I$231+1-J155) -> 174 | L155: =RANK(K155,K$7:K$226) -> 19 | Q155: =SUM(N155:P155) -> 0 | R155: =IF(M155="","",RANK(Q155,Q$7:Q$230)) ->  | S155: =IF(R155="",0,Q$231+1-R155) -> 0 | T155: =S155+K155 -> 174 | U155: =IF(T155=0,"",RANK(T155,T$7:T$230)) -> 103 | Z155: =SUM(W155:Y155) -> 0 | AA155: =IF(V155="","",RANK(Z155,Z$7:Z$230)) ->  | AB155: =IF(AA155="",0,Z$231+1-AA155) -> 0 | AC155: =AB155+T155 -> 174 | AD155: =RANK(AC155,AC$7:AC$230) -> 150 | AE155: Carrousel | AF155: 12 | AG155: 9 | AH155: 13 | AI155: =SUM(AF155:AH155) -> 34 | AJ155: =IF(AE155="","",RANK(AI155,AI$7:AI$230)) -> 134 | AK155: =IF(AJ155="",0,AI$231+1-AJ155) -> 23 | AL155: =AK155+AC155 -> 197 | AM155: =RANK(AL155,AL$7:AL$230) -> 156 | AN155: Les Orres - 05 | AO155: 10 | AP155: 10 | AQ155: 13 | AR155: =SUM(AO155:AQ155) -> 33 | AS155: =IF(AN155="","",RANK(AR155,AR$7:AR$230)) -> 111 | AT155: =IF(AS155="",0,AR$231+1-AS155) -> 53 | AU155: =AT155+AL155 -> 250 | AV155: =RANK(AU155,AU$7:AU$230) -> 149
B156: Jean Claude Lenoble | C156: ATSCAF Rhône Photo - Lyon | D156: 1117070023 | E156: Pamukkale | F156: 14 | G156: 14 | H156: 13 | I156: =SUM(F156:H156) -> 41 | J156: =IF(E156="","",RANK(I156,I$7:I$230)) -> 55 | K156: =IF(J156="",0,I$231+1-J156) -> 138 | L156: =RANK(K156,K$7:K$226) -> 55 | M156: corne d abondance | N156: 10 | O156: 12 | P156: 12 | Q156: =SUM(N156:P156) -> 34 | R156: =IF(M156="","",RANK(Q156,Q$7:Q$230)) -> 115 | S156: =IF(R156="",0,Q$231+1-R156) -> 54 | T156: =S156+K156 -> 192 | U156: =IF(T156=0,"",RANK(T156,T$7:T$230)) -> 86 | V156: Bonneval sur Arc | W156: 12 | X156: 10 | Y156: 9 | Z156: =SUM(W156:Y156) -> 31 | AA156: =IF(V156="","",RANK(Z156,Z$7:Z$230)) -> 151 | AB156: =IF(AA156="",0,Z$231+1-AA156) -> 19 | AC156: =AB156+T156 -> 211 | AD156: =RANK(AC156,AC$7:AC$230) -> 122 | AE156: cascade glacee | AF156: 14 | AG156: 9 | AH156: 10 | AI156: =SUM(AF156:AH156) -> 33 | AJ156: =IF(AE156="","",RANK(AI156,AI$7:AI$230)) -> 143 | AK156: =IF(AJ156="",0,AI$231+1-AJ156) -> 14 | AL156: =AK156+AC156 -> 225 | AM156: =RANK(AL156,AL$7:AL$230) -> 148 | AN156: buffet froid | AO156: 9 | AP156: 12 | AQ156: 8 | AR156: =SUM(AO156:AQ156) -> 29 | AS156: =IF(AN156="","",RANK(AR156,AR$7:AR$230)) -> 141 | AT156: =IF(AS156="",0,AR$231+1-AS156) -> 23 | AU156: =AT156+AL156 -> 248 | AV156: =RANK(AU156,AU$7:AU$230) -> 150 | BA156: 0 | BB156: =IF(AW156="","",RANK(BA156,BA$8:BA$224)) ->  | BC156: =IF(BB156="",0,BA$225+1-BB156) -> 0 | BD156: 248 | BE156: =RANK(BD156,BD$8:BD$224) -> 132 | BJ156: 0 | BK156: =IF(BF156="","",RANK(BJ156,BJ$8:BJ$224)) ->  | BL156: =IF(BK156="",0,BJ$225+1-BK156) -> 0 | BM156: 248 | BN156: =RANK(BM156,BM$8:BM$224) -> 132 | BS156: 0 | BT156: =IF(BO156="","",RANK(BS156,BS$8:BS$224)) ->  | BU156: =IF(BT156="",0,BS$225+1-BT156) -> 0 | BV156: 248 | BW156: =RANK(BV156,BV$8:BV$224) -> 132
B157: Alain Mariat | C157: Objectif Photo St Maurice l'Exil | D157: 1117540015 | E157: Couché de lune | F157: 17 | G157: 14 | H157: 14 | I157: =SUM(F157:H157) -> 45 | J157: =IF(E157="","",RANK(I157,I$7:I$230)) -> 19 | K157: =IF(J157="",0,I$231+1-J157) -> 174 | L157: =RANK(K157,K$7:K$226) -> 19 | M157: çanetournepassirond | N157: 13 | O157: 12 | P157: 11 | Q157: =SUM(N157:P157) -> 36 | R157: =IF(M157="","",RANK(Q157,Q$7:Q$230)) -> 97 | S157: =IF(R157="",0,Q$231+1-R157) -> 72 | T157: =S157+K157 -> 246 | U157: =IF(T157=0,"",RANK(T157,T$7:T$230)) -> 37 | Z157: =SUM(W157:Y157) -> 0 | AA157: =IF(V157="","",RANK(Z157,Z$7:Z$230)) ->  | AB157: =IF(AA157="",0,Z$231+1-AA157) -> 0 | AC157: =AB157+T157 -> 246 | AD157: =RANK(AC157,AC$7:AC$230) -> 89 | AI157: =SUM(AF157:AH157) -> 0 | AJ157: =IF(AE157="","",RANK(AI157,AI$7:AI$230)) ->  | AK157: =IF(AJ157="",0,AI$231+1-AJ157) -> 0 | AL157: =AK157+AC157 -> 246 | AM157: =RANK(AL157,AL$7:AL$230) -> 129 | AR157: =SUM(AO157:AQ157) -> 0 | AS157: =IF(AN157="","",RANK(AR157,AR$7:AR$230)) ->  | AT157: =IF(AS157="",0,AR$231+1-AS157) -> 0 | AU157: =AT157+AL157 -> 246 | AV157: =RANK(AU157,AU$7:AU$230) -> 151 | BA157: 0 | BC157: 0 | BD157: 246 | BE157: 133 | BJ157: 0 | BL157: 0 | BM157: 246 | BN157: 133 | BS157: 0 | BU157: 0 | BV157: 246 | BW157: 133
B158: Patrick Sztulzaft | C158: Merger Photo Club - Meylan | D158: 1102590094 | E158: Lumiere naturelle | F158: 14 | G158: 12 | H158: 9 | I158: =SUM(F158:H158) -> 35 | J158: =IF(E158="","",RANK(I158,I$7:I$230)) -> 124 | K158: =IF(J158="",0,I$231+1-J158) -> 69 | L158: =RANK(K158,K$7:K$226) -> 124 | M158: Etalage | N158: 9 | O158: 14 | P158: 12 | Q158: =SUM(N158:P158) -> 35 | R158: =IF(M158="","",RANK(Q158,Q$7:Q$230)) -> 108 | S158: =IF(R158="",0,Q$231+1-R158) -> 61 | T158: =S158+K158 -> 130 | U158: =IF(T158=0,"",RANK(T158,T$7:T$230)) -> 134 | V158: Montee à la bastille | W158: 9 | X158: 17 | Y158: 14 | Z158: =SUM(W158:Y158) -> 40 | AA158: =IF(V158="","",RANK(Z158,Z$7:Z$230)) -> 58 | AB158: =IF(AA158="",0,Z$231+1-AA158) -> 112 | AC158: =AB158+T158 -> 242 | AD158: =RANK(AC158,AC$7:AC$230) -> 91 | AI158: =SUM(AF158:AH158) -> 0 | AJ158: =IF(AE158="","",RANK(AI158,AI$7:AI$230)) ->  | AK158: =IF(AJ158="",0,AI$231+1-AJ158) -> 0 | AL158: =AK158+AC158 -> 242 | AM158: =RANK(AL158,AL$7:AL$230) -> 134 | AR158: =SUM(AO158:AQ158) -> 0 | AS158: =IF(AN158="","",RANK(AR158,AR$7:AR$230)) ->  | AT158: =IF(AS158="",0,AR$231+1-AS158) -> 0 | AU158: =AT158+AL158 -> 242 | AV158: =RANK(AU158,AU$7:AU$230) -> 152 | BA158: 0 | BC158: 0 | BD158: 242 | BE158: 134 | BJ158: 0 | BL158: 0 | BM158: 242 | BN158: 134 | BS158: 0 | BU158: 0 | BV158: 242 | BW158: 134
B159: Chantal Dazord | C159: Club Photo St André de Corcy | D159: 1118930052 | E159: barque musicale lumineuse | F159: 9 | G159: 12 | H159: 8 | I159: =SUM(F159:H159) -> 29 | J159: =IF(E159="","",RANK(I159,I$7:I$230)) -> 179 | K159: =IF(J159="",0,I$231+1-J159) -> 14 | L159: =RANK(K159,K$7:K$226) -> 179 | M159: Panier Vitaminé | N159: 17 | O159: 13 | P159: 11 | Q159: =SUM(N159:P159) -> 41 | R159: =IF(M159="","",RANK(Q159,Q$7:Q$230)) -> 49 | S159: =IF(R159="",0,Q$231+1-R159) -> 120 | T159: =S159+K159 -> 134 | U159: =IF(T159=0,"",RANK(T159,T$7:T$230)) -> 133 | V159: Oncieux mysterieux village rond | W159: 12 | X159: 9 | Y159: 11 | Z159: =SUM(W159:Y159) -> 32 | AA159: =IF(V159="","",RANK(Z159,Z$7:Z$230)) -> 141 | AB159: =IF(AA159="",0,Z$231+1-AA159) -> 29 | AC159: =AB159+T159 -> 163 | AD159: =RANK(AC159,AC$7:AC$230) -> 158 | AE159: LA SOURCE | AF159: 15 | AG159: 9 | AH159: 12 | AI159: =SUM(AF159:AH159) -> 36 | AJ159: =IF(AE159="","",RANK(AI159,AI$7:AI$230)) -> 116 | AK159: =IF(AJ159="",0,AI$231+1-AJ159) -> 41 | AL159: =AK159+AC159 -> 204 | AM159: =RANK(AL159,AL$7:AL$230) -> 153 | AN159: Manteau neigeux sur l'Eglise St Marcellin | AO159: 9 | AP159: 9 | AQ159: 13 | AR159: =SUM(AO159:AQ159) -> 31 | AS159: =IF(AN159="","",RANK(AR159,AR$7:AR$230)) -> 131 | AT159: =IF(AS159="",0,AR$231+1-AS159) -> 33 | AU159: =AT159+AL159 -> 237 | AV159: =RANK(AU159,AU$7:AU$230) -> 153 | BA159: 0 | BC159: 0 | BD159: 237 | BE159: 135 | BJ159: 0 | BL159: 0 | BM159: 237 | BN159: 135 | BS159: 0 | BU159: 0 | BV159: 237 | BW159: 135
B160: Dominique Giraud | C160: Photo Club de Bourgoin-Jallieu | D160: 1108830131 | E160: féerie | F160: 17 | G160: 13 | H160: 15 | I160: =SUM(F160:H160) -> 45 | J160: =IF(E160="","",RANK(I160,I$7:I$230)) -> 19 | K160: =IF(J160="",0,I$231+1-J160) -> 174 | L160: =RANK(K160,K$7:K$226) -> 19 | M160: à table | N160: 10 | O160: 11 | P160: 11 | Q160: =SUM(N160:P160) -> 32 | R160: =IF(M160="","",RANK(Q160,Q$7:Q$230)) -> 129 | S160: =IF(R160="",0,Q$231+1-R160) -> 40 | T160: =S160+K160 -> 214 | U160: =IF(T160=0,"",RANK(T160,T$7:T$230)) -> 66 | V160: GRENOBLE | W160: 8 | X160: 6 | Y160: 13 | Z160: =SUM(W160:Y160) -> 27 | AA160: =IF(V160="","",RANK(Z160,Z$7:Z$230)) -> 166 | AB160: =IF(AA160="",0,Z$231+1-AA160) -> 4 | AC160: =AB160+T160 -> 218 | AD160: =RANK(AC160,AC$7:AC$230) -> 116 | AE160: jet d'eau | AF160: 13 | AG160: 9 | AH160: 11 | AI160: =SUM(AF160:AH160) -> 33 | AJ160: =IF(AE160="","",RANK(AI160,AI$7:AI$230)) -> 143 | AK160: =IF(AJ160="",0,AI$231+1-AJ160) -> 14 | AL160: =AK160+AC160 -> 232 | AM160: =RANK(AL160,AL$7:AL$230) -> 140 | AS160: =IF(AN160="","",RANK(AR160,AR$7:AR$230)) ->  | AT160: =IF(AS160="",0,AR$231+1-AS160) -> 0 | AU160: =AT160+AL160 -> 232 | AV160: =RANK(AU160,AU$7:AU$230) -> 154 | BA160: 0 | BC160: 0 | BD160: 232 | BE160: 136 | BJ160: 0 | BL160: 0 | BM160: 232 | BN160: 136 | BS160: 0 | BU160: 0 | BV160: 232 | BW160: 136
B161: René Collongeat | C161: Club Photo St André de Corcy | D161: 1118930012 | E161: Lumière dans les marais | F161: 8 | G161: 10 | H161: 8 | I161: =SUM(F161:H161) -> 26 | J161: =IF(E161="","",RANK(I161,I$7:I$230)) -> 189 | K161: =IF(J161="",0,I$231+1-J161) -> 4 | L161: =RANK(K161,K$7:K$226) -> 188 | M161: Une boutique de produits locaux, un régal | N161: 14 | O161: 14 | P161: 12 | Q161: =SUM(N161:P161) -> 40 | R161: =IF(M161="","",RANK(Q161,Q$7:Q$230)) -> 56 | S161: =IF(R161="",0,Q$231+1-R161) -> 113 | T161: =S161+K161 -> 117 | U161: =IF(T161=0,"",RANK(T161,T$7:T$230)) -> 144 | V161: Oingt | W161: 10 | X161: 10 | Y161: 9 | Z161: =SUM(W161:Y161) -> 29 | AA161: =IF(V161="","",RANK(Z161,Z$7:Z$230)) -> 160 | AB161: =IF(AA161="",0,Z$231+1-AA161) -> 10 | AC161: =AB161+T161 -> 127 | AD161: =RANK(AC161,AC$7:AC$230) -> 170 | AE161: Explosions | AF161: 15 | AG161: 14 | AH161: 12 | AI161: =SUM(AF161:AH161) -> 41 | AJ161: =IF(AE161="","",RANK(AI161,AI$7:AI$230)) -> 52 | AK161: =IF(AJ161="",0,AI$231+1-AJ161) -> 105 | AL161: =AK161+AC161 -> 232 | AM161: =RANK(AL161,AL$7:AL$230) -> 140 | AR161: =SUM(AO161:AQ161) -> 0 | AS161: =IF(AN161="","",RANK(AR161,AR$7:AR$230)) ->  | AT161: =IF(AS161="",0,AR$231+1-AS161) -> 0 | AU161: =AT161+AL161 -> 232 | AV161: =RANK(AU161,AU$7:AU$230) -> 154 | BA161: 0 | BC161: 0 | BD161: 232 | BE161: 136 | BJ161: 0 | BL161: 0 | BM161: 232 | BN161: 136 | BS161: 0 | BU161: 0 | BV161: 232 | BW161: 136
B162: Guy Gorinas | C162: Photo Club de Sillingy | D162: 1121950005 | E162: lumières vivantes | F162: 10 | G162: 9 | H162: 8 | I162: =SUM(F162:H162) -> 27 | J162: =IF(E162="","",RANK(I162,I$7:I$230)) -> 184 | K162: =IF(J162="",0,I$231+1-J162) -> 9 | L162: =RANK(K162,K$7:K$226) -> 184 | Q162: =SUM(N162:P162) -> 0 | R162: =IF(M162="","",RANK(Q162,Q$7:Q$230)) ->  | S162: =IF(R162="",0,Q$231+1-R162) -> 0 | T162: =S162+K162 -> 9 | U162: =IF(T162=0,"",RANK(T162,T$7:T$230)) -> 202 | V162: St Jorioz (74410) | W162: 14 | X162: 19 | Y162: 13 | Z162: =SUM(W162:Y162) -> 46 | AA162: =IF(V162="","",RANK(Z162,Z$7:Z$230)) -> 11 | AB162: =IF(AA162="",0,Z$231+1-AA162) -> 159 | AC162: =AB162+T162 -> 168 | AD162: =RANK(AC162,AC$7:AC$230) -> 153 | AE162: kravice | AF162: 12 | AG162: 13 | AH162: 13 | AI162: =SUM(AF162:AH162) -> 38 | AJ162: =IF(AE162="","",RANK(AI162,AI$7:AI$230)) -> 93 | AK162: =IF(AJ162="",0,AI$231+1-AJ162) -> 64 | AL162: =AK162+AC162 -> 232 | AM162: =RANK(AL162,AL$7:AL$230) -> 140 | AS162: =IF(AN162="","",RANK(AR162,AR$7:AR$230)) ->  | AT162: =IF(AS162="",0,AR$231+1-AS162) -> 0 | AU162: =AT162+AL162 -> 232 | AV162: =RANK(AU162,AU$7:AU$230) -> 154 | BA162: 0 | BC162: 0 | BD162: 232 | BE162: 136 | BJ162: 0 | BL162: 0 | BM162: 232 | BN162: 136 | BS162: 0 | BU162: 0 | BV162: 232 | BW162: 136
B163: Marie Marlène Mahalatchimy | C163: Photo Club Chasseurs d' Images Valence | D163: 1119490019 | J163: =IF(E163="","",RANK(I163,I$7:I$230)) ->  | K163: =IF(J163="",0,I$231+1-J163) -> 0 | L163: =RANK(K163,K$7:K$226) -> 192 | M163: Histoire de poire | N163: 12 | O163: 12 | P163: 11 | Q163: =SUM(N163:P163) -> 35 | R163: =IF(M163="","",RANK(Q163,Q$7:Q$230)) -> 108 | S163: =IF(R163="",0,Q$231+1-R163) -> 61 | T163: =S163+K163 -> 61 | U163: =IF(T163=0,"",RANK(T163,T$7:T$230)) -> 173 | V163: Embrun, Vue sur le rocher | W163: 15 | X163: 12 | Y163: 14 | Z163: =SUM(W163:Y163) -> 41 | AA163: =IF(V163="","",RANK(Z163,Z$7:Z$230)) -> 48 | AB163: =IF(AA163="",0,Z$231+1-AA163) -> 122 | AC163: =AB163+T163 -> 183 | AD163: =RANK(AC163,AC$7:AC$230) -> 144 | AE163: Sur la route. | AF163: 9 | AG163: 9 | AH163: 9 | AI163: =SUM(AF163:AH163) -> 27 | AJ163: =IF(AE163="","",RANK(AI163,AI$7:AI$230)) -> 154 | AK163: =IF(AJ163="",0,AI$231+1-AJ163) -> 3 | AL163: =AK163+AC163 -> 186 | AM163: =RANK(AL163,AL$7:AL$230) -> 160 | AN163: Seul au monde | AO163: 10 | AP163: 12 | AQ163: 10 | AR163: =SUM(AO163:AQ163) -> 32 | AS163: =IF(AN163="","",RANK(AR163,AR$7:AR$230)) -> 119 | AT163: =IF(AS163="",0,AR$231+1-AS163) -> 45 | AU163: =AT163+AL163 -> 231 | AV163: =RANK(AU163,AU$7:AU$230) -> 157 | BA163: 0 | BC163: 0 | BD163: 231 | BE163: 139 | BJ163: 0 | BL163: 0 | BM163: 231 | BN163: 139 | BS163: 0 | BU163: 0 | BV163: 231 | BW163: 139
B164: Clara Charpail | C164: Clic Images PC de Chabeuil | D164: 1117810023 | E164: musique | F164: 15 | G164: 11 | H164: 12 | I164: =SUM(F164:H164) -> 38 | J164: =IF(E164="","",RANK(I164,I$7:I$230)) -> 98 | K164: =IF(J164="",0,I$231+1-J164) -> 95 | L164: =RANK(K164,K$7:K$226) -> 98 | M164: Vitamines | N164: 18 | O164: 13 | P164: 12 | Q164: =SUM(N164:P164) -> 43 | R164: =IF(M164="","",RANK(Q164,Q$7:Q$230)) -> 34 | S164: =IF(R164="",0,Q$231+1-R164) -> 135 | T164: =S164+K164 -> 230 | U164: =IF(T164=0,"",RANK(T164,T$7:T$230)) -> 54 | Z164: =SUM(W164:Y164) -> 0 | AA164: =IF(V164="","",RANK(Z164,Z$7:Z$230)) ->  | AB164: =IF(AA164="",0,Z$231+1-AA164) -> 0 | AC164: =AB164+T164 -> 230 | AD164: =RANK(AC164,AC$7:AC$230) -> 106 | AI164: =SUM(AF164:AH164) -> 0 | AJ164: =IF(AE164="","",RANK(AI164,AI$7:AI$230)) ->  | AK164: =IF(AJ164="",0,AI$231+1-AJ164) -> 0 | AL164: =AK164+AC164 -> 230 | AM164: =RANK(AL164,AL$7:AL$230) -> 145 | AR164: =SUM(AO164:AQ164) -> 0 | AS164: =IF(AN164="","",RANK(AR164,AR$7:AR$230)) ->  | AT164: =IF(AS164="",0,AR$231+1-AS164) -> 0 | AU164: =AT164+AL164 -> 230 | AV164: =RANK(AU164,AU$7:AU$230) -> 158 | BA164: 0 | BC164: 0 | BD164: 230 | BE164: 140 | BJ164: 0 | BL164: 0 | BM164: 230 | BN164: 140 | BS164: 0 | BU164: 0 | BV164: 230 | BW164: 140
B165: Jean-Pierre Dussaud | C165: Numerica Photo Club Faverges | D165: 1121100003 | E165: lumière intense | F165: 18 | G165: 16 | H165: 16 | I165: =SUM(F165:H165) -> 50 | J165: =IF(E165="","",RANK(I165,I$7:I$230)) -> 2 | K165: =IF(J165="",0,I$231+1-J165) -> 191 | L165: =RANK(K165,K$7:K$226) -> 2 | M165: petits fruits | N165: 8 | O165: 10 | P165: 10 | Q165: =SUM(N165:P165) -> 28 | R165: =IF(M165="","",RANK(Q165,Q$7:Q$230)) -> 155 | S165: =IF(R165="",0,Q$231+1-R165) -> 14 | T165: =S165+K165 -> 205 | U165: =IF(T165=0,"",RANK(T165,T$7:T$230)) -> 71 | V165: mon village blotti | W165: 10 | X165: 10 | Y165: 11 | Z165: =SUM(W165:Y165) -> 31 | AA165: =IF(V165="","",RANK(Z165,Z$7:Z$230)) -> 151 | AB165: =IF(AA165="",0,Z$231+1-AA165) -> 19 | AC165: =AB165+T165 -> 224 | AD165: =RANK(AC165,AC$7:AC$230) -> 112 | AI165: =SUM(AF165:AH165) -> 0 | AJ165: =IF(AE165="","",RANK(AI165,AI$7:AI$230)) ->  | AK165: =IF(AJ165="",0,AI$231+1-AJ165) -> 0 | AL165: =AK165+AC165 -> 224 | AM165: =RANK(AL165,AL$7:AL$230) -> 149 | AR165: =SUM(AO165:AQ165) -> 0 | AS165: =IF(AN165="","",RANK(AR165,AR$7:AR$230)) ->  | AT165: =IF(AS165="",0,AR$231+1-AS165) -> 0 | AU165: =AT165+AL165 -> 224 | AV165: =RANK(AU165,AU$7:AU$230) -> 159 | BA165: 0 | BC165: 0 | BD165: 224 | BE165: 141 | BJ165: 0 | BL165: 0 | BM165: 224 | BN165: 141 | BS165: 0 | BU165: 0 | BV165: 224 | BW165: 141
B166: Marie-Joelle Laplace | C166: Photo Club de Sillingy | D166: 1121950004 | E166: Rayons 1 | F166: 12 | G166: 14 | H166: 15 | I166: =SUM(F166:H166) -> 41 | J166: =IF(E166="","",RANK(I166,I$7:I$230)) -> 55 | K166: =IF(J166="",0,I$231+1-J166) -> 138 | L166: =RANK(K166,K$7:K$226) -> 55 | Q166: =SUM(N166:P166) -> 0 | R166: =IF(M166="","",RANK(Q166,Q$7:Q$230)) ->  | S166: =IF(R166="",0,Q$231+1-R166) -> 0 | T166: =S166+K166 -> 138 | U166: =IF(T166=0,"",RANK(T166,T$7:T$230)) -> 130 | Z166: =SUM(W166:Y166) -> 0 | AA166: =IF(V166="","",RANK(Z166,Z$7:Z$230)) ->  | AB166: =IF(AA166="",0,Z$231+1-AA166) -> 0 | AC166: =AB166+T166 -> 138 | AD166: =RANK(AC166,AC$7:AC$230) -> 168 | AI166: =SUM(AF166:AH166) -> 0 | AJ166: =IF(AE166="","",RANK(AI166,AI$7:AI$230)) ->  | AK166: =IF(AJ166="",0,AI$231+1-AJ166) -> 0 | AL166: =AK166+AC166 -> 138 | AM166: =RANK(AL166,AL$7:AL$230) -> 174 | AN166: Seuls dans le froid | AO166: 10 | AP166: 14 | AQ166: 12 | AR166: =SUM(AO166:AQ166) -> 36 | AS166: =IF(AN166="","",RANK(AR166,AR$7:AR$230)) -> 80 | AT166: =IF(AS166="",0,AR$231+1-AS166) -> 84 | AU166: =AT166+AL166 -> 222 | AV166: =RANK(AU166,AU$7:AU$230) -> 160 | BA166: 0 | BC166: 0 | BD166: 222 | BE166: 142 | BJ166: 0 | BL166: 0 | BM166: 222 | BN166: 142 | BS166: 0 | BU166: 0 | BV166: 222 | BW166: 142
B167: Lydie Berthet | C167: Gavot Déclic - PC Larringes | D167: 1116980038 | J167: =IF(E167="","",RANK(I167,I$7:I$230)) ->  | K167: =IF(J167="",0,I$231+1-J167) -> 0 | L167: =RANK(K167,K$7:K$226) -> 192 | R167: =IF(M167="","",RANK(Q167,Q$7:Q$230)) ->  | S167: =IF(R167="",0,Q$231+1-R167) -> 0 | T167: =S167+K167 -> 0 | U167: =IF(T167=0,"",RANK(T167,T$7:T$230)) ->  | V167: Le port glacé de Corzent | W167: 9 | X167: 14 | Y167: 15 | Z167: =SUM(W167:Y167) -> 38 | AA167: =IF(V167="","",RANK(Z167,Z$7:Z$230)) -> 80 | AB167: =IF(AA167="",0,Z$231+1-AA167) -> 90 | AC167: =AB167+T167 -> 90 | AD167: =RANK(AC167,AC$7:AC$230) -> 181 | AE167: fontaine de Mr Traver | AF167: 16 | AG167: 14 | AH167: 14 | AI167: =SUM(AF167:AH167) -> 44 | AJ167: =IF(AE167="","",RANK(AI167,AI$7:AI$230)) -> 29 | AK167: =IF(AJ167="",0,AI$231+1-AJ167) -> 128 | AL167: =AK167+AC167 -> 218 | AM167: =RANK(AL167,AL$7:AL$230) -> 150 | AR167: =SUM(AO167:AQ167) -> 0 | AS167: =IF(AN167="","",RANK(AR167,AR$7:AR$230)) ->  | AT167: =IF(AS167="",0,AR$231+1-AS167) -> 0 | AU167: =AT167+AL167 -> 218 | AV167: =RANK(AU167,AU$7:AU$230) -> 161 | BA167: 0 | BC167: 0 | BD167: 218 | BE167: 143 | BJ167: 0 | BL167: 0 | BM167: 218 | BN167: 143 | BS167: 0 | BU167: 0 | BV167: 218 | BW167: 143
B168: Eric Descoret | C168: Photo Club de Bourgoin-Jallieu | D168: 1108830126 | E168: Au fil de la lumière... | F168: 12 | G168: 13 | H168: 12 | I168: =SUM(F168:H168) -> 37 | J168: =IF(E168="","",RANK(I168,I$7:I$230)) -> 106 | K168: =IF(J168="",0,I$231+1-J168) -> 87 | L168: =RANK(K168,K$7:K$226) -> 106 | M168: Orange amère ! | N168: 19 | O168: 12 | P168: 11 | Q168: =SUM(N168:P168) -> 42 | R168: =IF(M168="","",RANK(Q168,Q$7:Q$230)) -> 39 | S168: =IF(R168="",0,Q$231+1-R168) -> 130 | T168: =S168+K168 -> 217 | U168: =IF(T168=0,"",RANK(T168,T$7:T$230)) -> 63 | Z168: =SUM(W168:Y168) -> 0 | AA168: =IF(V168="","",RANK(Z168,Z$7:Z$230)) ->  | AB168: =IF(AA168="",0,Z$231+1-AA168) -> 0 | AC168: =AB168+T168 -> 217 | AD168: =RANK(AC168,AC$7:AC$230) -> 117 | AI168: =SUM(AF168:AH168) -> 0 | AJ168: =IF(AE168="","",RANK(AI168,AI$7:AI$230)) ->  | AK168: =IF(AJ168="",0,AI$231+1-AJ168) -> 0 | AL168: =AK168+AC168 -> 217 | AM168: =RANK(AL168,AL$7:AL$230) -> 151 | AR168: =SUM(AO168:AQ168) -> 0 | AS168: =IF(AN168="","",RANK(AR168,AR$7:AR$230)) ->  | AT168: =IF(AS168="",0,AR$231+1-AS168) -> 0 | AU168: =AT168+AL168 -> 217 | AV168: =RANK(AU168,AU$7:AU$230) -> 162 | BA168: 0 | BC168: 0 | BD168: 217 | BE168: 144 | BJ168: 0 | BL168: 0 | BM168: 217 | BN168: 144 | BS168: 0 | BU168: 0 | BV168: 217 | BW168: 144
B169: Philippe Bronnec | C169: Photo Club d'Aix-les-Bains | D169: 1104860135 | E169: Sagrada Familia Barcelone | F169: 9 | G169: 12 | H169: 10 | I169: =SUM(F169:H169) -> 31 | J169: =IF(E169="","",RANK(I169,I$7:I$230)) -> 169 | K169: =IF(J169="",0,I$231+1-J169) -> 24 | L169: =RANK(K169,K$7:K$226) -> 169 | M169: POUR NEWTON | N169: 8 | O169: 10 | P169: 10 | Q169: =SUM(N169:P169) -> 28 | R169: =IF(M169="","",RANK(Q169,Q$7:Q$230)) -> 155 | S169: =IF(R169="",0,Q$231+1-R169) -> 14 | T169: =S169+K169 -> 38 | U169: =IF(T169=0,"",RANK(T169,T$7:T$230)) -> 186 | V169: Chantal 73 | W169: 13 | X169: 12 | Y169: 11 | Z169: =SUM(W169:Y169) -> 36 | AA169: =IF(V169="","",RANK(Z169,Z$7:Z$230)) -> 110 | AB169: =IF(AA169="",0,Z$231+1-AA169) -> 60 | AC169: =AB169+T169 -> 98 | AD169: =RANK(AC169,AC$7:AC$230) -> 178 | AI169: =SUM(AF169:AH169) -> 0 | AJ169: =IF(AE169="","",RANK(AI169,AI$7:AI$230)) ->  | AK169: =IF(AJ169="",0,AI$231+1-AJ169) -> 0 | AL169: =AK169+AC169 -> 98 | AM169: =RANK(AL169,AL$7:AL$230) -> 184 | AN169: LA GRANDE ODYSSEE | AO169: 14 | AP169: 12 | AQ169: 13 | AR169: =SUM(AO169:AQ169) -> 39 | AS169: =IF(AN169="","",RANK(AR169,AR$7:AR$230)) -> 52 | AT169: =IF(AS169="",0,AR$231+1-AS169) -> 112 | AU169: =AT169+AL169 -> 210 | AV169: =RANK(AU169,AU$7:AU$230) -> 163 | BA169: 0 | BC169: 0 | BD169: 210 | BE169: 145 | BJ169: 0 | BL169: 0 | BM169: 210 | BN169: 145 | BS169: 0 | BU169: 0 | BV169: 210 | BW169: 145
B170: Annick Barras | C170: Photo Ciné Club Roannais | D170: 1120750011 | E170: En pleine lumière | F170: 13 | G170: 12 | H170: 16 | I170: =SUM(F170:H170) -> 41 | J170: =IF(E170="","",RANK(I170,I$7:I$230)) -> 55 | K170: =IF(J170="",0,I$231+1-J170) -> 138 | L170: =RANK(K170,K$7:K$226) -> 55 | M170: Couleurs locales | N170: 12 | O170: 13 | P170: 11 | Q170: =SUM(N170:P170) -> 36 | R170: =IF(M170="","",RANK(Q170,Q$7:Q$230)) -> 97 | S170: =IF(R170="",0,Q$231+1-R170) -> 72 | T170: =S170+K170 -> 210 | U170: =IF(T170=0,"",RANK(T170,T$7:T$230)) -> 68 | Z170: =SUM(W170:Y170) -> 0 | AA170: =IF(V170="","",RANK(Z170,Z$7:Z$230)) ->  | AB170: =IF(AA170="",0,Z$231+1-AA170) -> 0 | AC170: =AB170+T170 -> 210 | AD170: =RANK(AC170,AC$7:AC$230) -> 123 | AI170: =SUM(AF170:AH170) -> 0 | AJ170: =IF(AE170="","",RANK(AI170,AI$7:AI$230)) ->  | AK170: =IF(AJ170="",0,AI$231+1-AJ170) -> 0 | AL170: =AK170+AC170 -> 210 | AM170: =RANK(AL170,AL$7:AL$230) -> 152 | AR170: =SUM(AO170:AQ170) -> 0 | AS170: =IF(AN170="","",RANK(AR170,AR$7:AR$230)) ->  | AT170: =IF(AS170="",0,AR$231+1-AS170) -> 0 | AU170: =AT170+AL170 -> 210 | AV170: =RANK(AU170,AU$7:AU$230) -> 163 | BA170: 0 | BC170: 0 | BD170: 210 | BE170: 145 | BJ170: 0 | BL170: 0 | BM170: 210 | BN170: 145 | BS170: 0 | BU170: 0 | BV170: 210 | BW170: 145
B171: Daniella Lienard | C171: Club Photo St André de Corcy | D171: 1118930054 | E171: Lumière double | F171: 17 | G171: 11 | H171: 12 | I171: =SUM(F171:H171) -> 40 | J171: =IF(E171="","",RANK(I171,I$7:I$230)) -> 69 | K171: =IF(J171="",0,I$231+1-J171) -> 124 | L171: =RANK(K171,K$7:K$226) -> 69 | Q171: =SUM(N171:P171) -> 0 | R171: =IF(M171="","",RANK(Q171,Q$7:Q$230)) ->  | S171: =IF(R171="",0,Q$231+1-R171) -> 0 | T171: =S171+K171 -> 124 | U171: =IF(T171=0,"",RANK(T171,T$7:T$230)) -> 140 | Z171: =SUM(W171:Y171) -> 0 | AA171: =IF(V171="","",RANK(Z171,Z$7:Z$230)) ->  | AB171: =IF(AA171="",0,Z$231+1-AA171) -> 0 | AC171: =AB171+T171 -> 124 | AD171: =RANK(AC171,AC$7:AC$230) -> 172 | AE171: Reve de fontaine - Lyon | AF171: 15 | AG171: 12 | AH171: 12 | AI171: =SUM(AF171:AH171) -> 39 | AJ171: =IF(AE171="","",RANK(AI171,AI$7:AI$230)) -> 81 | AK171: =IF(AJ171="",0,AI$231+1-AJ171) -> 76 | AL171: =AK171+AC171 -> 200 | AM171: =RANK(AL171,AL$7:AL$230) -> 154 | AR171: =SUM(AO171:AQ171) -> 0 | AS171: =IF(AN171="","",RANK(AR171,AR$7:AR$230)) ->  | AT171: =IF(AS171="",0,AR$231+1-AS171) -> 0 | AU171: =AT171+AL171 -> 200 | AV171: =RANK(AU171,AU$7:AU$230) -> 165 | BA171: 0 | BC171: 0 | BD171: 200 | BE171: 147 | BJ171: 0 | BL171: 0 | BM171: 200 | BN171: 147 | BS171: 0 | BU171: 0 | BV171: 200 | BW171: 147
B172: Elyane Laroze | C172: ATSCAF Rhône Photo - Lyon | D172: 1117070018 | E172: Lumière d'un soir | F172: 8 | G172: 11 | H172: 12 | I172: =SUM(F172:H172) -> 31 | J172: =IF(E172="","",RANK(I172,I$7:I$230)) -> 169 | K172: =IF(J172="",0,I$231+1-J172) -> 24 | L172: =RANK(K172,K$7:K$226) -> 169 | M172: soupçon sucré | N172: 14 | O172: 13 | P172: 10 | Q172: =SUM(N172:P172) -> 37 | R172: =IF(M172="","",RANK(Q172,Q$7:Q$230)) -> 83 | S172: =IF(R172="",0,Q$231+1-R172) -> 86 | T172: =S172+K172 -> 110 | U172: =IF(T172=0,"",RANK(T172,T$7:T$230)) -> 150 | V172: Clocher de Nyons | W172: 12 | X172: 15 | Y172: 9 | Z172: =SUM(W172:Y172) -> 36 | AA172: =IF(V172="","",RANK(Z172,Z$7:Z$230)) -> 110 | AB172: =IF(AA172="",0,Z$231+1-AA172) -> 60 | AC172: =AB172+T172 -> 170 | AD172: =RANK(AC172,AC$7:AC$230) -> 152 | AE172: Vague à Lame | AF172: 10 | AG172: 7 | AH172: 9 | AI172: =SUM(AF172:AH172) -> 26 | AJ172: =IF(AE172="","",RANK(AI172,AI$7:AI$230)) -> 155 | AK172: =IF(AJ172="",0,AI$231+1-AJ172) -> 2 | AL172: =AK172+AC172 -> 172 | AM172: =RANK(AL172,AL$7:AL$230) -> 166 | AN172: Lac Chamoux | AO172: 10 | AP172: 8 | AQ172: 11 | AR172: =SUM(AO172:AQ172) -> 29 | AS172: =IF(AN172="","",RANK(AR172,AR$7:AR$230)) -> 141 | AT172: =IF(AS172="",0,AR$231+1-AS172) -> 23 | AU172: =AT172+AL172 -> 195 | AV172: =RANK(AU172,AU$7:AU$230) -> 166 | BA172: 0 | BC172: 0 | BD172: 195 | BE172: 148 | BJ172: 0 | BL172: 0 | BM172: 195 | BN172: 148 | BS172: 0 | BU172: 0 | BV172: 195 | BW172: 148
B173: Lyonel Chabanne | C173: Photo Club de Sillingy | D173: 1121950001 | E173: Gerbe de lumières | F173: 12 | G173: 12 | H173: 9 | I173: =SUM(F173:H173) -> 33 | J173: =IF(E173="","",RANK(I173,I$7:I$230)) -> 143 | K173: =IF(J173="",0,I$231+1-J173) -> 50 | L173: =RANK(K173,K$7:K$226) -> 143 | M173: bonheur | N173: 13 | O173: 10 | P173: 11 | Q173: =SUM(N173:P173) -> 34 | R173: =IF(M173="","",RANK(Q173,Q$7:Q$230)) -> 115 | S173: =IF(R173="",0,Q$231+1-R173) -> 54 | T173: =S173+K173 -> 104 | U173: =IF(T173=0,"",RANK(T173,T$7:T$230)) -> 152 | Z173: =SUM(W173:Y173) -> 0 | AA173: =IF(V173="","",RANK(Z173,Z$7:Z$230)) ->  | AB173: =IF(AA173="",0,Z$231+1-AA173) -> 0 | AC173: =AB173+T173 -> 104 | AD173: =RANK(AC173,AC$7:AC$230) -> 175 | AE173: soir d'orage | AF173: 15 | AG173: 14 | AH173: 10 | AI173: =SUM(AF173:AH173) -> 39 | AJ173: =IF(AE173="","",RANK(AI173,AI$7:AI$230)) -> 81 | AK173: =IF(AJ173="",0,AI$231+1-AJ173) -> 76 | AL173: =AK173+AC173 -> 180 | AM173: =RANK(AL173,AL$7:AL$230) -> 163 | AN173: hiver lacustre | AO173: 10 | AP173: 9 | AQ173: 8 | AR173: =SUM(AO173:AQ173) -> 27 | AS173: =IF(AN173="","",RANK(AR173,AR$7:AR$230)) -> 150 | AT173: =IF(AS173="",0,AR$231+1-AS173) -> 14 | AU173: =AT173+AL173 -> 194 | AV173: =RANK(AU173,AU$7:AU$230) -> 167 | BA173: 0 | BC173: 0 | BD173: 194 | BE173: 149 | BJ173: 0 | BL173: 0 | BM173: 194 | BN173: 149 | BS173: 0 | BU173: 0 | BV173: 194 | BW173: 149
B174: Jean Michel Massin | C174: Photo Club de Bourgoin-Jallieu | D174: 1108830154 | E174: La forêt en lumière | F174: 13 | G174: 12 | H174: 10 | I174: =SUM(F174:H174) -> 35 | J174: =IF(E174="","",RANK(I174,I$7:I$230)) -> 124 | K174: =IF(J174="",0,I$231+1-J174) -> 69 | L174: =RANK(K174,K$7:K$226) -> 124 | Q174: =SUM(N174:P174) -> 0 | R174: =IF(M174="","",RANK(Q174,Q$7:Q$230)) ->  | S174: =IF(R174="",0,Q$231+1-R174) -> 0 | T174: =S174+K174 -> 69 | U174: =IF(T174=0,"",RANK(T174,T$7:T$230)) -> 169 | V174: grenoble en bulles | W174: 12 | X174: 13 | Y174: 13 | Z174: =SUM(W174:Y174) -> 38 | AA174: =IF(V174="","",RANK(Z174,Z$7:Z$230)) -> 80 | AB174: =IF(AA174="",0,Z$231+1-AA174) -> 90 | AC174: =AB174+T174 -> 159 | AD174: =RANK(AC174,AC$7:AC$230) -> 161 | AE174: glace en flou | AF174: 9 | AG174: 9 | AH174: 17 | AI174: =SUM(AF174:AH174) -> 35 | AJ174: =IF(AE174="","",RANK(AI174,AI$7:AI$230)) -> 125 | AK174: =IF(AJ174="",0,AI$231+1-AJ174) -> 32 | AL174: =AK174+AC174 -> 191 | AM174: =RANK(AL174,AL$7:AL$230) -> 157 | AR174: =SUM(AO174:AQ174) -> 0 | AS174: =IF(AN174="","",RANK(AR174,AR$7:AR$230)) ->  | AT174: =IF(AS174="",0,AR$231+1-AS174) -> 0 | AU174: =AT174+AL174 -> 191 | AV174: =RANK(AU174,AU$7:AU$230) -> 168
B175: Christiane Deal | C175: Club Photo St André de Corcy | D175: 1118930034 | E175: Lumières multicolores | F175: 8 | G175: 12 | H175: 11 | I175: =SUM(F175:H175) -> 31 | J175: =IF(E175="","",RANK(I175,I$7:I$230)) -> 169 | K175: =IF(J175="",0,I$231+1-J175) -> 24 | L175: =RANK(K175,K$7:K$226) -> 169 | M175: Raisins avant les vendanges ! | N175: 11 | O175: 9 | P175: 11 | Q175: =SUM(N175:P175) -> 31 | R175: =IF(M175="","",RANK(Q175,Q$7:Q$230)) -> 139 | S175: =IF(R175="",0,Q$231+1-R175) -> 30 | T175: =S175+K175 -> 54 | U175: =IF(T175=0,"",RANK(T175,T$7:T$230)) -> 177 | V175: Petit village tranquille ! | W175: 12 | X175: 13 | Y175: 9 | Z175: =SUM(W175:Y175) -> 34 | AA175: =IF(V175="","",RANK(Z175,Z$7:Z$230)) -> 127 | AB175: =IF(AA175="",0,Z$231+1-AA175) -> 43 | AC175: =AB175+T175 -> 97 | AD175: =RANK(AC175,AC$7:AC$230) -> 180 | AE175: Fête du Lac à Annecy | AF175: 9 | AG175: 11 | AH175: 11 | AI175: =SUM(AF175:AH175) -> 31 | AJ175: =IF(AE175="","",RANK(AI175,AI$7:AI$230)) -> 150 | AK175: =IF(AJ175="",0,AI$231+1-AJ175) -> 7 | AL175: =AK175+AC175 -> 104 | AM175: =RANK(AL175,AL$7:AL$230) -> 181 | AN175: J'maccroche ! | AO175: 10 | AP175: 15 | AQ175: 11 | AR175: =SUM(AO175:AQ175) -> 36 | AS175: =IF(AN175="","",RANK(AR175,AR$7:AR$230)) -> 80 | AT175: =IF(AS175="",0,AR$231+1-AS175) -> 84 | AU175: =AT175+AL175 -> 188 | AV175: =RANK(AU175,AU$7:AU$230) -> 169
B176: Philippe Sebillotte | C176: Photo Club d'Annecy | D176: 1121270004 | E176: Sérénité matinale- PhS | F176: 18 | G176: 15 | H176: 15 | I176: =SUM(F176:H176) -> 48 | J176: =IF(E176="","",RANK(I176,I$7:I$230)) -> 5 | K176: =IF(J176="",0,I$231+1-J176) -> 188 | L176: =RANK(K176,K$7:K$226) -> 5 | Q176: =SUM(N176:P176) -> 0 | R176: =IF(M176="","",RANK(Q176,Q$7:Q$230)) ->  | S176: =IF(R176="",0,Q$231+1-R176) -> 0 | T176: =S176+K176 -> 188 | U176: =IF(T176=0,"",RANK(T176,T$7:T$230)) -> 93 | Z176: =SUM(W176:Y176) -> 0 | AA176: =IF(V176="","",RANK(Z176,Z$7:Z$230)) ->  | AB176: =IF(AA176="",0,Z$231+1-AA176) -> 0 | AC176: =AB176+T176 -> 188 | AD176: =RANK(AC176,AC$7:AC$230) -> 140 | AI176: =SUM(AF176:AH176) -> 0 | AJ176: =IF(AE176="","",RANK(AI176,AI$7:AI$230)) ->  | AK176: =IF(AJ176="",0,AI$231+1-AJ176) -> 0 | AL176: =AK176+AC176 -> 188 | AM176: =RANK(AL176,AL$7:AL$230) -> 159 | AR176: =SUM(AO176:AQ176) -> 0 | AS176: =IF(AN176="","",RANK(AR176,AR$7:AR$230)) ->  | AT176: =IF(AS176="",0,AR$231+1-AS176) -> 0 | AU176: =AT176+AL176 -> 188 | AV176: =RANK(AU176,AU$7:AU$230) -> 169 | BA176: 0 | BB176: =IF(AW176="","",RANK(BA176,BA$8:BA$224)) ->  | BC176: =IF(BB176="",0,BA$225+1-BB176) -> 0 | BD176: 188 | BE176: =RANK(BD176,BD$8:BD$224) -> 150 | BJ176: 0 | BK176: =IF(BF176="","",RANK(BJ176,BJ$8:BJ$224)) ->  | BL176: =IF(BK176="",0,BJ$225+1-BK176) -> 0 | BM176: 188 | BN176: =RANK(BM176,BM$8:BM$224) -> 150 | BS176: 0 | BT176: =IF(BO176="","",RANK(BS176,BS$8:BS$224)) ->  | BU176: =IF(BT176="",0,BS$225+1-BT176) -> 0 | BV176: 188 | BW176: =RANK(BV176,BV$8:BV$224) -> 150
B177: Serge Turlan | C177: Objectif Images Lyon | D177: 1106200052 | J177: =IF(E177="","",RANK(I177,I$7:I$230)) ->  | K177: =IF(J177="",0,I$231+1-J177) -> 0 | L177: =RANK(K177,K$7:K$226) -> 192 | R177: =IF(M177="","",RANK(Q177,Q$7:Q$230)) ->  | S177: =IF(R177="",0,Q$231+1-R177) -> 0 | T177: =S177+K177 -> 0 | U177: =IF(T177=0,"",RANK(T177,T$7:T$230)) ->  | V177: Sous les nuages | W177: 12 | X177: 11 | Y177: 14 | Z177: =SUM(W177:Y177) -> 37 | AA177: =IF(V177="","",RANK(Z177,Z$7:Z$230)) -> 96 | AB177: =IF(AA177="",0,Z$231+1-AA177) -> 74 | AC177: =AB177+T177 -> 74 | AD177: =RANK(AC177,AC$7:AC$230) -> 187 | AJ177: =IF(AE177="","",RANK(AI177,AI$7:AI$230)) ->  | AK177: =IF(AJ177="",0,AI$231+1-AJ177) -> 0 | AL177: =AK177+AC177 -> 74 | AM177: =RANK(AL177,AL$7:AL$230) -> 192 | AN177: Brume matinale | AO177: 15 | AP177: 11 | AQ177: 13 | AR177: =SUM(AO177:AQ177) -> 39 | AS177: =IF(AN177="","",RANK(AR177,AR$7:AR$230)) -> 52 | AT177: =IF(AS177="",0,AR$231+1-AS177) -> 112 | AU177: =AT177+AL177 -> 186 | AV177: =RANK(AU177,AU$7:AU$230) -> 171 | BA177: 0 | BB177: =IF(AW177="","",RANK(BA177,BA$8:BA$224)) ->  | BC177: =IF(BB177="",0,BA$225+1-BB177) -> 0 | BD177: 186 | BE177: =RANK(BD177,BD$8:BD$224) -> 151 | BJ177: 0 | BK177: =IF(BF177="","",RANK(BJ177,BJ$8:BJ$224)) ->  | BL177: =IF(BK177="",0,BJ$225+1-BK177) -> 0 | BM177: 186 | BN177: =RANK(BM177,BM$8:BM$224) -> 151 | BS177: 0 | BT177: =IF(BO177="","",RANK(BS177,BS$8:BS$224)) ->  | BU177: =IF(BT177="",0,BS$225+1-BT177) -> 0 | BV177: 186 | BW177: =RANK(BV177,BV$8:BV$224) -> 151
B178: Patrice Seurot | C178: Club Photo de Cognin | D178: 1110550208 | E178: porec | F178: 8 | G178: 12 | H178: 13 | I178: =SUM(F178:H178) -> 33 | J178: =IF(E178="","",RANK(I178,I$7:I$230)) -> 143 | K178: =IF(J178="",0,I$231+1-J178) -> 50 | L178: =RANK(K178,K$7:K$226) -> 143 | Q178: =SUM(N178:P178) -> 0 | R178: =IF(M178="","",RANK(Q178,Q$7:Q$230)) ->  | S178: =IF(R178="",0,Q$231+1-R178) -> 0 | T178: =S178+K178 -> 50 | U178: =IF(T178=0,"",RANK(T178,T$7:T$230)) -> 179 | V178: chambery | W178: 14 | X178: 15 | Y178: 13 | Z178: =SUM(W178:Y178) -> 42 | AA178: =IF(V178="","",RANK(Z178,Z$7:Z$230)) -> 36 | AB178: =IF(AA178="",0,Z$231+1-AA178) -> 134 | AC178: =AB178+T178 -> 184 | AD178: =RANK(AC178,AC$7:AC$230) -> 142 | AI178: =SUM(AF178:AH178) -> 0 | AJ178: =IF(AE178="","",RANK(AI178,AI$7:AI$230)) ->  | AK178: =IF(AJ178="",0,AI$231+1-AJ178) -> 0 | AL178: =AK178+AC178 -> 184 | AM178: =RANK(AL178,AL$7:AL$230) -> 161 | AR178: =SUM(AO178:AQ178) -> 0 | AS178: =IF(AN178="","",RANK(AR178,AR$7:AR$230)) ->  | AT178: =IF(AS178="",0,AR$231+1-AS178) -> 0 | AU178: =AT178+AL178 -> 184 | AV178: =RANK(AU178,AU$7:AU$230) -> 172 | BA178: 0 | BB178: =IF(AW178="","",RANK(BA178,BA$8:BA$224)) ->  | BC178: =IF(BB178="",0,BA$225+1-BB178) -> 0 | BD178: 184 | BE178: =RANK(BD178,BD$8:BD$224) -> 152 | BJ178: 0 | BK178: =IF(BF178="","",RANK(BJ178,BJ$8:BJ$224)) ->  | BL178: =IF(BK178="",0,BJ$225+1-BK178) -> 0 | BM178: 184 | BN178: =RANK(BM178,BM$8:BM$224) -> 152 | BS178: 0 | BT178: =IF(BO178="","",RANK(BS178,BS$8:BS$224)) ->  | BU178: =IF(BT178="",0,BS$225+1-BT178) -> 0 | BV178: 184 | BW178: =RANK(BV178,BV$8:BV$224) -> 152
B179: Anne Gruau | C179: Club Photo Morestel | D179: 1114030181 | E179: Contraste lumineux | F179: 17 | G179: 10 | H179: 12 | I179: =SUM(F179:H179) -> 39 | J179: =IF(E179="","",RANK(I179,I$7:I$230)) -> 84 | K179: =IF(J179="",0,I$231+1-J179) -> 109 | L179: =RANK(K179,K$7:K$226) -> 84 | M179: 3 Couleurs de fruit | N179: 12 | O179: 12 | P179: 12 | Q179: =SUM(N179:P179) -> 36 | R179: =IF(M179="","",RANK(Q179,Q$7:Q$230)) -> 97 | S179: =IF(R179="",0,Q$231+1-R179) -> 72 | T179: =S179+K179 -> 181 | U179: =IF(T179=0,"",RANK(T179,T$7:T$230)) -> 97 | Z179: =SUM(W179:Y179) -> 0 | AA179: =IF(V179="","",RANK(Z179,Z$7:Z$230)) ->  | AB179: =IF(AA179="",0,Z$231+1-AA179) -> 0 | AC179: =AB179+T179 -> 181 | AD179: =RANK(AC179,AC$7:AC$230) -> 145 | AI179: =SUM(AF179:AH179) -> 0 | AJ179: =IF(AE179="","",RANK(AI179,AI$7:AI$230)) ->  | AK179: =IF(AJ179="",0,AI$231+1-AJ179) -> 0 | AL179: =AK179+AC179 -> 181 | AM179: =RANK(AL179,AL$7:AL$230) -> 162 | AR179: =SUM(AO179:AQ179) -> 0 | AS179: =IF(AN179="","",RANK(AR179,AR$7:AR$230)) ->  | AT179: =IF(AS179="",0,AR$231+1-AS179) -> 0 | AU179: =AT179+AL179 -> 181 | AV179: =RANK(AU179,AU$7:AU$230) -> 173
B180: Christiane Boulud | C180: Les Belles Images Saint-Marcel-Bel-Accueil | D180: 1117570045 | J180: =IF(E180="","",RANK(I180,I$7:I$230)) ->  | K180: =IF(J180="",0,I$231+1-J180) -> 0 | L180: =RANK(K180,K$7:K$226) -> 192 | M180: Dans ton jardin ! | N180: 12 | O180: 16 | P180: 12 | Q180: =SUM(N180:P180) -> 40 | R180: =IF(M180="","",RANK(Q180,Q$7:Q$230)) -> 56 | S180: =IF(R180="",0,Q$231+1-R180) -> 113 | T180: =S180+K180 -> 113 | U180: =IF(T180=0,"",RANK(T180,T$7:T$230)) -> 147 | V180: Café de Fanny | W180: 13 | X180: 12 | Y180: 10 | Z180: =SUM(W180:Y180) -> 35 | AA180: =IF(V180="","",RANK(Z180,Z$7:Z$230)) -> 118 | AB180: =IF(AA180="",0,Z$231+1-AA180) -> 52 | AC180: =AB180+T180 -> 165 | AD180: =RANK(AC180,AC$7:AC$230) -> 155 | AI180: =SUM(AF180:AH180) -> 0 | AJ180: =IF(AE180="","",RANK(AI180,AI$7:AI$230)) ->  | AK180: =IF(AJ180="",0,AI$231+1-AJ180) -> 0 | AL180: =AK180+AC180 -> 165 | AM180: =RANK(AL180,AL$7:AL$230) -> 169 | AN180: Jeu dans la brume | AO180: 8 | AP180: 11 | AQ180: 8 | AR180: =SUM(AO180:AQ180) -> 27 | AS180: =IF(AN180="","",RANK(AR180,AR$7:AR$230)) -> 150 | AT180: =IF(AS180="",0,AR$231+1-AS180) -> 14 | AU180: =AT180+AL180 -> 179 | AV180: =RANK(AU180,AU$7:AU$230) -> 174 | BA180: 0 | BB180: =IF(AW180="","",RANK(BA180,BA$8:BA$224)) ->  | BC180: =IF(BB180="",0,BA$225+1-BB180) -> 0 | BD180: 179 | BE180: =RANK(BD180,BD$8:BD$224) -> 153 | BJ180: 0 | BK180: =IF(BF180="","",RANK(BJ180,BJ$8:BJ$224)) ->  | BL180: =IF(BK180="",0,BJ$225+1-BK180) -> 0 | BM180: 179 | BN180: =RANK(BM180,BM$8:BM$224) -> 153 | BS180: 0 | BT180: =IF(BO180="","",RANK(BS180,BS$8:BS$224)) ->  | BU180: =IF(BT180="",0,BS$225+1-BT180) -> 0 | BV180: 179 | BW180: =RANK(BV180,BV$8:BV$224) -> 153
B181: Rossi Pascale | C181: Photo Club IBM Grenoble | D181: 1109760015 | E181: Le matin a la campagne | F181: 14 | G181: 12 | H181: 14 | I181: =SUM(F181:H181) -> 40 | J181: =IF(E181="","",RANK(I181,I$7:I$230)) -> 69 | K181: =IF(J181="",0,I$231+1-J181) -> 124 | L181: =RANK(K181,K$7:K$226) -> 69 | M181: Artist palette | N181: 9 | O181: 14 | P181: 11 | Q181: =SUM(N181:P181) -> 34 | R181: =IF(M181="","",RANK(Q181,Q$7:Q$230)) -> 115 | S181: =IF(R181="",0,Q$231+1-R181) -> 54 | T181: =S181+K181 -> 178 | U181: =IF(T181=0,"",RANK(T181,T$7:T$230)) -> 100 | Z181: =SUM(W181:Y181) -> 0 | AA181: =IF(V181="","",RANK(Z181,Z$7:Z$230)) ->  | AB181: =IF(AA181="",0,Z$231+1-AA181) -> 0 | AC181: =AB181+T181 -> 178 | AD181: =RANK(AC181,AC$7:AC$230) -> 148 | AI181: =SUM(AF181:AH181) -> 0 | AJ181: =IF(AE181="","",RANK(AI181,AI$7:AI$230)) ->  | AK181: =IF(AJ181="",0,AI$231+1-AJ181) -> 0 | AL181: =AK181+AC181 -> 178 | AM181: =RANK(AL181,AL$7:AL$230) -> 164 | AR181: =SUM(AO181:AQ181) -> 0 | AS181: =IF(AN181="","",RANK(AR181,AR$7:AR$230)) ->  | AT181: =IF(AS181="",0,AR$231+1-AS181) -> 0 | AU181: =AT181+AL181 -> 178 | AV181: =RANK(AU181,AU$7:AU$230) -> 175
B182: Didier Cornu | C182: Photo Club IBM Grenoble | D182: 1109760009 | E182: simple lumière | F182: 18 | G182: 12 | H182: 7 | I182: =SUM(F182:H182) -> 37 | J182: =IF(E182="","",RANK(I182,I$7:I$230)) -> 106 | K182: =IF(J182="",0,I$231+1-J182) -> 87 | L182: =RANK(K182,K$7:K$226) -> 106 | M182: retour du marché | N182: 9 | O182: 11 | P182: 12 | Q182: =SUM(N182:P182) -> 32 | R182: =IF(M182="","",RANK(Q182,Q$7:Q$230)) -> 129 | S182: =IF(R182="",0,Q$231+1-R182) -> 40 | T182: =S182+K182 -> 127 | U182: =IF(T182=0,"",RANK(T182,T$7:T$230)) -> 135 | V182: petit village paisible | W182: 13 | X182: 9 | Y182: 11 | Z182: =SUM(W182:Y182) -> 33 | AA182: =IF(V182="","",RANK(Z182,Z$7:Z$230)) -> 133 | AB182: =IF(AA182="",0,Z$231+1-AA182) -> 37 | AC182: =AB182+T182 -> 164 | AD182: =RANK(AC182,AC$7:AC$230) -> 157 | AI182: =SUM(AF182:AH182) -> 0 | AJ182: =IF(AE182="","",RANK(AI182,AI$7:AI$230)) ->  | AK182: =IF(AJ182="",0,AI$231+1-AJ182) -> 0 | AL182: =AK182+AC182 -> 164 | AM182: =RANK(AL182,AL$7:AL$230) -> 170 | AN182: seul | AO182: 6 | AP182: 10 | AQ182: 10 | AR182: =SUM(AO182:AQ182) -> 26 | AS182: =IF(AN182="","",RANK(AR182,AR$7:AR$230)) -> 156 | AT182: =IF(AS182="",0,AR$231+1-AS182) -> 8 | AU182: =AT182+AL182 -> 172 | AV182: =RANK(AU182,AU$7:AU$230) -> 176 | BA182: 0 | BB182: =IF(AW182="","",RANK(BA182,BA$8:BA$224)) ->  | BC182: =IF(BB182="",0,BA$225+1-BB182) -> 0 | BD182: 172 | BE182: =RANK(BD182,BD$8:BD$224) -> 154 | BJ182: 0 | BK182: =IF(BF182="","",RANK(BJ182,BJ$8:BJ$224)) ->  | BL182: =IF(BK182="",0,BJ$225+1-BK182) -> 0 | BM182: 172 | BN182: =RANK(BM182,BM$8:BM$224) -> 154 | BS182: 0 | BT182: =IF(BO182="","",RANK(BS182,BS$8:BS$224)) ->  | BU182: =IF(BT182="",0,BS$225+1-BT182) -> 0 | BV182: 172 | BW182: =RANK(BV182,BV$8:BV$224) -> 154
B183: Rossetti Eliane | C183: Numericus Focus Club Photo de la Vallée de l'Arve | D183: 1122150009 | J183: =IF(E183="","",RANK(I183,I$7:I$230)) ->  | K183: =IF(J183="",0,I$231+1-J183) -> 0 | L183: =RANK(K183,K$7:K$226) -> 192 | R183: =IF(M183="","",RANK(Q183,Q$7:Q$230)) ->  | S183: =IF(R183="",0,Q$231+1-R183) -> 0 | T183: =S183+K183 -> 0 | U183: =IF(T183=0,"",RANK(T183,T$7:T$230)) ->  | AA183: =IF(V183="","",RANK(Z183,Z$7:Z$230)) ->  | AB183: =IF(AA183="",0,Z$231+1-AA183) -> 0 | AC183: =AB183+T183 -> 0 | AD183: =RANK(AC183,AC$7:AC$230) -> 215 | AE183: Vers l 'Infini | AF183: 15 | AG183: 8 | AH183: 14 | AI183: =SUM(AF183:AH183) -> 37 | AJ183: =IF(AE183="","",RANK(AI183,AI$7:AI$230)) -> 106 | AK183: =IF(AJ183="",0,AI$231+1-AJ183) -> 51 | AL183: =AK183+AC183 -> 51 | AM183: =RANK(AL183,AL$7:AL$230) -> 200 | AN183: Le lac en hiver | AO183: 15 | AP183: 10 | AQ183: 14 | AR183: =SUM(AO183:AQ183) -> 39 | AS183: =IF(AN183="","",RANK(AR183,AR$7:AR$230)) -> 52 | AT183: =IF(AS183="",0,AR$231+1-AS183) -> 112 | AU183: =AT183+AL183 -> 163 | AV183: =RANK(AU183,AU$7:AU$230) -> 177 | BA183: 0 | BC183: 0 | BD183: 163 | BE183: 155 | BJ183: 0 | BL183: 0 | BM183: 163 | BN183: 155 | BS183: 0 | BU183: 0 | BV183: 163 | BW183: 155
B184: Jean-Claude Magnier | C184: JPEG Photo Club St Martin Bellevue | D184: 1121840003 | E184: lumière marine | F184: 13 | G184: 9 | H184: 6 | I184: =SUM(F184:H184) -> 28 | J184: =IF(E184="","",RANK(I184,I$7:I$230)) -> 181 | K184: =IF(J184="",0,I$231+1-J184) -> 12 | L184: =RANK(K184,K$7:K$226) -> 181 | M184: Groseilles | N184: 11 | O184: 14 | P184: 10 | Q184: =SUM(N184:P184) -> 35 | R184: =IF(M184="","",RANK(Q184,Q$7:Q$230)) -> 108 | S184: =IF(R184="",0,Q$231+1-R184) -> 61 | T184: =S184+K184 -> 73 | U184: =IF(T184=0,"",RANK(T184,T$7:T$230)) -> 165 | V184: Thorens Glières au lieu ! | W184: 10 | X184: 11 | Y184: 13 | Z184: =SUM(W184:Y184) -> 34 | AA184: =IF(V184="","",RANK(Z184,Z$7:Z$230)) -> 127 | AB184: =IF(AA184="",0,Z$231+1-AA184) -> 43 | AC184: =AB184+T184 -> 116 | AD184: =RANK(AC184,AC$7:AC$230) -> 173 | AE184: Pont la caille | AF184: 9 | AG184: 12 | AH184: 15 | AI184: =SUM(AF184:AH184) -> 36 | AJ184: =IF(AE184="","",RANK(AI184,AI$7:AI$230)) -> 116 | AK184: =IF(AJ184="",0,AI$231+1-AJ184) -> 41 | AL184: =AK184+AC184 -> 157 | AM184: =RANK(AL184,AL$7:AL$230) -> 171 | AS184: =IF(AN184="","",RANK(AR184,AR$7:AR$230)) ->  | AT184: =IF(AS184="",0,AR$231+1-AS184) -> 0 | AU184: =AT184+AL184 -> 157 | AV184: =RANK(AU184,AU$7:AU$230) -> 178 | BA184: 0 | BC184: 0 | BD184: 157 | BE184: 156 | BJ184: 0 | BL184: 0 | BM184: 157 | BN184: 156 | BS184: 0 | BU184: 0 | BV184: 157 | BW184: 156
B185: Maryvonne Silvan | C185: Club Photo de Cognin | D185: 1110550087 | E185: Ré | F185: 16 | G185: 11 | H185: 15 | I185: =SUM(F185:H185) -> 42 | J185: =IF(E185="","",RANK(I185,I$7:I$230)) -> 41 | K185: =IF(J185="",0,I$231+1-J185) -> 152 | L185: =RANK(K185,K$7:K$226) -> 41 | Q185: =SUM(N185:P185) -> 0 | R185: =IF(M185="","",RANK(Q185,Q$7:Q$230)) ->  | S185: =IF(R185="",0,Q$231+1-R185) -> 0 | T185: =S185+K185 -> 152 | U185: =IF(T185=0,"",RANK(T185,T$7:T$230)) -> 123 | Z185: =SUM(W185:Y185) -> 0 | AA185: =IF(V185="","",RANK(Z185,Z$7:Z$230)) ->  | AB185: =IF(AA185="",0,Z$231+1-AA185) -> 0 | AC185: =AB185+T185 -> 152 | AD185: =RANK(AC185,AC$7:AC$230) -> 163 | AI185: =SUM(AF185:AH185) -> 0 | AJ185: =IF(AE185="","",RANK(AI185,AI$7:AI$230)) ->  | AK185: =IF(AJ185="",0,AI$231+1-AJ185) -> 0 | AL185: =AK185+AC185 -> 152 | AM185: =RANK(AL185,AL$7:AL$230) -> 172 | AR185: =SUM(AO185:AQ185) -> 0 | AS185: =IF(AN185="","",RANK(AR185,AR$7:AR$230)) ->  | AT185: =IF(AS185="",0,AR$231+1-AS185) -> 0 | AU185: =AT185+AL185 -> 152 | AV185: =RANK(AU185,AU$7:AU$230) -> 179 | BA185: 0 | BC185: 0 | BD185: 152 | BE185: 157 | BJ185: 0 | BL185: 0 | BM185: 152 | BN185: 157 | BS185: 0 | BU185: 0 | BV185: 152 | BW185: 157
B186: Marie-Jo Planche | C186: Club Georges Mélies-Chambéry | D186: 1105530216 | J186: =IF(E186="","",RANK(I186,I$7:I$230)) ->  | K186: =IF(J186="",0,I$231+1-J186) -> 0 | L186: =RANK(K186,K$7:K$226) -> 192 | M186: Bananes en formation | N186: 8 | O186: 10 | P186: 14 | Q186: =SUM(N186:P186) -> 32 | R186: =IF(M186="","",RANK(Q186,Q$7:Q$230)) -> 129 | S186: =IF(R186="",0,Q$231+1-R186) -> 40 | T186: =S186+K186 -> 40 | U186: =IF(T186=0,"",RANK(T186,T$7:T$230)) -> 185 | V186: Annecy éclatante | W186: 14 | X186: 13 | Y186: 12 | Z186: =SUM(W186:Y186) -> 39 | AA186: =IF(V186="","",RANK(Z186,Z$7:Z$230)) -> 67 | AB186: =IF(AA186="",0,Z$231+1-AA186) -> 103 | AC186: =AB186+T186 -> 143 | AD186: =RANK(AC186,AC$7:AC$230) -> 166 | AI186: =SUM(AF186:AH186) -> 0 | AJ186: =IF(AE186="","",RANK(AI186,AI$7:AI$230)) ->  | AK186: =IF(AJ186="",0,AI$231+1-AJ186) -> 0 | AL186: =AK186+AC186 -> 143 | AM186: =RANK(AL186,AL$7:AL$230) -> 173 | AR186: =SUM(AO186:AQ186) -> 0 | AS186: =IF(AN186="","",RANK(AR186,AR$7:AR$230)) ->  | AT186: =IF(AS186="",0,AR$231+1-AS186) -> 0 | AU186: =AT186+AL186 -> 143 | AV186: =RANK(AU186,AU$7:AU$230) -> 180 | BA186: 0 | BC186: 0 | BD186: 143 | BE186: 158 | BJ186: 0 | BL186: 0 | BM186: 143 | BN186: 158 | BS186: 0 | BU186: 0 | BV186: 143 | BW186: 158
B187: François Dijoux | C187: Photo Club de Bourgoin-Jallieu | D187: 1108830151 | J187: =IF(E187="","",RANK(I187,I$7:I$230)) ->  | K187: =IF(J187="",0,I$231+1-J187) -> 0 | L187: =RANK(K187,K$7:K$226) -> 192 | R187: =IF(M187="","",RANK(Q187,Q$7:Q$230)) ->  | S187: =IF(R187="",0,Q$231+1-R187) -> 0 | T187: =S187+K187 -> 0 | U187: =IF(T187=0,"",RANK(T187,T$7:T$230)) ->  | V187: Les Météores Grèce | W187: 12 | X187: 10 | Y187: 12 | Z187: =SUM(W187:Y187) -> 34 | AA187: =IF(V187="","",RANK(Z187,Z$7:Z$230)) -> 127 | AB187: =IF(AA187="",0,Z$231+1-AA187) -> 43 | AC187: =AB187+T187 -> 43 | AD187: =RANK(AC187,AC$7:AC$230) -> 195 | AE187: Fil rouge | AF187: 14 | AG187: 13 | AH187: 11 | AI187: =SUM(AF187:AH187) -> 38 | AJ187: =IF(AE187="","",RANK(AI187,AI$7:AI$230)) -> 93 | AK187: =IF(AJ187="",0,AI$231+1-AJ187) -> 64 | AL187: =AK187+AC187 -> 107 | AM187: =RANK(AL187,AL$7:AL$230) -> 179 | AN187: Jour de neige | AO187: 8 | AP187: 11 | AQ187: 12 | AR187: =SUM(AO187:AQ187) -> 31 | AS187: =IF(AN187="","",RANK(AR187,AR$7:AR$230)) -> 131 | AT187: =IF(AS187="",0,AR$231+1-AS187) -> 33 | AU187: =AT187+AL187 -> 140 | AV187: =RANK(AU187,AU$7:AU$230) -> 181 | BA187: 0 | BC187: 0 | BD187: 140 | BE187: 159 | BJ187: 0 | BL187: 0 | BM187: 140 | BN187: 159 | BS187: 0 | BU187: 0 | BV187: 140 | BW187: 159
B188: Gilbert Bouvard | C188: Club Photo St André de Corcy | D188: 1118930031 | E188: Au petit matin | F188: 10 | G188: 12 | H188: 9 | I188: =SUM(F188:H188) -> 31 | J188: =IF(E188="","",RANK(I188,I$7:I$230)) -> 169 | K188: =IF(J188="",0,I$231+1-J188) -> 24 | L188: =RANK(K188,K$7:K$226) -> 169 | M188: Marché Forville à Cannes | N188: 11 | O188: 6 | P188: 11 | Q188: =SUM(N188:P188) -> 28 | R188: =IF(M188="","",RANK(Q188,Q$7:Q$230)) -> 155 | S188: =IF(R188="",0,Q$231+1-R188) -> 14 | T188: =S188+K188 -> 38 | U188: =IF(T188=0,"",RANK(T188,T$7:T$230)) -> 186 | V188: Ouingt le village aux pièrres dorées | W188: 13 | X188: 12 | Y188: 11 | Z188: =SUM(W188:Y188) -> 36 | AA188: =IF(V188="","",RANK(Z188,Z$7:Z$230)) -> 110 | AB188: =IF(AA188="",0,Z$231+1-AA188) -> 60 | AC188: =AB188+T188 -> 98 | AD188: =RANK(AC188,AC$7:AC$230) -> 178 | AE188: Fontaine du Rio Turia à Valencia | AF188: 12 | AG188: 12 | AH188: 10 | AI188: =SUM(AF188:AH188) -> 34 | AJ188: =IF(AE188="","",RANK(AI188,AI$7:AI$230)) -> 134 | AK188: =IF(AJ188="",0,AI$231+1-AJ188) -> 23 | AL188: =AK188+AC188 -> 121 | AM188: =RANK(AL188,AL$7:AL$230) -> 177 | AN188: Reflets de glace | AO188: 8 | AP188: 8 | AQ188: 11 | AR188: =SUM(AO188:AQ188) -> 27 | AS188: =IF(AN188="","",RANK(AR188,AR$7:AR$230)) -> 150 | AT188: =IF(AS188="",0,AR$231+1-AS188) -> 14 | AU188: =AT188+AL188 -> 135 | AV188: =RANK(AU188,AU$7:AU$230) -> 182 | BA188: 0 | BC188: 0 | BD188: 135 | BE188: 160 | BJ188: 0 | BL188: 0 | BM188: 135 | BN188: 160 | BS188: 0 | BU188: 0 | BV188: 135 | BW188: 160
B189: Yves Sesboué | C189: Club Photo St André de Corcy | D189: 1118939001 | J189: =IF(E189="","",RANK(I189,I$7:I$230)) ->  | K189: =IF(J189="",0,I$231+1-J189) -> 0 | L189: =RANK(K189,K$7:K$226) -> 192 | R189: =IF(M189="","",RANK(Q189,Q$7:Q$230)) ->  | S189: =IF(R189="",0,Q$231+1-R189) -> 0 | T189: =S189+K189 -> 0 | U189: =IF(T189=0,"",RANK(T189,T$7:T$230)) ->  | V189: Lyon | W189: 13 | X189: 11 | Y189: 18 | Z189: =SUM(W189:Y189) -> 42 | AA189: =IF(V189="","",RANK(Z189,Z$7:Z$230)) -> 36 | AB189: =IF(AA189="",0,Z$231+1-AA189) -> 134 | AC189: =AB189+T189 -> 134 | AD189: =RANK(AC189,AC$7:AC$230) -> 169 | AI189: =SUM(AF189:AH189) -> 0 | AJ189: =IF(AE189="","",RANK(AI189,AI$7:AI$230)) ->  | AK189: =IF(AJ189="",0,AI$231+1-AJ189) -> 0 | AL189: =AK189+AC189 -> 134 | AM189: =RANK(AL189,AL$7:AL$230) -> 175 | AR189: =SUM(AO189:AQ189) -> 0 | AS189: =IF(AN189="","",RANK(AR189,AR$7:AR$230)) ->  | AT189: =IF(AS189="",0,AR$231+1-AS189) -> 0 | AU189: =AT189+AL189 -> 134 | AV189: =RANK(AU189,AU$7:AU$230) -> 183 | BA189: 0 | BC189: 0 | BD189: 134 | BE189: 161 | BJ189: 0 | BL189: 0 | BM189: 134 | BN189: 161 | BS189: 0 | BU189: 0 | BV189: 134 | BW189: 161
B190: Schott Claudie | C190: Numericus Focus Club Photo de la Vallée de l'Arve | D190: 1122150010 | J190: =IF(E190="","",RANK(I190,I$7:I$230)) ->  | K190: =IF(J190="",0,I$231+1-J190) -> 0 | L190: =RANK(K190,K$7:K$226) -> 192 | R190: =IF(M190="","",RANK(Q190,Q$7:Q$230)) ->  | S190: =IF(R190="",0,Q$231+1-R190) -> 0 | T190: =S190+K190 -> 0 | U190: =IF(T190=0,"",RANK(T190,T$7:T$230)) ->  | AA190: =IF(V190="","",RANK(Z190,Z$7:Z$230)) ->  | AB190: =IF(AA190="",0,Z$231+1-AA190) -> 0 | AC190: =AB190+T190 -> 0 | AD190: =RANK(AC190,AC$7:AC$230) -> 215 | AJ190: =IF(AE190="","",RANK(AI190,AI$7:AI$230)) ->  | AK190: =IF(AJ190="",0,AI$231+1-AJ190) -> 0 | AL190: =AK190+AC190 -> 0 | AM190: =RANK(AL190,AL$7:AL$230) -> 220 | AN190: Neige et brume | AO190: 10 | AP190: 16 | AQ190: 16 | AR190: =SUM(AO190:AQ190) -> 42 | AS190: =IF(AN190="","",RANK(AR190,AR$7:AR$230)) -> 30 | AT190: =IF(AS190="",0,AR$231+1-AS190) -> 134 | AU190: =AT190+AL190 -> 134 | AV190: =RANK(AU190,AU$7:AU$230) -> 183 | BA190: 0 | BC190: 0 | BD190: 134 | BE190: 161 | BJ190: 0 | BL190: 0 | BM190: 134 | BN190: 161 | BS190: 0 | BU190: 0 | BV190: 134 | BW190: 161
B191: Patrick Prudhon | C191: Club Photo Morestel | D191: 1114030144 | E191: Séville | F191: 11 | G191: 11 | H191: 10 | I191: =SUM(F191:H191) -> 32 | J191: =IF(E191="","",RANK(I191,I$7:I$230)) -> 156 | K191: =IF(J191="",0,I$231+1-J191) -> 37 | L191: =RANK(K191,K$7:K$226) -> 156 | Q191: =SUM(N191:P191) -> 0 | R191: =IF(M191="","",RANK(Q191,Q$7:Q$230)) ->  | S191: =IF(R191="",0,Q$231+1-R191) -> 0 | T191: =S191+K191 -> 37 | U191: =IF(T191=0,"",RANK(T191,T$7:T$230)) -> 188 | Z191: =SUM(W191:Y191) -> 0 | AA191: =IF(V191="","",RANK(Z191,Z$7:Z$230)) ->  | AB191: =IF(AA191="",0,Z$231+1-AA191) -> 0 | AC191: =AB191+T191 -> 37 | AD191: =RANK(AC191,AC$7:AC$230) -> 197 | AI191: =SUM(AF191:AH191) -> 0 | AJ191: =IF(AE191="","",RANK(AI191,AI$7:AI$230)) ->  | AK191: =IF(AJ191="",0,AI$231+1-AJ191) -> 0 | AL191: =AK191+AC191 -> 37 | AM191: =RANK(AL191,AL$7:AL$230) -> 203 | AN191: Bouleau pleureur | AO191: 12 | AP191: 13 | AQ191: 12 | AR191: =SUM(AO191:AQ191) -> 37 | AS191: =IF(AN191="","",RANK(AR191,AR$7:AR$230)) -> 69 | AT191: =IF(AS191="",0,AR$231+1-AS191) -> 95 | AU191: =AT191+AL191 -> 132 | AV191: =RANK(AU191,AU$7:AU$230) -> 185
B192: Nadine Coste-Albert | C192: Les Belles Images Saint-Marcel-Bel-Accueil | D192: 1117570134 | J192: =IF(E192="","",RANK(I192,I$7:I$230)) ->  | K192: =IF(J192="",0,I$231+1-J192) -> 0 | L192: =RANK(K192,K$7:K$226) -> 192 | R192: =IF(M192="","",RANK(Q192,Q$7:Q$230)) ->  | S192: =IF(R192="",0,Q$231+1-R192) -> 0 | T192: =S192+K192 -> 0 | U192: =IF(T192=0,"",RANK(T192,T$7:T$230)) ->  | V192: petite forteresse | W192: 11 | X192: 13 | Y192: 8 | Z192: =SUM(W192:Y192) -> 32 | AA192: =IF(V192="","",RANK(Z192,Z$7:Z$230)) -> 141 | AB192: =IF(AA192="",0,Z$231+1-AA192) -> 29 | AC192: =AB192+T192 -> 29 | AD192: =RANK(AC192,AC$7:AC$230) -> 203 | AJ192: =IF(AE192="","",RANK(AI192,AI$7:AI$230)) ->  | AK192: =IF(AJ192="",0,AI$231+1-AJ192) -> 0 | AL192: =AK192+AC192 -> 29 | AM192: =RANK(AL192,AL$7:AL$230) -> 208 | AN192: bonneval | AO192: 14 | AP192: 11 | AQ192: 13 | AR192: =SUM(AO192:AQ192) -> 38 | AS192: =IF(AN192="","",RANK(AR192,AR$7:AR$230)) -> 61 | AT192: =IF(AS192="",0,AR$231+1-AS192) -> 103 | AU192: =AT192+AL192 -> 132 | AV192: =RANK(AU192,AU$7:AU$230) -> 185 | BA192: 0 | BB192: =IF(AW192="","",RANK(BA192,BA$8:BA$224)) ->  | BC192: =IF(BB192="",0,BA$225+1-BB192) -> 0 | BD192: 132 | BE192: =RANK(BD192,BD$8:BD$224) -> 163 | BJ192: 0 | BK192: =IF(BF192="","",RANK(BJ192,BJ$8:BJ$224)) ->  | BL192: =IF(BK192="",0,BJ$225+1-BK192) -> 0 | BM192: 132 | BN192: =RANK(BM192,BM$8:BM$224) -> 163 | BS192: 0 | BT192: =IF(BO192="","",RANK(BS192,BS$8:BS$224)) ->  | BU192: =IF(BT192="",0,BS$225+1-BT192) -> 0 | BV192: 132 | BW192: =RANK(BV192,BV$8:BV$224) -> 163
B193: Nelly Valfort | C193: Photo Ciné Club Roannais | D193: 1120750027 | J193: =IF(E193="","",RANK(I193,I$7:I$230)) ->  | K193: =IF(J193="",0,I$231+1-J193) -> 0 | L193: =RANK(K193,K$7:K$226) -> 192 | R193: =IF(M193="","",RANK(Q193,Q$7:Q$230)) ->  | S193: =IF(R193="",0,Q$231+1-R193) -> 0 | T193: =S193+K193 -> 0 | U193: =IF(T193=0,"",RANK(T193,T$7:T$230)) ->  | AA193: =IF(V193="","",RANK(Z193,Z$7:Z$230)) ->  | AB193: =IF(AA193="",0,Z$231+1-AA193) -> 0 | AC193: =AB193+T193 -> 0 | AD193: =RANK(AC193,AC$7:AC$230) -> 215 | AE193: Pont du canal | AF193: 14 | AG193: 8 | AH193: 17 | AI193: =SUM(AF193:AH193) -> 39 | AJ193: =IF(AE193="","",RANK(AI193,AI$7:AI$230)) -> 81 | AK193: =IF(AJ193="",0,AI$231+1-AJ193) -> 76 | AL193: =AK193+AC193 -> 76 | AM193: =RANK(AL193,AL$7:AL$230) -> 191 | AN193: pompe à essence | AO193: 10 | AP193: 14 | AQ193: 9 | AR193: =SUM(AO193:AQ193) -> 33 | AS193: =IF(AN193="","",RANK(AR193,AR$7:AR$230)) -> 111 | AT193: =IF(AS193="",0,AR$231+1-AS193) -> 53 | AU193: =AT193+AL193 -> 129 | AV193: =RANK(AU193,AU$7:AU$230) -> 187 | BA193: 0 | BC193: 0 | BD193: 129 | BE193: 164 | BJ193: 0 | BL193: 0 | BM193: 129 | BN193: 164 | BS193: 0 | BU193: 0 | BV193: 129 | BW193: 164
B194: Veronique Valenti | C194: Club Photo de Cognin | D194: 1110550188 | E194: la chanteuse en rouge | F194: 6 | G194: 6 | H194: 6 | I194: =SUM(F194:H194) -> 18 | J194: =IF(E194="","",RANK(I194,I$7:I$230)) -> 193 | K194: =IF(J194="",0,I$231+1-J194) -> 0 | L194: =RANK(K194,K$7:K$226) -> 192 | M194: la marchande de légumes | N194: 19 | O194: 11 | P194: 10 | Q194: =SUM(N194:P194) -> 40 | R194: =IF(M194="","",RANK(Q194,Q$7:Q$230)) -> 56 | S194: =IF(R194="",0,Q$231+1-R194) -> 113 | T194: =S194+K194 -> 113 | U194: =IF(T194=0,"",RANK(T194,T$7:T$230)) -> 147 | Z194: =SUM(W194:Y194) -> 0 | AA194: =IF(V194="","",RANK(Z194,Z$7:Z$230)) ->  | AB194: =IF(AA194="",0,Z$231+1-AA194) -> 0 | AC194: =AB194+T194 -> 113 | AD194: =RANK(AC194,AC$7:AC$230) -> 174 | AI194: =SUM(AF194:AH194) -> 0 | AJ194: =IF(AE194="","",RANK(AI194,AI$7:AI$230)) ->  | AK194: =IF(AJ194="",0,AI$231+1-AJ194) -> 0 | AL194: =AK194+AC194 -> 113 | AM194: =RANK(AL194,AL$7:AL$230) -> 178 | AS194: =IF(AN194="","",RANK(AR194,AR$7:AR$230)) ->  | AT194: =IF(AS194="",0,AR$231+1-AS194) -> 0 | AU194: =AT194+AL194 -> 113 | AV194: =RANK(AU194,AU$7:AU$230) -> 188 | BA194: 0 | BC194: 0 | BD194: 113 | BE194: 165 | BJ194: 0 | BL194: 0 | BM194: 113 | BN194: 165 | BS194: 0 | BU194: 0 | BV194: 113 | BW194: 165
B195: Sylvianne Bronnec | C195: Photo Club d'Aix-les-Bains | D195: 1104860140 | E195: Eglise Saint-Joseph Le Havre | F195: 15 | G195: 11 | H195: 6 | I195: =SUM(F195:H195) -> 32 | J195: =IF(E195="","",RANK(I195,I$7:I$230)) -> 156 | K195: =IF(J195="",0,I$231+1-J195) -> 37 | L195: =RANK(K195,K$7:K$226) -> 156 | M195: citrons | N195: 12 | O195: 6 | P195: 10 | Q195: =SUM(N195:P195) -> 28 | R195: =IF(M195="","",RANK(Q195,Q$7:Q$230)) -> 155 | S195: =IF(R195="",0,Q$231+1-R195) -> 14 | T195: =S195+K195 -> 51 | U195: =IF(T195=0,"",RANK(T195,T$7:T$230)) -> 178 | V195: Aix les Bains | W195: 12 | X195: 12 | Y195: 11 | Z195: =SUM(W195:Y195) -> 35 | AA195: =IF(V195="","",RANK(Z195,Z$7:Z$230)) -> 118 | AB195: =IF(AA195="",0,Z$231+1-AA195) -> 52 | AC195: =AB195+T195 -> 103 | AD195: =RANK(AC195,AC$7:AC$230) -> 176 | AI195: =SUM(AF195:AH195) -> 0 | AJ195: =IF(AE195="","",RANK(AI195,AI$7:AI$230)) ->  | AK195: =IF(AJ195="",0,AI$231+1-AJ195) -> 0 | AL195: =AK195+AC195 -> 103 | AM195: =RANK(AL195,AL$7:AL$230) -> 182 | AN195: jardin d'hiver | AO195: 6 | AP195: 10 | AQ195: 10 | AR195: =SUM(AO195:AQ195) -> 26 | AS195: =IF(AN195="","",RANK(AR195,AR$7:AR$230)) -> 156 | AT195: =IF(AS195="",0,AR$231+1-AS195) -> 8 | AU195: =AT195+AL195 -> 111 | AV195: =RANK(AU195,AU$7:AU$230) -> 189 | BA195: 0 | BC195: 0 | BD195: 111 | BE195: 166 | BJ195: 0 | BL195: 0 | BM195: 111 | BN195: 166 | BS195: 0 | BU195: 0 | BV195: 111 | BW195: 166
B196: Alain Biasiol | C196: Objectif Photo St Maurice l'Exil | D196: 1117540035 | E196: reveuse | F196: 13 | G196: 9 | H196: 12 | I196: =SUM(F196:H196) -> 34 | J196: =IF(E196="","",RANK(I196,I$7:I$230)) -> 136 | K196: =IF(J196="",0,I$231+1-J196) -> 57 | L196: =RANK(K196,K$7:K$226) -> 136 | Q196: =SUM(N196:P196) -> 0 | R196: =IF(M196="","",RANK(Q196,Q$7:Q$230)) ->  | S196: =IF(R196="",0,Q$231+1-R196) -> 0 | T196: =S196+K196 -> 57 | U196: =IF(T196=0,"",RANK(T196,T$7:T$230)) -> 174 | V196: st Rambert d'Albon | W196: 10 | X196: 9 | Y196: 13 | Z196: =SUM(W196:Y196) -> 32 | AA196: =IF(V196="","",RANK(Z196,Z$7:Z$230)) -> 141 | AB196: =IF(AA196="",0,Z$231+1-AA196) -> 29 | AC196: =AB196+T196 -> 86 | AD196: =RANK(AC196,AC$7:AC$230) -> 184 | AJ196: =IF(AE196="","",RANK(AI196,AI$7:AI$230)) ->  | AK196: =IF(AJ196="",0,AI$231+1-AJ196) -> 0 | AL196: =AK196+AC196 -> 86 | AM196: =RANK(AL196,AL$7:AL$230) -> 188 | AN196: pensionnaire de l'étang | AO196: 11 | AP196: 9 | AQ196: 8 | AR196: =SUM(AO196:AQ196) -> 28 | AS196: =IF(AN196="","",RANK(AR196,AR$7:AR$230)) -> 147 | AT196: =IF(AS196="",0,AR$231+1-AS196) -> 17 | AU196: =AT196+AL196 -> 103 | AV196: =RANK(AU196,AU$7:AU$230) -> 190 | BA196: 0 | BC196: 0 | BD196: 103 | BE196: 167 | BJ196: 0 | BL196: 0 | BM196: 103 | BN196: 167 | BS196: 0 | BU196: 0 | BV196: 103 | BW196: 167
B197: Deverly Fabrice | C197: Numericus Focus Club Photo de la Vallée de l'Arve | D197: 1122150012 | I197: =SUM(F197:H197) -> 0 | J197: =IF(E197="","",RANK(I197,I$7:I$230)) ->  | K197: =IF(J197="",0,I$231+1-J197) -> 0 | L197: =RANK(K197,K$7:K$226) -> 192 | M197: Bande de courges | N197: 15 | O197: 13 | P197: 11 | Q197: =SUM(N197:P197) -> 39 | R197: =IF(M197="","",RANK(Q197,Q$7:Q$230)) -> 66 | S197: =IF(R197="",0,Q$231+1-R197) -> 103 | T197: =S197+K197 -> 103 | U197: =IF(T197=0,"",RANK(T197,T$7:T$230)) -> 153 | Z197: =SUM(W197:Y197) -> 0 | AA197: =IF(V197="","",RANK(Z197,Z$7:Z$230)) ->  | AB197: =IF(AA197="",0,Z$231+1-AA197) -> 0 | AC197: =AB197+T197 -> 103 | AD197: =RANK(AC197,AC$7:AC$230) -> 176 | AI197: =SUM(AF197:AH197) -> 0 | AJ197: =IF(AE197="","",RANK(AI197,AI$7:AI$230)) ->  | AK197: =IF(AJ197="",0,AI$231+1-AJ197) -> 0 | AL197: =AK197+AC197 -> 103 | AM197: =RANK(AL197,AL$7:AL$230) -> 182 | AR197: =SUM(AO197:AQ197) -> 0 | AS197: =IF(AN197="","",RANK(AR197,AR$7:AR$230)) ->  | AT197: =IF(AS197="",0,AR$231+1-AS197) -> 0 | AU197: =AT197+AL197 -> 103 | AV197: =RANK(AU197,AU$7:AU$230) -> 190 | BA197: 0 | BC197: 0 | BD197: 103 | BE197: 167 | BJ197: 0 | BL197: 0 | BM197: 103 | BN197: 167 | BS197: 0 | BU197: 0 | BV197: 103 | BW197: 167
B198: Lucile Muffat | C198: Adhérents individuels | D198: 1100000191 | J198: =IF(E198="","",RANK(I198,I$7:I$230)) ->  | K198: =IF(J198="",0,I$231+1-J198) -> 0 | L198: =RANK(K198,K$7:K$226) -> 192 | R198: =IF(M198="","",RANK(Q198,Q$7:Q$230)) ->  | S198: =IF(R198="",0,Q$231+1-R198) -> 0 | T198: =S198+K198 -> 0 | U198: =IF(T198=0,"",RANK(T198,T$7:T$230)) ->  | AA198: =IF(V198="","",RANK(Z198,Z$7:Z$230)) ->  | AB198: =IF(AA198="",0,Z$231+1-AA198) -> 0 | AC198: =AB198+T198 -> 0 | AD198: =RANK(AC198,AC$7:AC$230) -> 215 | AJ198: =IF(AE198="","",RANK(AI198,AI$7:AI$230)) ->  | AK198: =IF(AJ198="",0,AI$231+1-AJ198) -> 0 | AL198: =AK198+AC198 -> 0 | AM198: =RANK(AL198,AL$7:AL$230) -> 220 | AN198: Les Prisonniers du froid | AO198: 11 | AP198: 11 | AQ198: 15 | AR198: =SUM(AO198:AQ198) -> 37 | AS198: =IF(AN198="","",RANK(AR198,AR$7:AR$230)) -> 69 | AT198: =IF(AS198="",0,AR$231+1-AS198) -> 95 | AU198: =AT198+AL198 -> 95 | AV198: =RANK(AU198,AU$7:AU$230) -> 192 | BA198: 0 | BC198: 0 | BD198: 95 | BE198: 169 | BJ198: 0 | BL198: 0 | BM198: 95 | BN198: 169 | BS198: 0 | BU198: 0 | BV198: 95 | BW198: 169
B199: Henri Rolla | C199: Numerica Photo Club Faverges | D199: 1121100005 | J199: =IF(E199="","",RANK(I199,I$7:I$230)) ->  | K199: =IF(J199="",0,I$231+1-J199) -> 0 | L199: =RANK(K199,K$7:K$226) -> 192 | R199: =IF(M199="","",RANK(Q199,Q$7:Q$230)) ->  | S199: =IF(R199="",0,Q$231+1-R199) -> 0 | T199: =S199+K199 -> 0 | U199: =IF(T199=0,"",RANK(T199,T$7:T$230)) ->  | V199: les saisies | W199: 10 | X199: 14 | Y199: 14 | Z199: =SUM(W199:Y199) -> 38 | AA199: =IF(V199="","",RANK(Z199,Z$7:Z$230)) -> 80 | AB199: =IF(AA199="",0,Z$231+1-AA199) -> 90 | AC199: =AB199+T199 -> 90 | AD199: =RANK(AC199,AC$7:AC$230) -> 181 | AI199: =SUM(AF199:AH199) -> 0 | AJ199: =IF(AE199="","",RANK(AI199,AI$7:AI$230)) ->  | AK199: =IF(AJ199="",0,AI$231+1-AJ199) -> 0 | AL199: =AK199+AC199 -> 90 | AM199: =RANK(AL199,AL$7:AL$230) -> 185 | AR199: =SUM(AO199:AQ199) -> 0 | AS199: =IF(AN199="","",RANK(AR199,AR$7:AR$230)) ->  | AT199: =IF(AS199="",0,AR$231+1-AS199) -> 0 | AU199: =AT199+AL199 -> 90 | AV199: =RANK(AU199,AU$7:AU$230) -> 193 | BA199: 0 | BC199: 0 | BD199: 90 | BE199: 170 | BJ199: 0 | BL199: 0 | BM199: 90 | BN199: 170 | BS199: 0 | BU199: 0 | BV199: 90 | BW199: 170
B200: Bruno Durieu | C200: Clic Images PC de Chabeuil | D200: 1117810022 | E200: Dryade Automnale | F200: 12 | G200: 12 | H200: 8 | I200: =SUM(F200:H200) -> 32 | J200: =IF(E200="","",RANK(I200,I$7:I$230)) -> 156 | K200: =IF(J200="",0,I$231+1-J200) -> 37 | L200: =RANK(K200,K$7:K$226) -> 156 | Q200: =SUM(N200:P200) -> 0 | R200: =IF(M200="","",RANK(Q200,Q$7:Q$230)) ->  | S200: =IF(R200="",0,Q$231+1-R200) -> 0 | T200: =S200+K200 -> 37 | U200: =IF(T200=0,"",RANK(T200,T$7:T$230)) -> 188 | Z200: =SUM(W200:Y200) -> 0 | AA200: =IF(V200="","",RANK(Z200,Z$7:Z$230)) ->  | AB200: =IF(AA200="",0,Z$231+1-AA200) -> 0 | AC200: =AB200+T200 -> 37 | AD200: =RANK(AC200,AC$7:AC$230) -> 197 | AE200: La vie s'écoule | AF200: 10 | AG200: 13 | AH200: 14 | AI200: =SUM(AF200:AH200) -> 37 | AJ200: =IF(AE200="","",RANK(AI200,AI$7:AI$230)) -> 106 | AK200: =IF(AJ200="",0,AI$231+1-AJ200) -> 51 | AL200: =AK200+AC200 -> 88 | AM200: =RANK(AL200,AL$7:AL$230) -> 186 | AR200: =SUM(AO200:AQ200) -> 0 | AS200: =IF(AN200="","",RANK(AR200,AR$7:AR$230)) ->  | AT200: =IF(AS200="",0,AR$231+1-AS200) -> 0 | AU200: =AT200+AL200 -> 88 | AV200: =RANK(AU200,AU$7:AU$230) -> 194 | BA200: 0 | BC200: 0 | BD200: 88 | BE200: 171 | BJ200: 0 | BL200: 0 | BM200: 88 | BN200: 171 | BS200: 0 | BU200: 0 | BV200: 88 | BW200: 171
B201: Roland Hen | C201: Photo Club de Bourgoin-Jallieu | D201: 1108830113 | E201: Retour | F201: 13 | G201: 12 | H201: 12 | I201: =SUM(F201:H201) -> 37 | J201: =IF(E201="","",RANK(I201,I$7:I$230)) -> 106 | K201: =IF(J201="",0,I$231+1-J201) -> 87 | L201: =RANK(K201,K$7:K$226) -> 106 | Q201: =SUM(N201:P201) -> 0 | R201: =IF(M201="","",RANK(Q201,Q$7:Q$230)) ->  | S201: =IF(R201="",0,Q$231+1-R201) -> 0 | T201: =S201+K201 -> 87 | U201: =IF(T201=0,"",RANK(T201,T$7:T$230)) -> 157 | Z201: =SUM(W201:Y201) -> 0 | AA201: =IF(V201="","",RANK(Z201,Z$7:Z$230)) ->  | AB201: =IF(AA201="",0,Z$231+1-AA201) -> 0 | AC201: =AB201+T201 -> 87 | AD201: =RANK(AC201,AC$7:AC$230) -> 183 | AI201: =SUM(AF201:AH201) -> 0 | AJ201: =IF(AE201="","",RANK(AI201,AI$7:AI$230)) ->  | AK201: =IF(AJ201="",0,AI$231+1-AJ201) -> 0 | AL201: =AK201+AC201 -> 87 | AM201: =RANK(AL201,AL$7:AL$230) -> 187 | AR201: =SUM(AO201:AQ201) -> 0 | AS201: =IF(AN201="","",RANK(AR201,AR$7:AR$230)) ->  | AT201: =IF(AS201="",0,AR$231+1-AS201) -> 0 | AU201: =AT201+AL201 -> 87 | AV201: =RANK(AU201,AU$7:AU$230) -> 195 | BA201: 0 | BC201: 0 | BD201: 87 | BE201: 172 | BJ201: 0 | BL201: 0 | BM201: 87 | BN201: 172 | BS201: 0 | BU201: 0 | BV201: 87 | BW201: 172
B202: Geneviève Hinderschid | C202: Club Photo Morestel | D202: 1114030180 | J202: =IF(E202="","",RANK(I202,I$7:I$230)) ->  | K202: =IF(J202="",0,I$231+1-J202) -> 0 | L202: =RANK(K202,K$7:K$226) -> 192 | M202: Plateau de fruits | N202: 14 | O202: 12 | P202: 11 | Q202: =SUM(N202:P202) -> 37 | R202: =IF(M202="","",RANK(Q202,Q$7:Q$230)) -> 83 | S202: =IF(R202="",0,Q$231+1-R202) -> 86 | T202: =S202+K202 -> 86 | U202: =IF(T202=0,"",RANK(T202,T$7:T$230)) -> 161 | Z202: =SUM(W202:Y202) -> 0 | AA202: =IF(V202="","",RANK(Z202,Z$7:Z$230)) ->  | AB202: =IF(AA202="",0,Z$231+1-AA202) -> 0 | AC202: =AB202+T202 -> 86 | AD202: =RANK(AC202,AC$7:AC$230) -> 184 | AJ202: =IF(AE202="","",RANK(AI202,AI$7:AI$230)) ->  | AK202: =IF(AJ202="",0,AI$231+1-AJ202) -> 0 | AL202: =AK202+AC202 -> 86 | AM202: =RANK(AL202,AL$7:AL$230) -> 188 | AR202: =SUM(AO202:AQ202) -> 0 | AS202: =IF(AN202="","",RANK(AR202,AR$7:AR$230)) ->  | AT202: =IF(AS202="",0,AR$231+1-AS202) -> 0 | AU202: =AT202+AL202 -> 86 | AV202: =RANK(AU202,AU$7:AU$230) -> 196 | BA202: 0 | BC202: 0 | BD202: 86 | BE202: 173 | BJ202: 0 | BL202: 0 | BM202: 86 | BN202: 173 | BS202: 0 | BU202: 0 | BV202: 86 | BW202: 173
B203: Jérôme Drevet | C203: Photo Club de Bourgoin-Jallieu | D203: 1108830161 | J203: =IF(E203="","",RANK(I203,I$7:I$230)) ->  | K203: =IF(J203="",0,I$231+1-J203) -> 0 | L203: =RANK(K203,K$7:K$226) -> 192 | R203: =IF(M203="","",RANK(Q203,Q$7:Q$230)) ->  | S203: =IF(R203="",0,Q$231+1-R203) -> 0 | T203: =S203+K203 -> 0 | U203: =IF(T203=0,"",RANK(T203,T$7:T$230)) ->  | AA203: =IF(V203="","",RANK(Z203,Z$7:Z$230)) ->  | AB203: =IF(AA203="",0,Z$231+1-AA203) -> 0 | AC203: =AB203+T203 -> 0 | AD203: =RANK(AC203,AC$7:AC$230) -> 215 | AJ203: =IF(AE203="","",RANK(AI203,AI$7:AI$230)) ->  | AK203: =IF(AJ203="",0,AI$231+1-AJ203) -> 0 | AL203: =AK203+AC203 -> 0 | AM203: =RANK(AL203,AL$7:AL$230) -> 220 | AN203: Casacade givrée | AO203: 12 | AP203: 14 | AQ203: 10 | AR203: =SUM(AO203:AQ203) -> 36 | AS203: =IF(AN203="","",RANK(AR203,AR$7:AR$230)) -> 80 | AT203: =IF(AS203="",0,AR$231+1-AS203) -> 84 | AU203: =AT203+AL203 -> 84 | AV203: =RANK(AU203,AU$7:AU$230) -> 197 | BA203: 0 | BC203: 0 | BD203: 84 | BE203: 174 | BJ203: 0 | BL203: 0 | BM203: 84 | BN203: 174 | BS203: 0 | BU203: 0 | BV203: 84 | BW203: 174
... 34 more rows

Sheet Feuil1
